Workbook

Sheet Report
B1: Use the dropdown box below to select a district:
B3: LEAP Office | AE3: 2024-02-21T15:51:20.480
B4: K-12 Workload, Staffing, and Finance
B5: =TRIM(SelectedDistrict) -> Aberdeen
C6: =COLUMN() -> 3 | D6: =COLUMN() -> 4 | E6: =COLUMN() -> 5 | F6: =COLUMN() -> 6 | G6: =COLUMN() -> 7 | H6: =COLUMN() -> 8 | I6: =COLUMN() -> 9 | J6: =COLUMN() -> 10 | K6: =COLUMN() -> 11 | L6: =COLUMN() -> 12 | M6: =COLUMN() -> 13 | N6: =COLUMN() -> 14 | O6: =COLUMN() -> 15 | P6: =COLUMN() -> 16 | Q6: =COLUMN() -> 17 | R6: =COLUMN() -> 18 | S6: =COLUMN() -> 19 | T6: =COLUMN() -> 20 | U6: =COLUMN() -> 21 | V6: =COLUMN() -> 22 | W6: =COLUMN() -> 23 | X6: =COLUMN() -> 24 | Y6: =COLUMN() -> 25 | Z6: =COLUMN() -> 26 | AA6: =COLUMN() -> 27 | AB6: =COLUMN() -> 28 | AC6: =COLUMN() -> 29 | AD6: =COLUMN() -> 30 | AE6: =COLUMN() -> 31
AE7: =+Statewide!AE7 -> District Budgeted
C8: =+"SY"&Enro!B8 -> SY1995-96 | D8: =+"SY"&Enro!C8 -> SY1996-97 | E8: =+"SY"&Enro!D8 -> SY1997-98 | F8: =+"SY"&Enro!E8 -> SY1998-99 | G8: =+"SY"&Enro!F8 -> SY1999-00 | H8: =+"SY"&Enro!G8 -> SY2000-01 | I8: =+"SY"&Enro!H8 -> SY2001-02 | J8: =+"SY"&Enro!I8 -> SY2002-03 | K8: =+"SY"&Enro!J8 -> SY2003-04 | L8: =+"SY"&Enro!K8 -> SY2004-05 | M8: =+"SY"&Enro!L8 -> SY2005-06 | N8: =+"SY"&Enro!M8 -> SY2006-07 | O8: =+"SY"&Enro!N8 -> SY2007-08 | P8: =+"SY"&Enro!O8 -> SY2008-09 | Q8: =+"SY"&Enro!P8 -> SY2009-10 | R8: =+"SY"&Enro!Q8 -> SY2010-11 | S8: =+"SY"&Enro!R8 -> SY2011-12 | T8: =+"SY"&Enro!S8 -> SY2012-13 | U8: =+"SY"&Enro!T8 -> SY2013-14 | V8: =+"SY"&Enro!U8 -> SY2014-15 | W8: =+"SY"&Enro!V8 -> SY2015-16 | X8: =+"SY"&Enro!W8 -> SY2016-17 | Y8: =+"SY"&Enro!X8 -> SY2017-18 | Z8: =+"SY"&Enro!Y8 -> SY2018-19 | AA8: =+"SY"&Enro!Z8 -> SY2019-20 | AB8: =+"SY"&Enro!AA8 -> SY2020-21 | AC8: =+"SY"&Enro!AB8 -> SY2021-22 | AD8: =+"SY"&Enro!AC8 -> SY2022-23 | AE8: =+"SY"&Enro!AD8 -> SY2023-24
B10: Total FTE Enrollment (1) | C10: =IFERROR(IF(VLOOKUP(SelectedDistrict,Enro!$A:B,COLUMN(Enro!B:B)-COLUMN(Enro!$A:$A)+1,0)=0,"",VLOOKUP(SelectedDistrict,Enro!$A:B,COLUMN(Enro!B:B)-COLUMN(Enro!$A:$A)+1,0)),"") -> 3799.92 | D10: =IFERROR(IF(VLOOKUP(SelectedDistrict,Enro!$A:C,COLUMN(Enro!C:C)-COLUMN(Enro!$A:$A)+1,0)=0,"",VLOOKUP(SelectedDistrict,Enro!$A:C,COLUMN(Enro!C:C)-COLUMN(Enro!$A:$A)+1,0)),"") -> 3800.15 | E10: =IFERROR(IF(VLOOKUP(SelectedDistrict,Enro!$A:D,COLUMN(Enro!D:D)-COLUMN(Enro!$A:$A)+1,0)=0,"",VLOOKUP(SelectedDistrict,Enro!$A:D,COLUMN(Enro!D:D)-COLUMN(Enro!$A:$A)+1,0)),"") -> 3795.14 | F10: =IFERROR(IF(VLOOKUP(SelectedDistrict,Enro!$A:E,COLUMN(Enro!E:E)-COLUMN(Enro!$A:$A)+1,0)=0,"",VLOOKUP(SelectedDistrict,Enro!$A:E,COLUMN(Enro!E:E)-COLUMN(Enro!$A:$A)+1,0)),"") -> 3747.67 | G10: =IFERROR(IF(VLOOKUP(SelectedDistrict,Enro!$A:F,COLUMN(Enro!F:F)-COLUMN(Enro!$A:$A)+1,0)=0,"",VLOOKUP(SelectedDistrict,Enro!$A:F,COLUMN(Enro!F:F)-COLUMN(Enro!$A:$A)+1,0)),"") -> 3688.56 | H10: =IFERROR(IF(VLOOKUP(SelectedDistrict,Enro!$A:G,COLUMN(Enro!G:G)-COLUMN(Enro!$A:$A)+1,0)=0,"",VLOOKUP(SelectedDistrict,Enro!$A:G,COLUMN(Enro!G:G)-COLUMN(Enro!$A:$A)+1,0)),"") -> 3717.83 | I10: =IFERROR(IF(VLOOKUP(SelectedDistrict,Enro!$A:H,COLUMN(Enro!H:H)-COLUMN(Enro!$A:$A)+1,0)=0,"",VLOOKUP(SelectedDistrict,Enro!$A:H,COLUMN(Enro!H:H)-COLUMN(Enro!$A:$A)+1,0)),"") -> 3786.89 | J10: =IFERROR(IF(VLOOKUP(SelectedDistrict,Enro!$A:I,COLUMN(Enro!I:I)-COLUMN(Enro!$A:$A)+1,0)=0,"",VLOOKUP(SelectedDistrict,Enro!$A:I,COLUMN(Enro!I:I)-COLUMN(Enro!$A:$A)+1,0)),"") -> 3749.5 | K10: =IFERROR(IF(VLOOKUP(SelectedDistrict,Enro!$A:J,COLUMN(Enro!J:J)-COLUMN(Enro!$A:$A)+1,0)=0,"",VLOOKUP(SelectedDistrict,Enro!$A:J,COLUMN(Enro!J:J)-COLUMN(Enro!$A:$A)+1,0)),"") -> 3755.17 | L10: =IFERROR(IF(VLOOKUP(SelectedDistrict,Enro!$A:K,COLUMN(Enro!K:K)-COLUMN(Enro!$A:$A)+1,0)=0,"",VLOOKUP(SelectedDistrict,Enro!$A:K,COLUMN(Enro!K:K)-COLUMN(Enro!$A:$A)+1,0)),"") -> 3727.27 | M10: =IFERROR(IF(VLOOKUP(SelectedDistrict,Enro!$A:L,COLUMN(Enro!L:L)-COLUMN(Enro!$A:$A)+1,0)=0,"",VLOOKUP(SelectedDistrict,Enro!$A:L,COLUMN(Enro!L:L)-COLUMN(Enro!$A:$A)+1,0)),"") -> 3605.56 | N10: =IFERROR(IF(VLOOKUP(SelectedDistrict,Enro!$A:M,COLUMN(Enro!M:M)-COLUMN(Enro!$A:$A)+1,0)=0,"",VLOOKUP(SelectedDistrict,Enro!$A:M,COLUMN(Enro!M:M)-COLUMN(Enro!$A:$A)+1,0)),"") -> 3504.08 | O10: =IFERROR(IF(VLOOKUP(SelectedDistrict,Enro!$A:N,COLUMN(Enro!N:N)-COLUMN(Enro!$A:$A)+1,0)=0,"",VLOOKUP(SelectedDistrict,Enro!$A:N,COLUMN(Enro!N:N)-COLUMN(Enro!$A:$A)+1,0)),"") -> 3301.85 | P10: =IFERROR(IF(VLOOKUP(SelectedDistrict,Enro!$A:O,COLUMN(Enro!O:O)-COLUMN(Enro!$A:$A)+1,0)=0,"",VLOOKUP(SelectedDistrict,Enro!$A:O,COLUMN(Enro!O:O)-COLUMN(Enro!$A:$A)+1,0)),"") -> 3155.93 | Q10: =IFERROR(IF(VLOOKUP(SelectedDistrict,Enro!$A:P,COLUMN(Enro!P:P)-COLUMN(Enro!$A:$A)+1,0)=0,"",VLOOKUP(SelectedDistrict,Enro!$A:P,COLUMN(Enro!P:P)-COLUMN(Enro!$A:$A)+1,0)),"") -> 3157.52 | R10: =IFERROR(IF(VLOOKUP(SelectedDistrict,Enro!$A:Q,COLUMN(Enro!Q:Q)-COLUMN(Enro!$A:$A)+1,0)=0,"",VLOOKUP(SelectedDistrict,Enro!$A:Q,COLUMN(Enro!Q:Q)-COLUMN(Enro!$A:$A)+1,0)),"") -> 3089.58 | S10: =IFERROR(IF(VLOOKUP(SelectedDistrict,Enro!$A:R,COLUMN(Enro!R:R)-COLUMN(Enro!$A:$A)+1,0)=0,"",VLOOKUP(SelectedDistrict,Enro!$A:R,COLUMN(Enro!R:R)-COLUMN(Enro!$A:$A)+1,0)),"") -> 3139.99 | T10: =IFERROR(IF(VLOOKUP(SelectedDistrict,Enro!$A:S,COLUMN(Enro!S:S)-COLUMN(Enro!$A:$A)+1,0)=0,"",VLOOKUP(SelectedDistrict,Enro!$A:S,COLUMN(Enro!S:S)-COLUMN(Enro!$A:$A)+1,0)),"") -> 3176.42 | U10: =IFERROR(IF(VLOOKUP(SelectedDistrict,Enro!$A:T,COLUMN(Enro!T:T)-COLUMN(Enro!$A:$A)+1,0)=0,"",VLOOKUP(SelectedDistrict,Enro!$A:T,COLUMN(Enro!T:T)-COLUMN(Enro!$A:$A)+1,0)),"") -> 3213.85 | V10: =IFERROR(IF(VLOOKUP(SelectedDistrict,Enro!$A:U,COLUMN(Enro!U:U)-COLUMN(Enro!$A:$A)+1,0)=0,"",VLOOKUP(SelectedDistrict,Enro!$A:U,COLUMN(Enro!U:U)-COLUMN(Enro!$A:$A)+1,0)),"") -> 3209.61 | W10: =IFERROR(IF(VLOOKUP(SelectedDistrict,Enro!$A:V,COLUMN(Enro!V:V)-COLUMN(Enro!$A:$A)+1,0)=0,"",VLOOKUP(SelectedDistrict,Enro!$A:V,COLUMN(Enro!V:V)-COLUMN(Enro!$A:$A)+1,0)),"") -> 3250.51 | X10: =IFERROR(IF(VLOOKUP(SelectedDistrict,Enro!$A:W,COLUMN(Enro!W:W)-COLUMN(Enro!$A:$A)+1,0)=0,"",VLOOKUP(SelectedDistrict,Enro!$A:W,COLUMN(Enro!W:W)-COLUMN(Enro!$A:$A)+1,0)),"") -> 3324.66 | Y10: =IFERROR(IF(VLOOKUP(SelectedDistrict,Enro!$A:X,COLUMN(Enro!X:X)-COLUMN(Enro!$A:$A)+1,0)=0,"",VLOOKUP(SelectedDistrict,Enro!$A:X,COLUMN(Enro!X:X)-COLUMN(Enro!$A:$A)+1,0)),"") -> 3374.84 | Z10: =IFERROR(IF(VLOOKUP(SelectedDistrict,Enro!$A:Y,COLUMN(Enro!Y:Y)-COLUMN(Enro!$A:$A)+1,0)=0,"",VLOOKUP(SelectedDistrict,Enro!$A:Y,COLUMN(Enro!Y:Y)-COLUMN(Enro!$A:$A)+1,0)),"") -> 3350.03 | AA10: =IFERROR(IF(VLOOKUP(SelectedDistrict,Enro!$A:Z,COLUMN(Enro!Z:Z)-COLUMN(Enro!$A:$A)+1,0)=0,"",VLOOKUP(SelectedDistrict,Enro!$A:Z,COLUMN(Enro!Z:Z)-COLUMN(Enro!$A:$A)+1,0)),"") -> 3334.49 | AB10: =IFERROR(IF(VLOOKUP(SelectedDistrict,Enro!$A:AA,COLUMN(Enro!AA:AA)-COLUMN(Enro!$A:$A)+1,0)=0,"",VLOOKUP(SelectedDistrict,Enro!$A:AA,COLUMN(Enro!AA:AA)-COLUMN(Enro!$A:$A)+1,0)),"") -> 3101.41 | AC10: =IFERROR(IF(VLOOKUP(SelectedDistrict,Enro!$A:AB,COLUMN(Enro!AB:AB)-COLUMN(Enro!$A:$A)+1,0)=0,"",VLOOKUP(SelectedDistrict,Enro!$A:AB,COLUMN(Enro!AB:AB)-COLUMN(Enro!$A:$A)+1,0)),"") -> 3113.84 | AD10: =IFERROR(IF(VLOOKUP(SelectedDistrict,Enro!$A:AC,COLUMN(Enro!AC:AC)-COLUMN(Enro!$A:$A)+1,0)=0,"",VLOOKUP(SelectedDistrict,Enro!$A:AC,COLUMN(Enro!AC:AC)-COLUMN(Enro!$A:$A)+1,0)),"") -> 3162.21 | AE10: =IFERROR(IF(VLOOKUP(SelectedDistrict,Enro!$A:AD,COLUMN(Enro!AD:AD)-COLUMN(Enro!$A:$A)+1,0)=0,"",VLOOKUP(SelectedDistrict,Enro!$A:AD,COLUMN(Enro!AD:AD)-COLUMN(Enro!$A:$A)+1,0)),"") -> 3225.15
B12: Special Ed Percentage (2) | C12: =IFERROR(IF(C$10="","",VLOOKUP(SelectedDistrict,SEPct!$A:B,COLUMN(SEPct!B:B),0)),0) -> 0.147734 | D12: =IFERROR(IF(D$10="","",VLOOKUP(SelectedDistrict,SEPct!$A:C,COLUMN(SEPct!C:C),0)),0) -> 0.154168 | E12: =IFERROR(IF(E$10="","",VLOOKUP(SelectedDistrict,SEPct!$A:D,COLUMN(SEPct!D:D),0)),0) -> 0.14278 | F12: =IFERROR(IF(F$10="","",VLOOKUP(SelectedDistrict,SEPct!$A:E,COLUMN(SEPct!E:E),0)),0) -> 0.1477 | G12: =IFERROR(IF(G$10="","",VLOOKUP(SelectedDistrict,SEPct!$A:F,COLUMN(SEPct!F:F),0)),0) -> 0.164492 | H12: =IFERROR(IF(H$10="","",VLOOKUP(SelectedDistrict,SEPct!$A:G,COLUMN(SEPct!G:G),0)),0) -> 0.159939 | I12: =IFERROR(IF(I$10="","",VLOOKUP(SelectedDistrict,SEPct!$A:H,COLUMN(SEPct!H:H),0)),0) -> 0.159397 | J12: =IFERROR(IF(J$10="","",VLOOKUP(SelectedDistrict,SEPct!$A:I,COLUMN(SEPct!I:I),0)),0) -> 0.146219 | K12: =IFERROR(IF(K$10="","",VLOOKUP(SelectedDistrict,SEPct!$A:J,COLUMN(SEPct!J:J),0)),0) -> 0.149327 | L12: =IFERROR(IF(L$10="","",VLOOKUP(SelectedDistrict,SEPct!$A:K,COLUMN(SEPct!K:K),0)),0) -> 0.14404 | M12: =IFERROR(IF(M$10="","",VLOOKUP(SelectedDistrict,SEPct!$A:L,COLUMN(SEPct!L:L),0)),0) -> 0.13878 | N12: =IFERROR(IF(N$10="","",VLOOKUP(SelectedDistrict,SEPct!$A:M,COLUMN(SEPct!M:M),0)),0) -> 0.145653 | O12: =IFERROR(IF(O$10="","",VLOOKUP(SelectedDistrict,SEPct!$A:N,COLUMN(SEPct!N:N),0)),0) -> 0.132616 | P12: =IFERROR(IF(P$10="","",VLOOKUP(SelectedDistrict,SEPct!$A:O,COLUMN(SEPct!O:O),0)),0) -> 0.136981 | Q12: =IFERROR(IF(Q$10="","",VLOOKUP(SelectedDistrict,SEPct!$A:P,COLUMN(SEPct!P:P),0)),0) -> 0.135406 | R12: =IFERROR(IF(R$10="","",VLOOKUP(SelectedDistrict,SEPct!$A:Q,COLUMN(SEPct!Q:Q),0)),0) -> 0.134014 | S12: =IFERROR(IF(S$10="","",VLOOKUP(SelectedDistrict,SEPct!$A:R,COLUMN(SEPct!R:R),0)),0) -> 0.147867 | T12: =IFERROR(IF(T$10="","",VLOOKUP(SelectedDistrict,SEPct!$A:S,COLUMN(SEPct!S:S),0)),0) -> 0.136279 | U12: =IFERROR(IF(U$10="","",VLOOKUP(SelectedDistrict,SEPct!$A:T,COLUMN(SEPct!T:T),0)),0) -> 0.133762 | V12: =IFERROR(IF(V$10="","",VLOOKUP(SelectedDistrict,SEPct!$A:U,COLUMN(SEPct!U:U),0)),0) -> 0.144459 | W12: =IFERROR(IF(W$10="","",VLOOKUP(SelectedDistrict,SEPct!$A:V,COLUMN(SEPct!V:V),0)),0) -> 0.147545 | X12: =IFERROR(IF(X$10="","",VLOOKUP(SelectedDistrict,SEPct!$A:W,COLUMN(SEPct!W:W),0)),0) -> 0.152814 | Y12: =IFERROR(IF(Y$10="","",VLOOKUP(SelectedDistrict,SEPct!$A:X,COLUMN(SEPct!X:X),0)),0) -> 0.150793 | Z12: =IFERROR(IF(Z$10="","",VLOOKUP(SelectedDistrict,SEPct!$A:Y,COLUMN(SEPct!Y:Y),0)),0) -> 0.158854 | AA12: =IFERROR(IF(AA$10="","",VLOOKUP(SelectedDistrict,SEPct!$A:Z,COLUMN(SEPct!Z:Z),0)),0) -> 0.160243 | AB12: =IFERROR(IF(AB$10="","",VLOOKUP(SelectedDistrict,SEPct!$A:AA,COLUMN(SEPct!AA:AA),0)),0) -> 0.160018 | AC12: =IFERROR(IF(AC$10="","",VLOOKUP(SelectedDistrict,SEPct!$A:AB,COLUMN(SEPct!AB:AB),0)),0) -> 0.157827 | AD12: =IFERROR(IF(AD$10="","",VLOOKUP(SelectedDistrict,SEPct!$A:AC,COLUMN(SEPct!AC:AC),0)),0) -> 0.173093 | AE12: =IFERROR(IF(AE$10="","",VLOOKUP(SelectedDistrict,SEPct!$A:AD,COLUMN(SEPct!AD:AD),0)),0) -> 0.177237
B14: Free and Reduced Lunch Percentage (9) | C14: =IFERROR(IF(C$10="","",VLOOKUP(SelectedDistrict,FRPL!$A:B,COLUMN(Revs!B:B),0)),0) -> 0.4582 | D14: =IFERROR(IF(D$10="","",VLOOKUP(SelectedDistrict,FRPL!$A:C,COLUMN(Revs!C:C),0)),0) -> 0.4633 | E14: =IFERROR(IF(E$10="","",VLOOKUP(SelectedDistrict,FRPL!$A:D,COLUMN(Revs!D:D),0)),0) -> 0.4893 | F14: =IFERROR(IF(F$10="","",VLOOKUP(SelectedDistrict,FRPL!$A:E,COLUMN(Revs!E:E),0)),0) -> 0.4649 | G14: =IFERROR(IF(G$10="","",VLOOKUP(SelectedDistrict,FRPL!$A:F,COLUMN(Revs!F:F),0)),0) -> 0.4881 | H14: =IFERROR(IF(H$10="","",VLOOKUP(SelectedDistrict,FRPL!$A:G,COLUMN(Revs!G:G),0)),0) -> 0.5168 | I14: =IFERROR(IF(I$10="","",VLOOKUP(SelectedDistrict,FRPL!$A:H,COLUMN(Revs!H:H),0)),0) -> 0.5309 | J14: =IFERROR(IF(J$10="","",VLOOKUP(SelectedDistrict,FRPL!$A:I,COLUMN(Revs!I:I),0)),0) -> 0.5611 | K14: =IFERROR(IF(K$10="","",VLOOKUP(SelectedDistrict,FRPL!$A:J,COLUMN(Revs!J:J),0)),0) -> 0.5624 | L14: =IFERROR(IF(L$10="","",VLOOKUP(SelectedDistrict,FRPL!$A:K,COLUMN(Revs!K:K),0)),0) -> 0.539222 | M14: =IFERROR(IF(M$10="","",VLOOKUP(SelectedDistrict,FRPL!$A:L,COLUMN(Revs!L:L),0)),0) -> 0.542585 | N14: =IFERROR(IF(N$10="","",VLOOKUP(SelectedDistrict,FRPL!$A:M,COLUMN(Revs!M:M),0)),0) -> 0.554025 | O14: =IFERROR(IF(O$10="","",VLOOKUP(SelectedDistrict,FRPL!$A:N,COLUMN(Revs!N:N),0)),0) -> 0.557479 | P14: =IFERROR(IF(P$10="","",VLOOKUP(SelectedDistrict,FRPL!$A:O,COLUMN(Revs!O:O),0)),0) -> 0.587711 | Q14: =IFERROR(IF(Q$10="","",VLOOKUP(SelectedDistrict,FRPL!$A:P,COLUMN(Revs!P:P),0)),0) -> 0.612129 | R14: =IFERROR(IF(R$10="","",VLOOKUP(SelectedDistrict,FRPL!$A:Q,COLUMN(Revs!Q:Q),0)),0) -> 0.629916 | S14: =IFERROR(IF(S$10="","",VLOOKUP(SelectedDistrict,FRPL!$A:R,COLUMN(Revs!R:R),0)),0) -> 0.73971 | T14: =IFERROR(IF(T$10="","",VLOOKUP(SelectedDistrict,FRPL!$A:S,COLUMN(Revs!S:S),0)),0) -> 0.632452 | U14: =IFERROR(IF(U$10="","",VLOOKUP(SelectedDistrict,FRPL!$A:T,COLUMN(Revs!T:T),0)),0) -> 0.727777 | V14: =IFERROR(IF(V$10="","",VLOOKUP(SelectedDistrict,FRPL!$A:U,COLUMN(Revs!U:U),0)),0) -> 0.7016 | W14: =IFERROR(IF(W$10="","",VLOOKUP(SelectedDistrict,FRPL!$A:V,COLUMN(Revs!V:V),0)),0) -> 0.6734 | X14: =IFERROR(IF(X$10="","",VLOOKUP(SelectedDistrict,FRPL!$A:W,COLUMN(Revs!W:W),0)),0) -> 0.671 | Y14: =IFERROR(IF(Y$10="","",VLOOKUP(SelectedDistrict,FRPL!$A:X,COLUMN(Revs!X:X),0)),0) -> 0.660479 | Z14: =IFERROR(IF(Z$10="","",VLOOKUP(SelectedDistrict,FRPL!$A:Y,COLUMN(Revs!Y:Y),0)),0) -> 0.677685 | AA14: =IFERROR(IF(AA$10="","",VLOOKUP(SelectedDistrict,FRPL!$A:Z,COLUMN(Revs!Z:Z),0)),0) -> 0.6793 | AB14: =IFERROR(IF(AB$10="","",VLOOKUP(SelectedDistrict,FRPL!$A:AA,COLUMN(Revs!AA:AA),0)),0) -> 0.7192 | AC14: =IFERROR(IF(AC$10="","",VLOOKUP(SelectedDistrict,FRPL!$A:AB,COLUMN(Revs!AB:AB),0)),0) -> 0.7194 | AD14: =IFERROR(IF(AD$10="","",VLOOKUP(SelectedDistrict,FRPL!$A:AC,COLUMN(Revs!AC:AC),0)),0) -> 0.7253 | AE14: =IFERROR(IF(AE$10="","",VLOOKUP(SelectedDistrict,FRPL!$A:AD,COLUMN(Revs!AD:AD),0)),0) -> 0.6727
B16: Certificated Administrative Staff (3) | C16: =IFERROR(IF(C$10="","",VLOOKUP(SelectedDistrict,Staff!$AH:AI,COLUMN(Staff!AI:AI)-COLUMN(Staff!$AH:$AH)+1,0)),0) -> 13 | D16: =IFERROR(IF(D$10="","",VLOOKUP(SelectedDistrict,Staff!$AH:AJ,COLUMN(Staff!AJ:AJ)-COLUMN(Staff!$AH:$AH)+1,0)),0) -> 14 | E16: =IFERROR(IF(E$10="","",VLOOKUP(SelectedDistrict,Staff!$AH:AK,COLUMN(Staff!AK:AK)-COLUMN(Staff!$AH:$AH)+1,0)),0) -> 14 | F16: =IFERROR(IF(F$10="","",VLOOKUP(SelectedDistrict,Staff!$AH:AL,COLUMN(Staff!AL:AL)-COLUMN(Staff!$AH:$AH)+1,0)),0) -> 14 | G16: =IFERROR(IF(G$10="","",VLOOKUP(SelectedDistrict,Staff!$AH:AM,COLUMN(Staff!AM:AM)-COLUMN(Staff!$AH:$AH)+1,0)),0) -> 15 | H16: =IFERROR(IF(H$10="","",VLOOKUP(SelectedDistrict,Staff!$AH:AN,COLUMN(Staff!AN:AN)-COLUMN(Staff!$AH:$AH)+1,0)),0) -> 14.5 | I16: =IFERROR(IF(I$10="","",VLOOKUP(SelectedDistrict,Staff!$AH:AO,COLUMN(Staff!AO:AO)-COLUMN(Staff!$AH:$AH)+1,0)),0) -> 14.97 | J16: =IFERROR(IF(J$10="","",VLOOKUP(SelectedDistrict,Staff!$AH:AP,COLUMN(Staff!AP:AP)-COLUMN(Staff!$AH:$AH)+1,0)),0) -> 15.5 | K16: =IFERROR(IF(K$10="","",VLOOKUP(SelectedDistrict,Staff!$AH:AQ,COLUMN(Staff!AQ:AQ)-COLUMN(Staff!$AH:$AH)+1,0)),0) -> 15.5 | L16: =IFERROR(IF(L$10="","",VLOOKUP(SelectedDistrict,Staff!$AH:AR,COLUMN(Staff!AR:AR)-COLUMN(Staff!$AH:$AH)+1,0)),0) -> 15.8 | M16: =IFERROR(IF(M$10="","",VLOOKUP(SelectedDistrict,Staff!$AH:AS,COLUMN(Staff!AS:AS)-COLUMN(Staff!$AH:$AH)+1,0)),0) -> 16 | N16: =IFERROR(IF(N$10="","",VLOOKUP(SelectedDistrict,Staff!$AH:AT,COLUMN(Staff!AT:AT)-COLUMN(Staff!$AH:$AH)+1,0)),0) -> 15 | O16: =IFERROR(IF(O$10="","",VLOOKUP(SelectedDistrict,Staff!$AH:AU,COLUMN(Staff!AU:AU)-COLUMN(Staff!$AH:$AH)+1,0)),0) -> 15 | P16: =IFERROR(IF(P$10="","",VLOOKUP(SelectedDistrict,Staff!$AH:AV,COLUMN(Staff!AV:AV)-COLUMN(Staff!$AH:$AH)+1,0)),0) -> 14 | Q16: =IFERROR(IF(Q$10="","",VLOOKUP(SelectedDistrict,Staff!$AH:AW,COLUMN(Staff!AW:AW)-COLUMN(Staff!$AH:$AH)+1,0)),0) -> 13 | R16: =IFERROR(IF(R$10="","",VLOOKUP(SelectedDistrict,Staff!$AH:AX,COLUMN(Staff!AX:AX)-COLUMN(Staff!$AH:$AH)+1,0)),0) -> 15 | S16: =IFERROR(IF(S$10="","",VLOOKUP(SelectedDistrict,Staff!$AH:AY,COLUMN(Staff!AY:AY)-COLUMN(Staff!$AH:$AH)+1,0)),0) -> 15 | T16: =IFERROR(IF(T$10="","",VLOOKUP(SelectedDistrict,Staff!$AH:AZ,COLUMN(Staff!AZ:AZ)-COLUMN(Staff!$AH:$AH)+1,0)),0) -> 15.7 | U16: =IFERROR(IF(U$10="","",VLOOKUP(SelectedDistrict,Staff!$AH:BA,COLUMN(Staff!BA:BA)-COLUMN(Staff!$AH:$AH)+1,0)),0) -> 14.7 | V16: =IFERROR(IF(V$10="","",VLOOKUP(SelectedDistrict,Staff!$AH:BB,COLUMN(Staff!BB:BB)-COLUMN(Staff!$AH:$AH)+1,0)),0) -> 15.187 | W16: =IFERROR(IF(W$10="","",VLOOKUP(SelectedDistrict,Staff!$AH:BC,COLUMN(Staff!BC:BC)-COLUMN(Staff!$AH:$AH)+1,0)),0) -> 15.2 | X16: =IFERROR(IF(X$10="","",VLOOKUP(SelectedDistrict,Staff!$AH:BD,COLUMN(Staff!BD:BD)-COLUMN(Staff!$AH:$AH)+1,0)),0) -> 16.156 | Y16: =IFERROR(IF(Y$10="","",VLOOKUP(SelectedDistrict,Staff!$AH:BE,COLUMN(Staff!BE:BE)-COLUMN(Staff!$AH:$AH)+1,0)),0) -> 16.8 | Z16: =IFERROR(IF(Z$10="","",VLOOKUP(SelectedDistrict,Staff!$AH:BF,COLUMN(Staff!BF:BF)-COLUMN(Staff!$AH:$AH)+1,0)),0) -> 17 | AA16: =IFERROR(IF(AA$10="","",VLOOKUP(SelectedDistrict,Staff!$AH:BG,COLUMN(Staff!BG:BG)-COLUMN(Staff!$AH:$AH)+1,0)),0) -> 14.2 | AB16: =IFERROR(IF(AB$10="","",VLOOKUP(SelectedDistrict,Staff!$AH:BH,COLUMN(Staff!BH:BH)-COLUMN(Staff!$AH:$AH)+1,0)),0) -> 12.25 | AC16: =IFERROR(IF(AC$10="","",VLOOKUP(SelectedDistrict,Staff!$AH:BI,COLUMN(Staff!BI:BI)-COLUMN(Staff!$AH:$AH)+1,0)),0) -> 14.5 | AD16: =IFERROR(IF(AD$10="","",VLOOKUP(SelectedDistrict,Staff!$AH:BJ,COLUMN(Staff!BJ:BJ)-COLUMN(Staff!$AH:$AH)+1,0)),0) -> 16.5 | AE16: =IFERROR(IF(AE$10="","",VLOOKUP(SelectedDistrict,Staff!$AH:BK,COLUMN(Staff!BK:BK)-COLUMN(Staff!$AH:$AH)+1,0)),0) -> 14.992
B17: Certificated Instructional Staff (3) | C17: =IFERROR(IF(C$10="","",VLOOKUP(SelectedDistrict,Staff!$A:B,COLUMN(Revs!B:B)-COLUMN(Staff!$A:$A)+1,0)),0) -> 231.722 | D17: =IFERROR(IF(D$10="","",VLOOKUP(SelectedDistrict,Staff!$A:C,COLUMN(Revs!C:C)-COLUMN(Staff!$A:$A)+1,0)),0) -> 228.412 | E17: =IFERROR(IF(E$10="","",VLOOKUP(SelectedDistrict,Staff!$A:D,COLUMN(Revs!D:D)-COLUMN(Staff!$A:$A)+1,0)),0) -> 236.362 | F17: =IFERROR(IF(F$10="","",VLOOKUP(SelectedDistrict,Staff!$A:E,COLUMN(Revs!E:E)-COLUMN(Staff!$A:$A)+1,0)),0) -> 229.45 | G17: =IFERROR(IF(G$10="","",VLOOKUP(SelectedDistrict,Staff!$A:F,COLUMN(Revs!F:F)-COLUMN(Staff!$A:$A)+1,0)),0) -> 227.694 | H17: =IFERROR(IF(H$10="","",VLOOKUP(SelectedDistrict,Staff!$A:G,COLUMN(Revs!G:G)-COLUMN(Staff!$A:$A)+1,0)),0) -> 239.974 | I17: =IFERROR(IF(I$10="","",VLOOKUP(SelectedDistrict,Staff!$A:H,COLUMN(Revs!H:H)-COLUMN(Staff!$A:$A)+1,0)),0) -> 240.4 | J17: =IFERROR(IF(J$10="","",VLOOKUP(SelectedDistrict,Staff!$A:I,COLUMN(Revs!I:I)-COLUMN(Staff!$A:$A)+1,0)),0) -> 241.5 | K17: =IFERROR(IF(K$10="","",VLOOKUP(SelectedDistrict,Staff!$A:J,COLUMN(Revs!J:J)-COLUMN(Staff!$A:$A)+1,0)),0) -> 244.9 | L17: =IFERROR(IF(L$10="","",VLOOKUP(SelectedDistrict,Staff!$A:K,COLUMN(Revs!K:K)-COLUMN(Staff!$A:$A)+1,0)),0) -> 245.731 | M17: =IFERROR(IF(M$10="","",VLOOKUP(SelectedDistrict,Staff!$A:L,COLUMN(Revs!L:L)-COLUMN(Staff!$A:$A)+1,0)),0) -> 248.934 | N17: =IFERROR(IF(N$10="","",VLOOKUP(SelectedDistrict,Staff!$A:M,COLUMN(Revs!M:M)-COLUMN(Staff!$A:$A)+1,0)),0) -> 236.2 | O17: =IFERROR(IF(O$10="","",VLOOKUP(SelectedDistrict,Staff!$A:N,COLUMN(Revs!N:N)-COLUMN(Staff!$A:$A)+1,0)),0) -> 229.966 | P17: =IFERROR(IF(P$10="","",VLOOKUP(SelectedDistrict,Staff!$A:O,COLUMN(Revs!O:O)-COLUMN(Staff!$A:$A)+1,0)),0) -> 221.721 | Q17: =IFERROR(IF(Q$10="","",VLOOKUP(SelectedDistrict,Staff!$A:P,COLUMN(Revs!P:P)-COLUMN(Staff!$A:$A)+1,0)),0) -> 211.181 | R17: =IFERROR(IF(R$10="","",VLOOKUP(SelectedDistrict,Staff!$A:Q,COLUMN(Revs!Q:Q)-COLUMN(Staff!$A:$A)+1,0)),0) -> 216.906 | S17: =IFERROR(IF(S$10="","",VLOOKUP(SelectedDistrict,Staff!$A:R,COLUMN(Revs!R:R)-COLUMN(Staff!$A:$A)+1,0)),0) -> 209.944 | T17: =IFERROR(IF(T$10="","",VLOOKUP(SelectedDistrict,Staff!$A:S,COLUMN(Revs!S:S)-COLUMN(Staff!$A:$A)+1,0)),0) -> 200.594 | U17: =IFERROR(IF(U$10="","",VLOOKUP(SelectedDistrict,Staff!$A:T,COLUMN(Revs!T:T)-COLUMN(Staff!$A:$A)+1,0)),0) -> 207.922 | V17: =IFERROR(IF(V$10="","",VLOOKUP(SelectedDistrict,Staff!$A:U,COLUMN(Revs!U:U)-COLUMN(Staff!$A:$A)+1,0)),0) -> 213.2 | W17: =IFERROR(IF(W$10="","",VLOOKUP(SelectedDistrict,Staff!$A:V,COLUMN(Revs!V:V)-COLUMN(Staff!$A:$A)+1,0)),0) -> 215.95 | X17: =IFERROR(IF(X$10="","",VLOOKUP(SelectedDistrict,Staff!$A:W,COLUMN(Revs!W:W)-COLUMN(Staff!$A:$A)+1,0)),0) -> 225.448 | Y17: =IFERROR(IF(Y$10="","",VLOOKUP(SelectedDistrict,Staff!$A:X,COLUMN(Revs!X:X)-COLUMN(Staff!$A:$A)+1,0)),0) -> 234.432 | Z17: =IFERROR(IF(Z$10="","",VLOOKUP(SelectedDistrict,Staff!$A:Y,COLUMN(Revs!Y:Y)-COLUMN(Staff!$A:$A)+1,0)),0) -> 239.948 | AA17: =IFERROR(IF(AA$10="","",VLOOKUP(SelectedDistrict,Staff!$A:Z,COLUMN(Revs!Z:Z)-COLUMN(Staff!$A:$A)+1,0)),0) -> 225.956 | AB17: =IFERROR(IF(AB$10="","",VLOOKUP(SelectedDistrict,Staff!$A:AA,COLUMN(Revs!AA:AA)-COLUMN(Staff!$A:$A)+1,0)),0) -> 188.163 | AC17: =IFERROR(IF(AC$10="","",VLOOKUP(SelectedDistrict,Staff!$A:AB,COLUMN(Revs!AB:AB)-COLUMN(Staff!$A:$A)+1,0)),0) -> 217.51 | AD17: =IFERROR(IF(AD$10="","",VLOOKUP(SelectedDistrict,Staff!$A:AC,COLUMN(Revs!AC:AC)-COLUMN(Staff!$A:$A)+1,0)),0) -> 229.277 | AE17: =IFERROR(IF(AE$10="","",VLOOKUP(SelectedDistrict,Staff!$A:AD,COLUMN(Revs!AD:AD)-COLUMN(Staff!$A:$A)+1,0)),0) -> 211.372
B18: Total Certificated Staff (3) | C18: =IF(C$10="","",C16+C17) -> 244.722 | D18: =IF(D$10="","",D16+D17) -> 242.412 | E18: 250.362 | F18: 243.45 | G18: 242.694 | H18: 254.474 | I18: 255.37 | J18: 257 | K18: 260.4 | L18: 261.531 | M18: 264.934 | N18: 251.2 | O18: 244.966 | P18: 235.721 | Q18: 224.181 | R18: 231.906 | S18: 224.944 | T18: 216.294 | U18: 222.622 | V18: 228.387 | W18: 231.15 | X18: 241.604 | Y18: 251.232 | Z18: 256.948 | AA18: 240.156 | AB18: 200.413 | AC18: 232.01 | AD18: 245.777 | AE18: =IF(AE$10="","",AE16+AE17) -> 226.364
B19: Classified Staff (3) | C19: =IFERROR(IF(C$10="","",VLOOKUP(SelectedDistrict,Staff!$BO:BP,COLUMN(Staff!BP:BP)-COLUMN(Staff!$BO:$BO)+1,0)),0) -> 142.192 | D19: =IFERROR(IF(D$10="","",VLOOKUP(SelectedDistrict,Staff!$BO:BQ,COLUMN(Staff!BQ:BQ)-COLUMN(Staff!$BO:$BO)+1,0)),0) -> 144.205 | E19: =IFERROR(IF(E$10="","",VLOOKUP(SelectedDistrict,Staff!$BO:BR,COLUMN(Staff!BR:BR)-COLUMN(Staff!$BO:$BO)+1,0)),0) -> 154.226 | F19: =IFERROR(IF(F$10="","",VLOOKUP(SelectedDistrict,Staff!$BO:BS,COLUMN(Staff!BS:BS)-COLUMN(Staff!$BO:$BO)+1,0)),0) -> 143.448 | G19: =IFERROR(IF(G$10="","",VLOOKUP(SelectedDistrict,Staff!$BO:BT,COLUMN(Staff!BT:BT)-COLUMN(Staff!$BO:$BO)+1,0)),0) -> 154.071 | H19: =IFERROR(IF(H$10="","",VLOOKUP(SelectedDistrict,Staff!$BO:BU,COLUMN(Staff!BU:BU)-COLUMN(Staff!$BO:$BO)+1,0)),0) -> 151.684 | I19: =IFERROR(IF(I$10="","",VLOOKUP(SelectedDistrict,Staff!$BO:BV,COLUMN(Staff!BV:BV)-COLUMN(Staff!$BO:$BO)+1,0)),0) -> 154.323 | J19: =IFERROR(IF(J$10="","",VLOOKUP(SelectedDistrict,Staff!$BO:BW,COLUMN(Staff!BW:BW)-COLUMN(Staff!$BO:$BO)+1,0)),0) -> 159.281 | K19: =IFERROR(IF(K$10="","",VLOOKUP(SelectedDistrict,Staff!$BO:BX,COLUMN(Staff!BX:BX)-COLUMN(Staff!$BO:$BO)+1,0)),0) -> 166.616 | L19: =IFERROR(IF(L$10="","",VLOOKUP(SelectedDistrict,Staff!$BO:BY,COLUMN(Staff!BY:BY)-COLUMN(Staff!$BO:$BO)+1,0)),0) -> 167.347 | M19: =IFERROR(IF(M$10="","",VLOOKUP(SelectedDistrict,Staff!$BO:BZ,COLUMN(Staff!BZ:BZ)-COLUMN(Staff!$BO:$BO)+1,0)),0) -> 162.411 | N19: =IFERROR(IF(N$10="","",VLOOKUP(SelectedDistrict,Staff!$BO:CA,COLUMN(Staff!CA:CA)-COLUMN(Staff!$BO:$BO)+1,0)),0) -> 150.645 | O19: =IFERROR(IF(O$10="","",VLOOKUP(SelectedDistrict,Staff!$BO:CB,COLUMN(Staff!CB:CB)-COLUMN(Staff!$BO:$BO)+1,0)),0) -> 154.911 | P19: =IFERROR(IF(P$10="","",VLOOKUP(SelectedDistrict,Staff!$BO:CC,COLUMN(Staff!CC:CC)-COLUMN(Staff!$BO:$BO)+1,0)),0) -> 154.564 | Q19: =IFERROR(IF(Q$10="","",VLOOKUP(SelectedDistrict,Staff!$BO:CD,COLUMN(Staff!CD:CD)-COLUMN(Staff!$BO:$BO)+1,0)),0) -> 155.93 | R19: =IFERROR(IF(R$10="","",VLOOKUP(SelectedDistrict,Staff!$BO:CE,COLUMN(Staff!CE:CE)-COLUMN(Staff!$BO:$BO)+1,0)),0) -> 159.356 | S19: =IFERROR(IF(S$10="","",VLOOKUP(SelectedDistrict,Staff!$BO:CF,COLUMN(Staff!CF:CF)-COLUMN(Staff!$BO:$BO)+1,0)),0) -> 157.418 | T19: =IFERROR(IF(T$10="","",VLOOKUP(SelectedDistrict,Staff!$BO:CG,COLUMN(Staff!CG:CG)-COLUMN(Staff!$BO:$BO)+1,0)),0) -> 152.227 | U19: =IFERROR(IF(U$10="","",VLOOKUP(SelectedDistrict,Staff!$BO:CH,COLUMN(Staff!CH:CH)-COLUMN(Staff!$BO:$BO)+1,0)),0) -> 163.537 | V19: =IFERROR(IF(V$10="","",VLOOKUP(SelectedDistrict,Staff!$BO:CI,COLUMN(Staff!CI:CI)-COLUMN(Staff!$BO:$BO)+1,0)),0) -> 172.003 | W19: =IFERROR(IF(W$10="","",VLOOKUP(SelectedDistrict,Staff!$BO:CJ,COLUMN(Staff!CJ:CJ)-COLUMN(Staff!$BO:$BO)+1,0)),0) -> 178.042 | X19: =IFERROR(IF(X$10="","",VLOOKUP(SelectedDistrict,Staff!$BO:CK,COLUMN(Staff!CK:CK)-COLUMN(Staff!$BO:$BO)+1,0)),0) -> 186.454 | Y19: =IFERROR(IF(Y$10="","",VLOOKUP(SelectedDistrict,Staff!$BO:CL,COLUMN(Staff!CL:CL)-COLUMN(Staff!$BO:$BO)+1,0)),0) -> 190.301 | Z19: =IFERROR(IF(Z$10="","",VLOOKUP(SelectedDistrict,Staff!$BO:CM,COLUMN(Staff!CM:CM)-COLUMN(Staff!$BO:$BO)+1,0)),0) -> 189.327 | AA19: =IFERROR(IF(AA$10="","",VLOOKUP(SelectedDistrict,Staff!$BO:CN,COLUMN(Staff!CN:CN)-COLUMN(Staff!$BO:$BO)+1,0)),0) -> 175.682 | AB19: =IFERROR(IF(AB$10="","",VLOOKUP(SelectedDistrict,Staff!$BO:CO,COLUMN(Staff!CO:CO)-COLUMN(Staff!$BO:$BO)+1,0)),0) -> 102.872 | AC19: =IFERROR(IF(AC$10="","",VLOOKUP(SelectedDistrict,Staff!$BO:CP,COLUMN(Staff!CP:CP)-COLUMN(Staff!$BO:$BO)+1,0)),0) -> 162.823 | AD19: =IFERROR(IF(AD$10="","",VLOOKUP(SelectedDistrict,Staff!$BO:CQ,COLUMN(Staff!CQ:CQ)-COLUMN(Staff!$BO:$BO)+1,0)),0) -> 175.666 | AE19: =IFERROR(IF(AE$10="","",VLOOKUP(SelectedDistrict,Staff!$BO:CR,COLUMN(Staff!CR:CR)-COLUMN(Staff!$BO:$BO)+1,0)),0) -> 162.165
B20: Total Staff (3) | C20: =IF(C$10="","",SUM(C18:C19)) -> 386.914 | D20: =IF(D$10="","",SUM(D18:D19)) -> 386.617 | E20: 404.588 | F20: 386.898 | G20: 396.765 | H20: 406.158 | I20: 409.693 | J20: 416.281 | K20: 427.016 | L20: 428.878 | M20: 427.345 | N20: 401.845 | O20: 399.877 | P20: 390.285 | Q20: 380.111 | R20: =IF(R$10="","",SUM(R18:R19)) -> 391.262 | S20: =IF(S$10="","",SUM(S18:S19)) -> 382.362 | T20: =IF(T$10="","",SUM(T18:T19)) -> 368.521 | U20: =IF(U$10="","",SUM(U18:U19)) -> 386.159 | V20: =IF(V$10="","",SUM(V18:V19)) -> 400.39 | W20: =IF(W$10="","",SUM(W18:W19)) -> 409.192 | X20: =IF(X$10="","",SUM(X18:X19)) -> 428.058 | Y20: =IF(Y$10="","",SUM(Y18:Y19)) -> 441.533 | Z20: =IF(Z$10="","",SUM(Z18:Z19)) -> 446.275 | AA20: 415.838 | AB20: 303.285 | AC20: 394.833 | AD20: 421.443 | AE20: =IF(AE$10="","",SUM(AE18:AE19)) -> 388.529
B22: FTE Enrollment per Staff
B23: =B16 -> Certificated Administrative Staff (3) | C23: =IFERROR(IF(C$10="","",C$10/C16),0) -> 292.3015385 | D23: 271.4392857 | E23: 271.0814286 | F23: 267.6907143 | G23: 245.904 | H23: 256.402069 | I23: 252.9652639 | J23: 241.9032258 | K23: 242.2690323 | L23: 235.9031646 | M23: 225.3475 | N23: 233.6053333 | O23: 220.1233333 | P23: 225.4235714 | Q23: 242.8861538 | R23: 205.972 | S23: 209.3326667 | T23: 202.3197452 | U23: 218.6292517 | V23: 211.3393034 | W23: 213.8493421 | X23: 205.7848477 | Y23: 200.8833333 | Z23: 197.0605882 | AA23: 234.8232394 | AB23: 253.1763265 | AC23: 214.7475862 | AD23: 191.6490909 | AE23: =IFERROR(IF(AE$10="","",AE$10/AE16),0) -> 215.1247332
B24: =B17 -> Certificated Instructional Staff (3) | C24: =IFERROR(IF(C$10="","",C$10/C17),0) -> 16.39861558 | D24: 16.63726074 | E24: 16.0564727 | F24: 16.33327522 | G24: 16.19963635 | H24: 15.4926367 | I24: 15.75245424 | J24: 15.52587992 | K24: 15.33348305 | L24: 15.16809031 | M24: 14.48399978 | N24: 14.83522439 | O24: 14.35799205 | P24: 14.23378931 | Q24: 14.95172388 | R24: 14.24386601 | S24: 14.95632169 | T24: 15.83506984 | U24: 15.4569983 | V24: 15.05445591 | W24: =IFERROR(IF(W$10="","",W$10/W17),0) -> 15.0521417 | X24: 14.74690394 | Y24: 14.39581627 | Z24: 13.96148332 | AA24: 14.75725362 | AB24: 16.48257096 | AC24: 14.31584755 | AD24: =IFERROR(IF(AD$10="","",AD$10/AD17),0) -> 13.79209428 | AE24: =IFERROR(IF(AE$10="","",AE$10/AE17),0) -> 15.25817043
B25: Total Certificated Staff (3) | C25: =IFERROR(IF(C$10="","",C$10/C18),0) -> 15.52749651 | D25: =IFERROR(IF(D$10="","",D$10/D18),0) -> 15.67641041 | E25: 15.15861033 | F25: 15.39400288 | G25: 15.19839798 | H25: 14.60986191 | I25: 14.82903238 | J25: 14.58949416 | K25: 14.42077573 | L25: 14.25173306 | M25: 13.60927627 | N25: 13.94936306 | O25: 13.4788093 | P25: 13.38841257 | Q25: 14.0846905 | R25: 13.3225531 | S25: 13.95898535 | T25: 14.68565933 | U25: 14.436354 | V25: 14.05338307 | W25: 14.06234047 | X25: 13.76078211 | Y25: 13.43316138 | Z25: 13.03777418 | AA25: 13.88468329 | AB25: 15.47509393 | AC25: 13.42114564 | AD25: 12.86617544 | AE25: =IFERROR(IF(AE$10="","",AE$10/AE18),0) -> 14.24762771
B26: Classified Staff (3) | C26: =IFERROR(IF(C$10="","",C$10/C19),0) -> 26.72386632 | D26: 26.35241496 | E26: 24.6076537 | F26: 26.12563438 | G26: 23.94065074 | H26: 24.51036365 | I26: 24.53872721 | J26: 23.54015859 | K26: 22.53787151 | L26: 22.27270283 | M26: 22.20022043 | N26: 23.26051313 | O26: 21.31449671 | P26: 20.41827334 | Q26: 20.24959918 | R26: 19.38791134 | S26: 19.94682946 | T26: 20.86633777 | U26: 19.65212765 | V26: 18.66019779 | W26: 18.25698431 | X26: 17.83099317 | Y26: 17.73422105 | Z26: 17.69441231 | AA26: 18.98025979 | AB26: 30.14824248 | AC26: 19.12407952 | AD26: =IFERROR(IF(AD$10="","",AD$10/AD19),0) -> 18.00126376 | AE26: =IFERROR(IF(AE$10="","",AE$10/AE19),0) -> 19.88807696
B27: =B20 -> Total Staff (3) | C27: =IFERROR(IF(C$10="","",C$10/C20),0) -> 9.821097195 | D27: 9.829236686 | E27: 9.380258436 | F27: 9.686454828 | G27: 9.29658614 | H27: 9.153654489 | I27: 9.24323823 | J27: 9.007137006 | K27: 8.793979617 | L27: 8.690746553 | M27: 8.437117551 | N27: 8.719979096 | O27: 8.257164078 | P27: 8.086219045 | Q27: 8.306836687 | R27: 7.896447904 | S27: 8.212086975 | T27: 8.619373116 | U27: 8.322608045 | V27: 8.016209196 | W27: 7.943728128 | X27: 7.76684468 | Y27: 7.643460398 | Z27: 7.506649487 | AA27: 8.018723638 | AB27: 10.226058 | AC27: 7.886473522 | AD27: =IFERROR(IF(AD$10="","",AD$10/AD20),0) -> 7.50329226 | AE27: =IFERROR(IF(AE$10="","",AE$10/AE20),0) -> 8.30092477
B29: Staff per Thousand FTE Enrollment
B30: =B16 -> Certificated Administrative Staff (3) | C30: =IFERROR(IF(C$10="","",C16/C$10*1000),0) -> 3.421124655 | D30: 3.684065103 | E30: 3.688928472 | F30: 3.73565442 | G30: 4.066627627 | H30: 3.900124535 | I30: 3.95311192 | J30: 4.133884518 | K30: 4.12764269 | L30: 4.239027492 | M30: 4.437590832 | N30: 4.280724184 | O30: 4.542907764 | P30: 4.436093323 | Q30: 4.117155236 | R30: 4.855028839 | S30: 4.777085277 | T30: 4.942671309 | U30: 4.573953358 | V30: 4.731727531 | W30: 4.676189275 | X30: 4.859444274 | Y30: 4.978013773 | Z30: 5.074581422 | AA30: =IFERROR(IF(AA$10="","",AA16/AA$10*1000),0) -> 4.258522293 | AB30: =IFERROR(IF(AB$10="","",AB16/AB$10*1000),0) -> 3.949816374 | AC30: =IFERROR(IF(AC$10="","",AC16/AC$10*1000),0) -> 4.656629756 | AD30: =IFERROR(IF(AD$10="","",AD16/AD$10*1000),0) -> 5.217869781 | AE30: =IFERROR(IF(AE$10="","",AE16/AE$10*1000),0) -> 4.648465963
B31: =B17 -> Certificated Instructional Staff (3) | C31: =IFERROR(IF(C$10="","",C17/C$10*1000),0) -> 60.98075749 | D31: 60.10604845 | E31: 62.28017939 | F31: 61.22470762 | G31: 61.72978073 | H31: 64.54679208 | I31: 63.48217139 | J31: 64.40858781 | K31: 65.2167545 | L31: 65.92787751 | M31: 69.04170226 | N31: 67.40713682 | O31: 69.64762179 | P31: 70.25536054 | Q31: 66.88191999 | R31: 70.20565902 | S31: 66.86135943 | T31: 63.1509687 | U31: 64.69561429 | V31: 66.42551587 | W31: 66.43572855 | X31: 67.81084382 | Y31: 69.46462647 | Z31: 71.62562723 | AA31: 67.76328614 | AB31: 60.6701468 | AC31: 69.85265781 | AD31: =IFERROR(IF(AD$10="","",AD17/AD$10*1000),0) -> 72.50530483 | AE31: =IFERROR(IF(AE$10="","",AE17/AE$10*1000),0) -> 65.53865712
B32: Total Certificated Staff (3) | C32: =IFERROR(IF(C$10="","",C18/C$10*1000),0) -> 64.40188214 | D32: =IFERROR(IF(D$10="","",D18/D$10*1000),0) -> 63.79011355 | E32: 65.96910786 | F32: 64.96036204 | G32: 65.79640835 | H32: 68.44691662 | I32: 67.43528331 | J32: 68.54247233 | K32: 69.34439719 | L32: 70.166905 | M32: 73.47929309 | N32: 71.68786101 | O32: 74.19052955 | P32: 74.69145387 | Q32: 70.99907522 | R32: 75.06068786 | S32: 71.63844471 | T32: 68.09364001 | U32: 69.26956765 | V32: 71.1572434 | W32: 71.11191782 | X32: 72.67028809 | Y32: 74.44264024 | Z32: 76.70020865 | AA32: 72.02180843 | AB32: 64.61996318 | AC32: 74.50928757 | AD32: 77.72317462 | AE32: =IFERROR(IF(AE$10="","",AE18/AE$10*1000),0) -> 70.18712308
B33: Classified Staff (3) | C33: =IFERROR(IF(C$10="","",C19/C$10*1000),0) -> 37.41973515 | D33: 37.9471863 | E33: 40.63776303 | F33: 38.27658252 | G33: 41.76995901 | H33: 40.79906827 | I33: 40.75190988 | J33: 42.48059741 | K33: 44.36976222 | L33: 44.89800846 | M33: 45.04459779 | N33: 42.99131298 | O33: 46.91642564 | P33: 48.97573774 | Q33: 49.38369353 | R33: 51.57853171 | S33: 50.13328068 | T33: 47.92407805 | U33: 50.88507553 | V33: 53.59000003 | W33: 54.77355861 | X33: 56.08212569 | Y33: 56.3881547 | Z33: 56.51501628 | AA33: 52.68631785 | AB33: 33.16942939 | AC33: 52.2900984 | AD33: =IFERROR(IF(AD$10="","",AD19/AD$10*1000),0) -> 55.55165533 | AE33: =IFERROR(IF(AE$10="","",AE19/AE$10*1000),0) -> 50.28138226
B34: =B20 -> Total Staff (3) | C34: =IFERROR(IF(C$10="","",C20/C$10*1000),0) -> 101.8216173 | D34: 101.7372998 | E34: 106.6068709 | F34: 103.2369446 | G34: 107.5663674 | H34: 109.2459849 | I34: 108.1871932 | J34: 111.0230697 | K34: 113.7141594 | L34: 115.0649135 | M34: 118.5238909 | N34: 114.679174 | O34: 121.1069552 | P34: 123.6671916 | Q34: 120.3827688 | R34: 126.6392196 | S34: 121.7717254 | T34: 116.0177181 | U34: 120.1546432 | V34: 124.7472434 | W34: 125.8854764 | X34: 128.7524138 | Y34: 130.8307949 | Z34: 133.2152249 | AA34: 124.7081263 | AB34: 97.78939257 | AC34: 126.799386 | AD34: =IFERROR(IF(AD$10="","",AD20/AD$10*1000),0) -> 133.2748299 | AE34: =IFERROR(IF(AE$10="","",AE20/AE$10*1000),0) -> 120.4685053
B36: Total General Fund Revenues | C36: =IFERROR(IF(C$10="","",VLOOKUP(SelectedDistrict,Revs!$A:B,COLUMN(Revs!B:B)-COLUMN(Revs!$A:$A)+1,0)),0) -> 24238341.74 | D36: =IFERROR(IF(D$10="","",VLOOKUP(SelectedDistrict,Revs!$A:C,COLUMN(Revs!C:C)-COLUMN(Revs!$A:$A)+1,0)),0) -> 24243406.92 | E36: =IFERROR(IF(E$10="","",VLOOKUP(SelectedDistrict,Revs!$A:D,COLUMN(Revs!D:D)-COLUMN(Revs!$A:$A)+1,0)),0) -> 23998531.44 | F36: =IFERROR(IF(F$10="","",VLOOKUP(SelectedDistrict,Revs!$A:E,COLUMN(Revs!E:E)-COLUMN(Revs!$A:$A)+1,0)),0) -> 24995551.41 | G36: =IFERROR(IF(G$10="","",VLOOKUP(SelectedDistrict,Revs!$A:F,COLUMN(Revs!F:F)-COLUMN(Revs!$A:$A)+1,0)),0) -> 25748860.93 | H36: =IFERROR(IF(H$10="","",VLOOKUP(SelectedDistrict,Revs!$A:G,COLUMN(Revs!G:G)-COLUMN(Revs!$A:$A)+1,0)),0) -> 26861006.86 | I36: =IFERROR(IF(I$10="","",VLOOKUP(SelectedDistrict,Revs!$A:H,COLUMN(Revs!H:H)-COLUMN(Revs!$A:$A)+1,0)),0) -> 30490448.66 | J36: =IFERROR(IF(J$10="","",VLOOKUP(SelectedDistrict,Revs!$A:I,COLUMN(Revs!I:I)-COLUMN(Revs!$A:$A)+1,0)),0) -> 29508732.52 | K36: =IFERROR(IF(K$10="","",VLOOKUP(SelectedDistrict,Revs!$A:J,COLUMN(Revs!J:J)-COLUMN(Revs!$A:$A)+1,0)),0) -> 30430781.47 | L36: =IFERROR(IF(L$10="","",VLOOKUP(SelectedDistrict,Revs!$A:K,COLUMN(Revs!K:K)-COLUMN(Revs!$A:$A)+1,0)),0) -> 31373460.21 | M36: =IFERROR(IF(M$10="","",VLOOKUP(SelectedDistrict,Revs!$A:L,COLUMN(Revs!L:L)-COLUMN(Revs!$A:$A)+1,0)),0) -> 31740120.36 | N36: =IFERROR(IF(N$10="","",VLOOKUP(SelectedDistrict,Revs!$A:M,COLUMN(Revs!M:M)-COLUMN(Revs!$A:$A)+1,0)),0) -> 32342394.51 | O36: =IFERROR(IF(O$10="","",VLOOKUP(SelectedDistrict,Revs!$A:N,COLUMN(Revs!N:N)-COLUMN(Revs!$A:$A)+1,0)),0) -> 34616175.69 | P36: =IFERROR(IF(P$10="","",VLOOKUP(SelectedDistrict,Revs!$A:O,COLUMN(Revs!O:O)-COLUMN(Revs!$A:$A)+1,0)),0) -> 36004364.31 | Q36: =IFERROR(IF(Q$10="","",VLOOKUP(SelectedDistrict,Revs!$A:P,COLUMN(Revs!P:P)-COLUMN(Revs!$A:$A)+1,0)),0) -> 36249013.55 | R36: =IFERROR(IF(R$10="","",VLOOKUP(SelectedDistrict,Revs!$A:Q,COLUMN(Revs!Q:Q)-COLUMN(Revs!$A:$A)+1,0)),0) -> 35991405.16 | S36: =IFERROR(IF(S$10="","",VLOOKUP(SelectedDistrict,Revs!$A:R,COLUMN(Revs!R:R)-COLUMN(Revs!$A:$A)+1,0)),0) -> 35378037.24 | T36: =IFERROR(IF(T$10="","",VLOOKUP(SelectedDistrict,Revs!$A:S,COLUMN(Revs!S:S)-COLUMN(Revs!$A:$A)+1,0)),0) -> 35708411.56 | U36: =IFERROR(IF(U$10="","",VLOOKUP(SelectedDistrict,Revs!$A:T,COLUMN(Revs!T:T)-COLUMN(Revs!$A:$A)+1,0)),0) -> 37409274.48 | V36: =IFERROR(IF(V$10="","",VLOOKUP(SelectedDistrict,Revs!$A:U,COLUMN(Revs!U:U)-COLUMN(Revs!$A:$A)+1,0)),0) -> 39295776.51 | W36: =IFERROR(IF(W$10="","",VLOOKUP(SelectedDistrict,Revs!$A:V,COLUMN(Revs!V:V)-COLUMN(Revs!$A:$A)+1,0)),0) -> 42484435.71 | X36: =IFERROR(IF(X$10="","",VLOOKUP(SelectedDistrict,Revs!$A:W,COLUMN(Revs!W:W)-COLUMN(Revs!$A:$A)+1,0)),0) -> 43959723.13 | Y36: =IFERROR(IF(Y$10="","",VLOOKUP(SelectedDistrict,Revs!$A:X,COLUMN(Revs!X:X)-COLUMN(Revs!$A:$A)+1,0)),0) -> 48315623.16 | Z36: =IFERROR(IF(Z$10="","",VLOOKUP(SelectedDistrict,Revs!$A:Y,COLUMN(Revs!Y:Y)-COLUMN(Revs!$A:$A)+1,0)),0) -> 50300095.98 | AA36: =IFERROR(IF(AA$10="","",VLOOKUP(SelectedDistrict,Revs!$A:Z,COLUMN(Revs!Z:Z)-COLUMN(Revs!$A:$A)+1,0)),0) -> 52687915.53 | AB36: =IFERROR(IF(AB$10="","",VLOOKUP(SelectedDistrict,Revs!$A:AA,COLUMN(Revs!AA:AA)-COLUMN(Revs!$A:$A)+1,0)),0) -> 51208334.56 | AC36: =IFERROR(IF(AC$10="","",VLOOKUP(SelectedDistrict,Revs!$A:AB,COLUMN(Revs!AB:AB)-COLUMN(Revs!$A:$A)+1,0)),0) -> 58473960.71 | AD36: =IFERROR(IF(AD$10="","",VLOOKUP(SelectedDistrict,Revs!$A:AC,COLUMN(Revs!AC:AC)-COLUMN(Revs!$A:$A)+1,0)),0) -> 63614044.8 | AE36: =IFERROR(IF(AE$10="","",VLOOKUP(SelectedDistrict,Revs!$A:AD,COLUMN(Revs!AD:AD)-COLUMN(Revs!$A:$A)+1,0)),0) -> 62513690
B37: Total State General Fund Revenues (4) | C37: =IFERROR(IF(C$10="","",VLOOKUP(SelectedDistrict,Revs!$AI:BK,COLUMN(Revs!AJ:AJ)-COLUMN(Revs!$AI:$AI)+1,0)),0) -> 18074021.79 | D37: =IFERROR(IF(D$10="","",VLOOKUP(SelectedDistrict,Revs!$AI:BL,COLUMN(Revs!AK:AK)-COLUMN(Revs!$AI:$AI)+1,0)),0) -> 18953215.24 | E37: =IFERROR(IF(E$10="","",VLOOKUP(SelectedDistrict,Revs!$AI:BM,COLUMN(Revs!AL:AL)-COLUMN(Revs!$AI:$AI)+1,0)),0) -> 18467876.2 | F37: =IFERROR(IF(F$10="","",VLOOKUP(SelectedDistrict,Revs!$AI:BN,COLUMN(Revs!AM:AM)-COLUMN(Revs!$AI:$AI)+1,0)),0) -> 18848752.37 | G37: =IFERROR(IF(G$10="","",VLOOKUP(SelectedDistrict,Revs!$AI:BO,COLUMN(Revs!AN:AN)-COLUMN(Revs!$AI:$AI)+1,0)),0) -> 18737278.74 | H37: =IFERROR(IF(H$10="","",VLOOKUP(SelectedDistrict,Revs!$AI:BP,COLUMN(Revs!AO:AO)-COLUMN(Revs!$AI:$AI)+1,0)),0) -> 19592122.26 | I37: =IFERROR(IF(I$10="","",VLOOKUP(SelectedDistrict,Revs!$AI:BQ,COLUMN(Revs!AP:AP)-COLUMN(Revs!$AI:$AI)+1,0)),0) -> 20834021.41 | J37: =IFERROR(IF(J$10="","",VLOOKUP(SelectedDistrict,Revs!$AI:BR,COLUMN(Revs!AQ:AQ)-COLUMN(Revs!$AI:$AI)+1,0)),0) -> 20349153.51 | K37: =IFERROR(IF(K$10="","",VLOOKUP(SelectedDistrict,Revs!$AI:BS,COLUMN(Revs!AR:AR)-COLUMN(Revs!$AI:$AI)+1,0)),0) -> 21378608.14 | L37: =IFERROR(IF(L$10="","",VLOOKUP(SelectedDistrict,Revs!$AI:BT,COLUMN(Revs!AS:AS)-COLUMN(Revs!$AI:$AI)+1,0)),0) -> 21932451.01 | M37: =IFERROR(IF(M$10="","",VLOOKUP(SelectedDistrict,Revs!$AI:BU,COLUMN(Revs!AT:AT)-COLUMN(Revs!$AI:$AI)+1,0)),0) -> 22435933.2 | N37: =IFERROR(IF(N$10="","",VLOOKUP(SelectedDistrict,Revs!$AI:BV,COLUMN(Revs!AU:AU)-COLUMN(Revs!$AI:$AI)+1,0)),0) -> 23348642.19 | O37: =IFERROR(IF(O$10="","",VLOOKUP(SelectedDistrict,Revs!$AI:BW,COLUMN(Revs!AV:AV)-COLUMN(Revs!$AI:$AI)+1,0)),0) -> 24551821 | P37: =IFERROR(IF(P$10="","",VLOOKUP(SelectedDistrict,Revs!$AI:BX,COLUMN(Revs!AW:AW)-COLUMN(Revs!$AI:$AI)+1,0)),0) -> 24732204.7 | Q37: =IFERROR(IF(Q$10="","",VLOOKUP(SelectedDistrict,Revs!$AI:BY,COLUMN(Revs!AX:AX)-COLUMN(Revs!$AI:$AI)+1,0)),0) -> 23707941.29 | R37: =IFERROR(IF(R$10="","",VLOOKUP(SelectedDistrict,Revs!$AI:BZ,COLUMN(Revs!AY:AY)-COLUMN(Revs!$AI:$AI)+1,0)),0) -> 24049971.31 | S37: =IFERROR(IF(S$10="","",VLOOKUP(SelectedDistrict,Revs!$AI:CA,COLUMN(Revs!AZ:AZ)-COLUMN(Revs!$AI:$AI)+1,0)),0) -> 24436982.4 | T37: =IFERROR(IF(T$10="","",VLOOKUP(SelectedDistrict,Revs!$AI:CB,COLUMN(Revs!BA:BA)-COLUMN(Revs!$AI:$AI)+1,0)),0) -> 25070899.11 | U37: =IFERROR(IF(U$10="","",VLOOKUP(SelectedDistrict,Revs!$AI:CC,COLUMN(Revs!BB:BB)-COLUMN(Revs!$AI:$AI)+1,0)),0) -> 27013873.35 | V37: =IFERROR(IF(V$10="","",VLOOKUP(SelectedDistrict,Revs!$AI:CD,COLUMN(Revs!BC:BC)-COLUMN(Revs!$AI:$AI)+1,0)),0) -> 28625944.59 | W37: =IFERROR(IF(W$10="","",VLOOKUP(SelectedDistrict,Revs!$AI:CE,COLUMN(Revs!BD:BD)-COLUMN(Revs!$AI:$AI)+1,0)),0) -> 31487516.34 | X37: =IFERROR(IF(X$10="","",VLOOKUP(SelectedDistrict,Revs!$AI:CF,COLUMN(Revs!BE:BE)-COLUMN(Revs!$AI:$AI)+1,0)),0) -> 32674646.09 | Y37: =IFERROR(IF(Y$10="","",VLOOKUP(SelectedDistrict,Revs!$AI:CG,COLUMN(Revs!BF:BF)-COLUMN(Revs!$AI:$AI)+1,0)),0) -> 37040110.73 | Z37: =IFERROR(IF(Z$10="","",VLOOKUP(SelectedDistrict,Revs!$AI:CH,COLUMN(Revs!BG:BG)-COLUMN(Revs!$AI:$AI)+1,0)),0) -> 41552305.17 | AA37: =IFERROR(IF(AA$10="","",VLOOKUP(SelectedDistrict,Revs!$AI:CI,COLUMN(Revs!BH:BH)-COLUMN(Revs!$AI:$AI)+1,0)),0) -> 43462971.09 | AB37: =IFERROR(IF(AB$10="","",VLOOKUP(SelectedDistrict,Revs!$AI:CJ,COLUMN(Revs!BI:BI)-COLUMN(Revs!$AI:$AI)+1,0)),0) -> 39953712.48 | AC37: =IFERROR(IF(AC$10="","",VLOOKUP(SelectedDistrict,Revs!$AI:CK,COLUMN(Revs!BJ:BJ)-COLUMN(Revs!$AI:$AI)+1,0)),0) -> 40940283.81 | AD37: =IFERROR(IF(AD$10="","",VLOOKUP(SelectedDistrict,Revs!$AI:CL,COLUMN(Revs!BK:BK)-COLUMN(Revs!$AI:$AI)+1,0)),0) -> 44410234.75 | AE37: =IFERROR(IF(AE$10="","",VLOOKUP(SelectedDistrict,Revs!$AI:CM,COLUMN(Revs!BL:BL)-COLUMN(Revs!$AI:$AI)+1,0)),0) -> 44531788
B38: State Special Education Revenues (5) | C38: =IFERROR(IF(C$10="","",VLOOKUP(SelectedDistrict,Revs!$BQ:BR,COLUMN(Revs!BR:BR)-COLUMN(Revs!$BQ:$BQ)+1,0)),0) -> 2128249.83 | D38: =IFERROR(IF(D$10="","",VLOOKUP(SelectedDistrict,Revs!$BQ:BS,COLUMN(Revs!BS:BS)-COLUMN(Revs!$BQ:$BQ)+1,0)),0) -> 1877975.85 | E38: =IFERROR(IF(E$10="","",VLOOKUP(SelectedDistrict,Revs!$BQ:BT,COLUMN(Revs!BT:BT)-COLUMN(Revs!$BQ:$BQ)+1,0)),0) -> 1986075.68 | F38: =IFERROR(IF(F$10="","",VLOOKUP(SelectedDistrict,Revs!$BQ:BU,COLUMN(Revs!BU:BU)-COLUMN(Revs!$BQ:$BQ)+1,0)),0) -> 1971820.02 | G38: =IFERROR(IF(G$10="","",VLOOKUP(SelectedDistrict,Revs!$BQ:BV,COLUMN(Revs!BV:BV)-COLUMN(Revs!$BQ:$BQ)+1,0)),0) -> 2213094.68 | H38: =IFERROR(IF(H$10="","",VLOOKUP(SelectedDistrict,Revs!$BQ:BW,COLUMN(Revs!BW:BW)-COLUMN(Revs!$BQ:$BQ)+1,0)),0) -> 2197270.16 | I38: =IFERROR(IF(I$10="","",VLOOKUP(SelectedDistrict,Revs!$BQ:BX,COLUMN(Revs!BX:BX)-COLUMN(Revs!$BQ:$BQ)+1,0)),0) -> 2276284.05 | J38: =IFERROR(IF(J$10="","",VLOOKUP(SelectedDistrict,Revs!$BQ:BY,COLUMN(Revs!BY:BY)-COLUMN(Revs!$BQ:$BQ)+1,0)),0) -> 1798216.99 | K38: =IFERROR(IF(K$10="","",VLOOKUP(SelectedDistrict,Revs!$BQ:BZ,COLUMN(Revs!BZ:BZ)-COLUMN(Revs!$BQ:$BQ)+1,0)),0) -> 1827959.72 | L38: =IFERROR(IF(L$10="","",VLOOKUP(SelectedDistrict,Revs!$BQ:CA,COLUMN(Revs!CA:CA)-COLUMN(Revs!$BQ:$BQ)+1,0)),0) -> 1807074.67 | M38: =IFERROR(IF(M$10="","",VLOOKUP(SelectedDistrict,Revs!$BQ:CB,COLUMN(Revs!CB:CB)-COLUMN(Revs!$BQ:$BQ)+1,0)),0) -> 1866901.46 | N38: =IFERROR(IF(N$10="","",VLOOKUP(SelectedDistrict,Revs!$BQ:CC,COLUMN(Revs!CC:CC)-COLUMN(Revs!$BQ:$BQ)+1,0)),0) -> 1922628.25 | O38: =IFERROR(IF(O$10="","",VLOOKUP(SelectedDistrict,Revs!$BQ:CD,COLUMN(Revs!CD:CD)-COLUMN(Revs!$BQ:$BQ)+1,0)),0) -> 2238676.42 | P38: =IFERROR(IF(P$10="","",VLOOKUP(SelectedDistrict,Revs!$BQ:CE,COLUMN(Revs!CE:CE)-COLUMN(Revs!$BQ:$BQ)+1,0)),0) -> 2350753.86 | Q38: =IFERROR(IF(Q$10="","",VLOOKUP(SelectedDistrict,Revs!$BQ:CF,COLUMN(Revs!CF:CF)-COLUMN(Revs!$BQ:$BQ)+1,0)),0) -> 2339642.09 | R38: =IFERROR(IF(R$10="","",VLOOKUP(SelectedDistrict,Revs!$BQ:CG,COLUMN(Revs!CG:CG)-COLUMN(Revs!$BQ:$BQ)+1,0)),0) -> 2274247.72 | S38: =IFERROR(IF(S$10="","",VLOOKUP(SelectedDistrict,Revs!$BQ:CH,COLUMN(Revs!CH:CH)-COLUMN(Revs!$BQ:$BQ)+1,0)),0) -> 2292654.59 | T38: =IFERROR(IF(T$10="","",VLOOKUP(SelectedDistrict,Revs!$BQ:CI,COLUMN(Revs!CI:CI)-COLUMN(Revs!$BQ:$BQ)+1,0)),0) -> 2245329.25 | U38: =IFERROR(IF(U$10="","",VLOOKUP(SelectedDistrict,Revs!$BQ:CJ,COLUMN(Revs!CJ:CJ)-COLUMN(Revs!$BQ:$BQ)+1,0)),0) -> 2466988.98 | V38: =IFERROR(IF(V$10="","",VLOOKUP(SelectedDistrict,Revs!$BQ:CK,COLUMN(Revs!CK:CK)-COLUMN(Revs!$BQ:$BQ)+1,0)),0) -> 2514295.67 | W38: =IFERROR(IF(W$10="","",VLOOKUP(SelectedDistrict,Revs!$BQ:CL,COLUMN(Revs!CL:CL)-COLUMN(Revs!$BQ:$BQ)+1,0)),0) -> 2915684.98 | X38: =IFERROR(IF(X$10="","",VLOOKUP(SelectedDistrict,Revs!$BQ:CM,COLUMN(Revs!CM:CM)-COLUMN(Revs!$BQ:$BQ)+1,0)),0) -> 2969339.82 | Y38: =IFERROR(IF(Y$10="","",VLOOKUP(SelectedDistrict,Revs!$BQ:CN,COLUMN(Revs!CN:CN)-COLUMN(Revs!$BQ:$BQ)+1,0)),0) -> 3591919.24 | Z38: =IFERROR(IF(Z$10="","",VLOOKUP(SelectedDistrict,Revs!$BQ:CO,COLUMN(Revs!CO:CO)-COLUMN(Revs!$BQ:$BQ)+1,0)),0) -> 4206744.76 | AA38: =IFERROR(IF(AA$10="","",VLOOKUP(SelectedDistrict,Revs!$BQ:CP,COLUMN(Revs!CP:CP)-COLUMN(Revs!$BQ:$BQ)+1,0)),0) -> 4311786.53 | AB38: =IFERROR(IF(AB$10="","",VLOOKUP(SelectedDistrict,Revs!$BQ:CQ,COLUMN(Revs!CQ:CQ)-COLUMN(Revs!$BQ:$BQ)+1,0)),0) -> 4037988.44 | AC38: =IFERROR(IF(AC$10="","",VLOOKUP(SelectedDistrict,Revs!$BQ:CR,COLUMN(Revs!CR:CR)-COLUMN(Revs!$BQ:$BQ)+1,0)),0) -> 4139570.55 | AD38: =IFERROR(IF(AD$10="","",VLOOKUP(SelectedDistrict,Revs!$BQ:CS,COLUMN(Revs!CS:CS)-COLUMN(Revs!$BQ:$BQ)+1,0)),0) -> 4638280.27 | AE38: =IFERROR(IF(AE$10="","",VLOOKUP(SelectedDistrict,Revs!$BQ:CT,COLUMN(Revs!CT:CT)-COLUMN(Revs!$BQ:$BQ)+1,0)),0) -> 5319332
B39: State Student Achievement Revenues (5)
B40: Total Federal General Fund Revenues (6) | C40: =IFERROR(IF(C$10="","",VLOOKUP(SelectedDistrict,Revs!$DW:DX,COLUMN(Revs!DX:DX)-COLUMN(Revs!$DW:$DW)+1,0)),0) -> 1465707.96 | D40: =IFERROR(IF(D$10="","",VLOOKUP(SelectedDistrict,Revs!$DW:DY,COLUMN(Revs!DY:DY)-COLUMN(Revs!$DW:$DW)+1,0)),0) -> 1979185.81 | E40: =IFERROR(IF(E$10="","",VLOOKUP(SelectedDistrict,Revs!$DW:DZ,COLUMN(Revs!DZ:DZ)-COLUMN(Revs!$DW:$DW)+1,0)),0) -> 2019523.56 | F40: =IFERROR(IF(F$10="","",VLOOKUP(SelectedDistrict,Revs!$DW:EA,COLUMN(Revs!EA:EA)-COLUMN(Revs!$DW:$DW)+1,0)),0) -> 2226485.74 | G40: =IFERROR(IF(G$10="","",VLOOKUP(SelectedDistrict,Revs!$DW:EB,COLUMN(Revs!EB:EB)-COLUMN(Revs!$DW:$DW)+1,0)),0) -> 2071233.05 | H40: =IFERROR(IF(H$10="","",VLOOKUP(SelectedDistrict,Revs!$DW:EC,COLUMN(Revs!EC:EC)-COLUMN(Revs!$DW:$DW)+1,0)),0) -> 2400791.32 | I40: =IFERROR(IF(I$10="","",VLOOKUP(SelectedDistrict,Revs!$DW:ED,COLUMN(Revs!ED:ED)-COLUMN(Revs!$DW:$DW)+1,0)),0) -> 3389264.52 | J40: =IFERROR(IF(J$10="","",VLOOKUP(SelectedDistrict,Revs!$DW:EE,COLUMN(Revs!EE:EE)-COLUMN(Revs!$DW:$DW)+1,0)),0) -> 3858916.92 | K40: =IFERROR(IF(K$10="","",VLOOKUP(SelectedDistrict,Revs!$DW:EF,COLUMN(Revs!EF:EF)-COLUMN(Revs!$DW:$DW)+1,0)),0) -> 4272258.73 | L40: =IFERROR(IF(L$10="","",VLOOKUP(SelectedDistrict,Revs!$DW:EG,COLUMN(Revs!EG:EG)-COLUMN(Revs!$DW:$DW)+1,0)),0) -> 3932530.6 | M40: =IFERROR(IF(M$10="","",VLOOKUP(SelectedDistrict,Revs!$DW:EH,COLUMN(Revs!EH:EH)-COLUMN(Revs!$DW:$DW)+1,0)),0) -> 3924621.95 | N40: =IFERROR(IF(N$10="","",VLOOKUP(SelectedDistrict,Revs!$DW:EI,COLUMN(Revs!EI:EI)-COLUMN(Revs!$DW:$DW)+1,0)),0) -> 3685785.07 | O40: =IFERROR(IF(O$10="","",VLOOKUP(SelectedDistrict,Revs!$DW:EJ,COLUMN(Revs!EJ:EJ)-COLUMN(Revs!$DW:$DW)+1,0)),0) -> 4076406.05 | P40: =IFERROR(IF(P$10="","",VLOOKUP(SelectedDistrict,Revs!$DW:EK,COLUMN(Revs!EK:EK)-COLUMN(Revs!$DW:$DW)+1,0)),0) -> 5723131.98 | Q40: =IFERROR(IF(Q$10="","",VLOOKUP(SelectedDistrict,Revs!$DW:EL,COLUMN(Revs!EL:EL)-COLUMN(Revs!$DW:$DW)+1,0)),0) -> 6811095.22 | R40: =IFERROR(IF(R$10="","",VLOOKUP(SelectedDistrict,Revs!$DW:EM,COLUMN(Revs!EM:EM)-COLUMN(Revs!$DW:$DW)+1,0)),0) -> 5970235.85 | S40: =IFERROR(IF(S$10="","",VLOOKUP(SelectedDistrict,Revs!$DW:EN,COLUMN(Revs!EN:EN)-COLUMN(Revs!$DW:$DW)+1,0)),0) -> 4898921.35 | T40: =IFERROR(IF(T$10="","",VLOOKUP(SelectedDistrict,Revs!$DW:EO,COLUMN(Revs!EO:EO)-COLUMN(Revs!$DW:$DW)+1,0)),0) -> 4661770.02 | U40: =IFERROR(IF(U$10="","",VLOOKUP(SelectedDistrict,Revs!$DW:EP,COLUMN(Revs!EP:EP)-COLUMN(Revs!$DW:$DW)+1,0)),0) -> 4440504.39 | V40: =IFERROR(IF(V$10="","",VLOOKUP(SelectedDistrict,Revs!$DW:EQ,COLUMN(Revs!EQ:EQ)-COLUMN(Revs!$DW:$DW)+1,0)),0) -> 4691816.54 | W40: =IFERROR(IF(W$10="","",VLOOKUP(SelectedDistrict,Revs!$DW:ER,COLUMN(Revs!ER:ER)-COLUMN(Revs!$DW:$DW)+1,0)),0) -> 4949248.14 | X40: =IFERROR(IF(X$10="","",VLOOKUP(SelectedDistrict,Revs!$DW:ES,COLUMN(Revs!ES:ES)-COLUMN(Revs!$DW:$DW)+1,0)),0) -> 5057525.8 | Y40: =IFERROR(IF(Y$10="","",VLOOKUP(SelectedDistrict,Revs!$DW:ET,COLUMN(Revs!ET:ET)-COLUMN(Revs!$DW:$DW)+1,0)),0) -> 5230844.26 | Z40: =IFERROR(IF(Z$10="","",VLOOKUP(SelectedDistrict,Revs!$DW:EU,COLUMN(Revs!EU:EU)-COLUMN(Revs!$DW:$DW)+1,0)),0) -> 4586986.33 | AA40: =IFERROR(IF(AA$10="","",VLOOKUP(SelectedDistrict,Revs!$DW:EV,COLUMN(Revs!EV:EV)-COLUMN(Revs!$DW:$DW)+1,0)),0) -> 5729959.18 | AB40: =IFERROR(IF(AB$10="","",VLOOKUP(SelectedDistrict,Revs!$DW:EW,COLUMN(Revs!EW:EW)-COLUMN(Revs!$DW:$DW)+1,0)),0) -> 7226339.24 | AC40: =IFERROR(IF(AC$10="","",VLOOKUP(SelectedDistrict,Revs!$DW:EX,COLUMN(Revs!EX:EX)-COLUMN(Revs!$DW:$DW)+1,0)),0) -> 12885424.92 | AD40: =IFERROR(IF(AD$10="","",VLOOKUP(SelectedDistrict,Revs!$DW:EY,COLUMN(Revs!EY:EY)-COLUMN(Revs!$DW:$DW)+1,0)),0) -> 13764887.43 | AE40: =IFERROR(IF(AE$10="","",VLOOKUP(SelectedDistrict,Revs!$DW:EZ,COLUMN(Revs!EZ:EZ)-COLUMN(Revs!$DW:$DW)+1,0)),0) -> 11947725
B41: Local Taxes (7) | C41: =IFERROR(IF(C$10="","",VLOOKUP(SelectedDistrict,Revs!$FE:FF,COLUMN(Revs!FF:FF)-COLUMN(Revs!$FE:$FE)+1,0)),0) -> 2510789.26 | D41: =IFERROR(IF(D$10="","",VLOOKUP(SelectedDistrict,Revs!$FE:FG,COLUMN(Revs!FG:FG)-COLUMN(Revs!$FE:$FE)+1,0)),0) -> 2564714.05 | E41: =IFERROR(IF(E$10="","",VLOOKUP(SelectedDistrict,Revs!$FE:FH,COLUMN(Revs!FH:FH)-COLUMN(Revs!$FE:$FE)+1,0)),0) -> 2722068.33 | F41: =IFERROR(IF(F$10="","",VLOOKUP(SelectedDistrict,Revs!$FE:FI,COLUMN(Revs!FI:FI)-COLUMN(Revs!$FE:$FE)+1,0)),0) -> 2889122.46 | G41: =IFERROR(IF(G$10="","",VLOOKUP(SelectedDistrict,Revs!$FE:FJ,COLUMN(Revs!FJ:FJ)-COLUMN(Revs!$FE:$FE)+1,0)),0) -> 3313709.83 | H41: =IFERROR(IF(H$10="","",VLOOKUP(SelectedDistrict,Revs!$FE:FK,COLUMN(Revs!FK:FK)-COLUMN(Revs!$FE:$FE)+1,0)),0) -> 3186827.24 | I41: =IFERROR(IF(I$10="","",VLOOKUP(SelectedDistrict,Revs!$FE:FL,COLUMN(Revs!FL:FL)-COLUMN(Revs!$FE:$FE)+1,0)),0) -> 3342723.23 | J41: =IFERROR(IF(J$10="","",VLOOKUP(SelectedDistrict,Revs!$FE:FM,COLUMN(Revs!FM:FM)-COLUMN(Revs!$FE:$FE)+1,0)),0) -> 3437370.53 | K41: =IFERROR(IF(K$10="","",VLOOKUP(SelectedDistrict,Revs!$FE:FN,COLUMN(Revs!FN:FN)-COLUMN(Revs!$FE:$FE)+1,0)),0) -> 3546870.16 | L41: =IFERROR(IF(L$10="","",VLOOKUP(SelectedDistrict,Revs!$FE:FO,COLUMN(Revs!FO:FO)-COLUMN(Revs!$FE:$FE)+1,0)),0) -> 3737991.92 | M41: =IFERROR(IF(M$10="","",VLOOKUP(SelectedDistrict,Revs!$FE:FP,COLUMN(Revs!FP:FP)-COLUMN(Revs!$FE:$FE)+1,0)),0) -> 3995399.18 | N41: =IFERROR(IF(N$10="","",VLOOKUP(SelectedDistrict,Revs!$FE:FQ,COLUMN(Revs!FQ:FQ)-COLUMN(Revs!$FE:$FE)+1,0)),0) -> 4158914.52 | O41: =IFERROR(IF(O$10="","",VLOOKUP(SelectedDistrict,Revs!$FE:FR,COLUMN(Revs!FR:FR)-COLUMN(Revs!$FE:$FE)+1,0)),0) -> 4480625.4 | P41: =IFERROR(IF(P$10="","",VLOOKUP(SelectedDistrict,Revs!$FE:FS,COLUMN(Revs!FS:FS)-COLUMN(Revs!$FE:$FE)+1,0)),0) -> 4422841.45 | Q41: =IFERROR(IF(Q$10="","",VLOOKUP(SelectedDistrict,Revs!$FE:FT,COLUMN(Revs!FT:FT)-COLUMN(Revs!$FE:$FE)+1,0)),0) -> 4639377.06 | R41: =IFERROR(IF(R$10="","",VLOOKUP(SelectedDistrict,Revs!$FE:FU,COLUMN(Revs!FU:FU)-COLUMN(Revs!$FE:$FE)+1,0)),0) -> 4727780.58 | S41: =IFERROR(IF(S$10="","",VLOOKUP(SelectedDistrict,Revs!$FE:FV,COLUMN(Revs!FV:FV)-COLUMN(Revs!$FE:$FE)+1,0)),0) -> 4908193.51 | T41: =IFERROR(IF(T$10="","",VLOOKUP(SelectedDistrict,Revs!$FE:FW,COLUMN(Revs!FW:FW)-COLUMN(Revs!$FE:$FE)+1,0)),0) -> 5036721.18 | U41: =IFERROR(IF(U$10="","",VLOOKUP(SelectedDistrict,Revs!$FE:FX,COLUMN(Revs!FX:FX)-COLUMN(Revs!$FE:$FE)+1,0)),0) -> 5073333.74 | V41: =IFERROR(IF(V$10="","",VLOOKUP(SelectedDistrict,Revs!$FE:FY,COLUMN(Revs!FY:FY)-COLUMN(Revs!$FE:$FE)+1,0)),0) -> 5138215.09 | W41: =IFERROR(IF(W$10="","",VLOOKUP(SelectedDistrict,Revs!$FE:FZ,COLUMN(Revs!FZ:FZ)-COLUMN(Revs!$FE:$FE)+1,0)),0) -> 5199033.12 | X41: =IFERROR(IF(X$10="","",VLOOKUP(SelectedDistrict,Revs!$FE:GA,COLUMN(Revs!GA:GA)-COLUMN(Revs!$FE:$FE)+1,0)),0) -> 5276775.18 | Y41: =IFERROR(IF(Y$10="","",VLOOKUP(SelectedDistrict,Revs!$FE:GB,COLUMN(Revs!GB:GB)-COLUMN(Revs!$FE:$FE)+1,0)),0) -> 5261860.61 | Z41: =IFERROR(IF(Z$10="","",VLOOKUP(SelectedDistrict,Revs!$FE:GC,COLUMN(Revs!GC:GC)-COLUMN(Revs!$FE:$FE)+1,0)),0) -> 3420692.68 | AA41: =IFERROR(IF(AA$10="","",VLOOKUP(SelectedDistrict,Revs!$FE:GD,COLUMN(Revs!GD:GD)-COLUMN(Revs!$FE:$FE)+1,0)),0) -> 2883398.69 | AB41: =IFERROR(IF(AB$10="","",VLOOKUP(SelectedDistrict,Revs!$FE:GE,COLUMN(Revs!GE:GE)-COLUMN(Revs!$FE:$FE)+1,0)),0) -> 3690936.79 | AC41: =IFERROR(IF(AC$10="","",VLOOKUP(SelectedDistrict,Revs!$FE:GF,COLUMN(Revs!GF:GF)-COLUMN(Revs!$FE:$FE)+1,0)),0) -> 4051966.71 | AD41: =IFERROR(IF(AD$10="","",VLOOKUP(SelectedDistrict,Revs!$FE:GG,COLUMN(Revs!GG:GG)-COLUMN(Revs!$FE:$FE)+1,0)),0) -> 4800590.33 | AE41: =IFERROR(IF(AE$10="","",VLOOKUP(SelectedDistrict,Revs!$FE:GH,COLUMN(Revs!GH:GH)-COLUMN(Revs!$FE:$FE)+1,0)),0) -> 5129067
B42: Other Revenues (10) | C42: =IFERROR(IF(C$10="","",VLOOKUP(SelectedDistrict,Revs!$GM:GN,COLUMN(Revs!GN:GN)-COLUMN(Revs!$GM:$GM)+1,0)),0) -> 2187822.73 | D42: =IFERROR(IF(D$10="","",VLOOKUP(SelectedDistrict,Revs!$GM:GO,COLUMN(Revs!GO:GO)-COLUMN(Revs!$GM:$GM)+1,0)),0) -> 746291.82 | E42: =IFERROR(IF(E$10="","",VLOOKUP(SelectedDistrict,Revs!$GM:GP,COLUMN(Revs!GP:GP)-COLUMN(Revs!$GM:$GM)+1,0)),0) -> 789063.35 | F42: =IFERROR(IF(F$10="","",VLOOKUP(SelectedDistrict,Revs!$GM:GQ,COLUMN(Revs!GQ:GQ)-COLUMN(Revs!$GM:$GM)+1,0)),0) -> 1031190.84 | G42: =IFERROR(IF(G$10="","",VLOOKUP(SelectedDistrict,Revs!$GM:GR,COLUMN(Revs!GR:GR)-COLUMN(Revs!$GM:$GM)+1,0)),0) -> 1626639.31 | H42: =IFERROR(IF(H$10="","",VLOOKUP(SelectedDistrict,Revs!$GM:GS,COLUMN(Revs!GS:GS)-COLUMN(Revs!$GM:$GM)+1,0)),0) -> 1681266.04 | I42: =IFERROR(IF(I$10="","",VLOOKUP(SelectedDistrict,Revs!$GM:GT,COLUMN(Revs!GT:GT)-COLUMN(Revs!$GM:$GM)+1,0)),0) -> 2924439.5 | J42: =IFERROR(IF(J$10="","",VLOOKUP(SelectedDistrict,Revs!$GM:GU,COLUMN(Revs!GU:GU)-COLUMN(Revs!$GM:$GM)+1,0)),0) -> 1863291.56 | K42: =IFERROR(IF(K$10="","",VLOOKUP(SelectedDistrict,Revs!$GM:GV,COLUMN(Revs!GV:GV)-COLUMN(Revs!$GM:$GM)+1,0)),0) -> 1233044.44 | L42: =IFERROR(IF(L$10="","",VLOOKUP(SelectedDistrict,Revs!$GM:GW,COLUMN(Revs!GW:GW)-COLUMN(Revs!$GM:$GM)+1,0)),0) -> 1770486.68 | M42: =IFERROR(IF(M$10="","",VLOOKUP(SelectedDistrict,Revs!$GM:GX,COLUMN(Revs!GX:GX)-COLUMN(Revs!$GM:$GM)+1,0)),0) -> 1384166.03 | N42: =IFERROR(IF(N$10="","",VLOOKUP(SelectedDistrict,Revs!$GM:GY,COLUMN(Revs!GY:GY)-COLUMN(Revs!$GM:$GM)+1,0)),0) -> 1149052.73 | O42: =IFERROR(IF(O$10="","",VLOOKUP(SelectedDistrict,Revs!$GM:GZ,COLUMN(Revs!GZ:GZ)-COLUMN(Revs!$GM:$GM)+1,0)),0) -> 1507323.24 | P42: =IFERROR(IF(P$10="","",VLOOKUP(SelectedDistrict,Revs!$GM:HA,COLUMN(Revs!HA:HA)-COLUMN(Revs!$GM:$GM)+1,0)),0) -> 1126186.18 | Q42: =IFERROR(IF(Q$10="","",VLOOKUP(SelectedDistrict,Revs!$GM:HB,COLUMN(Revs!HB:HB)-COLUMN(Revs!$GM:$GM)+1,0)),0) -> 1090599.98 | R42: =IFERROR(IF(R$10="","",VLOOKUP(SelectedDistrict,Revs!$GM:HC,COLUMN(Revs!HC:HC)-COLUMN(Revs!$GM:$GM)+1,0)),0) -> 1243417.42 | S42: =IFERROR(IF(S$10="","",VLOOKUP(SelectedDistrict,Revs!$GM:HD,COLUMN(Revs!HD:HD)-COLUMN(Revs!$GM:$GM)+1,0)),0) -> 1133939.98 | T42: =IFERROR(IF(T$10="","",VLOOKUP(SelectedDistrict,Revs!$GM:HE,COLUMN(Revs!HE:HE)-COLUMN(Revs!$GM:$GM)+1,0)),0) -> 939021.25 | U42: =IFERROR(IF(U$10="","",VLOOKUP(SelectedDistrict,Revs!$GM:HF,COLUMN(Revs!HF:HF)-COLUMN(Revs!$GM:$GM)+1,0)),0) -> 881563 | V42: =IFERROR(IF(V$10="","",VLOOKUP(SelectedDistrict,Revs!$GM:HG,COLUMN(Revs!HG:HG)-COLUMN(Revs!$GM:$GM)+1,0)),0) -> 839800.29 | W42: =IFERROR(IF(W$10="","",VLOOKUP(SelectedDistrict,Revs!$GM:HH,COLUMN(Revs!HH:HH)-COLUMN(Revs!$GM:$GM)+1,0)),0) -> 848638.11 | X42: =IFERROR(IF(X$10="","",VLOOKUP(SelectedDistrict,Revs!$GM:HI,COLUMN(Revs!HI:HI)-COLUMN(Revs!$GM:$GM)+1,0)),0) -> 950776.06 | Y42: =IFERROR(IF(Y$10="","",VLOOKUP(SelectedDistrict,Revs!$GM:HJ,COLUMN(Revs!HJ:HJ)-COLUMN(Revs!$GM:$GM)+1,0)),0) -> 782807.56 | Z42: =IFERROR(IF(Z$10="","",VLOOKUP(SelectedDistrict,Revs!$GM:HK,COLUMN(Revs!HK:HK)-COLUMN(Revs!$GM:$GM)+1,0)),0) -> 740111.8 | AA42: =IFERROR(IF(AA$10="","",VLOOKUP(SelectedDistrict,Revs!$GM:HL,COLUMN(Revs!HL:HL)-COLUMN(Revs!$GM:$GM)+1,0)),0) -> 611586.57 | AB42: =IFERROR(IF(AB$10="","",VLOOKUP(SelectedDistrict,Revs!$GM:HM,COLUMN(Revs!HM:HM)-COLUMN(Revs!$GM:$GM)+1,0)),0) -> 337346.05 | AC42: =IFERROR(IF(AC$10="","",VLOOKUP(SelectedDistrict,Revs!$GM:HN,COLUMN(Revs!HN:HN)-COLUMN(Revs!$GM:$GM)+1,0)),0) -> 596285.27 | AD42: =IFERROR(IF(AD$10="","",VLOOKUP(SelectedDistrict,Revs!$GM:HO,COLUMN(Revs!HO:HO)-COLUMN(Revs!$GM:$GM)+1,0)),0) -> 638332.29 | AE42: =IFERROR(IF(AE$10="","",VLOOKUP(SelectedDistrict,Revs!$GM:HP,COLUMN(Revs!HP:HP)-COLUMN(Revs!$GM:$GM)+1,0)),0) -> 905110
B44: Total General Fund Expenditures (8) | C44: =IFERROR(IF(C$10="","",VLOOKUP(SelectedDistrict,Exp!$A:B,COLUMN(Exp!B:B)-COLUMN(Exp!$A:$A)+1,0)),0) -> 22984176.47 | D44: =IFERROR(IF(D$10="","",VLOOKUP(SelectedDistrict,Exp!$A:C,COLUMN(Exp!C:C)-COLUMN(Exp!$A:$A)+1,0)),0) -> 24143661.92 | E44: =IFERROR(IF(E$10="","",VLOOKUP(SelectedDistrict,Exp!$A:D,COLUMN(Exp!D:D)-COLUMN(Exp!$A:$A)+1,0)),0) -> 23668322.83 | F44: =IFERROR(IF(F$10="","",VLOOKUP(SelectedDistrict,Exp!$A:E,COLUMN(Exp!E:E)-COLUMN(Exp!$A:$A)+1,0)),0) -> 24997113.46 | G44: =IFERROR(IF(G$10="","",VLOOKUP(SelectedDistrict,Exp!$A:F,COLUMN(Exp!F:F)-COLUMN(Exp!$A:$A)+1,0)),0) -> 25678216.62 | H44: =IFERROR(IF(H$10="","",VLOOKUP(SelectedDistrict,Exp!$A:G,COLUMN(Exp!G:G)-COLUMN(Exp!$A:$A)+1,0)),0) -> 26901905.16 | I44: =IFERROR(IF(I$10="","",VLOOKUP(SelectedDistrict,Exp!$A:H,COLUMN(Exp!H:H)-COLUMN(Exp!$A:$A)+1,0)),0) -> 29232807.97 | J44: =IFERROR(IF(J$10="","",VLOOKUP(SelectedDistrict,Exp!$A:I,COLUMN(Exp!I:I)-COLUMN(Exp!$A:$A)+1,0)),0) -> 29889860.88 | K44: =IFERROR(IF(K$10="","",VLOOKUP(SelectedDistrict,Exp!$A:J,COLUMN(Exp!J:J)-COLUMN(Exp!$A:$A)+1,0)),0) -> 30656515.61 | L44: =IFERROR(IF(L$10="","",VLOOKUP(SelectedDistrict,Exp!$A:K,COLUMN(Exp!K:K)-COLUMN(Exp!$A:$A)+1,0)),0) -> 32000237.41 | M44: =IFERROR(IF(M$10="","",VLOOKUP(SelectedDistrict,Exp!$A:L,COLUMN(Exp!L:L)-COLUMN(Exp!$A:$A)+1,0)),0) -> 30946342.5 | N44: =IFERROR(IF(N$10="","",VLOOKUP(SelectedDistrict,Exp!$A:M,COLUMN(Exp!M:M)-COLUMN(Exp!$A:$A)+1,0)),0) -> 32135947.37 | O44: =IFERROR(IF(O$10="","",VLOOKUP(SelectedDistrict,Exp!$A:N,COLUMN(Exp!N:N)-COLUMN(Exp!$A:$A)+1,0)),0) -> 34588309.73 | P44: =IFERROR(IF(P$10="","",VLOOKUP(SelectedDistrict,Exp!$A:O,COLUMN(Exp!O:O)-COLUMN(Exp!$A:$A)+1,0)),0) -> 35151044.13 | Q44: =IFERROR(IF(Q$10="","",VLOOKUP(SelectedDistrict,Exp!$A:P,COLUMN(Exp!P:P)-COLUMN(Exp!$A:$A)+1,0)),0) -> 34591249.98 | R44: =IFERROR(IF(R$10="","",VLOOKUP(SelectedDistrict,Exp!$A:Q,COLUMN(Exp!Q:Q)-COLUMN(Exp!$A:$A)+1,0)),0) -> 35846681.26 | S44: =IFERROR(IF(S$10="","",VLOOKUP(SelectedDistrict,Exp!$A:R,COLUMN(Exp!R:R)-COLUMN(Exp!$A:$A)+1,0)),0) -> 35883587.73 | T44: =IFERROR(IF(T$10="","",VLOOKUP(SelectedDistrict,Exp!$A:S,COLUMN(Exp!S:S)-COLUMN(Exp!$A:$A)+1,0)),0) -> 35386364.24 | U44: =IFERROR(IF(U$10="","",VLOOKUP(SelectedDistrict,Exp!$A:T,COLUMN(Exp!T:T)-COLUMN(Exp!$A:$A)+1,0)),0) -> 37244300.27 | V44: =IFERROR(IF(V$10="","",VLOOKUP(SelectedDistrict,Exp!$A:U,COLUMN(Exp!U:U)-COLUMN(Exp!$A:$A)+1,0)),0) -> 38476764.51 | W44: =IFERROR(IF(W$10="","",VLOOKUP(SelectedDistrict,Exp!$A:V,COLUMN(Exp!V:V)-COLUMN(Exp!$A:$A)+1,0)),0) -> 41164409.41 | X44: =IFERROR(IF(X$10="","",VLOOKUP(SelectedDistrict,Exp!$A:W,COLUMN(Exp!W:W)-COLUMN(Exp!$A:$A)+1,0)),0) -> 43989238.92 | Y44: =IFERROR(IF(Y$10="","",VLOOKUP(SelectedDistrict,Exp!$A:X,COLUMN(Exp!X:X)-COLUMN(Exp!$A:$A)+1,0)),0) -> 47060086.34 | Z44: =IFERROR(IF(Z$10="","",VLOOKUP(SelectedDistrict,Exp!$A:Y,COLUMN(Exp!Y:Y)-COLUMN(Exp!$A:$A)+1,0)),0) -> 51545992.5 | AA44: =IFERROR(IF(AA$10="","",VLOOKUP(SelectedDistrict,Exp!$A:Z,COLUMN(Exp!Z:Z)-COLUMN(Exp!$A:$A)+1,0)),0) -> 52066247.61 | AB44: =IFERROR(IF(AB$10="","",VLOOKUP(SelectedDistrict,Exp!$A:AA,COLUMN(Exp!AA:AA)-COLUMN(Exp!$A:$A)+1,0)),0) -> 48580886.3 | AC44: =IFERROR(IF(AC$10="","",VLOOKUP(SelectedDistrict,Exp!$A:AB,COLUMN(Exp!AB:AB)-COLUMN(Exp!$A:$A)+1,0)),0) -> 58341284.01 | AD44: =IFERROR(IF(AD$10="","",VLOOKUP(SelectedDistrict,Exp!$A:AC,COLUMN(Exp!AC:AC)-COLUMN(Exp!$A:$A)+1,0)),0) -> 62571418.49 | AE44: =IFERROR(IF(AE$10="","",VLOOKUP(SelectedDistrict,Exp!$A:AD,COLUMN(Exp!AD:AD)-COLUMN(Exp!$A:$A)+1,0)),0) -> 62368331
B46: Total Fund Balance | C46: =IFERROR(IF(C$10="","",VLOOKUP(SelectedDistrict,FundBalance!$A:B,COLUMN(FundBalance!B:B)-COLUMN(FundBalance!$A:$A)+1,0)),0) -> 2129483.19 | D46: =IFERROR(IF(D$10="","",VLOOKUP(SelectedDistrict,FundBalance!$A:C,COLUMN(FundBalance!C:C)-COLUMN(FundBalance!$A:$A)+1,0)),0) -> 632400.15 | E46: =IFERROR(IF(E$10="","",VLOOKUP(SelectedDistrict,FundBalance!$A:D,COLUMN(FundBalance!D:D)-COLUMN(FundBalance!$A:$A)+1,0)),0) -> 962608.76 | F46: =IFERROR(IF(F$10="","",VLOOKUP(SelectedDistrict,FundBalance!$A:E,COLUMN(FundBalance!E:E)-COLUMN(FundBalance!$A:$A)+1,0)),0) -> 866046.71 | G46: =IFERROR(IF(G$10="","",VLOOKUP(SelectedDistrict,FundBalance!$A:F,COLUMN(FundBalance!F:F)-COLUMN(FundBalance!$A:$A)+1,0)),0) -> 936691.02 | H46: =IFERROR(IF(H$10="","",VLOOKUP(SelectedDistrict,FundBalance!$A:G,COLUMN(FundBalance!G:G)-COLUMN(FundBalance!$A:$A)+1,0)),0) -> 895792.72 | I46: =IFERROR(IF(I$10="","",VLOOKUP(SelectedDistrict,FundBalance!$A:H,COLUMN(FundBalance!H:H)-COLUMN(FundBalance!$A:$A)+1,0)),0) -> 2153433.41 | J46: =IFERROR(IF(J$10="","",VLOOKUP(SelectedDistrict,FundBalance!$A:I,COLUMN(FundBalance!I:I)-COLUMN(FundBalance!$A:$A)+1,0)),0) -> 1772305.05 | K46: =IFERROR(IF(K$10="","",VLOOKUP(SelectedDistrict,FundBalance!$A:J,COLUMN(FundBalance!J:J)-COLUMN(FundBalance!$A:$A)+1,0)),0) -> 1546570.91 | L46: =IFERROR(IF(L$10="","",VLOOKUP(SelectedDistrict,FundBalance!$A:K,COLUMN(FundBalance!K:K)-COLUMN(FundBalance!$A:$A)+1,0)),0) -> 919793.71 | M46: =IFERROR(IF(M$10="","",VLOOKUP(SelectedDistrict,FundBalance!$A:L,COLUMN(FundBalance!L:L)-COLUMN(FundBalance!$A:$A)+1,0)),0) -> 1713571.57 | N46: =IFERROR(IF(N$10="","",VLOOKUP(SelectedDistrict,FundBalance!$A:M,COLUMN(FundBalance!M:M)-COLUMN(FundBalance!$A:$A)+1,0)),0) -> 1834408.27 | O46: =IFERROR(IF(O$10="","",VLOOKUP(SelectedDistrict,FundBalance!$A:N,COLUMN(FundBalance!N:N)-COLUMN(FundBalance!$A:$A)+1,0)),0) -> 1782274.23 | P46: =IFERROR(IF(P$10="","",VLOOKUP(SelectedDistrict,FundBalance!$A:O,COLUMN(FundBalance!O:O)-COLUMN(FundBalance!$A:$A)+1,0)),0) -> 2555594.41 | Q46: =IFERROR(IF(Q$10="","",VLOOKUP(SelectedDistrict,FundBalance!$A:P,COLUMN(FundBalance!P:P)-COLUMN(FundBalance!$A:$A)+1,0)),0) -> 4123357.98 | R46: =IFERROR(IF(R$10="","",VLOOKUP(SelectedDistrict,FundBalance!$A:Q,COLUMN(FundBalance!Q:Q)-COLUMN(FundBalance!$A:$A)+1,0)),0) -> 3983081.88 | S46: =IFERROR(IF(S$10="","",VLOOKUP(SelectedDistrict,FundBalance!$A:R,COLUMN(FundBalance!R:R)-COLUMN(FundBalance!$A:$A)+1,0)),0) -> 3152531.39 | T46: =IFERROR(IF(T$10="","",VLOOKUP(SelectedDistrict,FundBalance!$A:S,COLUMN(FundBalance!S:S)-COLUMN(FundBalance!$A:$A)+1,0)),0) -> 3349578.71 | U46: =IFERROR(IF(U$10="","",VLOOKUP(SelectedDistrict,FundBalance!$A:T,COLUMN(FundBalance!T:T)-COLUMN(FundBalance!$A:$A)+1,0)),0) -> 2789552.92 | V46: =IFERROR(IF(V$10="","",VLOOKUP(SelectedDistrict,FundBalance!$A:U,COLUMN(FundBalance!U:U)-COLUMN(FundBalance!$A:$A)+1,0)),0) -> 3483564.92 | W46: =IFERROR(IF(W$10="","",VLOOKUP(SelectedDistrict,FundBalance!$A:V,COLUMN(FundBalance!V:V)-COLUMN(FundBalance!$A:$A)+1,0)),0) -> 4228591.22 | X46: =IFERROR(IF(X$10="","",VLOOKUP(SelectedDistrict,FundBalance!$A:W,COLUMN(FundBalance!W:W)-COLUMN(FundBalance!$A:$A)+1,0)),0) -> 2459075.43 | Y46: =IFERROR(IF(Y$10="","",VLOOKUP(SelectedDistrict,FundBalance!$A:X,COLUMN(FundBalance!X:X)-COLUMN(FundBalance!$A:$A)+1,0)),0) -> 3714612.25 | Z46: =IFERROR(IF(Z$10="","",VLOOKUP(SelectedDistrict,FundBalance!$A:Y,COLUMN(FundBalance!Y:Y)-COLUMN(FundBalance!$A:$A)+1,0)),0) -> 2468715.73 | AA46: =IFERROR(IF(AA$10="","",VLOOKUP(SelectedDistrict,FundBalance!$A:Z,COLUMN(FundBalance!Z:Z)-COLUMN(FundBalance!$A:$A)+1,0)),0) -> 2774037.23 | AB46: =IFERROR(IF(AB$10="","",VLOOKUP(SelectedDistrict,FundBalance!$A:AA,COLUMN(FundBalance!AA:AA)-COLUMN(FundBalance!$A:$A)+1,0)),0) -> 3617722.24 | AC46: =IFERROR(IF(AC$10="","",VLOOKUP(SelectedDistrict,FundBalance!$A:AB,COLUMN(FundBalance!AB:AB)-COLUMN(FundBalance!$A:$A)+1,0)),0) -> 2467846.44 | AD46: =IFERROR(IF(AD$10="","",VLOOKUP(SelectedDistrict,FundBalance!$A:AC,COLUMN(FundBalance!AC:AC)-COLUMN(FundBalance!$A:$A)+1,0)),0) -> 3224335.75 | AE46: =IFERROR(IF(AE$10="","",VLOOKUP(SelectedDistrict,FundBalance!$A:AD,COLUMN(FundBalance!AD:AD)-COLUMN(FundBalance!$A:$A)+1,0)),0) -> 3813437
B47: % of Total Revenues | C47: =IFERROR(IF(C$10="","",C46/C36),0) -> 0.08785597682 | D47: 0.0260854488 | E47: 0.04011115273 | F47: 0.0346480338 | G47: 0.0363779595 | H47: 0.03334918623 | I47: 0.0706264914 | J47: 0.06006035836 | K47: 0.05082258277 | L47: 0.029317573 | M47: 0.05398755741 | N47: 0.05671838149 | O47: 0.05148674556 | P47: 0.07098012863 | Q47: 0.1137509018 | R47: 0.1106675847 | S47: 0.0891098443 | T47: 0.09380363236 | U47: 0.07456848492 | V47: 0.08864985577 | W47: 0.09953271473 | X47: 0.05593928385 | Y47: 0.07688221753 | Z47: 0.04907974193 | AA47: 0.05265035069 | AB47: 0.07064713725 | AC47: 0.042204195 | AD47: =IFERROR(IF(AD$10="","",AD46/AD36),0) -> 0.05068591001 | AE47: =IFERROR(IF(AE$10="","",AE46/AE36),0) -> 0.0610016302
B48: % of Total Expenditures | C48: =IFERROR(IF(C$10="","",C46/C44),0) -> 0.09264996694 | D48: 0.02619321593 | E48: 0.04067076349 | F48: 0.03464586867 | G48: 0.03647804027 | H48: 0.03329848628 | I48: 0.07366495248 | J48: 0.05929452322 | K48: 0.05044835916 | L48: 0.02874334019 | M48: 0.05537234554 | N48: 0.05708275063 | O48: 0.05152822569 | P48: 0.07270322897 | Q48: 0.1192023411 | R48: 0.1111143833 | S48: 0.08785440892 | T48: 0.09465732866 | U48: 0.07489878719 | V48: 0.09053684644 | W48: 0.1027244477 | X48: 0.05590174985 | Y48: 0.07893339216 | Z48: 0.04789345612 | AA48: 0.05327899277 | AB48: 0.07446801645 | AC48: 0.04230017357 | AD48: =IFERROR(IF(AD$10="","",AD46/AD44),0) -> 0.05153048833 | AE48: =IFERROR(IF(AE$10="","",AE46/AE44),0) -> 0.0611438039
B49: Unreserved, Undesignated Fund Balance | C49: =IFERROR(IF(C$10="","",VLOOKUP(SelectedDistrict,FundBalance!$AJ:AK,COLUMN(FundBalance!AK:AK)-COLUMN(FundBalance!$AJ:$AJ)+1,0)),0) -> 2050746.19 | D49: =IFERROR(IF(D$10="","",VLOOKUP(SelectedDistrict,FundBalance!$AJ:AL,COLUMN(FundBalance!AL:AL)-COLUMN(FundBalance!$AJ:$AJ)+1,0)),0) -> 551836.34 | E49: =IFERROR(IF(E$10="","",VLOOKUP(SelectedDistrict,FundBalance!$AJ:AM,COLUMN(FundBalance!AM:AM)-COLUMN(FundBalance!$AJ:$AJ)+1,0)),0) -> 872781.44 | F49: =IFERROR(IF(F$10="","",VLOOKUP(SelectedDistrict,FundBalance!$AJ:AN,COLUMN(FundBalance!AN:AN)-COLUMN(FundBalance!$AJ:$AJ)+1,0)),0) -> 774137.3 | G49: =IFERROR(IF(G$10="","",VLOOKUP(SelectedDistrict,FundBalance!$AJ:AO,COLUMN(FundBalance!AO:AO)-COLUMN(FundBalance!$AJ:$AJ)+1,0)),0) -> 793171.97 | H49: =IFERROR(IF(H$10="","",VLOOKUP(SelectedDistrict,FundBalance!$AJ:AP,COLUMN(FundBalance!AP:AP)-COLUMN(FundBalance!$AJ:$AJ)+1,0)),0) -> 677424.88 | I49: =IFERROR(IF(I$10="","",VLOOKUP(SelectedDistrict,FundBalance!$AJ:AQ,COLUMN(FundBalance!AQ:AQ)-COLUMN(FundBalance!$AJ:$AJ)+1,0)),0) -> 1584107.15 | J49: =IFERROR(IF(J$10="","",VLOOKUP(SelectedDistrict,FundBalance!$AJ:AR,COLUMN(FundBalance!AR:AR)-COLUMN(FundBalance!$AJ:$AJ)+1,0)),0) -> 1248399.69 | K49: =IFERROR(IF(K$10="","",VLOOKUP(SelectedDistrict,FundBalance!$AJ:AS,COLUMN(FundBalance!AS:AS)-COLUMN(FundBalance!$AJ:$AJ)+1,0)),0) -> 679202.31 | L49: =IFERROR(IF(L$10="","",VLOOKUP(SelectedDistrict,FundBalance!$AJ:AT,COLUMN(FundBalance!AT:AT)-COLUMN(FundBalance!$AJ:$AJ)+1,0)),0) -> 295798.26 | M49: =IFERROR(IF(M$10="","",VLOOKUP(SelectedDistrict,FundBalance!$AJ:AU,COLUMN(FundBalance!AU:AU)-COLUMN(FundBalance!$AJ:$AJ)+1,0)),0) -> 1359586.44 | N49: =IFERROR(IF(N$10="","",VLOOKUP(SelectedDistrict,FundBalance!$AJ:AV,COLUMN(FundBalance!AV:AV)-COLUMN(FundBalance!$AJ:$AJ)+1,0)),0) -> 1161530.81 | O49: =IFERROR(IF(O$10="","",VLOOKUP(SelectedDistrict,FundBalance!$AJ:AW,COLUMN(FundBalance!AW:AW)-COLUMN(FundBalance!$AJ:$AJ)+1,0)),0) -> 1314614.04 | P49: =IFERROR(IF(P$10="","",VLOOKUP(SelectedDistrict,FundBalance!$AJ:AX,COLUMN(FundBalance!AX:AX)-COLUMN(FundBalance!$AJ:$AJ)+1,0)),0) -> 1981817.33 | Q49: =IFERROR(IF(Q$10="","",VLOOKUP(SelectedDistrict,FundBalance!$AJ:AY,COLUMN(FundBalance!AY:AY)-COLUMN(FundBalance!$AJ:$AJ)+1,0)),0) -> 1813417.49 | R49: =IFERROR(IF(R$10="","",VLOOKUP(SelectedDistrict,FundBalance!$AJ:AZ,COLUMN(FundBalance!AZ:AZ)-COLUMN(FundBalance!$AJ:$AJ)+1,0)),0) -> 1381473.46 | S49: =IFERROR(IF(S$10="","",VLOOKUP(SelectedDistrict,FundBalance!$AJ:BA,COLUMN(FundBalance!BA:BA)-COLUMN(FundBalance!$AJ:$AJ)+1,0)),0) -> 168261.53 | T49: =IFERROR(IF(T$10="","",VLOOKUP(SelectedDistrict,FundBalance!$AJ:BB,COLUMN(FundBalance!BB:BB)-COLUMN(FundBalance!$AJ:$AJ)+1,0)),0) -> 538822.09 | U49: =IFERROR(IF(U$10="","",VLOOKUP(SelectedDistrict,FundBalance!$AJ:BC,COLUMN(FundBalance!BC:BC)-COLUMN(FundBalance!$AJ:$AJ)+1,0)),0) -> 368410.32 | V49: =IFERROR(IF(V$10="","",VLOOKUP(SelectedDistrict,FundBalance!$AJ:BD,COLUMN(FundBalance!BD:BD)-COLUMN(FundBalance!$AJ:$AJ)+1,0)),0) -> 788373.38 | W49: =IFERROR(IF(W$10="","",VLOOKUP(SelectedDistrict,FundBalance!$AJ:BE,COLUMN(FundBalance!BE:BE)-COLUMN(FundBalance!$AJ:$AJ)+1,0)),0) -> 1200807.24 | X49: =IFERROR(IF(X$10="","",VLOOKUP(SelectedDistrict,FundBalance!$AJ:BF,COLUMN(FundBalance!BF:BF)-COLUMN(FundBalance!$AJ:$AJ)+1,0)),0) -> -680628.97 | Y49: =IFERROR(IF(Y$10="","",VLOOKUP(SelectedDistrict,FundBalance!$AJ:BG,COLUMN(FundBalance!BG:BG)-COLUMN(FundBalance!$AJ:$AJ)+1,0)),0) -> 166121.51 | Z49: =IFERROR(IF(Z$10="","",VLOOKUP(SelectedDistrict,FundBalance!$AJ:BH,COLUMN(FundBalance!BH:BH)-COLUMN(FundBalance!$AJ:$AJ)+1,0)),0) -> -2042779.81 | AA49: =IFERROR(IF(AA$10="","",VLOOKUP(SelectedDistrict,FundBalance!$AJ:BI,COLUMN(FundBalance!BI:BI)-COLUMN(FundBalance!$AJ:$AJ)+1,0)),0) -> -1428914.21 | AB49: =IFERROR(IF(AB$10="","",VLOOKUP(SelectedDistrict,FundBalance!$AJ:BJ,COLUMN(FundBalance!BJ:BJ)-COLUMN(FundBalance!$AJ:$AJ)+1,0)),0) -> -296128.38 | AC49: =IFERROR(IF(AC$10="","",VLOOKUP(SelectedDistrict,FundBalance!$AJ:BK,COLUMN(FundBalance!BK:BK)-COLUMN(FundBalance!$AJ:$AJ)+1,0)),0) -> 0 | AD49: =IFERROR(IF(AD$10="","",VLOOKUP(SelectedDistrict,FundBalance!$AJ:BL,COLUMN(FundBalance!BL:BL)-COLUMN(FundBalance!$AJ:$AJ)+1,0)),0) -> 0 | AE49: =IFERROR(IF(AE$10="","",VLOOKUP(SelectedDistrict,FundBalance!$AJ:BM,COLUMN(FundBalance!BM:BM)-COLUMN(FundBalance!$AJ:$AJ)+1,0)),0) -> -107284
B50: =+B47 -> % of Total Revenues | C50: =IFERROR(IF(C$10="","",C49/C36),0) -> 0.08460752852 | D50: 0.02276232634 | E50: 0.0363681187 | F50: 0.03097100309 | G50: 0.0308041576 | H50: 0.0252196384 | I50: 0.05195420926 | J50: 0.0423061102 | K50: 0.02231958159 | L50: 0.0094282957 | M50: 0.0428349491 | N50: 0.03591356879 | O50: 0.03797687104 | P50: 0.05504380838 | Q50: 0.05002667142 | R50: 0.03838342665 | S50: 0.004756101331 | T50: 0.01508950039 | U50: 0.009848101176 | V50: 0.02006254743 | W50: 0.02826463904 | X50: -0.01548301312 | Y50: 0.003438256596 | Z50: -0.04061184716 | AA50: -0.02712034051 | AB50: -0.00578281607 | AC50: 0 | AD50: =IFERROR(IF(AD$10="","",AD49/AD36),0) -> 0 | AE50: =IFERROR(IF(AE$10="","",AE49/AE36),0) -> -0.001716168091
B51: =+B48 -> % of Total Expenditures | C51: =IFERROR(IF(C$10="","",C49/C44),0) -> 0.0892242623 | D51: 0.02285636462 | E51: 0.03687550851 | F51: 0.03096906774 | G51: 0.03088890408 | H51: 0.02518129761 | I51: 0.05418935983 | J51: 0.04176666111 | K51: 0.02215523508 | L51: 0.009243627046 | M51: 0.04393367132 | N51: 0.03614428405 | O51: 0.03800746698 | P51: 0.05638004159 | Q51: 0.0524241677 | R51: 0.03853839216 | S51: 0.004689094392 | T51: 0.01522682823 | U51: 0.009891723494 | V51: 0.02048959651 | W51: 0.02917100615 | X51: -0.01547262437 | Y51: 0.003529987361 | Z51: -0.03963023527 | AA51: -0.02744415577 | AB51: -0.006095573847 | AC51: 0 | AD51: =IFERROR(IF(AD$10="","",AD49/AD44),0) -> 0 | AE51: =IFERROR(IF(AE$10="","",AE49/AE44),0) -> -0.001720167885
B53: Dollars per FTE Enrollment
B54: =+B36 -> Total General Fund Revenues | C54: =IFERROR(IF(C$10="","",C36/C$10),0) -> 6378.645271 | D54: 6379.5921 | E54: 6323.490422 | F54: 6669.624436 | G54: 6980.735282 | H54: 7224.915303 | I54: 8051.580231 | J54: 7870.044678 | K54: 8103.702754 | L54: 8417.275971 | M54: 8803.104195 | N54: 9229.924691 | O54: 10483.87289 | P54: 11408.48001 | Q54: 11480.21661 | R54: 11649.28733 | S54: 11266.92672 | T54: 11241.71601 | U54: 11640.01882 | V54: 12243.16241 | W54: 13070.08307 | X54: 13222.32142 | Y54: 14316.4189 | Z54: 15014.81956 | AA54: 15800.89175 | AB54: 16511.30762 | AC54: 18778.73003 | AD54: =IFERROR(IF(AD$10="","",AD36/AD$10),0) -> 20116.9577 | AE54: =IFERROR(IF(AE$10="","",AE36/AE$10),0) -> 19383.18838
B55: =+B37 -> Total State General Fund Revenues (4) | C55: =IFERROR(IF(C$10="","",C37/C$10),0) -> 4756.421659 | D55: 4987.491346 | E55: 4866.191023 | F55: 5029.458936 | G55: 5079.835692 | H55: 5269.773567 | I55: 5501.617795 | J55: 5427.164558 | K55: 5693.113265 | L55: 5884.32043 | M55: 6222.593217 | N55: 6663.273153 | O55: 7435.777216 | P55: 7836.74058 | Q55: 7508.405739 | R55: 7784.220286 | S55: 7782.503256 | T55: 7892.816161 | U55: 8405.45556 | V55: 8918.823343 | W55: 9686.946461 | X55: 9827.966195 | Y55: 10975.36794 | Z55: 12403.56211 | AA55: 13034.3684 | AB55: 12882.43492 | AC55: 13147.8444 | AD55: =IFERROR(IF(AD$10="","",AD37/AD$10),0) -> 14044.04981 | AE55: =IFERROR(IF(AE$10="","",AE37/AE$10),0) -> 13807.66414
B56: =+B40 -> Total Federal General Fund Revenues (6) | C56: =IFERROR(IF(C$10="","",C40/C$10),0) -> 385.7207415 | D56: 520.8178125 | E56: 532.13414 | F56: 594.098664 | G56: 561.5289029 | H56: 645.7506987 | I56: 894.9994639 | J56: 1029.181736 | K56: 1137.700485 | L56: 1055.069957 | M56: 1088.491649 | N56: 1051.855286 | O56: 1234.582446 | P56: 1813.453397 | Q56: 2157.102796 | R56: 1932.377815 | S56: 1560.171004 | T56: 1467.617639 | U56: 1381.677549 | V56: 1461.802693 | W56: 1522.606649 | X56: 1521.215944 | Y56: 1549.95326 | Z56: 1369.237389 | AA56: 1718.391472 | AB56: 2330.017392 | AC56: 4138.114007 | AD56: =IFERROR(IF(AD$10="","",AD40/AD$10),0) -> 4352.932737 | AE56: 3704.548626
B57: =+B41 -> Local Taxes (7) | C57: =IFERROR(IF(C$10="","",C41/C$10),0) -> 660.7479263 | D57: 674.8981093 | E57: 717.2510975 | F57: 770.9116491 | G57: 898.3749295 | H57: 857.1740074 | I57: 882.7093552 | J57: 916.7543753 | K57: 944.5298508 | L57: 1002.876615 | M57: 1108.121673 | N57: 1186.877731 | O57: 1357.004528 | P57: 1401.438387 | Q57: 1469.310427 | R57: 1530.234071 | S57: 1563.12393 | T57: 1585.659699 | U57: 1578.584483 | V57: 1600.884559 | W57: 1599.451508 | X57: 1587.16235 | Y57: 1559.143725 | Z57: 1021.093148 | AA57: 864.7195493 | AB57: 1190.083475 | AC57: 1301.276466 | AD57: 1518.112437 | AE57: 1590.334403
B58: =+B42 -> Other Revenues (10) | C58: =IFERROR(IF(C$10="","",C42/C$10),0) -> 575.7549448 | D58: 196.3848322 | E58: 207.9141613 | F58: 275.1551871 | G58: 440.9957572 | H58: 452.2170298 | I58: 772.2536171 | J58: 496.9440085 | K58: 328.3591528 | L58: 475.008969 | M58: 383.8976553 | N58: 327.9185207 | O58: 456.5086966 | P58: 356.8476424 | Q58: 345.3976475 | R58: 402.4551622 | S58: 361.1285323 | T58: 295.622509 | U58: 274.3012275 | V58: 261.6518175 | W58: 261.0784492 | X58: 285.97693 | Y58: 231.9539771 | Z58: 220.9269171 | AA58: 183.4123269 | AB58: 108.7718328 | AC58: 191.4951539 | AD58: 201.8627131 | AE58: 280.6412105
B59: Total Expenditures | C59: =IFERROR(IF(C$10="","",C44/C$10),0) -> 6048.594831 | D59: 6353.344452 | E59: 6236.48214 | F59: 6670.041242 | G59: 6961.583008 | H59: 7235.915886 | I59: 7719.476396 | J59: 7971.69246 | K59: 8163.815649 | L59: 8585.435831 | M59: 8582.95036 | N59: 9171.008473 | O59: 10475.43339 | P59: 11138.09373 | Q59: 10955.19584 | R59: 11602.44475 | S59: 11427.93058 | T59: 11140.32913 | U59: 11588.68655 | V59: 11987.98748 | W59: 12663.98485 | X59: 13231.19926 | Y59: 13944.39035 | Z59: 15386.72564 | AA59: 15614.45607 | AB59: 15664.12899 | AC59: 18736.12132 | AD59: =IFERROR(IF(AD$10="","",AD44/AD$10),0) -> 19787.24325 | AE59: =IFERROR(IF(AE$10="","",AE44/AE$10),0) -> 19338.11792
B61: Sources: OSPI F195/F196 School Apportionment and Financial Services (SAFS) reports, unless noted:
B62: ="(1) Enrollment from OSPI Apportionment, exclude Summer Skills Centers, Institutions, and pre-K Special Ed; SY"&HLOOKUP(MAX(Enro!6:6),Enro!6:9,3)&" are year-to-date data as of "&HLOOKUP(MAX(Enro!6:6),Enro!6:9,4)&"." -> (1) Enrollment from OSPI Apportionment, exclude Summer Skills Centers, Institutions, and pre-K Special Ed; SY2023-24 are year-to-date data as of January 2024.
B63: ="(2) Special Education percentages from OSPI Report 1220; SY"&HLOOKUP(MAX(Enro!6:6),Enro!6:9,3)&" are year-to-date data as of "&HLOOKUP(MAX(Enro!6:6),Enro!6:9,4)&"." -> (2) Special Education percentages from OSPI Report 1220; SY2023-24 are year-to-date data as of January 2024.
B64: ="(3) FTE Staff from OSPI S275 reports; ""Total Staff"" displayed excludes extracurricular, substitutes, and on-leave staff (averaging "&TEXT(IFERROR(VLOOKUP(SelectedDistrict,Staff!$DA:$DB,2,0),0),"##0.0")&" FTEs in "&TRIM(B5)&" since " &IFERROR(INDEX($C$8:CA$8,1,MATCH("",$C$10:CA$10,1)+1),INDEX($C$8:CA$8,1,1))& ")." -> (3) FTE Staff from OSPI S275 reports; "Total Staff" displayed excludes extracurricular, substitutes, and on-leave staff (averaging 0.8 FTEs in Aberdeen since SY1995-96).
B65: (4) Total State General Fund Revenues includes both State General Purpose (codes 3000s, excl. Timber Excise Tax) and State Special Purpose Revenues (codes 4000s).
B66: (5) Special Education Revenues (revenue code 4121) are part of Total State General Fund Revenues.
B67: (6) Total Federal General Fund Revenues includes both Federal General Purpose (codes 5000s) and Federal Special Purpose Revenues (codes 6000s).
B68: (7) Includes: Local Property Tax, Sale of Tax Title Property, Local In-Lieu-of Taxes, County Administered Forests, Other Local Taxes, and Timber Excise Tax.
B69: (8) Includes only K-12 General Fund; excludes Capital Projects, Debt Service, Transportation Vehicle, Associated Student Body, Bond, and Trust funds.
B70: ="(9) Free and Reduced Lunch Percentage from CEDARS; SY"&HLOOKUP(MAX(FRPL!2:2),FRPL!2:6,3)&" data released "&HLOOKUP(MAX(FRPL!2:2),FRPL!2:6,4)&"." -> (9) Free and Reduced Lunch Percentage from CEDARS; SY2023-24 data released Final.
B71: (10) Other Revenues include Local Nontax, Other Financing Sources, and Revenues from other school districts, agencies, and associations.
B72: =IF(ISERR(Z8),"",+""&"Data for "&HLOOKUP(MAX(6:6),6:8,3,0)&" exclude budget extensions.") -> Data for SY2023-24 exclude budget extensions.

Sheet Statewide
B3: LEAP Office | AE3: =Report!AE3 -> 2024-02-21T15:51:20.480
B4: K-12 Workload, Staffing, and Finance
B5: Statewide Totals
AE7: District Budgeted
C8: =+"SY"&Enro!B8 -> SY1995-96 | D8: =+"SY"&Enro!C8 -> SY1996-97 | E8: =+"SY"&Enro!D8 -> SY1997-98 | F8: =+"SY"&Enro!E8 -> SY1998-99 | G8: =+"SY"&Enro!F8 -> SY1999-00 | H8: =+"SY"&Enro!G8 -> SY2000-01 | I8: =+"SY"&Enro!H8 -> SY2001-02 | J8: =+"SY"&Enro!I8 -> SY2002-03 | K8: =+"SY"&Enro!J8 -> SY2003-04 | L8: =+"SY"&Enro!K8 -> SY2004-05 | M8: =+"SY"&Enro!L8 -> SY2005-06 | N8: =+"SY"&Enro!M8 -> SY2006-07 | O8: =+"SY"&Enro!N8 -> SY2007-08 | P8: =+"SY"&Enro!O8 -> SY2008-09 | Q8: =+"SY"&Enro!P8 -> SY2009-10 | R8: =+"SY"&Enro!Q8 -> SY2010-11 | S8: =+"SY"&Enro!R8 -> SY2011-12 | T8: =+"SY"&Enro!S8 -> SY2012-13 | U8: =+"SY"&Enro!T8 -> SY2013-14 | V8: =+"SY"&Enro!U8 -> SY2014-15 | W8: =+"SY"&Enro!V8 -> SY2015-16 | X8: =+"SY"&Enro!W8 -> SY2016-17 | Y8: =+"SY"&Enro!X8 -> SY2017-18 | Z8: =+"SY"&Enro!Y8 -> SY2018-19 | AA8: =+"SY"&Enro!Z8 -> SY2019-20 | AB8: =+"SY"&Enro!AA8 -> SY2020-21 | AC8: =+"SY"&Enro!AB8 -> SY2021-22 | AD8: =+"SY"&Enro!AC8 -> SY2022-23 | AE8: =+"SY"&Enro!AD8 -> SY2023-24
B10: =+Report!B10 -> Total FTE Enrollment (1) | C10: =VLOOKUP("Grand Total",Enro!$A:B,COLUMN(Enro!B:B)-COLUMN(Enro!$A:$A)+1,0) -> 904086.21 | D10: =VLOOKUP("Grand Total",Enro!$A:C,COLUMN(Enro!C:C)-COLUMN(Enro!$A:$A)+1,0) -> 923214.16 | E10: =VLOOKUP("Grand Total",Enro!$A:D,COLUMN(Enro!D:D)-COLUMN(Enro!$A:$A)+1,0) -> 936170.54 | F10: =VLOOKUP("Grand Total",Enro!$A:E,COLUMN(Enro!E:E)-COLUMN(Enro!$A:$A)+1,0) -> 946107.01 | G10: =VLOOKUP("Grand Total",Enro!$A:F,COLUMN(Enro!F:F)-COLUMN(Enro!$A:$A)+1,0) -> 948194.27 | H10: =VLOOKUP("Grand Total",Enro!$A:G,COLUMN(Enro!G:G)-COLUMN(Enro!$A:$A)+1,0) -> 950397.26 | I10: =VLOOKUP("Grand Total",Enro!$A:H,COLUMN(Enro!H:H)-COLUMN(Enro!$A:$A)+1,0) -> 955927.65 | J10: =VLOOKUP("Grand Total",Enro!$A:I,COLUMN(Enro!I:I)-COLUMN(Enro!$A:$A)+1,0) -> 958181.31 | K10: =VLOOKUP("Grand Total",Enro!$A:J,COLUMN(Enro!J:J)-COLUMN(Enro!$A:$A)+1,0) -> 961543.37 | L10: =VLOOKUP("Grand Total",Enro!$A:K,COLUMN(Enro!K:K)-COLUMN(Enro!$A:$A)+1,0) -> 965464.3 | M10: =VLOOKUP("Grand Total",Enro!$A:L,COLUMN(Enro!L:L)-COLUMN(Enro!$A:$A)+1,0) -> 970897.84 | N10: =VLOOKUP("Grand Total",Enro!$A:M,COLUMN(Enro!M:M)-COLUMN(Enro!$A:$A)+1,0) -> 972539.66 | O10: =VLOOKUP("Grand Total",Enro!$A:N,COLUMN(Enro!N:N)-COLUMN(Enro!$A:$A)+1,0) -> 974605.76 | P10: =VLOOKUP("Grand Total",Enro!$A:O,COLUMN(Enro!O:O)-COLUMN(Enro!$A:$A)+1,0) -> 980121.34 | Q10: =VLOOKUP("Grand Total",Enro!$A:P,COLUMN(Enro!P:P)-COLUMN(Enro!$A:$A)+1,0) -> 987336.18 | R10: =VLOOKUP("Grand Total",Enro!$A:Q,COLUMN(Enro!Q:Q)-COLUMN(Enro!$A:$A)+1,0) -> 991502.19 | S10: =VLOOKUP("Grand Total",Enro!$A:R,COLUMN(Enro!R:R)-COLUMN(Enro!$A:$A)+1,0) -> 997473.19 | T10: =VLOOKUP("Grand Total",Enro!$A:S,COLUMN(Enro!S:S)-COLUMN(Enro!$A:$A)+1,0) -> 1002074.3 | U10: =VLOOKUP("Grand Total",Enro!$A:T,COLUMN(Enro!T:T)-COLUMN(Enro!$A:$A)+1,0) -> 1019752.43 | V10: =VLOOKUP("Grand Total",Enro!$A:U,COLUMN(Enro!U:U)-COLUMN(Enro!$A:$A)+1,0) -> 1031553.62 | W10: =VLOOKUP("Grand Total",Enro!$A:V,COLUMN(Enro!V:V)-COLUMN(Enro!$A:$A)+1,0) -> 1055850.98 | X10: =VLOOKUP("Grand Total",Enro!$A:W,COLUMN(Enro!W:W)-COLUMN(Enro!$A:$A)+1,0) -> 1079889.35 | Y10: =VLOOKUP("Grand Total",Enro!$A:X,COLUMN(Enro!X:X)-COLUMN(Enro!$A:$A)+1,0) -> 1090905.61 | Z10: =VLOOKUP("Grand Total",Enro!$A:Y,COLUMN(Enro!Y:Y)-COLUMN(Enro!$A:$A)+1,0) -> 1093913.03 | AA10: =VLOOKUP("Grand Total",Enro!$A:Z,COLUMN(Enro!Z:Z)-COLUMN(Enro!$A:$A)+1,0) -> 1103195.31 | AB10: =VLOOKUP("Grand Total",Enro!$A:AA,COLUMN(Enro!AA:AA)-COLUMN(Enro!$A:$A)+1,0) -> 1063049.39 | AC10: =VLOOKUP("Grand Total",Enro!$A:AB,COLUMN(Enro!AB:AB)-COLUMN(Enro!$A:$A)+1,0) -> 1060460.66 | AD10: =VLOOKUP("Grand Total",Enro!$A:AC,COLUMN(Enro!AC:AC)-COLUMN(Enro!$A:$A)+1,0) -> 1066846.54 | AE10: =VLOOKUP("Grand Total",Enro!$A:AD,COLUMN(Enro!AD:AD)-COLUMN(Enro!$A:$A)+1,0) -> 1072185.83
B12: =+Report!B12 -> Special Ed Percentage (2) | C12: =+SEPct!B6 -> 0.118 | D12: =+SEPct!C6 -> 0.1167 | E12: =+SEPct!D6 -> 0.1181 | F12: =+SEPct!E6 -> 0.1201 | G12: =+SEPct!F6 -> 0.1225 | H12: =+SEPct!G6 -> 0.1237 | I12: =+SEPct!H6 -> 0.125691 | J12: =+SEPct!I6 -> 0.127039 | K12: =+SEPct!J6 -> 0.127457 | L12: =+SEPct!K6 -> 0.127453 | M12: =+SEPct!L6 -> 0.127 | N12: =+SEPct!M6 -> 0.1258 | O12: =+SEPct!N6 -> 0.1166 | P12: =+SEPct!O6 -> 0.1164 | Q12: =+SEPct!P6 -> 0.117 | R12: =+SEPct!Q6 -> 0.1182 | S12: =+SEPct!R6 -> 0.1195 | T12: =+SEPct!S6 -> 0.1207 | U12: =+SEPct!T6 -> 0.120249 | V12: =+SEPct!U6 -> 0.120197 | W12: =+SEPct!V6 -> 0.119584 | X12: =+SEPct!W6 -> 0.12017 | Y12: =+SEPct!X6 -> 0.1224 | Z12: =+SEPct!Y6 -> 0.1256 | AA12: =+SEPct!Z6 -> 0.1283 | AB12: =+SEPct!AA6 -> 0.1301 | AC12: =+SEPct!AB6 -> 0.13047 | AD12: =+SEPct!AC6 -> 0.134676 | AE12: =+SEPct!AD6 -> 0.138489
B14: =+Report!B14 -> Free and Reduced Lunch Percentage (9) | C14: =+FRPL!B6 -> 0.306 | D14: =+FRPL!C6 -> 0.3116 | E14: =+FRPL!D6 -> 0.3089 | F14: =+FRPL!E6 -> 0.3138 | G14: =+FRPL!F6 -> 0.311 | H14: =+FRPL!G6 -> 0.3127 | I14: =+FRPL!H6 -> 0.3268 | J14: =+FRPL!I6 -> 0.3557 | K14: =+FRPL!J6 -> 0.3702 | L14: =+FRPL!K6 -> 0.375 | M14: =+FRPL!L6 -> 0.3794 | N14: =+FRPL!M6 -> 0.3749 | O14: =+FRPL!N6 -> 0.3823 | P14: =+FRPL!O6 -> 0.39567 | Q14: =+FRPL!P6 -> 0.422148 | R14: =+FRPL!Q6 -> 0.440046 | S14: =+FRPL!R6 -> 0.455455 | T14: =+FRPL!S6 -> 0.456715 | U14: =+FRPL!T6 -> 0.451883 | V14: =+FRPL!U6 -> 0.4648 | W14: =+FRPL!V6 -> 0.457 | X14: =+FRPL!W6 -> 0.4499 | Y14: =+FRPL!X6 -> 0.4351 | Z14: =+FRPL!Y6 -> 0.4339 | AA14: =+FRPL!Z6 -> 0.4405 | AB14: =+FRPL!AA6 -> 0.4371 | AC14: =+FRPL!AB6 -> 0.4229 | AD14: =+FRPL!AC6 -> 0.4373 | AE14: =+FRPL!AD6 -> 0.4594
B16: =+Report!B16 -> Certificated Administrative Staff (3) | C16: =VLOOKUP("Grand Total",Staff!$AH:AI,COLUMN(Staff!AI:AI)-COLUMN(Staff!$AH:$AH)+1,FALSE) -> 3500.302 | D16: =VLOOKUP("Grand Total",Staff!$AH:AJ,COLUMN(Staff!AJ:AJ)-COLUMN(Staff!$AH:$AH)+1,FALSE) -> 3578.989 | E16: =VLOOKUP("Grand Total",Staff!$AH:AK,COLUMN(Staff!AK:AK)-COLUMN(Staff!$AH:$AH)+1,FALSE) -> 3647.495 | F16: =VLOOKUP("Grand Total",Staff!$AH:AL,COLUMN(Staff!AL:AL)-COLUMN(Staff!$AH:$AH)+1,FALSE) -> 3680.776 | G16: =VLOOKUP("Grand Total",Staff!$AH:AM,COLUMN(Staff!AM:AM)-COLUMN(Staff!$AH:$AH)+1,FALSE) -> 3733.944 | H16: =VLOOKUP("Grand Total",Staff!$AH:AN,COLUMN(Staff!AN:AN)-COLUMN(Staff!$AH:$AH)+1,FALSE) -> 3761.697 | I16: =VLOOKUP("Grand Total",Staff!$AH:AO,COLUMN(Staff!AO:AO)-COLUMN(Staff!$AH:$AH)+1,FALSE) -> 3855.888 | J16: =VLOOKUP("Grand Total",Staff!$AH:AP,COLUMN(Staff!AP:AP)-COLUMN(Staff!$AH:$AH)+1,FALSE) -> 3910.307 | K16: =VLOOKUP("Grand Total",Staff!$AH:AQ,COLUMN(Staff!AQ:AQ)-COLUMN(Staff!$AH:$AH)+1,FALSE) -> 3897.594 | L16: =VLOOKUP("Grand Total",Staff!$AH:AR,COLUMN(Staff!AR:AR)-COLUMN(Staff!$AH:$AH)+1,FALSE) -> 3925.396 | M16: =VLOOKUP("Grand Total",Staff!$AH:AS,COLUMN(Staff!AS:AS)-COLUMN(Staff!$AH:$AH)+1,FALSE) -> 3998.638 | N16: =VLOOKUP("Grand Total",Staff!$AH:AT,COLUMN(Staff!AT:AT)-COLUMN(Staff!$AH:$AH)+1,FALSE) -> 3975.191 | O16: =VLOOKUP("Grand Total",Staff!$AH:AU,COLUMN(Staff!AU:AU)-COLUMN(Staff!$AH:$AH)+1,FALSE) -> 4036.894 | P16: =VLOOKUP("Grand Total",Staff!$AH:AV,COLUMN(Staff!AV:AV)-COLUMN(Staff!$AH:$AH)+1,FALSE) -> 4035.382 | Q16: =VLOOKUP("Grand Total",Staff!$AH:AW,COLUMN(Staff!AW:AW)-COLUMN(Staff!$AH:$AH)+1,FALSE) -> 3898.984 | R16: =VLOOKUP("Grand Total",Staff!$AH:AX,COLUMN(Staff!AX:AX)-COLUMN(Staff!$AH:$AH)+1,FALSE) -> 3902.338 | S16: =VLOOKUP("Grand Total",Staff!$AH:AY,COLUMN(Staff!AY:AY)-COLUMN(Staff!$AH:$AH)+1,FALSE) -> 3884.319 | T16: =VLOOKUP("Grand Total",Staff!$AH:AZ,COLUMN(Staff!AZ:AZ)-COLUMN(Staff!$AH:$AH)+1,FALSE) -> 3970.561 | U16: =VLOOKUP("Grand Total",Staff!$AH:BA,COLUMN(Staff!BA:BA)-COLUMN(Staff!$AH:$AH)+1,FALSE) -> 4100.341 | V16: =VLOOKUP("Grand Total",Staff!$AH:BB,COLUMN(Staff!BB:BB)-COLUMN(Staff!$AH:$AH)+1,FALSE) -> 4326.771 | W16: =VLOOKUP("Grand Total",Staff!$AH:BC,COLUMN(Staff!BC:BC)-COLUMN(Staff!$AH:$AH)+1,FALSE) -> 4553.114 | X16: =VLOOKUP("Grand Total",Staff!$AH:BD,COLUMN(Staff!BD:BD)-COLUMN(Staff!$AH:$AH)+1,FALSE) -> 4797.712 | Y16: =VLOOKUP("Grand Total",Staff!$AH:BE,COLUMN(Staff!BE:BE)-COLUMN(Staff!$AH:$AH)+1,FALSE) -> 4914.308 | Z16: =VLOOKUP("Grand Total",Staff!$AH:BF,COLUMN(Staff!BF:BF)-COLUMN(Staff!$AH:$AH)+1,FALSE) -> 5029.876 | AA16: =VLOOKUP("Grand Total",Staff!$AH:BG,COLUMN(Staff!BG:BG)-COLUMN(Staff!$AH:$AH)+1,FALSE) -> 4971.079 | AB16: =VLOOKUP("Grand Total",Staff!$AH:BH,COLUMN(Staff!BH:BH)-COLUMN(Staff!$AH:$AH)+1,FALSE) -> 5027.505 | AC16: =VLOOKUP("Grand Total",Staff!$AH:BI,COLUMN(Staff!BI:BI)-COLUMN(Staff!$AH:$AH)+1,FALSE) -> 5239.212 | AD16: =VLOOKUP("Grand Total",Staff!$AH:BJ,COLUMN(Staff!BJ:BJ)-COLUMN(Staff!$AH:$AH)+1,FALSE) -> 5331.535 | AE16: =VLOOKUP("Grand Total",Staff!$AH:BK,COLUMN(Staff!BK:BK)-COLUMN(Staff!$AH:$AH)+1,FALSE) -> 5049.984
B17: =+Report!B17 -> Certificated Instructional Staff (3) | C17: =VLOOKUP("Grand Total",Staff!$A:B,COLUMN(Staff!B:B)-COLUMN(Staff!$A:$A)+1,0) -> 52492.724 | D17: =VLOOKUP("Grand Total",Staff!$A:C,COLUMN(Staff!C:C)-COLUMN(Staff!$A:$A)+1,0) -> 53902.485 | E17: =VLOOKUP("Grand Total",Staff!$A:D,COLUMN(Staff!D:D)-COLUMN(Staff!$A:$A)+1,0) -> 54830.191 | F17: =VLOOKUP("Grand Total",Staff!$A:E,COLUMN(Staff!E:E)-COLUMN(Staff!$A:$A)+1,0) -> 55597.631 | G17: =VLOOKUP("Grand Total",Staff!$A:F,COLUMN(Staff!F:F)-COLUMN(Staff!$A:$A)+1,0) -> 56577.943 | H17: =VLOOKUP("Grand Total",Staff!$A:G,COLUMN(Staff!G:G)-COLUMN(Staff!$A:$A)+1,0) -> 57190.86 | I17: =VLOOKUP("Grand Total",Staff!$A:H,COLUMN(Staff!H:H)-COLUMN(Staff!$A:$A)+1,0) -> 59149.994 | J17: =VLOOKUP("Grand Total",Staff!$A:I,COLUMN(Staff!I:I)-COLUMN(Staff!$A:$A)+1,0) -> 59796.094 | K17: =VLOOKUP("Grand Total",Staff!$A:J,COLUMN(Staff!J:J)-COLUMN(Staff!$A:$A)+1,0) -> 59626.058 | L17: =VLOOKUP("Grand Total",Staff!$A:K,COLUMN(Staff!K:K)-COLUMN(Staff!$A:$A)+1,0) -> 60150.691 | M17: =VLOOKUP("Grand Total",Staff!$A:L,COLUMN(Staff!L:L)-COLUMN(Staff!$A:$A)+1,0) -> 60631.752 | N17: =VLOOKUP("Grand Total",Staff!$A:M,COLUMN(Staff!M:M)-COLUMN(Staff!$A:$A)+1,0) -> 61086.816 | O17: =VLOOKUP("Grand Total",Staff!$A:N,COLUMN(Staff!N:N)-COLUMN(Staff!$A:$A)+1,0) -> 61480.593 | P17: =VLOOKUP("Grand Total",Staff!$A:O,COLUMN(Staff!O:O)-COLUMN(Staff!$A:$A)+1,0) -> 62024.878 | Q17: =VLOOKUP("Grand Total",Staff!$A:P,COLUMN(Staff!P:P)-COLUMN(Staff!$A:$A)+1,0) -> 60862.672 | R17: =VLOOKUP("Grand Total",Staff!$A:Q,COLUMN(Staff!Q:Q)-COLUMN(Staff!$A:$A)+1,0) -> 61167.973 | S17: =VLOOKUP("Grand Total",Staff!$A:R,COLUMN(Staff!R:R)-COLUMN(Staff!$A:$A)+1,0) -> 60190.105 | T17: =VLOOKUP("Grand Total",Staff!$A:S,COLUMN(Staff!S:S)-COLUMN(Staff!$A:$A)+1,0) -> 60855.253 | U17: =VLOOKUP("Grand Total",Staff!$A:T,COLUMN(Staff!T:T)-COLUMN(Staff!$A:$A)+1,0) -> 62321.088 | V17: =VLOOKUP("Grand Total",Staff!$A:U,COLUMN(Staff!U:U)-COLUMN(Staff!$A:$A)+1,0) -> 64243.505 | W17: =VLOOKUP("Grand Total",Staff!$A:V,COLUMN(Staff!V:V)-COLUMN(Staff!$A:$A)+1,0) -> 66302.839 | X17: =VLOOKUP("Grand Total",Staff!$A:W,COLUMN(Staff!W:W)-COLUMN(Staff!$A:$A)+1,0) -> 68419.844 | Y17: =VLOOKUP("Grand Total",Staff!$A:X,COLUMN(Staff!X:X)-COLUMN(Staff!$A:$A)+1,0) -> 70016.496 | Z17: =VLOOKUP("Grand Total",Staff!$A:Y,COLUMN(Staff!Y:Y)-COLUMN(Staff!$A:$A)+1,0) -> 72059.547 | AA17: =VLOOKUP("Grand Total",Staff!$A:Z,COLUMN(Staff!Z:Z)-COLUMN(Staff!$A:$A)+1,0) -> 72574.576 | AB17: =VLOOKUP("Grand Total",Staff!$A:AA,COLUMN(Staff!AA:AA)-COLUMN(Staff!$A:$A)+1,0) -> 72383.419 | AC17: =VLOOKUP("Grand Total",Staff!$A:AB,COLUMN(Staff!AB:AB)-COLUMN(Staff!$A:$A)+1,0) -> 74128.881 | AD17: =VLOOKUP("Grand Total",Staff!$A:AC,COLUMN(Staff!AC:AC)-COLUMN(Staff!$A:$A)+1,0) -> 73949.234 | AE17: =VLOOKUP("Grand Total",Staff!$A:AD,COLUMN(Staff!AD:AD)-COLUMN(Staff!$A:$A)+1,0) -> 73273.827
B18: Total Certificated Staff (3) | C18: =IF(C$10="","",C16+C17) -> 55993.026 | D18: =IF(D$10="","",D16+D17) -> 57481.474 | E18: 58477.686 | F18: 59278.407 | G18: 60311.887 | H18: 60952.557 | I18: 63005.882 | J18: 63706.401 | K18: 63523.652 | L18: 64076.087 | M18: 64630.39 | N18: 65062.007 | O18: 65517.487 | P18: 66060.26 | Q18: 64761.656 | R18: 65070.311 | S18: 64074.424 | T18: 64825.814 | U18: 66421.429 | V18: 68570.276 | W18: 70855.953 | X18: 73217.556 | Y18: 74930.804 | Z18: 77089.423 | AA18: 77545.655 | AB18: 77410.924 | AC18: 79368.093 | AD18: 79280.769 | AE18: =IF(AE$10="","",AE16+AE17) -> 78323.811
B19: =+Report!B19 -> Classified Staff (3) | C19: =VLOOKUP("Grand Total",Staff!$BO:BP,COLUMN(Staff!BP:BP)-COLUMN(Staff!$BO:$BO)+1,0) -> 30712.62 | D19: =VLOOKUP("Grand Total",Staff!$BO:BQ,COLUMN(Staff!BQ:BQ)-COLUMN(Staff!$BO:$BO)+1,0) -> 31757.422 | E19: =VLOOKUP("Grand Total",Staff!$BO:BR,COLUMN(Staff!BR:BR)-COLUMN(Staff!$BO:$BO)+1,0) -> 32677.184 | F19: =VLOOKUP("Grand Total",Staff!$BO:BS,COLUMN(Staff!BS:BS)-COLUMN(Staff!$BO:$BO)+1,0) -> 33118.701 | G19: =VLOOKUP("Grand Total",Staff!$BO:BT,COLUMN(Staff!BT:BT)-COLUMN(Staff!$BO:$BO)+1,0) -> 34195.906 | H19: =VLOOKUP("Grand Total",Staff!$BO:BU,COLUMN(Staff!BU:BU)-COLUMN(Staff!$BO:$BO)+1,0) -> 34765.312 | I19: =VLOOKUP("Grand Total",Staff!$BO:BV,COLUMN(Staff!BV:BV)-COLUMN(Staff!$BO:$BO)+1,0) -> 35638.518 | J19: =VLOOKUP("Grand Total",Staff!$BO:BW,COLUMN(Staff!BW:BW)-COLUMN(Staff!$BO:$BO)+1,0) -> 36156.353 | K19: =VLOOKUP("Grand Total",Staff!$BO:BX,COLUMN(Staff!BX:BX)-COLUMN(Staff!$BO:$BO)+1,0) -> 36041.683 | L19: =VLOOKUP("Grand Total",Staff!$BO:BY,COLUMN(Staff!BY:BY)-COLUMN(Staff!$BO:$BO)+1,0) -> 36602.011 | M19: =VLOOKUP("Grand Total",Staff!$BO:BZ,COLUMN(Staff!BZ:BZ)-COLUMN(Staff!$BO:$BO)+1,0) -> 36748.464 | N19: =VLOOKUP("Grand Total",Staff!$BO:CA,COLUMN(Staff!CA:CA)-COLUMN(Staff!$BO:$BO)+1,0) -> 36881.859 | O19: =VLOOKUP("Grand Total",Staff!$BO:CB,COLUMN(Staff!CB:CB)-COLUMN(Staff!$BO:$BO)+1,0) -> 37306.753 | P19: =VLOOKUP("Grand Total",Staff!$BO:CC,COLUMN(Staff!CC:CC)-COLUMN(Staff!$BO:$BO)+1,0) -> 37512.603 | Q19: =VLOOKUP("Grand Total",Staff!$BO:CD,COLUMN(Staff!CD:CD)-COLUMN(Staff!$BO:$BO)+1,0) -> 36905.134 | R19: =VLOOKUP("Grand Total",Staff!$BO:CE,COLUMN(Staff!CE:CE)-COLUMN(Staff!$BO:$BO)+1,0) -> 37109.437 | S19: =VLOOKUP("Grand Total",Staff!$BO:CF,COLUMN(Staff!CF:CF)-COLUMN(Staff!$BO:$BO)+1,0) -> 36199.212 | T19: =VLOOKUP("Grand Total",Staff!$BO:CG,COLUMN(Staff!CG:CG)-COLUMN(Staff!$BO:$BO)+1,0) -> 36449.501 | U19: =VLOOKUP("Grand Total",Staff!$BO:CH,COLUMN(Staff!CH:CH)-COLUMN(Staff!$BO:$BO)+1,0) -> 37273.226 | V19: =VLOOKUP("Grand Total",Staff!$BO:CI,COLUMN(Staff!CI:CI)-COLUMN(Staff!$BO:$BO)+1,0) -> 38596.706 | W19: =VLOOKUP("Grand Total",Staff!$BO:CJ,COLUMN(Staff!CJ:CJ)-COLUMN(Staff!$BO:$BO)+1,0) -> 39843.635 | X19: =VLOOKUP("Grand Total",Staff!$BO:CK,COLUMN(Staff!CK:CK)-COLUMN(Staff!$BO:$BO)+1,0) -> 41507.833 | Y19: =VLOOKUP("Grand Total",Staff!$BO:CL,COLUMN(Staff!CL:CL)-COLUMN(Staff!$BO:$BO)+1,0) -> 42507.159 | Z19: =VLOOKUP("Grand Total",Staff!$BO:CM,COLUMN(Staff!CM:CM)-COLUMN(Staff!$BO:$BO)+1,0) -> 44332.786 | AA19: =VLOOKUP("Grand Total",Staff!$BO:CN,COLUMN(Staff!CN:CN)-COLUMN(Staff!$BO:$BO)+1,0) -> 44739.37 | AB19: =VLOOKUP("Grand Total",Staff!$BO:CO,COLUMN(Staff!CO:CO)-COLUMN(Staff!$BO:$BO)+1,0) -> 40984.531 | AC19: =VLOOKUP("Grand Total",Staff!$BO:CP,COLUMN(Staff!CP:CP)-COLUMN(Staff!$BO:$BO)+1,0) -> 44036.274 | AD19: =VLOOKUP("Grand Total",Staff!$BO:CQ,COLUMN(Staff!CQ:CQ)-COLUMN(Staff!$BO:$BO)+1,0) -> 45381.581 | AE19: =VLOOKUP("Grand Total",Staff!$BO:CR,COLUMN(Staff!CR:CR)-COLUMN(Staff!$BO:$BO)+1,0) -> 45212.955
B20: Total Staff (3) | C20: =SUM(C18:C19) -> 86705.646 | D20: =SUM(D18:D19) -> 89238.896 | E20: 91154.87 | F20: 92397.108 | G20: 94507.793 | H20: 95717.869 | I20: 98644.4 | J20: 99862.754 | K20: 99565.335 | L20: 100678.098 | M20: 101378.854 | N20: 101943.866 | O20: 102824.24 | P20: 103572.863 | Q20: 101666.79 | R20: =SUM(R18:R19) -> 102179.748 | S20: =SUM(S18:S19) -> 100273.636 | T20: 101275.315 | U20: 103694.655 | V20: 107166.982 | W20: 110699.588 | X20: 114725.389 | Y20: 117437.963 | Z20: 121422.209 | AA20: 122285.025 | AB20: 118395.455 | AC20: 123404.367 | AD20: 124662.35 | AE20: =SUM(AE18:AE19) -> 123536.766
B22: FTE Enrollment per Staff
B23: =+B16 -> Certificated Administrative Staff (3) | C23: =+C$10/C16 -> 258.2880591 | D23: 257.953897 | E23: 256.6612264 | F23: 257.0400943 | G23: 253.9390709 | H23: 252.6511997 | I23: 247.9137491 | J23: 245.0399189 | K23: 246.7017781 | L23: 245.9533509 | M23: 242.8071358 | N23: 244.6523098 | O23: =+O$10/O16 -> 241.4246597 | P23: =IFERROR(+P$10/P16,0) -> 242.881923 | Q23: 253.2290925 | R23: 254.0790137 | S23: 256.7948693 | T23: 252.3759993 | U23: 248.6994204 | V23: 238.4118827 | W23: =IFERROR(+W$10/W16,0) -> 231.8964515 | X23: =IFERROR(+X$10/X16,0) -> 225.0842381 | Y23: 221.9856 | Z23: 217.483101 | AA23: =IFERROR(+AA$10/AA16,0) -> 221.9227073 | AB23: 211.4467097 | AC23: =IFERROR(+AC$10/AC16,0) -> 202.4084271 | AD23: 200.1011979 | AE23: =IFERROR(+AE$10/AE16,0) -> 212.3146984
B24: =+B17 -> Certificated Instructional Staff (3) | C24: =+C$10/C17 -> 17.22307667 | D24: =+D$10/D17 -> 17.12748791 | E24: =+E$10/E17 -> 17.07399743 | F24: 17.01703819 | G24: 16.75907995 | H24: 16.61799211 | I24: =+I$10/I17 -> 16.16107772 | J24: 16.02414549 | K24: =+K$10/K17 -> 16.1262274 | L24: =+L$10/L17 -> 16.05075992 | M24: =+M$10/M17 -> 16.01302631 | N24: =+N$10/N17 -> 15.92061469 | O24: =+O$10/O17 -> 15.85225048 | P24: 15.802068 | Q24: 16.22236007 | R24: 16.20949888 | S24: 16.57204602 | T24: 16.46652098 | U24: 16.36287913 | V24: 16.05693245 | W24: =IFERROR(+W$10/W17,0) -> 15.92467225 | X24: =IFERROR(+X$10/X17,0) -> 15.783277 | Y24: 15.58069416 | Z24: 15.18068147 | AA24: =IFERROR(+AA$10/AA17,0) -> 15.20085092 | AB24: 14.68636609 | AC24: =IFERROR(+AC$10/AC17,0) -> 14.30563426 | AD24: 14.42674227 | AE24: =IFERROR(+AE$10/AE17,0) -> 14.63258948
B25: Total Certificated Staff (3) | C25: =+C$10/SUM(C18) -> 16.14640741 | D25: =+D$10/SUM(D18) -> 16.06107317 | E25: 16.00902163 | F25: 15.9603987 | G25: 15.72151556 | H25: 15.59241001 | I25: 15.17203822 | J25: 15.0405814 | K25: 15.13677724 | L25: 15.06746659 | M25: 15.02231133 | N25: 14.94788902 | O25: 14.87550583 | P25: 14.83677691 | Q25: 15.24569075 | R25: =IFERROR(+R$10/R18,0) -> 15.23739744 | S25: =IFERROR(+S$10/S18,0) -> 15.56741564 | T25: 15.45795167 | U25: 15.35276259 | V25: 15.04374315 | W25: 14.90137293 | X25: 14.74904939 | Y25: 14.55884031 | Z25: 14.19018313 | AA25: 14.22639747 | AB25: 13.73255007 | AC25: 13.36129696 | AD25: 13.45656145 | AE25: =IFERROR(+AE$10/AE18,0) -> 13.68914276
B26: =+B19 -> Classified Staff (3) | C26: =+C$10/C19 -> 29.43696142 | D26: =+D$10/D19 -> 29.07081563 | E26: 28.64905801 | F26: 28.56715334 | G26: 27.72829794 | H26: 27.33751562 | I26: =+I$10/I19 -> 26.82287883 | J26: 26.50104976 | K26: =+K$10/K19 -> 26.67864789 | L26: 26.3773567 | M26: 26.4200931 | N26: =+N$10/N19 -> 26.36905206 | O26: =+O$10/O19 -> 26.1241111 | P26: =IFERROR(+P$10/P19,0) -> 26.12778804 | Q26: 26.75335578 | R26: 26.71833016 | S26: =IFERROR(+S$10/S19,0) -> 27.55510783 | T26: 27.49212671 | U26: 27.35884546 | V26: 26.7264678 | W26: =IFERROR(+W$10/W19,0) -> 26.49986579 | X26: =IFERROR(+X$10/X19,0) -> 26.01651958 | Y26: 25.66404426 | Z26: 24.67503463 | AA26: =IFERROR(+AA$10/AA19,0) -> 24.65826653 | AB26: 25.93782005 | AC26: =IFERROR(+AC$10/AC19,0) -> 24.08152561 | AD26: 23.50835992 | AE26: =IFERROR(+AE$10/AE19,0) -> 23.71412862
B27: Total Staff | C27: =+C$10/C20 -> 10.42707426 | D27: 10.34542337 | E27: 10.27010998 | F27: 10.23957384 | G27: 10.03297442 | H27: 9.929151891 | I27: =+I$10/I20 -> 9.690642855 | J27: 9.594981829 | K27: 9.657411086 | L27: 9.589616006 | M27: 9.576926565 | N27: =+N$10/N20 -> 9.539952703 | O27: =+O$10/O20 -> 9.478365802 | P27: 9.463109463 | Q27: 9.711491629 | R27: 9.703509838 | S27: 9.947511926 | T27: 9.89455624 | U27: 9.834185089 | V27: 9.62566642 | W27: =IFERROR(+W$10/W20,0) -> 9.53798473 | X27: =IFERROR(+X$10/X20,0) -> 9.41281925 | Y27: 9.289207528 | Z27: 9.00916759 | AA27: =IFERROR(+AA$10/AA20,0) -> 9.021507826 | AB27: 8.978802354 | AC27: =IFERROR(+AC$10/AC20,0) -> 8.59338033 | AD27: 8.557888889 | AE27: =IFERROR(+AE$10/AE20,0) -> 8.679082873
B29: Staff per Thousand FTE Enrollment
B30: =+B16 -> Certificated Administrative Staff (3) | C30: =+C16/C$10*1000 -> 3.871646267 | D30: 3.876661727 | E30: 3.896186479 | F30: 3.89044364 | G30: 3.937952504 | H30: 3.958025931 | I30: 4.033660916 | J30: 4.080967724 | K30: 4.053477068 | L30: 4.065811651 | M30: 4.118495103 | N30: 4.087433308 | O30: =+O16/O$10*1000 -> 4.142078947 | P30: 4.117226955 | Q30: 3.948993341 | R30: =IFERROR(+R16/R$10*1000,0) -> 3.935783541 | S30: 3.894158799 | T30: 3.962341914 | U30: 4.020918097 | V30: 4.194421808 | W30: 4.312269521 | X30: =IFERROR(+X16/X$10*1000,0) -> 4.442781105 | Y30: 4.504796707 | Z30: 4.598058403 | AA30: =IFERROR(+AA16/AA$10*1000,0) -> 4.506073362 | AB30: 4.729324006 | AC30: =IFERROR(+AC16/AC$10*1000,0) -> 4.940505761 | AD30: 4.997471333 | AE30: =IFERROR(+AE16/AE$10*1000,0) -> 4.709989499
B31: =+B17 -> Certificated Instructional Staff (3) | C31: =+C17/C$10*1000 -> 58.06163552 | D31: =+D17/D$10*1000 -> 58.38567836 | E31: =+E17/E$10*1000 -> 58.56859264 | F31: 58.76463277 | G31: 59.6691467 | H31: 60.17574167 | I31: =+I17/I$10*1000 -> 61.87706151 | J31: 62.4058238 | K31: =+K17/K$10*1000 -> 62.01078377 | L31: =+L17/L$10*1000 -> 62.30234614 | M31: =+M17/M$10*1000 -> 62.44915737 | N31: =+N17/N$10*1000 -> 62.81164513 | O31: 63.0825258 | P31: 63.28285639 | Q31: 61.6433118 | R31: 61.69222178 | S31: 60.34257923 | T31: 60.72928225 | U31: 61.11393919 | V31: 62.27839615 | W31: 62.79564092 | X31: =IFERROR(+X17/X$10*1000,0) -> 63.35819869 | Y31: 64.18199279 | Z31: 65.8731956 | AA31: =IFERROR(+AA17/AA$10*1000,0) -> 65.78579091 | AB31: 68.09036314 | AC31: =IFERROR(+AC17/AC$10*1000,0) -> 69.90252802 | AD31: 69.31571808 | AE31: =IFERROR(+AE17/AE$10*1000,0) -> 68.34060379
B32: =+B25 -> Total Certificated Staff (3) | C32: =SUM(C18)/C$10*1000 -> 61.93328178 | D32: =SUM(D18)/D$10*1000 -> 62.26234008 | E32: 62.46477912 | F32: 62.65507641 | G32: 63.60709921 | H32: 64.1337676 | I32: 65.91072243 | J32: 66.48679152 | K32: 66.06426084 | L32: 66.36815779 | M32: 66.56765247 | N32: 66.89907844 | O32: 67.22460475 | P32: 67.40008334 | Q32: 65.59230515 | R32: 65.62800532 | S32: 64.23673803 | T32: 64.69162416 | U32: 65.13485729 | V32: 66.47281796 | W32: 67.10791044 | X32: 67.80097979 | Y32: 68.6867895 | Z32: 70.47125401 | AA32: 70.29186428 | AB32: 72.81968715 | AC32: 74.84303378 | AD32: 74.31318941 | AE32: =SUM(AE18)/AE$10*1000 -> 73.05059329
B33: =+B19 -> Classified Staff (3) | C33: =+C19/C$10*1000 -> 33.97089753 | D33: =+D19/D$10*1000 -> 34.39875966 | E33: 34.90516162 | F33: 35.00523794 | G33: 36.0642403 | H33: 36.57976876 | I33: =+I19/I$10*1000 -> 37.28160599 | J33: 37.73435426 | K33: =+K19/K$10*1000 -> 37.48315898 | L33: 37.91130444 | M33: 37.84998018 | N33: =+N19/N$10*1000 -> 37.92324418 | O33: 38.2788144 | P33: 38.27342745 | Q33: =+Q19/Q$10*1000 -> 37.37848845 | R33: =IFERROR(+R19/R$10*1000,0) -> 37.42748869 | S33: 36.29091224 | T33: 36.37405031 | U33: =IFERROR(+U19/U$10*1000,0) -> 36.55124999 | V33: 37.41609283 | W33: 37.73604017 | X33: =IFERROR(+X19/X$10*1000,0) -> 38.43711673 | Y33: 38.96502008 | Z33: 40.52679215 | AA33: =IFERROR(+AA19/AA$10*1000,0) -> 40.55435116 | AB33: 38.55374114 | AC33: =IFERROR(+AC19/AC$10*1000,0) -> 41.52560831 | AD33: 42.53805894 | AE33: =IFERROR(+AE19/AE$10*1000,0) -> 42.16895405
B34: Total Staff | C34: =+C20/C$10*1000 -> 95.90417931 | D34: 96.66109974 | E34: 97.36994074 | F34: 97.66031434 | G34: 99.6713395 | H34: 100.7135364 | I34: =+I20/I$10*1000 -> 103.1923284 | J34: 104.2211458 | K34: 103.5474198 | L34: 104.2794622 | M34: 104.4176327 | N34: 104.8223226 | O34: 105.5034191 | P34: =+P20*1000/P$10 -> 105.6735108 | Q34: =+Q20*1000/Q$10 -> 102.9707936 | R34: 103.055494 | S34: 100.5276503 | T34: 101.0656745 | U34: 101.6861073 | V34: 103.8889108 | W34: 104.8439506 | X34: =IFERROR(+X20/X$10*1000,0) -> 106.2380965 | Y34: 107.6518096 | Z34: 110.9980462 | AA34: =IFERROR(+AA20/AA$10*1000,0) -> 110.8462154 | AB34: 111.3734283 | AC34: =IFERROR(+AC20/AC$10*1000,0) -> 116.3686421 | AD34: 116.8512484 | AE34: =IFERROR(+AE20/AE$10*1000,0) -> 115.2195473
B36: =+Report!B36 -> Total General Fund Revenues | C36: =VLOOKUP("Grand Total",Revs!$A:B,COLUMN(Revs!B:B)-COLUMN(Revs!$A:$A)+1,0) -> 5415751774 | D36: =VLOOKUP("Grand Total",Revs!$A:C,COLUMN(Revs!C:C)-COLUMN(Revs!$A:$A)+1,0) -> 5636554564 | E36: =VLOOKUP("Grand Total",Revs!$A:D,COLUMN(Revs!D:D)-COLUMN(Revs!$A:$A)+1,0) -> 5873014096 | F36: =VLOOKUP("Grand Total",Revs!$A:E,COLUMN(Revs!E:E)-COLUMN(Revs!$A:$A)+1,0) -> 6062443984 | G36: =VLOOKUP("Grand Total",Revs!$A:F,COLUMN(Revs!F:F)-COLUMN(Revs!$A:$A)+1,0) -> 6361132255 | H36: =VLOOKUP("Grand Total",Revs!$A:G,COLUMN(Revs!G:G)-COLUMN(Revs!$A:$A)+1,0) -> 6739204069 | I36: =VLOOKUP("Grand Total",Revs!$A:H,COLUMN(Revs!H:H)-COLUMN(Revs!$A:$A)+1,0) -> 7081049150 | J36: =VLOOKUP("Grand Total",Revs!$A:I,COLUMN(Revs!I:I)-COLUMN(Revs!$A:$A)+1,0) -> 7306749887 | K36: =VLOOKUP("Grand Total",Revs!$A:J,COLUMN(Revs!J:J)-COLUMN(Revs!$A:$A)+1,0) -> 7477686062 | L36: =VLOOKUP("Grand Total",Revs!$A:K,COLUMN(Revs!K:K)-COLUMN(Revs!$A:$A)+1,0) -> 7744513319 | M36: =VLOOKUP("Grand Total",Revs!$A:L,COLUMN(Revs!L:L)-COLUMN(Revs!$A:$A)+1,0) -> 8139545534 | N36: =VLOOKUP("Grand Total",Revs!$A:M,COLUMN(Revs!M:M)-COLUMN(Revs!$A:$A)+1,0) -> 8653049612 | O36: =VLOOKUP("Grand Total",Revs!$A:N,COLUMN(Revs!N:N)-COLUMN(Revs!$A:$A)+1,0) -> 9255294942 | P36: =VLOOKUP("Grand Total",Revs!$A:O,COLUMN(Revs!O:O)-COLUMN(Revs!$A:$A)+1,0) -> 9892583836 | Q36: =VLOOKUP("Grand Total",Revs!$A:P,COLUMN(Revs!P:P)-COLUMN(Revs!$A:$A)+1,0) -> 9874105866 | R36: =VLOOKUP("Grand Total",Revs!$A:Q,COLUMN(Revs!Q:Q)-COLUMN(Revs!$A:$A)+1,0) -> 9927789037 | S36: =VLOOKUP("Grand Total",Revs!$A:R,COLUMN(Revs!R:R)-COLUMN(Revs!$A:$A)+1,0) -> 9966998551 | T36: =VLOOKUP("Grand Total",Revs!$A:S,COLUMN(Revs!S:S)-COLUMN(Revs!$A:$A)+1,0) -> 1.010761707e+10 | U36: =VLOOKUP("Grand Total",Revs!$A:T,COLUMN(Revs!T:T)-COLUMN(Revs!$A:$A)+1,0) -> 1.08612884e+10 | V36: =VLOOKUP("Grand Total",Revs!$A:U,COLUMN(Revs!U:U)-COLUMN(Revs!$A:$A)+1,0) -> 1.149621346e+10 | W36: =VLOOKUP("Grand Total",Revs!$A:V,COLUMN(Revs!V:V)-COLUMN(Revs!$A:$A)+1,0) -> 1.263408587e+10 | X36: =VLOOKUP("Grand Total",Revs!$A:W,COLUMN(Revs!W:W)-COLUMN(Revs!$A:$A)+1,0) -> 1.324870087e+10 | Y36: =VLOOKUP("Grand Total",Revs!$A:X,COLUMN(Revs!X:X)-COLUMN(Revs!$A:$A)+1,0) -> 1.442786659e+10 | Z36: =VLOOKUP("Grand Total",Revs!$A:Y,COLUMN(Revs!Y:Y)-COLUMN(Revs!$A:$A)+1,0) -> 1.639591146e+10 | AA36: =VLOOKUP("Grand Total",Revs!$A:Z,COLUMN(Revs!Z:Z)-COLUMN(Revs!$A:$A)+1,0) -> 1.688703185e+10 | AB36: =VLOOKUP("Grand Total",Revs!$A:AA,COLUMN(Revs!AA:AA)-COLUMN(Revs!$A:$A)+1,0) -> 1.714376067e+10 | AC36: =VLOOKUP("Grand Total",Revs!$A:AB,COLUMN(Revs!AB:AB)-COLUMN(Revs!$A:$A)+1,0) -> 1.847874101e+10 | AD36: =VLOOKUP("Grand Total",Revs!$A:AC,COLUMN(Revs!AC:AC)-COLUMN(Revs!$A:$A)+1,0) -> 1.958042316e+10 | AE36: =VLOOKUP("Grand Total",Revs!$A:AD,COLUMN(Revs!AD:AD)-COLUMN(Revs!$A:$A)+1,0) -> 20173863140
B37: =+Report!B37 -> Total State General Fund Revenues (4) | C37: =VLOOKUP("Grand Total",Revs!$AI:AJ,COLUMN(Revs!AJ:AJ)-COLUMN(Revs!$AI:$AI)+1,0) -> 4093863428 | D37: =VLOOKUP("Grand Total",Revs!$AI:AK,COLUMN(Revs!AK:AK)-COLUMN(Revs!$AI:$AI)+1,0) -> 4218879310 | E37: =VLOOKUP("Grand Total",Revs!$AI:AL,COLUMN(Revs!AL:AL)-COLUMN(Revs!$AI:$AI)+1,0) -> 4369685439 | F37: =VLOOKUP("Grand Total",Revs!$AI:AM,COLUMN(Revs!AM:AM)-COLUMN(Revs!$AI:$AI)+1,0) -> 4477051946 | G37: =VLOOKUP("Grand Total",Revs!$AI:AN,COLUMN(Revs!AN:AN)-COLUMN(Revs!$AI:$AI)+1,0) -> 4616900543 | H37: =VLOOKUP("Grand Total",Revs!$AI:AO,COLUMN(Revs!AO:AO)-COLUMN(Revs!$AI:$AI)+1,0) -> 4843231642 | I37: =VLOOKUP("Grand Total",Revs!$AI:AP,COLUMN(Revs!AP:AP)-COLUMN(Revs!$AI:$AI)+1,0) -> 5042777649 | J37: =VLOOKUP("Grand Total",Revs!$AI:AQ,COLUMN(Revs!AQ:AQ)-COLUMN(Revs!$AI:$AI)+1,0) -> 5130125657 | K37: =VLOOKUP("Grand Total",Revs!$AI:AR,COLUMN(Revs!AR:AR)-COLUMN(Revs!$AI:$AI)+1,0) -> 5213021458 | L37: =VLOOKUP("Grand Total",Revs!$AI:AS,COLUMN(Revs!AS:AS)-COLUMN(Revs!$AI:$AI)+1,0) -> 5364756460 | M37: =VLOOKUP("Grand Total",Revs!$AI:AT,COLUMN(Revs!AT:AT)-COLUMN(Revs!$AI:$AI)+1,0) -> 5660738359 | N37: =VLOOKUP("Grand Total",Revs!$AI:AU,COLUMN(Revs!AU:AU)-COLUMN(Revs!$AI:$AI)+1,0) -> 6067266144 | O37: =VLOOKUP("Grand Total",Revs!$AI:AV,COLUMN(Revs!AV:AV)-COLUMN(Revs!$AI:$AI)+1,0) -> 6569100023 | P37: =VLOOKUP("Grand Total",Revs!$AI:AW,COLUMN(Revs!AW:AW)-COLUMN(Revs!$AI:$AI)+1,0) -> 6623811961 | Q37: =VLOOKUP("Grand Total",Revs!$AI:AX,COLUMN(Revs!AX:AX)-COLUMN(Revs!$AI:$AI)+1,0) -> 6478915945 | R37: =VLOOKUP("Grand Total",Revs!$AI:AY,COLUMN(Revs!AY:AY)-COLUMN(Revs!$AI:$AI)+1,0) -> 6416013158 | S37: =VLOOKUP("Grand Total",Revs!$AI:AZ,COLUMN(Revs!AZ:AZ)-COLUMN(Revs!$AI:$AI)+1,0) -> 6622225740 | T37: =VLOOKUP("Grand Total",Revs!$AI:BA,COLUMN(Revs!BA:BA)-COLUMN(Revs!$AI:$AI)+1,0) -> 6708047678 | U37: =VLOOKUP("Grand Total",Revs!$AI:BB,COLUMN(Revs!BB:BB)-COLUMN(Revs!$AI:$AI)+1,0) -> 7409839117 | V37: =VLOOKUP("Grand Total",Revs!$AI:BC,COLUMN(Revs!BC:BC)-COLUMN(Revs!$AI:$AI)+1,0) -> 7888852301 | W37: =VLOOKUP("Grand Total",Revs!$AI:BD,COLUMN(Revs!BD:BD)-COLUMN(Revs!$AI:$AI)+1,0) -> 8861240477 | X37: =VLOOKUP("Grand Total",Revs!$AI:BE,COLUMN(Revs!BE:BE)-COLUMN(Revs!$AI:$AI)+1,0) -> 9375957827 | Y37: =VLOOKUP("Grand Total",Revs!$AI:BF,COLUMN(Revs!BF:BF)-COLUMN(Revs!$AI:$AI)+1,0) -> 1.041204638e+10 | Z37: =VLOOKUP("Grand Total",Revs!$AI:BG,COLUMN(Revs!BG:BG)-COLUMN(Revs!$AI:$AI)+1,0) -> 1.285836188e+10 | AA37: =VLOOKUP("Grand Total",Revs!$AI:BH,COLUMN(Revs!BH:BH)-COLUMN(Revs!$AI:$AI)+1,0) -> 1.354418819e+10 | AB37: =VLOOKUP("Grand Total",Revs!$AI:BI,COLUMN(Revs!BI:BI)-COLUMN(Revs!$AI:$AI)+1,0) -> 1.313324915e+10 | AC37: =VLOOKUP("Grand Total",Revs!$AI:BJ,COLUMN(Revs!BJ:BJ)-COLUMN(Revs!$AI:$AI)+1,0) -> 1.319071342e+10 | AD37: =VLOOKUP("Grand Total",Revs!$AI:BK,COLUMN(Revs!BK:BK)-COLUMN(Revs!$AI:$AI)+1,0) -> 1.432474568e+10 | AE37: =VLOOKUP("Grand Total",Revs!$AI:BL,COLUMN(Revs!BL:BL)-COLUMN(Revs!$AI:$AI)+1,0) -> 14810728259
B38: =" "&+Report!B38 -> State Special Education Revenues (5) | C38: =VLOOKUP("Grand Total",Revs!$BQ:BR,COLUMN(Revs!BR:BR)-COLUMN(Revs!$BQ:$BQ)+1,0) -> 359563401.4 | D38: =VLOOKUP("Grand Total",Revs!$BQ:BS,COLUMN(Revs!BS:BS)-COLUMN(Revs!$BQ:$BQ)+1,0) -> 363078900.4 | E38: =VLOOKUP("Grand Total",Revs!$BQ:BT,COLUMN(Revs!BT:BT)-COLUMN(Revs!$BQ:$BQ)+1,0) -> 382035444.9 | F38: =VLOOKUP("Grand Total",Revs!$BQ:BU,COLUMN(Revs!BU:BU)-COLUMN(Revs!$BQ:$BQ)+1,0) -> 390291432.5 | G38: =VLOOKUP("Grand Total",Revs!$BQ:BV,COLUMN(Revs!BV:BV)-COLUMN(Revs!$BQ:$BQ)+1,0) -> 410756327.3 | H38: =VLOOKUP("Grand Total",Revs!$BQ:BW,COLUMN(Revs!BW:BW)-COLUMN(Revs!$BQ:$BQ)+1,0) -> 427634758.8 | I38: =VLOOKUP("Grand Total",Revs!$BQ:BX,COLUMN(Revs!BX:BX)-COLUMN(Revs!$BQ:$BQ)+1,0) -> 436312652.4 | J38: =VLOOKUP("Grand Total",Revs!$BQ:BY,COLUMN(Revs!BY:BY)-COLUMN(Revs!$BQ:$BQ)+1,0) -> 438791014.6 | K38: =VLOOKUP("Grand Total",Revs!$BQ:BZ,COLUMN(Revs!BZ:BZ)-COLUMN(Revs!$BQ:$BQ)+1,0) -> 442573174 | L38: =VLOOKUP("Grand Total",Revs!$BQ:CA,COLUMN(Revs!CA:CA)-COLUMN(Revs!$BQ:$BQ)+1,0) -> 446420212.4 | M38: =VLOOKUP("Grand Total",Revs!$BQ:CB,COLUMN(Revs!CB:CB)-COLUMN(Revs!$BQ:$BQ)+1,0) -> 480501408.3 | N38: =VLOOKUP("Grand Total",Revs!$BQ:CC,COLUMN(Revs!CC:CC)-COLUMN(Revs!$BQ:$BQ)+1,0) -> 510640085.5 | O38: =VLOOKUP("Grand Total",Revs!$BQ:CD,COLUMN(Revs!CD:CD)-COLUMN(Revs!$BQ:$BQ)+1,0) -> 574422441 | P38: =VLOOKUP("Grand Total",Revs!$BQ:CE,COLUMN(Revs!CE:CE)-COLUMN(Revs!$BQ:$BQ)+1,0) -> 638357386.7 | Q38: =VLOOKUP("Grand Total",Revs!$BQ:CF,COLUMN(Revs!CF:CF)-COLUMN(Revs!$BQ:$BQ)+1,0) -> 621550215.1 | R38: =VLOOKUP("Grand Total",Revs!$BQ:CG,COLUMN(Revs!CG:CG)-COLUMN(Revs!$BQ:$BQ)+1,0) -> 637202176.4 | S38: =VLOOKUP("Grand Total",Revs!$BQ:CH,COLUMN(Revs!CH:CH)-COLUMN(Revs!$BQ:$BQ)+1,0) -> 650008139.1 | T38: =VLOOKUP("Grand Total",Revs!$BQ:CI,COLUMN(Revs!CI:CI)-COLUMN(Revs!$BQ:$BQ)+1,0) -> 667624348.4 | U38: =VLOOKUP("Grand Total",Revs!$BQ:CJ,COLUMN(Revs!CJ:CJ)-COLUMN(Revs!$BQ:$BQ)+1,0) -> 693646881.8 | V38: =VLOOKUP("Grand Total",Revs!$BQ:CK,COLUMN(Revs!CK:CK)-COLUMN(Revs!$BQ:$BQ)+1,0) -> 726607113.1 | W38: =VLOOKUP("Grand Total",Revs!$BQ:CL,COLUMN(Revs!CL:CL)-COLUMN(Revs!$BQ:$BQ)+1,0) -> 820668017.3 | X38: =VLOOKUP("Grand Total",Revs!$BQ:CM,COLUMN(Revs!CM:CM)-COLUMN(Revs!$BQ:$BQ)+1,0) -> 877241665 | Y38: =VLOOKUP("Grand Total",Revs!$BQ:CN,COLUMN(Revs!CN:CN)-COLUMN(Revs!$BQ:$BQ)+1,0) -> 987927419.5 | Z38: =VLOOKUP("Grand Total",Revs!$BQ:CO,COLUMN(Revs!CO:CO)-COLUMN(Revs!$BQ:$BQ)+1,0) -> 1305139321 | AA38: =VLOOKUP("Grand Total",Revs!$BQ:CP,COLUMN(Revs!CP:CP)-COLUMN(Revs!$BQ:$BQ)+1,0) -> 1456578890 | AB38: =VLOOKUP("Grand Total",Revs!$BQ:CQ,COLUMN(Revs!CQ:CQ)-COLUMN(Revs!$BQ:$BQ)+1,0) -> 1413531897 | AC38: =VLOOKUP("Grand Total",Revs!$BQ:CR,COLUMN(Revs!CR:CR)-COLUMN(Revs!$BQ:$BQ)+1,0) -> 1452451761 | AD38: =VLOOKUP("Grand Total",Revs!$BQ:CS,COLUMN(Revs!CS:CS)-COLUMN(Revs!$BQ:$BQ)+1,0) -> 1630446354 | AE38: =VLOOKUP("Grand Total",Revs!$BQ:CT,COLUMN(Revs!CT:CT)-COLUMN(Revs!$BQ:$BQ)+1,0) -> 1838459683
B39: State Student Achievement Revenues (5) | C39: =IFERROR(VLOOKUP("Grand Total",Revs!CR:$CY,COLUMN(Revs!#REF!),FALSE),0) -> 0 | D39: =IFERROR(VLOOKUP("Grand Total",Revs!CS:$CY,COLUMN(Revs!#REF!),FALSE),0) -> 0 | E39: =IFERROR(VLOOKUP("Grand Total",Revs!CT:$CY,COLUMN(Revs!#REF!),FALSE),0) -> 0 | F39: =IFERROR(VLOOKUP("Grand Total",Revs!CU:$CY,COLUMN(Revs!#REF!),FALSE),0) -> 0 | G39: =IFERROR(VLOOKUP("Grand Total",Revs!CX:$CY,COLUMN(Revs!#REF!),FALSE),0) -> 0 | H39: =IFERROR(VLOOKUP("Grand Total",Revs!$CY:CY,COLUMN(Revs!#REF!),FALSE),0) -> 0 | I39: =IFERROR(VLOOKUP("Grand Total",Revs!$CY:CZ,COLUMN(Revs!A:A),FALSE),0) -> 305 | J39: =IFERROR(VLOOKUP("Grand Total",Revs!$CY:DA,COLUMN(Revs!B:B),FALSE),0) -> 164058204.5 | K39: =IFERROR(VLOOKUP("Grand Total",Revs!$CY:DB,COLUMN(Revs!C:C),FALSE),0) -> 195336804.5 | L39: =IFERROR(VLOOKUP("Grand Total",Revs!$CY:DC,COLUMN(Revs!D:D),FALSE),0) -> 214147211 | M39: =IFERROR(VLOOKUP("Grand Total",Revs!$CY:DD,COLUMN(Revs!E:E),FALSE),0) -> 243592858.5 | N39: =IFERROR(VLOOKUP("Grand Total",Revs!$CY:DE,COLUMN(Revs!F:F),FALSE),0) -> 290477634.8 | O39: =IFERROR(VLOOKUP("Grand Total",Revs!$CY:DF,COLUMN(Revs!G:G),FALSE),0) -> 362963563 | P39: =IFERROR(VLOOKUP("Grand Total",Revs!$CY:DG,COLUMN(Revs!H:H),FALSE),0) -> 435666403.9 | Q39: =IFERROR(VLOOKUP("Grand Total",Revs!$CY:DH,COLUMN(Revs!I:I),FALSE),0) -> 358320011.6 | R39: =IFERROR(VLOOKUP("Grand Total",Revs!$CY:DI,COLUMN(Revs!J:J),FALSE),0) -> 25557898.06 | S39: =IFERROR(VLOOKUP("Grand Total",Revs!$CY:DJ,COLUMN(Revs!K:K),FALSE),0) -> 1332672.58 | T39: =IFERROR(VLOOKUP("Grand Total",Revs!$CY:DK,COLUMN(Revs!L:L),FALSE),0) -> 20879.65 | U39: =IFERROR(VLOOKUP("Grand Total",Revs!$CY:DL,COLUMN(Revs!M:M),FALSE),0) -> 1545822.85 | V39: =IFERROR(VLOOKUP("Grand Total",Revs!$CY:DM,COLUMN(Revs!N:N),FALSE),0) -> 0 | W39: =IFERROR(VLOOKUP("Grand Total",Revs!$CY:DN,COLUMN(Revs!O:O),FALSE),0) -> 0 | X39: =IFERROR(VLOOKUP("Grand Total",Revs!$CY:DO,COLUMN(Revs!P:P),FALSE),0) -> 0 | Y39: =IFERROR(VLOOKUP("Grand Total",Revs!$CY:DP,COLUMN(Revs!Q:Q),FALSE),0) -> 0 | Z39: =IFERROR(VLOOKUP("Grand Total",Revs!$CY:DQ,COLUMN(Revs!R:R),FALSE),0) -> 0 | AA39: =IFERROR(VLOOKUP("Grand Total",Revs!$CY:DR,COLUMN(Revs!S:S),FALSE),0) -> 0 | AB39: =IFERROR(VLOOKUP("Grand Total",Revs!$CY:DS,COLUMN(Revs!T:T),FALSE),0) -> 0 | AC39: =IFERROR(VLOOKUP("Grand Total",Revs!$CY:DT,COLUMN(Revs!U:U),FALSE),0) -> 0 | AD39: =IFERROR(VLOOKUP("Grand Total",Revs!$CY:DU,COLUMN(Revs!V:V),FALSE),0) -> 0 | AE39: =IFERROR(VLOOKUP("Grand Total",Revs!$CY:DV,COLUMN(Revs!W:W),FALSE),0) -> 0
B40: Total Federal General Fund Revenues (6) | C40: =VLOOKUP("Grand Total",Revs!$DW:DX,COLUMN(Revs!DX:DX)-COLUMN(Revs!$DW:$DW)+1,0) -> 334397041.5 | D40: =VLOOKUP("Grand Total",Revs!$DW:DY,COLUMN(Revs!DY:DY)-COLUMN(Revs!$DW:$DW)+1,0) -> 356529921 | E40: =VLOOKUP("Grand Total",Revs!$DW:DZ,COLUMN(Revs!DZ:DZ)-COLUMN(Revs!$DW:$DW)+1,0) -> 400403372.3 | F40: =VLOOKUP("Grand Total",Revs!$DW:EA,COLUMN(Revs!EA:EA)-COLUMN(Revs!$DW:$DW)+1,0) -> 431712341.3 | G40: =VLOOKUP("Grand Total",Revs!$DW:EB,COLUMN(Revs!EB:EB)-COLUMN(Revs!$DW:$DW)+1,0) -> 490878026.5 | H40: =VLOOKUP("Grand Total",Revs!$DW:EC,COLUMN(Revs!EC:EC)-COLUMN(Revs!$DW:$DW)+1,0) -> 552810228.5 | I40: =VLOOKUP("Grand Total",Revs!$DW:ED,COLUMN(Revs!ED:ED)-COLUMN(Revs!$DW:$DW)+1,0) -> 625894245.2 | J40: =VLOOKUP("Grand Total",Revs!$DW:EE,COLUMN(Revs!EE:EE)-COLUMN(Revs!$DW:$DW)+1,0) -> 691336610.1 | K40: =VLOOKUP("Grand Total",Revs!$DW:EF,COLUMN(Revs!EF:EF)-COLUMN(Revs!$DW:$DW)+1,0) -> 732221783.8 | L40: =VLOOKUP("Grand Total",Revs!$DW:EG,COLUMN(Revs!EG:EG)-COLUMN(Revs!$DW:$DW)+1,0) -> 782704424.7 | M40: =VLOOKUP("Grand Total",Revs!$DW:EH,COLUMN(Revs!EH:EH)-COLUMN(Revs!$DW:$DW)+1,0) -> 791823166.4 | N40: =VLOOKUP("Grand Total",Revs!$DW:EI,COLUMN(Revs!EI:EI)-COLUMN(Revs!$DW:$DW)+1,0) -> 798393033.7 | O40: =VLOOKUP("Grand Total",Revs!$DW:EJ,COLUMN(Revs!EJ:EJ)-COLUMN(Revs!$DW:$DW)+1,0) -> 816646977.3 | P40: =VLOOKUP("Grand Total",Revs!$DW:EK,COLUMN(Revs!EK:EK)-COLUMN(Revs!$DW:$DW)+1,0) -> 1299511988 | Q40: =VLOOKUP("Grand Total",Revs!$DW:EL,COLUMN(Revs!EL:EL)-COLUMN(Revs!$DW:$DW)+1,0) -> 1307989638 | R40: =VLOOKUP("Grand Total",Revs!$DW:EM,COLUMN(Revs!EM:EM)-COLUMN(Revs!$DW:$DW)+1,0) -> 1267000825 | S40: =VLOOKUP("Grand Total",Revs!$DW:EN,COLUMN(Revs!EN:EN)-COLUMN(Revs!$DW:$DW)+1,0) -> 953518975.9 | T40: =VLOOKUP("Grand Total",Revs!$DW:EO,COLUMN(Revs!EO:EO)-COLUMN(Revs!$DW:$DW)+1,0) -> 905375076.4 | U40: =VLOOKUP("Grand Total",Revs!$DW:EP,COLUMN(Revs!EP:EP)-COLUMN(Revs!$DW:$DW)+1,0) -> 877864873.1 | V40: =VLOOKUP("Grand Total",Revs!$DW:EQ,COLUMN(Revs!EQ:EQ)-COLUMN(Revs!$DW:$DW)+1,0) -> 898652581.5 | W40: =VLOOKUP("Grand Total",Revs!$DW:ER,COLUMN(Revs!ER:ER)-COLUMN(Revs!$DW:$DW)+1,0) -> 938272833.5 | X40: =VLOOKUP("Grand Total",Revs!$DW:ES,COLUMN(Revs!ES:ES)-COLUMN(Revs!$DW:$DW)+1,0) -> 944026984.1 | Y40: =VLOOKUP("Grand Total",Revs!$DW:ET,COLUMN(Revs!ET:ET)-COLUMN(Revs!$DW:$DW)+1,0) -> 935632803.6 | Z40: =VLOOKUP("Grand Total",Revs!$DW:EU,COLUMN(Revs!EU:EU)-COLUMN(Revs!$DW:$DW)+1,0) -> 955892769.9 | AA40: =VLOOKUP("Grand Total",Revs!$DW:EV,COLUMN(Revs!EV:EV)-COLUMN(Revs!$DW:$DW)+1,0) -> 1056652684 | AB40: =VLOOKUP("Grand Total",Revs!$DW:EW,COLUMN(Revs!EW:EW)-COLUMN(Revs!$DW:$DW)+1,0) -> 1548756523 | AC40: =VLOOKUP("Grand Total",Revs!$DW:EX,COLUMN(Revs!EX:EX)-COLUMN(Revs!$DW:$DW)+1,0) -> 2528523646 | AD40: =VLOOKUP("Grand Total",Revs!$DW:EY,COLUMN(Revs!EY:EY)-COLUMN(Revs!$DW:$DW)+1,0) -> 2113586616 | AE40: =VLOOKUP("Grand Total",Revs!$DW:EZ,COLUMN(Revs!EZ:EZ)-COLUMN(Revs!$DW:$DW)+1,0) -> 1898330854
B41: =+Report!B41 -> Local Taxes (7) | C41: =VLOOKUP("Grand Total",Revs!$FE:FF,COLUMN(Revs!FF:FF)-COLUMN(Revs!$FE:$FE)+1,0) -> 774431276.9 | D41: =VLOOKUP("Grand Total",Revs!$FE:FG,COLUMN(Revs!FG:FG)-COLUMN(Revs!$FE:$FE)+1,0) -> 836806528.3 | E41: =VLOOKUP("Grand Total",Revs!$FE:FH,COLUMN(Revs!FH:FH)-COLUMN(Revs!$FE:$FE)+1,0) -> 847442051.7 | F41: =VLOOKUP("Grand Total",Revs!$FE:FI,COLUMN(Revs!FI:FI)-COLUMN(Revs!$FE:$FE)+1,0) -> 877385034 | G41: =VLOOKUP("Grand Total",Revs!$FE:FJ,COLUMN(Revs!FJ:FJ)-COLUMN(Revs!$FE:$FE)+1,0) -> 964449435.4 | H41: =VLOOKUP("Grand Total",Revs!$FE:FK,COLUMN(Revs!FK:FK)-COLUMN(Revs!$FE:$FE)+1,0) -> 1025677218 | I41: =VLOOKUP("Grand Total",Revs!$FE:FL,COLUMN(Revs!FL:FL)-COLUMN(Revs!$FE:$FE)+1,0) -> 1070739905 | J41: =VLOOKUP("Grand Total",Revs!$FE:FM,COLUMN(Revs!FM:FM)-COLUMN(Revs!$FE:$FE)+1,0) -> 1139243183 | K41: =VLOOKUP("Grand Total",Revs!$FE:FN,COLUMN(Revs!FN:FN)-COLUMN(Revs!$FE:$FE)+1,0) -> 1205036574 | L41: =VLOOKUP("Grand Total",Revs!$FE:FO,COLUMN(Revs!FO:FO)-COLUMN(Revs!$FE:$FE)+1,0) -> 1257831580 | M41: =VLOOKUP("Grand Total",Revs!$FE:FP,COLUMN(Revs!FP:FP)-COLUMN(Revs!$FE:$FE)+1,0) -> 1318862521 | N41: =VLOOKUP("Grand Total",Revs!$FE:FQ,COLUMN(Revs!FQ:FQ)-COLUMN(Revs!$FE:$FE)+1,0) -> 1391537755 | O41: =VLOOKUP("Grand Total",Revs!$FE:FR,COLUMN(Revs!FR:FR)-COLUMN(Revs!$FE:$FE)+1,0) -> 1466251285 | P41: =VLOOKUP("Grand Total",Revs!$FE:FS,COLUMN(Revs!FS:FS)-COLUMN(Revs!$FE:$FE)+1,0) -> 1561555378 | Q41: =VLOOKUP("Grand Total",Revs!$FE:FT,COLUMN(Revs!FT:FT)-COLUMN(Revs!$FE:$FE)+1,0) -> 1677463318 | R41: =VLOOKUP("Grand Total",Revs!$FE:FU,COLUMN(Revs!FU:FU)-COLUMN(Revs!$FE:$FE)+1,0) -> 1830976758 | S41: =VLOOKUP("Grand Total",Revs!$FE:FV,COLUMN(Revs!FV:FV)-COLUMN(Revs!$FE:$FE)+1,0) -> 1965819473 | T41: =VLOOKUP("Grand Total",Revs!$FE:FW,COLUMN(Revs!FW:FW)-COLUMN(Revs!$FE:$FE)+1,0) -> 2052171842 | U41: =VLOOKUP("Grand Total",Revs!$FE:FX,COLUMN(Revs!FX:FX)-COLUMN(Revs!$FE:$FE)+1,0) -> 2115905757 | V41: =VLOOKUP("Grand Total",Revs!$FE:FY,COLUMN(Revs!FY:FY)-COLUMN(Revs!$FE:$FE)+1,0) -> 2230458918 | W41: =VLOOKUP("Grand Total",Revs!$FE:FZ,COLUMN(Revs!FZ:FZ)-COLUMN(Revs!$FE:$FE)+1,0) -> 2337661287 | X41: =VLOOKUP("Grand Total",Revs!$FE:GA,COLUMN(Revs!GA:GA)-COLUMN(Revs!$FE:$FE)+1,0) -> 2426943938 | Y41: =VLOOKUP("Grand Total",Revs!$FE:GB,COLUMN(Revs!GB:GB)-COLUMN(Revs!$FE:$FE)+1,0) -> 2525166056 | Z41: =VLOOKUP("Grand Total",Revs!$FE:GC,COLUMN(Revs!GC:GC)-COLUMN(Revs!$FE:$FE)+1,0) -> 2014542805 | AA41: =VLOOKUP("Grand Total",Revs!$FE:GD,COLUMN(Revs!GD:GD)-COLUMN(Revs!$FE:$FE)+1,0) -> 1767415311 | AB41: =VLOOKUP("Grand Total",Revs!$FE:GE,COLUMN(Revs!GE:GE)-COLUMN(Revs!$FE:$FE)+1,0) -> 2073740755 | AC41: =VLOOKUP("Grand Total",Revs!$FE:GF,COLUMN(Revs!GF:GF)-COLUMN(Revs!$FE:$FE)+1,0) -> 2239404141 | AD41: =VLOOKUP("Grand Total",Revs!$FE:GG,COLUMN(Revs!GG:GG)-COLUMN(Revs!$FE:$FE)+1,0) -> 2409373959 | AE41: =VLOOKUP("Grand Total",Revs!$FE:GH,COLUMN(Revs!GH:GH)-COLUMN(Revs!$FE:$FE)+1,0) -> 2563352235
B42: =+Report!B42 -> Other Revenues (10) | C42: =VLOOKUP("Grand Total",Revs!$GM:GN,COLUMN(Revs!GN:GN)-COLUMN(Revs!$GM:$GM)+1,0) -> 213060027.7 | D42: =VLOOKUP("Grand Total",Revs!$GM:GO,COLUMN(Revs!GO:GO)-COLUMN(Revs!$GM:$GM)+1,0) -> 224338805.1 | E42: =VLOOKUP("Grand Total",Revs!$GM:GP,COLUMN(Revs!GP:GP)-COLUMN(Revs!$GM:$GM)+1,0) -> 255483232.6 | F42: =VLOOKUP("Grand Total",Revs!$GM:GQ,COLUMN(Revs!GQ:GQ)-COLUMN(Revs!$GM:$GM)+1,0) -> 276294663.2 | G42: =VLOOKUP("Grand Total",Revs!$GM:GR,COLUMN(Revs!GR:GR)-COLUMN(Revs!$GM:$GM)+1,0) -> 288904250.2 | H42: =VLOOKUP("Grand Total",Revs!$GM:GS,COLUMN(Revs!GS:GS)-COLUMN(Revs!$GM:$GM)+1,0) -> 317484980.5 | I42: =VLOOKUP("Grand Total",Revs!$GM:GT,COLUMN(Revs!GT:GT)-COLUMN(Revs!$GM:$GM)+1,0) -> 341637349.6 | J42: =VLOOKUP("Grand Total",Revs!$GM:GU,COLUMN(Revs!GU:GU)-COLUMN(Revs!$GM:$GM)+1,0) -> 346044437.1 | K42: =VLOOKUP("Grand Total",Revs!$GM:GV,COLUMN(Revs!GV:GV)-COLUMN(Revs!$GM:$GM)+1,0) -> 327406246.2 | L42: =VLOOKUP("Grand Total",Revs!$GM:GW,COLUMN(Revs!GW:GW)-COLUMN(Revs!$GM:$GM)+1,0) -> 339220854.6 | M42: =VLOOKUP("Grand Total",Revs!$GM:GX,COLUMN(Revs!GX:GX)-COLUMN(Revs!$GM:$GM)+1,0) -> 368121487.7 | N42: =VLOOKUP("Grand Total",Revs!$GM:GY,COLUMN(Revs!GY:GY)-COLUMN(Revs!$GM:$GM)+1,0) -> 395852678.9 | O42: =VLOOKUP("Grand Total",Revs!$GM:GZ,COLUMN(Revs!GZ:GZ)-COLUMN(Revs!$GM:$GM)+1,0) -> 403296657.2 | P42: =VLOOKUP("Grand Total",Revs!$GM:HA,COLUMN(Revs!HA:HA)-COLUMN(Revs!$GM:$GM)+1,0) -> 407704508.2 | Q42: =VLOOKUP("Grand Total",Revs!$GM:HB,COLUMN(Revs!HB:HB)-COLUMN(Revs!$GM:$GM)+1,0) -> 409736965 | R42: =VLOOKUP("Grand Total",Revs!$GM:HC,COLUMN(Revs!HC:HC)-COLUMN(Revs!$GM:$GM)+1,0) -> 413798296.1 | S42: =VLOOKUP("Grand Total",Revs!$GM:HD,COLUMN(Revs!HD:HD)-COLUMN(Revs!$GM:$GM)+1,0) -> 425434362.5 | T42: =VLOOKUP("Grand Total",Revs!$GM:HE,COLUMN(Revs!HE:HE)-COLUMN(Revs!$GM:$GM)+1,0) -> 442022477.6 | U42: =VLOOKUP("Grand Total",Revs!$GM:HF,COLUMN(Revs!HF:HF)-COLUMN(Revs!$GM:$GM)+1,0) -> 457678649.2 | V42: =VLOOKUP("Grand Total",Revs!$GM:HG,COLUMN(Revs!HG:HG)-COLUMN(Revs!$GM:$GM)+1,0) -> 478249658.5 | W42: =VLOOKUP("Grand Total",Revs!$GM:HH,COLUMN(Revs!HH:HH)-COLUMN(Revs!$GM:$GM)+1,0) -> 496911270.3 | X42: =VLOOKUP("Grand Total",Revs!$GM:HI,COLUMN(Revs!HI:HI)-COLUMN(Revs!$GM:$GM)+1,0) -> 501772119.4 | Y42: =VLOOKUP("Grand Total",Revs!$GM:HJ,COLUMN(Revs!HJ:HJ)-COLUMN(Revs!$GM:$GM)+1,0) -> 555021348.6 | Z42: =VLOOKUP("Grand Total",Revs!$GM:HK,COLUMN(Revs!HK:HK)-COLUMN(Revs!$GM:$GM)+1,0) -> 567114002.7 | AA42: =VLOOKUP("Grand Total",Revs!$GM:HL,COLUMN(Revs!HL:HL)-COLUMN(Revs!$GM:$GM)+1,0) -> 518775661.4 | AB42: =VLOOKUP("Grand Total",Revs!$GM:HM,COLUMN(Revs!HM:HM)-COLUMN(Revs!$GM:$GM)+1,0) -> 388014245.1 | AC42: =VLOOKUP("Grand Total",Revs!$GM:HN,COLUMN(Revs!HN:HN)-COLUMN(Revs!$GM:$GM)+1,0) -> 520099807.4 | AD42: =VLOOKUP("Grand Total",Revs!$GM:HO,COLUMN(Revs!HO:HO)-COLUMN(Revs!$GM:$GM)+1,0) -> 732716912.7 | AE42: =VLOOKUP("Grand Total",Revs!$GM:HP,COLUMN(Revs!HP:HP)-COLUMN(Revs!$GM:$GM)+1,0) -> 901451792
B44: =+Report!B44 -> Total General Fund Expenditures (8) | C44: =VLOOKUP("Grand Total",Exp!$A:B,COLUMN(Exp!B:B)-COLUMN(Exp!$A:$A)+1,0) -> 5364097265 | D44: =VLOOKUP("Grand Total",Exp!$A:C,COLUMN(Exp!C:C)-COLUMN(Exp!$A:$A)+1,0) -> 5574788130 | E44: =VLOOKUP("Grand Total",Exp!$A:D,COLUMN(Exp!D:D)-COLUMN(Exp!$A:$A)+1,0) -> 5856489735 | F44: =VLOOKUP("Grand Total",Exp!$A:E,COLUMN(Exp!E:E)-COLUMN(Exp!$A:$A)+1,0) -> 6037572562 | G44: =VLOOKUP("Grand Total",Exp!$A:F,COLUMN(Exp!F:F)-COLUMN(Exp!$A:$A)+1,0) -> 6332489613 | H44: =VLOOKUP("Grand Total",Exp!$A:G,COLUMN(Exp!G:G)-COLUMN(Exp!$A:$A)+1,0) -> 6695579338 | I44: =VLOOKUP("Grand Total",Exp!$A:H,COLUMN(Exp!H:H)-COLUMN(Exp!$A:$A)+1,0) -> 7006933746 | J44: =VLOOKUP("Grand Total",Exp!$A:I,COLUMN(Exp!I:I)-COLUMN(Exp!$A:$A)+1,0) -> 7232688322 | K44: =VLOOKUP("Grand Total",Exp!$A:J,COLUMN(Exp!J:J)-COLUMN(Exp!$A:$A)+1,0) -> 7418903273 | L44: =VLOOKUP("Grand Total",Exp!$A:K,COLUMN(Exp!K:K)-COLUMN(Exp!$A:$A)+1,0) -> 7724204969 | M44: =VLOOKUP("Grand Total",Exp!$A:L,COLUMN(Exp!L:L)-COLUMN(Exp!$A:$A)+1,0) -> 8081806223 | N44: =VLOOKUP("Grand Total",Exp!$A:M,COLUMN(Exp!M:M)-COLUMN(Exp!$A:$A)+1,0) -> 8593835932 | O44: =VLOOKUP("Grand Total",Exp!$A:N,COLUMN(Exp!N:N)-COLUMN(Exp!$A:$A)+1,0) -> 9179302727 | P44: =VLOOKUP("Grand Total",Exp!$A:O,COLUMN(Exp!O:O)-COLUMN(Exp!$A:$A)+1,0) -> 9772000596 | Q44: =VLOOKUP("Grand Total",Exp!$A:P,COLUMN(Exp!P:P)-COLUMN(Exp!$A:$A)+1,0) -> 9661442054 | R44: =VLOOKUP("Grand Total",Exp!$A:Q,COLUMN(Exp!Q:Q)-COLUMN(Exp!$A:$A)+1,0) -> 9860397372 | S44: =VLOOKUP("Grand Total",Exp!$A:R,COLUMN(Exp!R:R)-COLUMN(Exp!$A:$A)+1,0) -> 9889351043 | T44: =VLOOKUP("Grand Total",Exp!$A:S,COLUMN(Exp!S:S)-COLUMN(Exp!$A:$A)+1,0) -> 1.007331978e+10 | U44: =VLOOKUP("Grand Total",Exp!$A:T,COLUMN(Exp!T:T)-COLUMN(Exp!$A:$A)+1,0) -> 1.076380274e+10 | V44: =VLOOKUP("Grand Total",Exp!$A:U,COLUMN(Exp!U:U)-COLUMN(Exp!$A:$A)+1,0) -> 1.129620545e+10 | W44: =VLOOKUP("Grand Total",Exp!$A:V,COLUMN(Exp!V:V)-COLUMN(Exp!$A:$A)+1,0) -> 1.230814302e+10 | X44: =VLOOKUP("Grand Total",Exp!$A:W,COLUMN(Exp!W:W)-COLUMN(Exp!$A:$A)+1,0) -> 1.30786604e+10 | Y44: =VLOOKUP("Grand Total",Exp!$A:X,COLUMN(Exp!X:X)-COLUMN(Exp!$A:$A)+1,0) -> 1.428163386e+10 | Z44: =VLOOKUP("Grand Total",Exp!$A:Y,COLUMN(Exp!Y:Y)-COLUMN(Exp!$A:$A)+1,0) -> 1.591094092e+10 | AA44: =VLOOKUP("Grand Total",Exp!$A:Z,COLUMN(Exp!Z:Z)-COLUMN(Exp!$A:$A)+1,0) -> 1.652987846e+10 | AB44: =VLOOKUP("Grand Total",Exp!$A:AA,COLUMN(Exp!AA:AA)-COLUMN(Exp!$A:$A)+1,0) -> 1.690174671e+10 | AC44: =VLOOKUP("Grand Total",Exp!$A:AB,COLUMN(Exp!AB:AB)-COLUMN(Exp!$A:$A)+1,0) -> 1.846860137e+10 | AD44: =VLOOKUP("Grand Total",Exp!$A:AC,COLUMN(Exp!AC:AC)-COLUMN(Exp!$A:$A)+1,0) -> 1.978414924e+10 | AE44: =VLOOKUP("Grand Total",Exp!$A:AD,COLUMN(Exp!AD:AD)-COLUMN(Exp!$A:$A)+1,0) -> 20545865243
B46: =+Report!B46 -> Total Fund Balance | C46: =VLOOKUP("Grand Total",FundBalance!$A:B,COLUMN(FundBalance!B:B)-COLUMN(FundBalance!$A:$A)+1,0) -> 403325301 | D46: =VLOOKUP("Grand Total",FundBalance!$A:C,COLUMN(FundBalance!C:C)-COLUMN(FundBalance!$A:$A)+1,0) -> 445308726.3 | E46: =VLOOKUP("Grand Total",FundBalance!$A:D,COLUMN(FundBalance!D:D)-COLUMN(FundBalance!$A:$A)+1,0) -> 445646807.1 | F46: =VLOOKUP("Grand Total",FundBalance!$A:E,COLUMN(FundBalance!E:E)-COLUMN(FundBalance!$A:$A)+1,0) -> 446952888.9 | G46: =VLOOKUP("Grand Total",FundBalance!$A:F,COLUMN(FundBalance!F:F)-COLUMN(FundBalance!$A:$A)+1,0) -> 456806569.1 | H46: =VLOOKUP("Grand Total",FundBalance!$A:G,COLUMN(FundBalance!G:G)-COLUMN(FundBalance!$A:$A)+1,0) -> 477841112.3 | I46: =VLOOKUP("Grand Total",FundBalance!$A:H,COLUMN(FundBalance!H:H)-COLUMN(FundBalance!$A:$A)+1,0) -> 518650788.5 | J46: =VLOOKUP("Grand Total",FundBalance!$A:I,COLUMN(FundBalance!I:I)-COLUMN(FundBalance!$A:$A)+1,0) -> 548920937.2 | K46: =VLOOKUP("Grand Total",FundBalance!$A:J,COLUMN(FundBalance!J:J)-COLUMN(FundBalance!$A:$A)+1,0) -> 584450615.4 | L46: =VLOOKUP("Grand Total",FundBalance!$A:K,COLUMN(FundBalance!K:K)-COLUMN(FundBalance!$A:$A)+1,0) -> 574504005.2 | M46: =VLOOKUP("Grand Total",FundBalance!$A:L,COLUMN(FundBalance!L:L)-COLUMN(FundBalance!$A:$A)+1,0) -> 611377290.9 | N46: =VLOOKUP("Grand Total",FundBalance!$A:M,COLUMN(FundBalance!M:M)-COLUMN(FundBalance!$A:$A)+1,0) -> 647199524.7 | O46: =VLOOKUP("Grand Total",FundBalance!$A:N,COLUMN(FundBalance!N:N)-COLUMN(FundBalance!$A:$A)+1,0) -> 696049975.9 | P46: =VLOOKUP("Grand Total",FundBalance!$A:O,COLUMN(FundBalance!O:O)-COLUMN(FundBalance!$A:$A)+1,0) -> 801549953.6 | Q46: =VLOOKUP("Grand Total",FundBalance!$A:P,COLUMN(FundBalance!P:P)-COLUMN(FundBalance!$A:$A)+1,0) -> 987326982.6 | R46: =VLOOKUP("Grand Total",FundBalance!$A:Q,COLUMN(FundBalance!Q:Q)-COLUMN(FundBalance!$A:$A)+1,0) -> 1012662781 | S46: =VLOOKUP("Grand Total",FundBalance!$A:R,COLUMN(FundBalance!R:R)-COLUMN(FundBalance!$A:$A)+1,0) -> 1060235768 | T46: =VLOOKUP("Grand Total",FundBalance!$A:S,COLUMN(FundBalance!S:S)-COLUMN(FundBalance!$A:$A)+1,0) -> 1047633714 | U46: =VLOOKUP("Grand Total",FundBalance!$A:T,COLUMN(FundBalance!T:T)-COLUMN(FundBalance!$A:$A)+1,0) -> 1100873745 | V46: =VLOOKUP("Grand Total",FundBalance!$A:U,COLUMN(FundBalance!U:U)-COLUMN(FundBalance!$A:$A)+1,0) -> 1237868829 | W46: =VLOOKUP("Grand Total",FundBalance!$A:V,COLUMN(FundBalance!V:V)-COLUMN(FundBalance!$A:$A)+1,0) -> 1462883532 | X46: =VLOOKUP("Grand Total",FundBalance!$A:W,COLUMN(FundBalance!W:W)-COLUMN(FundBalance!$A:$A)+1,0) -> 1560043494 | Y46: =VLOOKUP("Grand Total",FundBalance!$A:X,COLUMN(FundBalance!X:X)-COLUMN(FundBalance!$A:$A)+1,0) -> 1619038585 | Z46: =VLOOKUP("Grand Total",FundBalance!$A:Y,COLUMN(FundBalance!Y:Y)-COLUMN(FundBalance!$A:$A)+1,0) -> 2029073177 | AA46: =VLOOKUP("Grand Total",FundBalance!$A:Z,COLUMN(FundBalance!Z:Z)-COLUMN(FundBalance!$A:$A)+1,0) -> 2315047382 | AB46: =VLOOKUP("Grand Total",FundBalance!$A:AA,COLUMN(FundBalance!AA:AA)-COLUMN(FundBalance!$A:$A)+1,0) -> 2485371626 | AC46: =VLOOKUP("Grand Total",FundBalance!$A:AB,COLUMN(FundBalance!AB:AB)-COLUMN(FundBalance!$A:$A)+1,0) -> 2434689509 | AD46: =VLOOKUP("Grand Total",FundBalance!$A:AC,COLUMN(FundBalance!AC:AC)-COLUMN(FundBalance!$A:$A)+1,0) -> 2157150392 | AE46: =VLOOKUP("Grand Total",FundBalance!$A:AD,COLUMN(FundBalance!AD:AD)-COLUMN(FundBalance!$A:$A)+1,0) -> 1482193663
B47: =+Report!B47 -> % of Total Revenues | C47: =+C46/C36 -> 0.07447263424 | D47: 0.07900371073 | E47: 0.07588042526 | F47: 0.07372486905 | G47: 0.0718121477 | H47: 0.07090468065 | I47: 0.07324490729 | J47: 0.07512518503 | K47: 0.07815928758 | L47: 0.07418206691 | M47: 0.07511196888 | N47: 0.07479438507 | O47: 0.07520559639 | P47: 0.08102533846 | Q47: 0.099991533 | R47: 0.1020028505 | S47: 0.1063746285 | T47: 0.1036479426 | U47: 0.101357565 | V47: 0.1076762217 | W47: =+W46/W36 -> 0.115788633 | X47: =+X46/X36 -> 0.1177506768 | Y47: 0.1122160768 | Z47: 0.1237548265 | AA47: =+AA46/AA36 -> 0.1370902479 | AB47: 0.1449723706 | AC47: =+AC46/AC36 -> 0.1317562439 | AD47: 0.110168732 | AE47: =+AE46/AE36 -> 0.07347098831
B48: =+Report!B48 -> % of Total Expenditures | C48: =+C46/C44 -> 0.07518978145 | D48: 0.0798790404 | E48: 0.07609452544 | F48: 0.07402857427 | G48: 0.07213696302 | H48: 0.07136665674 | I48: 0.07401965071 | J48: 0.07589445484 | K48: 0.07877857331 | L48: 0.07437710515 | M48: 0.07564859563 | N48: 0.0753097371 | O48: =+O46/O44 -> 0.07582819705 | P48: 0.08202516422 | Q48: 0.1021925068 | R48: 0.1026999971 | S48: 0.1072098425 | T48: 0.1040008395 | U48: =+U46/U44 -> 0.1022755406 | V48: 0.1095827121 | W48: 0.1188549345 | X48: 0.1192815966 | Y48: 0.1133650815 | Z48: 0.1275269129 | AA48: =+AA46/AA44 -> 0.1400522931 | AB48: 0.1470482115 | AC48: =+AC46/AC44 -> 0.1318285808 | AD48: 0.1090342762 | AE48: =+AE46/AE44 -> 0.07214072737
B49: =+Report!B49 -> Unreserved, Undesignated Fund Balance | C49: =VLOOKUP("Grand Total",FundBalance!$AJ:AK,COLUMN(FundBalance!AK:AK)-COLUMN(FundBalance!$AJ:$AJ)+1,0) -> 293230762.8 | D49: =VLOOKUP("Grand Total",FundBalance!$AJ:AL,COLUMN(FundBalance!AL:AL)-COLUMN(FundBalance!$AJ:$AJ)+1,0) -> 317731275.2 | E49: =VLOOKUP("Grand Total",FundBalance!$AJ:AM,COLUMN(FundBalance!AM:AM)-COLUMN(FundBalance!$AJ:$AJ)+1,0) -> 312322581.2 | F49: =VLOOKUP("Grand Total",FundBalance!$AJ:AN,COLUMN(FundBalance!AN:AN)-COLUMN(FundBalance!$AJ:$AJ)+1,0) -> 302987256.1 | G49: =VLOOKUP("Grand Total",FundBalance!$AJ:AO,COLUMN(FundBalance!AO:AO)-COLUMN(FundBalance!$AJ:$AJ)+1,0) -> 311256574.2 | H49: =VLOOKUP("Grand Total",FundBalance!$AJ:AP,COLUMN(FundBalance!AP:AP)-COLUMN(FundBalance!$AJ:$AJ)+1,0) -> 312539900.9 | I49: =VLOOKUP("Grand Total",FundBalance!$AJ:AQ,COLUMN(FundBalance!AQ:AQ)-COLUMN(FundBalance!$AJ:$AJ)+1,0) -> 330619803 | J49: =VLOOKUP("Grand Total",FundBalance!$AJ:AR,COLUMN(FundBalance!AR:AR)-COLUMN(FundBalance!$AJ:$AJ)+1,0) -> 344554727.4 | K49: =VLOOKUP("Grand Total",FundBalance!$AJ:AS,COLUMN(FundBalance!AS:AS)-COLUMN(FundBalance!$AJ:$AJ)+1,0) -> 344939294.4 | L49: =VLOOKUP("Grand Total",FundBalance!$AJ:AT,COLUMN(FundBalance!AT:AT)-COLUMN(FundBalance!$AJ:$AJ)+1,0) -> 336907598.1 | M49: =VLOOKUP("Grand Total",FundBalance!$AJ:AU,COLUMN(FundBalance!AU:AU)-COLUMN(FundBalance!$AJ:$AJ)+1,0) -> 353488792.6 | N49: =VLOOKUP("Grand Total",FundBalance!$AJ:AV,COLUMN(FundBalance!AV:AV)-COLUMN(FundBalance!$AJ:$AJ)+1,0) -> 372547706 | O49: =VLOOKUP("Grand Total",FundBalance!$AJ:AW,COLUMN(FundBalance!AW:AW)-COLUMN(FundBalance!$AJ:$AJ)+1,0) -> 387170293.5 | P49: =VLOOKUP("Grand Total",FundBalance!$AJ:AX,COLUMN(FundBalance!AX:AX)-COLUMN(FundBalance!$AJ:$AJ)+1,0) -> 438320154.2 | Q49: =VLOOKUP("Grand Total",FundBalance!$AJ:AY,COLUMN(FundBalance!AY:AY)-COLUMN(FundBalance!$AJ:$AJ)+1,0) -> 507372932.9 | R49: =VLOOKUP("Grand Total",FundBalance!$AJ:AZ,COLUMN(FundBalance!AZ:AZ)-COLUMN(FundBalance!$AJ:$AJ)+1,0) -> 346437524 | S49: =VLOOKUP("Grand Total",FundBalance!$AJ:BA,COLUMN(FundBalance!BA:BA)-COLUMN(FundBalance!$AJ:$AJ)+1,0) -> 367269734.8 | T49: =VLOOKUP("Grand Total",FundBalance!$AJ:BB,COLUMN(FundBalance!BB:BB)-COLUMN(FundBalance!$AJ:$AJ)+1,0) -> 345277745.9 | U49: =VLOOKUP("Grand Total",FundBalance!$AJ:BC,COLUMN(FundBalance!BC:BC)-COLUMN(FundBalance!$AJ:$AJ)+1,0) -> 335974059.8 | V49: =VLOOKUP("Grand Total",FundBalance!$AJ:BD,COLUMN(FundBalance!BD:BD)-COLUMN(FundBalance!$AJ:$AJ)+1,0) -> 453485421.5 | W49: =VLOOKUP("Grand Total",FundBalance!$AJ:BE,COLUMN(FundBalance!BE:BE)-COLUMN(FundBalance!$AJ:$AJ)+1,0) -> 570182955.6 | X49: =VLOOKUP("Grand Total",FundBalance!$AJ:BF,COLUMN(FundBalance!BF:BF)-COLUMN(FundBalance!$AJ:$AJ)+1,0) -> 588120473.9 | Y49: =VLOOKUP("Grand Total",FundBalance!$AJ:BG,COLUMN(FundBalance!BG:BG)-COLUMN(FundBalance!$AJ:$AJ)+1,0) -> 598661705 | Z49: =VLOOKUP("Grand Total",FundBalance!$AJ:BH,COLUMN(FundBalance!BH:BH)-COLUMN(FundBalance!$AJ:$AJ)+1,0) -> 745264591.1 | AA49: =VLOOKUP("Grand Total",FundBalance!$AJ:BI,COLUMN(FundBalance!BI:BI)-COLUMN(FundBalance!$AJ:$AJ)+1,0) -> 931695250.8 | AB49: =VLOOKUP("Grand Total",FundBalance!$AJ:BJ,COLUMN(FundBalance!BJ:BJ)-COLUMN(FundBalance!$AJ:$AJ)+1,0) -> 954620265.3 | AC49: =VLOOKUP("Grand Total",FundBalance!$AJ:BK,COLUMN(FundBalance!BK:BK)-COLUMN(FundBalance!$AJ:$AJ)+1,0) -> 864386132.2 | AD49: =VLOOKUP("Grand Total",FundBalance!$AJ:BL,COLUMN(FundBalance!BL:BL)-COLUMN(FundBalance!$AJ:$AJ)+1,0) -> 738808047.5 | AE49: =VLOOKUP("Grand Total",FundBalance!$AJ:BM,COLUMN(FundBalance!BM:BM)-COLUMN(FundBalance!$AJ:$AJ)+1,0) -> 457161395
B50: =+B47 -> % of Total Revenues | C50: =+C49/C36 -> 0.05414405516 | D50: 0.05636976837 | E50: 0.0531792664 | F50: 0.04997774114 | G50: 0.04893100186 | H50: 0.0463763818 | I50: 0.04669079341 | J50: 0.0471556756 | K50: 0.04612914898 | L50: 0.0435027463 | M50: 0.04342856626 | N50: 0.04305392002 | O50: 0.04183230205 | P50: 0.04430795448 | Q50: 0.0513841901 | R50: 0.03489573789 | S50: 0.03684857913 | T50: 0.03416015302 | U50: 0.0309331681 | V50: 0.03944650325 | W50: =+W49/W36 -> 0.04513052717 | X50: =+X49/X36 -> 0.04439080327 | Y50: 0.04149343228 | Z50: 0.04545429469 | AA50: =+AA49/AA36 -> 0.05517223271 | AB50: 0.05568324731 | AC50: =+AC49/AC36 -> 0.04677732815 | AD50: 0.03773197552 | AE50: =+AE49/AE36 -> 0.02266107348
B51: =+B48 -> % of Total Expenditures | C51: =+C49/C44 -> 0.05466544477 | D51: 0.05699432297 | E51: 0.0533293142 | F51: 0.05018362147 | G51: 0.0491523229 | H51: 0.04667854492 | I51: 0.04718466235 | J51: 0.04763854214 | K51: 0.04649464775 | L51: 0.04361712299 | M51: 0.04373883546 | N51: 0.04335057231 | O51: =+O49/O44 -> 0.04217861695 | P51: 0.04485469991 | Q51: 0.05251523842 | R51: 0.03513423556 | S51: 0.03713790047 | T51: 0.03427646032 | U51: =+U49/U44 -> 0.03121332375 | V51: 0.04014493393 | W51: 0.04632566869 | X51: 0.0449679444 | Y51: 0.04191829248 | Z51: 0.04683975603 | AA51: =+AA49/AA44 -> 0.05636431347 | AB51: 0.05648056864 | AC51: =+AC49/AC44 -> 0.04680300986 | AD51: 0.03734343279 | AE51: =+AE49/AE44 -> 0.02225077355
B53: =+Report!B53 -> Dollars per FTE Enrollment
B54: =+Report!B54 -> Total General Fund Revenues | C54: =+C36/C$10 -> 5990.30459 | D54: 6105.35974 | E54: 6273.444682 | F54: 6407.778317 | G54: 6708.680338 | H54: 7090.933815 | I54: =+I36/I$10 -> 7407.515778 | J54: 7625.644344 | K54: 7776.753805 | L54: 8021.542919 | M54: =+M36/M$10 -> 8383.524197 | N54: 8897.374542 | O54: 9496.450074 | P54: =+P36/P$10 -> 10093.2236 | Q54: 10000.75361 | R54: 10012.87656 | S54: 9992.247061 | T54: 10086.69424 | U54: 10650.9071 | V54: 11144.56218 | W54: =+W36/W$10 -> 11965.78505 | X54: =+X36/X$10 -> 12268.57258 | Y54: 13225.58657 | Z54: 14988.31352 | AA54: =IFERROR(+AA36/AA$10,0) -> 15307.38183 | AB54: =IFERROR(+AB36/AB$10,0) -> 16126.96534 | AC54: =IFERROR(+AC36/AC$10,0) -> 17425.20181 | AD54: =IFERROR(+AD36/AD$10,0) -> 18353.55173 | AE54: =IFERROR(+AE36/AE$10,0) -> 18815.64051
B55: =+Report!B55 -> Total State General Fund Revenues (4) | C55: 4528.178157 | D55: 4569.773182 | E55: 4667.616906 | F55: 4732.077765 | G55: 4869.150436 | H55: 5096.007581 | I55: 5275.27125 | J55: 5354.023924 | K55: 5421.51464 | L55: 5556.659589 | M55: 5830.41606 | N55: 6238.579663 | O55: 6740.263902 | P55: 6758.155027 | Q55: 6562.016136 | R55: 6471.002508 | S55: 6639.001234 | T55: 6694.161978 | U55: 7266.311802 | V55: 7647.544585 | W55: =+W37/W$10 -> 8392.510538 | X55: =+X37/X$10 -> 8682.331969 | Y55: 9544.406301 | Z55: 11754.4645 | AA55: =IFERROR(+AA37/AA$10,0) -> 12277.23511 | AB55: 12354.317 | AC55: =IFERROR(+AC37/AC$10,0) -> 12438.66361 | AD55: 13427.18483 | AE55: =IFERROR(+AE37/AE$10,0) -> 13813.58328
B56: =+Report!B56 -> Total Federal General Fund Revenues (6) | C56: =+C40/C$10 -> 369.8729588 | D56: 386.1833325 | E56: 427.7034527 | F56: 456.3039241 | G56: 517.6977356 | H56: 581.6622708 | I56: =+I40/I$10 -> 654.7506448 | J56: 721.5091787 | K56: =+K40/K$10 -> 761.5067679 | L56: 810.7026067 | M56: 815.5576558 | N56: =+N40/N$10 -> 820.9362214 | O56: 837.9254575 | P56: 1325.868477 | Q56: =+Q40/Q$10 -> 1324.766239 | R56: 1277.859835 | S56: 955.9344406 | T56: 903.5009444 | U56: 860.8607808 | V56: 871.1641975 | W56: =+W40/W$10 -> 888.6413436 | X56: =+X40/X$10 -> 874.1886232 | Y56: 857.66614 | Z56: 873.8288545 | AA56: =IFERROR(+AA40/AA$10,0) -> 957.8110738 | AB56: 1456.899875 | AC56: =IFERROR(+AC40/AC$10,0) -> 2384.363458 | AD56: 1981.153368 | AE56: =IFERROR(+AE40/AE$10,0) -> 1770.524102
B57: =+B41 -> Local Taxes (7) | C57: 856.5900777 | D57: 906.4056474 | E57: 905.2218752 | F57: 927.3634216 | G57: 1017.143286 | H57: 1079.208938 | I57: =+I41/I$10 -> 1120.105591 | J57: 1188.964105 | K57: 1253.231639 | L57: 1302.825573 | M57: 1358.394742 | N57: 1430.8288 | O57: 1504.455796 | P57: 1593.226587 | Q57: 1698.978881 | R57: 1846.669404 | S57: 1970.799308 | T57: 2047.923834 | U57: 2074.921024 | V57: 2162.232651 | W57: =+W41/W$10 -> 2214.006836 | X57: =+X41/X$10 -> 2247.400568 | Y57: 2314.742937 | Z57: 1841.593207 | AA57: 1602.087405 | AB57: 1950.747326 | AC57: =IFERROR(+AC41/AC$10,0) -> 2111.727691 | AD57: 2258.407249 | AE57: =IFERROR(+AE41/AE$10,0) -> 2390.772349
B58: =+B42 -> Other Revenues (10) | C58: 235.6633973 | D58: 242.9975783 | E58: 272.9024485 | F58: 292.0332058 | G58: 304.68888 | H58: 334.0550251 | I58: =+I42/I$10 -> 357.3882914 | J58: 361.1471372 | K58: 340.5007578 | L58: 351.3551506 | M58: 379.1557387 | N58: 407.0298572 | O58: 413.8049186 | P58: 415.9735041 | Q58: 414.9923535 | R58: 417.344813 | S58: 426.5120775 | T58: 441.1074883 | U58: 448.8134921 | V58: 463.6207456 | W58: =+W42/W$10 -> 470.6263286 | X58: =+X42/X$10 -> 464.6514196 | Y58: 508.771193 | Z58: 518.4269564 | AA58: 470.2482477 | AB58: 365.0011455 | AC58: =IFERROR(+AC42/AC$10,0) -> 490.4470548 | AD58: 686.8062886 | AE58: =IFERROR(+AE42/AE$10,0) -> 840.7607774
B59: =+Report!B59 -> Total Expenditures | C59: =+C44/C$10 -> 5933.170095 | D59: 6038.456051 | E59: 6255.793667 | F59: 6381.490147 | G59: 6678.472771 | H59: 7045.032241 | I59: =+I44/I$10 -> 7329.983338 | J59: 7548.35045 | K59: =+K44/K$10 -> 7715.620017 | L59: 8000.508117 | M59: 8324.05418 | N59: 8836.488922 | O59: 9418.477813 | P59: 9970.194706 | Q59: =+Q44/Q$10 -> 9785.362118 | R59: 9944.907305 | S59: 9914.402855 | T59: 10052.46795 | U59: 10555.30973 | V59: 10950.6721 | W59: =+W44/W$10 -> 11657.08348 | X59: =+X44/X$10 -> 12111.11157 | Y59: 13091.53947 | Z59: 14544.97797 | AA59: =IFERROR(+AA44/AA$10,0) -> 14983.63735 | AB59: =IFERROR(+AB44/AB$10,0) -> 15899.30521 | AC59: =IFERROR(+AC44/AC$10,0) -> 17415.64027 | AD59: =IFERROR(+AD44/AD$10,0) -> 18544.51273 | AE59: =IFERROR(+AE44/AE$10,0) -> 19162.59726
B61: =+Report!B61 -> Sources: OSPI F195/F196 School Apportionment and Financial Services (SAFS) reports, unless noted:
B62: =+Report!B62 -> (1) Enrollment from OSPI Apportionment, exclude Summer Skills Centers, Institutions, and pre-K Special Ed; SY2023-24 are year-to-date data as of January 2024.
B63: =+Report!B63 -> (2) Special Education percentages from OSPI Report 1220; SY2023-24 are year-to-date data as of January 2024.
B64: =+"(3) FTE Staff from OSPI S275 reports; ""Total Staff"" displayed excludes extracurricular, substitutes, and on-leave staff (which average "&TEXT(Staff!CY3,"##0")&" FTEs statewide since SY1995-96)." -> (3) FTE Staff from OSPI S275 reports; "Total Staff" displayed excludes extracurricular, substitutes, and on-leave staff (which average 208 FTEs statewide since SY1995-96).
B65: =+Report!B65 -> (4) Total State General Fund Revenues includes both State General Purpose (codes 3000s, excl. Timber Excise Tax) and State Special Purpose Revenues (codes 4000s).
B66: =+Report!B66 -> (5) Special Education Revenues (revenue code 4121) are part of Total State General Fund Revenues.
B67: =+Report!B67 -> (6) Total Federal General Fund Revenues includes both Federal General Purpose (codes 5000s) and Federal Special Purpose Revenues (codes 6000s).
B68: =+Report!B68 -> (7) Includes: Local Property Tax, Sale of Tax Title Property, Local In-Lieu-of Taxes, County Administered Forests, Other Local Taxes, and Timber Excise Tax.
B69: =+Report!B69 -> (8) Includes only K-12 General Fund; excludes Capital Projects, Debt Service, Transportation Vehicle, Associated Student Body, Bond, and Trust funds.
B70: =+Report!B70 -> (9) Free and Reduced Lunch Percentage from CEDARS; SY2023-24 data released Final.
B71: =+Report!B71 -> (10) Other Revenues include Local Nontax, Other Financing Sources, and Revenues from other school districts, agencies, and associations.
B72: =+Report!B72 -> Data for SY2023-24 exclude budget extensions.

Sheet Enro (hidden)
B1: Aberdeen
A5: =HLOOKUP(MAX(6:6),6:8,3,0) -> 2023-24
B6: =COLUMN() -> 2 | C6: =COLUMN() -> 3 | D6: =COLUMN() -> 4 | E6: =COLUMN() -> 5 | F6: =COLUMN() -> 6 | G6: =COLUMN() -> 7 | H6: =COLUMN() -> 8 | I6: =COLUMN() -> 9 | J6: =COLUMN() -> 10 | K6: =COLUMN() -> 11 | L6: =COLUMN() -> 12 | M6: =COLUMN() -> 13 | N6: =COLUMN() -> 14 | O6: =COLUMN() -> 15 | P6: =COLUMN() -> 16 | Q6: =COLUMN() -> 17 | R6: =COLUMN() -> 18 | S6: =COLUMN() -> 19 | T6: =COLUMN() -> 20 | U6: =COLUMN() -> 21 | V6: =COLUMN() -> 22 | W6: =COLUMN() -> 23 | X6: =COLUMN() -> 24 | Y6: =COLUMN() -> 25 | Z6: =COLUMN() -> 26 | AA6: =COLUMN() -> 27 | AB6: =COLUMN() -> 28 | AC6: =COLUMN() -> 29 | AD6: =COLUMN() -> 30
A7: Sum of Sum of Amount | B7: SchoolYear | C7: VerTtl
B8: 1995-96 | C8: 1996-97 | D8: 1997-98 | E8: 1998-99 | F8: 1999-00 | G8: 2000-01 | H8: 2001-02 | I8: 2002-03 | J8: 2003-04 | K8: 2004-05 | L8: 2005-06 | M8: 2006-07 | N8: 2007-08 | O8: 2008-09 | P8: 2009-10 | Q8: 2010-11 | R8: 2011-12 | S8: 2012-13 | T8: 2013-14 | U8: 2014-15 | V8: 2015-16 | W8: 2016-17 | X8: 2017-18 | Y8: 2018-19 | Z8: 2019-20 | AA8: 2020-21 | AB8: 2021-22 | AC8: 2022-23 | AD8: 2023-24
A9: DistTitle | B9: Final | C9: Final | D9: Final | E9: Final | F9: Final | G9: Final | H9: Final | I9: Final | J9: Final | K9: Final | L9: Final | M9: Final | N9: Final | O9: Final | P9: Final | Q9: Final | R9: Final | S9: Final | T9: Final | U9: Final | V9: Final | W9: Final | X9: Final | Y9: Final | Z9: Final | AA9: Final | AB9: Final | AC9: Final | AD9: January 2024
A10: Aberdeen | B10: 3799.92 | C10: 3800.15 | D10: 3795.14 | E10: 3747.67 | F10: 3688.56 | G10: 3717.83 | H10: 3786.89 | I10: 3749.5 | J10: 3755.17 | K10: 3727.27 | L10: 3605.56 | M10: 3504.08 | N10: 3301.85 | O10: 3155.93 | P10: 3157.52 | Q10: 3089.58 | R10: 3139.99 | S10: 3176.42 | T10: 3213.85 | U10: 3209.61 | V10: 3250.51 | W10: 3324.66 | X10: 3374.84 | Y10: 3350.03 | Z10: 3334.49 | AA10: 3101.41 | AB10: 3113.84 | AC10: 3162.21 | AD10: 3225.15
A11: Adna | B11: 584.09 | C11: 601.4 | D11: 535.34 | E11: 521.98 | F11: 512.16 | G11: 514.45 | H11: 504.53 | I11: 511.16 | J11: 535.4 | K11: 548.9 | L11: 544.43 | M11: 566.28 | N11: 574.22 | O11: 568.81 | P11: 572.76 | Q11: 583.09 | R11: 588.65 | S11: 550.4 | T11: 575.19 | U11: 587.01 | V11: 612.77 | W11: 642.2 | X11: 644.53 | Y11: 629.3 | Z11: 640.69 | AA11: 593.62 | AB11: 615.56 | AC11: 639.35 | AD11: 629.09
A12: Almira | B12: 104.38 | C12: 98.69 | D12: 94.88 | E12: 95.3 | F12: 100.73 | G12: 90.56 | H12: 89.43 | I12: 87.23 | J12: 74.23 | K12: 72.5 | L12: 63.37 | M12: 62.88 | N12: 74.73 | O12: 66.72 | P12: 65.22 | Q12: 75.98 | R12: 72.65 | S12: 75.05 | T12: 75.34 | U12: 75.82 | V12: 70.72 | W12: 74.43 | X12: 78.7 | Y12: 82.34 | Z12: 91.57 | AA12: 86.8 | AB12: 97.32 | AC12: 105.98 | AD12: 102.34
A13: Anacortes | B13: 2811.98 | C13: 2886.98 | D13: 2943.15 | E13: 3048.68 | F13: 2984.59 | G13: 3013.36 | H13: 3011.65 | I13: 3004.99 | J13: 2987.5 | K13: 2980.23 | L13: 2939.19 | M13: 2842.01 | N13: 2796.04 | O13: 2659.66 | P13: 2620.49 | Q13: 2589.45 | R13: 2600.15 | S13: 2544.45 | T13: 2609.01 | U13: 2642.12 | V13: 2697.51 | W13: 2740.23 | X13: 2717.66 | Y13: 2675.05 | Z13: 2675.55 | AA13: 2502.23 | AB13: 2498.72 | AC13: 2523.36 | AD13: 2549.25
A14: Arlington | B14: 3943.33 | C14: 4101.5 | D14: 4306.33 | E14: 4541.55 | F14: 4695.28 | G14: 4764.71 | H14: 4871.83 | I14: 4900.97 | J14: 5047.76 | K14: 5187.9 | L14: 5272.1 | M14: 5309.74 | N14: 5239.56 | O14: 5262.03 | P14: 5259.35 | Q14: 5206.75 | R14: 5080.64 | S14: 5160.87 | T14: 5171.57 | U14: 5200.65 | V14: 5345.88 | W14: 5352.99 | X14: 5468.02 | Y14: 5568.52 | Z14: 5662.04 | AA14: 5236.72 | AB14: 5329.19 | AC14: 5420.09 | AD14: 5483.02
A15: Ashe Preparatory Academy Charter | Z15: 22.41
A16: Asotin-Anatone | B16: 610.52 | C16: 577.07 | D16: 598.47 | E16: 588.53 | F16: 581.52 | G16: 564.72 | H16: 529.97 | I16: 540.09 | J16: 573.21 | K16: 568.23 | L16: 549.66 | M16: 548.98 | N16: 568.22 | O16: 579.79 | P16: 616.93 | Q16: 610.72 | R16: 574.9 | S16: 580.41 | T16: 594.09 | U16: 598.45 | V16: 647.71 | W16: 650.17 | X16: 620.74 | Y16: 639.36 | Z16: 615.19 | AA16: 614.27 | AB16: 606.03 | AC16: 608.11 | AD16: 590.95
A17: Auburn | B17: 11568.71 | C17: 11857.03 | D17: 12170.94 | E17: 12361.87 | F17: 12485.82 | G17: 12634.15 | H17: 12797.42 | I17: 12823.41 | J17: 13013.92 | K17: 13129 | L17: 13418.66 | M17: 13822.48 | N17: 13899.98 | O17: 14036.31 | P17: 13943.1 | Q17: 13862.57 | R17: 13824.02 | S17: 14031.4 | T17: 14711.9 | U17: 15020.17 | V17: 15463.99 | W17: 15841.77 | X17: 16419.2 | Y17: 16722.86 | Z17: 17075.31 | AA17: 16564.17 | AB17: 16810.44 | AC17: 17316.74 | AD17: 17323.15
A18: Bainbridge Island | B18: 3241.41 | C18: 3443.56 | D18: 3571.9 | E18: 3690.52 | F18: 3807.81 | G18: 3837.25 | H18: 3914.3 | I18: 3959.6 | J18: 4003.89 | K18: 4037.61 | L18: 4098.24 | M18: 4037.27 | N18: 3943.91 | O18: 3882.29 | P18: 3826.5 | Q18: 3818.92 | R18: 3726.26 | S18: 3673.73 | T18: 3740.22 | U18: 3706.05 | V18: 3708.85 | W18: 3798.33 | X18: 3834.39 | Y18: 3762.83 | Z18: 3772.84 | AA18: 3580.96 | AB18: 3574.94 | AC18: 3505.11 | AD18: 3477.56
A19: Battle Ground | B19: 10013.88 | C19: 10249.24 | D19: 10464.11 | E19: 10640.96 | F19: 10669.16 | G19: 10768.15 | H19: 11092.94 | I19: 11524.94 | J19: 11907.49 | K19: 12045.07 | L19: 12315.3 | M19: 12295.38 | N19: 12428.08 | O19: 12619.41 | P19: 12797.32 | Q19: 12833.23 | R19: 12322.12 | S19: 12487.29 | T19: 12617.85 | U19: 12811.73 | V19: 12762.64 | W19: 13115.64 | X19: 13208.09 | Y19: 12942.46 | Z19: 12880 | AA19: 11688.54 | AB19: 11677.75 | AC19: 12155.05 | AD19: 12295.31
A20: Bellevue | B20: 14725.37 | C20: 14839.37 | D20: 14839.14 | E20: 14755.22 | F20: 14672.54 | G20: 14881.04 | H20: 14964.96 | I20: 15037.69 | J20: 14988.84 | K20: 15268.99 | L20: 15740.21 | M20: 15921.51 | N20: 16052.07 | O20: 16441.72 | P20: 16890.94 | Q20: 17414.26 | R20: 17698.26 | S20: 17990 | T20: 18233.95 | U20: 18703.63 | V20: 19330.17 | W20: 20165.87 | X20: 20474.14 | Y20: 20501.98 | Z20: 20542.65 | AA20: 19638.69 | AB20: 18952.01 | AC20: 18650.66 | AD20: 15383.74
A21: Bellingham | B21: 9619.14 | C21: 9686.14 | D21: 9761.53 | E21: 9857.81 | F21: 9788.71 | G21: 9856.73 | H21: 9817.64 | I21: 9912.23 | J21: 9994.42 | K21: 10160.14 | L21: 10118.96 | M21: 10132.09 | N21: 10186.91 | O21: 10215.05 | P21: 10277.74 | Q21: 10333.99 | R21: 10313.12 | S21: 10503.32 | T21: 10656.24 | U21: 10665.3 | V21: 10866.75 | W21: 11240.16 | X21: 11441.65 | Y21: 11586.02 | Z21: 11568.36 | AA21: 11258.7 | AB21: 11259.73 | AC21: 11315.77 | AD21: 10922.77
A22: Benge | B22: 8.33 | C22: 11.28 | D22: 7.78 | E22: 8.5 | F22: 9.72 | G22: 9.5 | H22: 7.5 | I22: 10.17 | J22: 9.55 | K22: 10.11 | L22: 10.11 | M22: 6.39 | N22: 5.61 | O22: 8.89 | P22: 6.78 | Q22: 10 | R22: 9 | S22: 11 | T22: 11.65 | U22: 12.8 | V22: 12.7 | W22: 12.5 | X22: 13.6 | Y22: 12.5 | Z22: 18.8 | AA22: 16.4 | AB22: 11.4 | AC22: 9 | AD22: 11
A23: Bethel | B23: 13520.16 | C23: 13983.19 | D23: 14449.95 | E23: 14767.58 | F23: 15122.54 | G23: 15202.46 | H23: 15488.84 | I23: 15943.52 | J23: 16419.02 | K23: 16839.08 | L23: 16987.84 | M23: 17136.8 | N23: 17106.09 | O23: 17097.15 | P23: 16885.56 | Q23: 17049.19 | R23: 17134.35 | S23: 17301.78 | T23: 17745.11 | U23: 17835.14 | V23: 19004.54 | W23: 19295.93 | X23: 19687.65 | Y23: 19859.07 | Z23: 20385.46 | AA23: 19751.97 | AB23: 20164.18 | AC23: 20582.76 | AD23: 21270.73
A24: Bickleton | B24: 98.72 | C24: 103.55 | D24: 90.72 | E24: 96.5 | F24: 95.56 | G24: 105.44 | H24: 89.77 | I24: 92.28 | J24: 106.29 | K24: 106 | L24: 96.05 | M24: 93.22 | N24: 100.32 | O24: 100.11 | P24: 87.38 | Q24: 79.99 | R24: 91.4 | S24: 99.65 | T24: 87.21 | U24: 86 | V24: 83.15 | W24: 91.9 | X24: 118.6 | Y24: 117.57 | Z24: 118.8 | AA24: 107.5 | AB24: 112.7 | AC24: 102.9 | AD24: 102.2
A25: Blaine | B25: 1680.21 | C25: 1687.16 | D25: 1715.85 | E25: 1820.18 | F25: 1869.65 | G25: 1894.95 | H25: 1958.27 | I25: 1912.21 | J25: 2008.51 | K25: 2139.74 | L25: 2199.13 | M25: 2170.04 | N25: 2134.37 | O25: 2103.16 | P25: 2079.71 | Q25: 2063.11 | R25: 2058.94 | S25: 2036.84 | T25: 2030.1 | U25: 2050.21 | V25: 2057.28 | W25: 2188.32 | X25: 2188.82 | Y25: 2218.9 | Z25: 2218.79 | AA25: 2125.94 | AB25: 2094.67 | AC25: 2031.36 | AD25: 1977.94
A26: Boistfort | B26: 139.77 | C26: 131.65 | D26: 123.39 | E26: 113.5 | F26: 108.06 | G26: 90.87 | H26: 86.39 | I26: 73.4 | J26: 79.5 | K26: 85.57 | L26: 97.06 | M26: 74.95 | N26: 66.24 | O26: 69.07 | P26: 81.01 | Q26: 74.04 | R26: 77.65 | S26: 83.8 | T26: 84.45 | U26: 85.14 | V26: 88.86 | W26: 94.05 | X26: 86.55 | Y26: 94.81 | Z26: 91.75 | AA26: 85 | AB26: 85.68 | AC26: 74.38 | AD26: 315.53
A27: Bremerton | B27: 5983.43 | C27: 6016.34 | D27: 5962.8 | E27: 6004.34 | F27: 5944.03 | G27: 5897.88 | H27: 5810.55 | I27: 5738.7 | J27: 5652.27 | K27: 5345.51 | L27: 5177.95 | M27: 5055.75 | N27: 5045.33 | O27: 4989.67 | P27: 4916.51 | Q27: 4901.12 | R27: 4939.71 | S27: 4903.59 | T27: 5036.56 | U27: 5078.14 | V27: 5206.83 | W27: 5123.48 | X27: 5083.22 | Y27: 5040.36 | Z27: 4979.94 | AA27: 4583.14 | AB27: 4555.7 | AC27: 4511.58 | AD27: 5016.09
A28: Brewster | B28: 840.33 | C28: 888.58 | D28: 895.09 | E28: 951.66 | F28: 957.29 | G28: 943.75 | H28: 937.79 | I28: 935.68 | J28: 923.05 | K28: 896.31 | L28: 882.36 | M28: 834.48 | N28: 824 | O28: 820.6 | P28: 882.3 | Q28: 883.89 | R28: 929.48 | S28: 915.4 | T28: 903.53 | U28: 957.21 | V28: 949.05 | W28: 920.93 | X28: 953.07 | Y28: 955.86 | Z28: 960.94 | AA28: 930.79 | AB28: 962.99 | AC28: 978.73 | AD28: 962.73
A29: Bridgeport | B29: 684.37 | C29: 699.7 | D29: 670.27 | E29: 634.57 | F29: 596.08 | G29: 624.85 | H29: 600.8 | I29: 585.78 | J29: 609.77 | K29: 643.38 | L29: 695.2 | M29: 687.15 | N29: 682.92 | O29: 710.58 | P29: 719.14 | Q29: 735.74 | R29: 776.35 | S29: 780.3 | T29: 812.5 | U29: 821.46 | V29: 852.96 | W29: 849.39 | X29: 846.51 | Y29: 830.04 | Z29: 777.64 | AA29: 745.07 | AB29: 736.9 | AC29: 749.89 | AD29: 702.47
A30: Brinnon | B30: 114.33 | C30: 90.99 | D30: 73.86 | E30: 67.33 | F30: 69 | G30: 66.11 | H30: 67.05 | I30: 56.5 | J30: 49.78 | K30: 36.45 | L30: 50.4 | M30: 46.35 | N30: 37.98 | O30: 30.07 | P30: 30.33 | Q30: 34.6 | R30: 32.85 | S30: 35.95 | T30: 35.8 | U30: 40.4 | V30: 51.18 | W30: 57.06 | X30: 69.4 | Y30: 76.3 | Z30: 68.84 | AA30: 75.9 | AB30: 71.26 | AC30: 74.75 | AD30: 67.5
A31: Burlington-Edison | B31: 3097.97 | C31: 3202.74 | D31: 3197.38 | E31: 3279.68 | F31: 3315.44 | G31: 3352.57 | H31: 3373.88 | I31: 3447.72 | J31: 3436.23 | K31: 3596.63 | L31: 3703.4 | M31: 3785.5 | N31: 3756.67 | O31: 3751.14 | P31: 3721.01 | Q31: 3656.5 | R31: 3659.59 | S31: 3654.16 | T31: 3647.03 | U31: 3643.64 | V31: 3637.08 | W31: 3639.9 | X31: 3532.8 | Y31: 3443.33 | Z31: 3516.84 | AA31: 3311.37 | AB31: 3259.45 | AC31: 3240.13 | AD31: 3270.85
A32: Camas | B32: 2837.77 | C32: 2966.61 | D32: 3119.71 | E32: 3339.01 | F32: 3461.52 | G32: 3664.65 | H32: 3929.34 | I32: 4153.83 | J32: 4503.41 | K32: 4764.39 | L32: 5012.64 | M32: 5260.94 | N32: 5418.51 | O32: 5451.85 | P32: 5581.47 | Q32: 5743.84 | R32: 5958.79 | S32: 6071.78 | T32: 6157.92 | U32: 6352.33 | V32: 6593.77 | W32: 6979.11 | X32: 7070.24 | Y32: 7249.9 | Z32: 7424.26 | AA32: 7006.35 | AB32: 7038.95 | AC32: 7118.95 | AD32: 7109.75
A33: Cape Flattery | B33: 613.33 | C33: 615.43 | D33: 599.37 | E33: 576.74 | F33: 551.15 | G33: 517.9 | H33: 504.71 | I33: 487.05 | J33: 474.59 | K33: 515.46 | L33: 486.09 | M33: 458.09 | N33: 433.76 | O33: 430.65 | P33: 436.19 | Q33: 417.4 | R33: 421 | S33: 430.9 | T33: 446.17 | U33: 453.65 | V33: 462.6 | W33: 487.99 | X33: 487.21 | Y33: 496.19 | Z33: 512.48 | AA33: 507.27 | AB33: 478 | AC33: 480.92 | AD33: 493.29
A34: Carbonado | B34: 178.76 | C34: 170.89 | D34: 176.68 | E34: 178.17 | F34: 182.32 | G34: 175.17 | H34: 174.74 | I34: 175.22 | J34: 175.49 | K34: 178.11 | L34: 174.78 | M34: 169.94 | N34: 173.95 | O34: 168.99 | P34: 172.36 | Q34: 177.04 | R34: 174.2 | S34: 170.45 | T34: 176.8 | U34: 175.15 | V34: 168.78 | W34: 177.14 | X34: 175.4 | Y34: 175.18 | Z34: 181.38 | AA34: 188.17 | AB34: 177.01 | AC34: 180.4 | AD34: 174.08
A35: Cascade | B35: 1558.5 | C35: 1536.83 | D35: 1542.6 | E35: 1543.34 | F35: 1497.34 | G35: 1449.72 | H35: 1396.71 | I35: 1372.36 | J35: 1371.23 | K35: 1340.67 | L35: 1300.52 | M35: 1287.07 | N35: 1253.7 | O35: 1180.06 | P35: 1171.01 | Q35: 1176.78 | R35: 1165.48 | S35: 1256.98 | T35: 1245.29 | U35: 1239.52 | V35: 1318.73 | W35: 1307.79 | X35: 1328.32 | Y35: 1301.58 | Z35: 1307.68 | AA35: 1210.62 | AB35: 1232.26 | AC35: 1226.76 | AD35: 1213.04
A36: Cashmere | B36: 1472.82 | C36: 1537.1 | D36: 1552.4 | E36: 1542.32 | F36: 1514.04 | G36: 1461.97 | H36: 1400.9 | I36: 1426.8 | J36: 1415.91 | K36: 1391.58 | L36: 1438.82 | M36: 1401.52 | N36: 1405.38 | O36: 1412.94 | P36: 1392.64 | Q36: 1371.07 | R36: 1398.84 | S36: 1411.47 | T36: 1441.05 | U36: 1488.43 | V36: 1536.07 | W36: 1578.19 | X36: 1586.18 | Y36: 1593.69 | Z36: 1577.73 | AA36: 1553.86 | AB36: 1558.89 | AC36: 1593.36 | AD36: 1601.46
A37: Castle Rock | B37: 1294.8 | C37: 1334.61 | D37: 1352.91 | E37: 1368.19 | F37: 1322.91 | G37: 1307.06 | H37: 1316.07 | I37: 1319.78 | J37: 1320.66 | K37: 1339.79 | L37: 1361.93 | M37: 1353.72 | N37: 1326.83 | O37: 1306.81 | P37: 1328.4 | Q37: 1292.2 | R37: 1291.98 | S37: 1253.82 | T37: 1275.39 | U37: 1245.24 | V37: 1211.23 | W37: 1260.77 | X37: 1321.19 | Y37: 1381.27 | Z37: 1429.93 | AA37: 1359.74 | AB37: 1399.15 | AC37: 1435.61 | AD37: 1409.19
A38: Catalyst Bremerton Charter | AA38: 165.4 | AB38: 297.9 | AC38: 439 | AD38: 483.32
A39: Centerville | B39: 64.61 | C39: 70.34 | D39: 84.39 | E39: 89.27 | F39: 86.22 | G39: 92.68 | H39: 80.34 | I39: 73.45 | J39: 68.67 | K39: 75.94 | L39: 85.28 | M39: 85.33 | N39: 87.22 | O39: 74.39 | P39: 80.39 | Q39: 80.43 | R39: 79.45 | S39: 77.1 | T39: 73.1 | U39: 75.45 | V39: 80.3 | W39: 88.74 | X39: 90.62 | Y39: 86.1 | Z39: 85.09 | AA39: 87.2 | AB39: 86.3 | AC39: 95.9 | AD39: 90
A40: Central Kitsap | B40: 12622.94 | C40: 13013.04 | D40: 13032.7 | E40: 13051.44 | F40: 12864.18 | G40: 12646.94 | H40: 12653.82 | I40: 12649.27 | J40: 12449.81 | K40: 12275.86 | L40: 12078.85 | M40: 11732.48 | N40: 11507.96 | O40: 11457.81 | P40: 11184.54 | Q40: 11089.71 | R40: 10941.89 | S40: 10687.97 | T40: 10535.71 | U40: 10545.36 | V40: 10786.05 | W40: 10996.3 | X40: 11201.52 | Y40: 11240.29 | Z40: 11630.25 | AA40: 10901.12 | AB40: 11096.06 | AC40: 10940.58 | AD40: 10877.99
A41: Central Valley | B41: 10269.93 | C41: 10271.27 | D41: 10344.46 | E41: 10342.06 | F41: 10461.92 | G41: 10670.13 | H41: 10661.14 | I41: 10788.17 | J41: 10861.23 | K41: 11216.9 | L41: 11587.95 | M41: 11784.04 | N41: 11816.67 | O41: 11925.44 | P41: 11975.03 | Q41: 11963.47 | R41: 11962.53 | S41: 12236.94 | T41: 12474.41 | U41: 12730.03 | V41: 13098.32 | W41: 13484.19 | X41: 13744.81 | Y41: 13938.88 | Z41: 14171.69 | AA41: 13799.26 | AB41: 14036.76 | AC41: 14119.37 | AD41: 14300.49
A42: Centralia | B42: 3291.17 | C42: 3256.18 | D42: 3213.69 | E42: 3192.66 | F42: 3150.75 | G42: 3146.44 | H42: 3110.57 | I42: 3151.71 | J42: 3169.3 | K42: 3209.22 | L42: 3278.35 | M42: 3295.02 | N42: 3259.96 | O42: 3258.78 | P42: 3264.43 | Q42: 3272.09 | R42: 3388.11 | S42: 3395.9 | T42: 3521.86 | U42: 3574.89 | V42: 3563.9 | W42: 3590.82 | X42: 3508.92 | Y42: 3442.73 | Z42: 3471.41 | AA42: 3324.23 | AB42: 3358.85 | AC42: 3399.52 | AD42: 3354.33
A43: Chehalis | B43: 2626.49 | C43: 2692.64 | D43: 2687.01 | E43: 2660 | F43: 2649.48 | G43: 2610.61 | H43: 2646.55 | I43: 2664.81 | J43: 2580.02 | K43: 2583.25 | L43: 2637.23 | M43: 2613.91 | N43: 2645.57 | O43: 2609.61 | P43: 2596.77 | Q43: 2627.67 | R43: 2681.64 | S43: 2637.65 | T43: 2721.07 | U43: 2781.25 | V43: 2806.64 | W43: 2833.81 | X43: 2821.91 | Y43: 2905.52 | Z43: 2974 | AA43: 2899.73 | AB43: 2837.71 | AC43: 2869.35 | AD43: 2939.86
A44: Cheney | B44: 3404.55 | C44: 3368.26 | D44: 3284.17 | E44: 3323.7 | F44: 3327.69 | G44: 3357.32 | H44: 3327.13 | I44: 3298.26 | J44: 3249.67 | K44: 3260.82 | L44: 3384.64 | M44: 3533.39 | N44: 3590 | O44: 3635.28 | P44: 3742.56 | Q44: 3789.71 | R44: 3909.79 | S44: 3981.22 | T44: 4102.93 | U44: 4247.14 | V44: 4391.18 | W44: 4575.03 | X44: 4675.81 | Y44: 4898.17 | Z44: 5013.21 | AA44: 4936.32 | AB44: 5159.4 | AC44: 5287.9 | AD44: 5417.06
A45: Chewelah | B45: 1242.68 | C45: 1321.99 | D45: 1261.78 | E45: 1293.41 | F45: 1298.46 | G45: 1285.69 | H45: 1247.95 | I45: 1195.19 | J45: 1168.05 | K45: 1108.17 | L45: 1098.47 | M45: 1093.2 | N45: 1033.16 | O45: 996 | P45: 931.93 | Q45: 863.46 | R45: 829.39 | S45: 806.93 | T45: 838.42 | U45: 856.85 | V45: 801.81 | W45: 783.06 | X45: 776.84 | Y45: 797.03 | Z45: 774.12 | AA45: 702.79 | AB45: 768.56 | AC45: 777.14 | AD45: 820.4
A46: Chief Leschi Tribal | Y46: 599.92 | Z46: 543.18 | AA46: 552.36 | AB46: 578.15 | AC46: 598.85 | AD46: 640.93
A47: Chimacum | B47: 1388.64 | C47: 1417.51 | D47: 1449.66 | E47: 1439.06 | F47: 1423.08 | G47: 1351.34 | H47: 1312.95 | I47: 1266.51 | J47: 1268.35 | K47: 1243.14 | L47: 1192.04 | M47: 1126.94 | N47: 1109.48 | O47: 1068.04 | P47: 1094.08 | Q47: 1090.54 | R47: 1058.47 | S47: 1012.95 | T47: 1070.53 | U47: 1052.05 | V47: 1046.83 | W47: 1036.44 | X47: 938.65 | Y47: 832.22 | Z47: 796.38 | AA47: 714.08 | AB47: 673.74 | AC47: 688.82 | AD47: 663.05
A48: Clarkston | B48: 2938.86 | C48: 2997.48 | D48: 3024.07 | E48: 2917.29 | F48: 2839.46 | G48: 2763.8 | H48: 2710.43 | I48: 2669.16 | J48: 2679.9 | K48: 2656.41 | L48: 2629.9 | M48: 2600.29 | N48: 2554.96 | O48: 2562.39 | P48: 2603.48 | Q48: 2596.68 | R48: 2596.61 | S48: 2594.73 | T48: 2600.97 | U48: 2582.67 | V48: 2630 | W48: 2629.5 | X48: 2579.82 | Y48: 2581.84 | Z48: 2587.13 | AA48: 2463.77 | AB48: 2424.22 | AC48: 2459.39 | AD48: 2425.06
A49: Cle Elum-Roslyn | B49: 1001.6 | C49: 1029.99 | D49: 976.64 | E49: 990.43 | F49: 962.18 | G49: 939.58 | H49: 956.49 | I49: 918.84 | J49: 903.15 | K49: 936.04 | L49: 972.49 | M49: 947.41 | N49: 919.41 | O49: 903.87 | P49: 892.63 | Q49: 912.36 | R49: 889.88 | S49: 889.04 | T49: 875.71 | U49: 889.86 | V49: 884.39 | W49: 874.88 | X49: 902.52 | Y49: 866.59 | Z49: 902.71 | AA49: 842.12 | AB49: 880.51 | AC49: 916.83 | AD49: 903.3
A50: Clover Park | B50: 12543.29 | C50: 12575.01 | D50: 12308.27 | E50: 12409.74 | F50: 12289.61 | G50: 12369.93 | H50: 12420.6 | I50: 12158.34 | J50: 11760.42 | K50: 11379.7 | L50: 11550.86 | M50: 10856.3 | N50: 11002.14 | O50: 10952.43 | P50: 10877.35 | Q50: 10879.46 | R50: 11382.69 | S50: 11601.72 | T50: 11767.73 | U50: 11812.32 | V50: 12211.04 | W50: 12611.54 | X50: 12709.93 | Y50: 12566.36 | Z50: 12557.18 | AA50: 11873.99 | AB50: 11925.18 | AC50: 11759.69 | AD50: 11818.82
A51: Colfax | B51: 773.65 | C51: 781.76 | D51: 774.69 | E51: 759.35 | F51: 748.67 | G51: 751.21 | H51: 734.49 | I51: 711.18 | J51: 697.42 | K51: 695.38 | L51: 686.21 | M51: 654.56 | N51: 655.94 | O51: 645.32 | P51: 626.92 | Q51: 624.54 | R51: 605.88 | S51: 600 | T51: 607.73 | U51: 582.04 | V51: 590.83 | W51: 583.74 | X51: 578.14 | Y51: 548.19 | Z51: 549.73 | AA51: 525.27 | AB51: 513.47 | AC51: 561.01 | AD51: 520.36
A52: College Place | B52: 845.68 | C52: 868.98 | D52: 857.34 | E52: 839.38 | F52: 790.32 | G52: 770.68 | H52: 776.13 | I52: 776.11 | J52: 806.09 | K52: 792.76 | L52: 759.19 | M52: 766.79 | N52: 754.28 | O52: 696.81 | P52: 692.59 | Q52: 717.71 | R52: 730.18 | S52: 730.38 | T52: 827.84 | U52: 987.42 | V52: 1197.47 | W52: 1307.8 | X52: 1425.19 | Y52: 1452.15 | Z52: 1590.59 | AA52: 1579.73 | AB52: 1517.7 | AC52: 1522.92 | AD52: 1489.7
A53: Colton | B53: 185.58 | C53: 177.89 | D53: 178.33 | E53: 180.02 | F53: 188.16 | G53: 186.05 | H53: 184.88 | I53: 190.35 | J53: 175.34 | K53: 174.49 | L53: 163.85 | M53: 169.54 | N53: 165.92 | O53: 168.77 | P53: 172.41 | Q53: 170.87 | R53: 164.23 | S53: 165.36 | T53: 158.59 | U53: 154.12 | V53: 137.49 | W53: 141.31 | X53: 149.14 | Y53: 176.24 | Z53: 169.89 | AA53: 154.25 | AB53: 155.27 | AC53: 140.96 | AD53: 129.26
A54: Columbia (Stevens) | B54: 227.8 | C54: 236.2 | D54: 214.22 | E54: 217.28 | F54: 217.72 | G54: 214.94 | H54: 191.94 | I54: 204.98 | J54: 196.22 | K54: 201.96 | L54: 205.99 | M54: 198.67 | N54: 192.22 | O54: 189.49 | P54: 194.59 | Q54: 191.35 | R54: 175.4 | S54: 170.29 | T54: 156.95 | U54: 155.99 | V54: 157.01 | W54: 151.74 | X54: 136.56 | Y54: 126.68 | Z54: 104.6 | AA54: 109.85 | AB54: 109.84 | AC54: 132.42 | AD54: 108.04
A55: Columbia (Walla Walla) | B55: 891.93 | C55: 870.57 | D55: 863.89 | E55: 864.11 | F55: 868.66 | G55: 870.16 | H55: 875.53 | I55: 902.63 | J55: 919.23 | K55: 899.88 | L55: 903.54 | M55: 891.93 | N55: 895.58 | O55: 876.18 | P55: 857.52 | Q55: 828.79 | R55: 841.3 | S55: 824.93 | T55: 843.28 | U55: 825.86 | V55: 788.79 | W55: 758.47 | X55: 747.85 | Y55: 748.48 | Z55: 753.39 | AA55: 692.94 | AB55: 716.14 | AC55: 755.38 | AD55: 767.07
A56: Colville | B56: 2534.21 | C56: 2521.64 | D56: 2447.62 | E56: 2392.55 | F56: 2394.65 | G56: 2270.02 | H56: 2171.5 | I56: 2079.92 | J56: 2034.78 | K56: 1981.71 | L56: 1966.31 | M56: 2055.11 | N56: 2146.34 | O56: 2334.95 | P56: 2697.81 | Q56: 2817.66 | R56: 2585.07 | S56: 1776.95 | T56: 1801.42 | U56: 1774.61 | V56: 1764.31 | W56: 1772.35 | X56: 1758.65 | Y56: 1800.43 | Z56: 1733.73 | AA56: 1580.62 | AB56: 1623.85 | AC56: 1692.02 | AD56: 1672.27
A57: Concrete | B57: 873.76 | C57: 866.38 | D57: 836.79 | E57: 902.07 | F57: 922.85 | G57: 866.72 | H57: 813.22 | I57: 790.33 | J57: 780.03 | K57: 756.35 | L57: 766.83 | M57: 739.98 | N57: 689.39 | O57: 676.85 | P57: 616.05 | Q57: 582.74 | R57: 543.28 | S57: 525.82 | T57: 523.37 | U57: 511.5 | V57: 522.99 | W57: 532.22 | X57: 513.22 | Y57: 500.66 | Z57: 508.94 | AA57: 495.15 | AB57: 484.5 | AC57: 494.44 | AD57: 503.2
A58: Conway | B58: 432.35 | C58: 437.27 | D58: 462.98 | E58: 443.07 | F58: 432.56 | G58: 431.46 | H58: 432.2 | I58: 408.56 | J58: 393.45 | K58: 395.04 | L58: 408.09 | M58: 402.25 | N58: 400.16 | O58: 400.39 | P58: 397.76 | Q58: 393.24 | R58: 412.65 | S58: 412.45 | T58: 414.85 | U58: 422 | V58: 413.1 | W58: 428.24 | X58: 437.44 | Y58: 441.13 | Z58: 457.56 | AA58: 448.05 | AB58: 452.17 | AC58: 435.48 | AD58: 419.6
A59: Cosmopolis | B59: 188.55 | C59: 189.67 | D59: 191.72 | E59: 203.11 | F59: 215.29 | G59: 196.83 | H59: 166.88 | I59: 158.55 | J59: 156.95 | K59: 156.44 | L59: 173.5 | M59: 171.34 | N59: 168.88 | O59: 166.4 | P59: 164.44 | Q59: 157.88 | R59: 142.98 | S59: 120.1 | T59: 121.71 | U59: 124.23 | V59: 141.91 | W59: 144.82 | X59: 148.14 | Y59: 152.02 | Z59: 167.5 | AA59: 162.59 | AB59: 164.45 | AC59: 176.1 | AD59: 170.3
A60: Coulee-Hartline | B60: 263.28 | C60: 240.63 | D60: 240.55 | E60: 242.36 | F60: 245.22 | G60: 240.82 | H60: 234.72 | I60: 212.32 | J60: 206.79 | K60: 192.6 | L60: 169.34 | M60: 159.73 | N60: 165.73 | O60: 165.78 | P60: 175.04 | Q60: 190.92 | R60: 193.41 | S60: 194.34 | T60: 187.94 | U60: 196.62 | V60: 200.4 | W60: 193.39 | X60: 199.35 | Y60: 206.22 | Z60: 218.09 | AA60: 205.01 | AB60: 211 | AC60: 198.31 | AD60: 195.45
A61: Coupeville | B61: 1138.11 | C61: 1149.43 | D61: 1162.19 | E61: 1130.6 | F61: 1115.42 | G61: 1086.52 | H61: 1058.83 | I61: 1088.71 | J61: 1130.87 | K61: 1152.8 | L61: 1134.26 | M61: 1110.77 | N61: 1110.09 | O61: 1049.19 | P61: 1022.88 | Q61: 980.94 | R61: 969.5 | S61: 925.72 | T61: 899.29 | U61: 872.9 | V61: 954.45 | W61: 980.54 | X61: 983.17 | Y61: 972.64 | Z61: 1021.86 | AA61: 984.08 | AB61: 966.85 | AC61: 1017.81 | AD61: 1008.05
A62: Crescent | B62: 293.02 | C62: 285.47 | D62: 246.09 | E62: 245.82 | F62: 211.63 | G62: 222.02 | H62: 211.52 | I62: 203.75 | J62: 185.9 | K62: 171.93 | L62: 268.23 | M62: 261.87 | N62: 273.5 | O62: 289.83 | P62: 351.9 | Q62: 340.89 | R62: 341.46 | S62: 317.25 | T62: 302.47 | U62: 270.04 | V62: 280.53 | W62: 320.65 | X62: 337.91 | Y62: 351.18 | Z62: 366.95 | AA62: 322.13 | AB62: 308.01 | AC62: 334.92 | AD62: 356.28
A63: Creston | B63: 114.4 | C63: 116.61 | D63: 116.01 | E63: 115.36 | F63: 110.39 | G63: 110.8 | H63: 108.08 | I63: 108.95 | J63: 107.63 | K63: 111.51 | L63: 117.19 | M63: 104.77 | N63: 105.79 | O63: 102.97 | P63: 103.76 | Q63: 93.64 | R63: 102.95 | S63: 92.19 | T63: 98.05 | U63: 95.15 | V63: 86.02 | W63: 90.9 | X63: 86.83 | Y63: 93.94 | Z63: 89.35 | AA63: 84.27 | AB63: 87.2 | AC63: 97.32 | AD63: 91.35
A64: Curlew | B64: 335.27 | C64: 303.17 | D64: 296.96 | E64: 297.35 | F64: 287.11 | G64: 255.4 | H64: 237.68 | I64: 230.54 | J64: 255.01 | K64: 246.77 | L64: 244.9 | M64: 246.35 | N64: 223.26 | O64: 219.41 | P64: 223.96 | Q64: 216.32 | R64: 204.7 | S64: 205.41 | T64: 208.7 | U64: 197.5 | V64: 170.03 | W64: 175.1 | X64: 211.1 | Y64: 244.95 | Z64: 248.75 | AA64: 286.19 | AB64: 265.52 | AC64: 244.47 | AD64: 262.26
A65: Cusick | B65: 349.59 | C65: 344.56 | D65: 342.02 | E65: 328.46 | F65: 306.2 | G65: 309.08 | H65: 298.87 | I65: 278.68 | J65: 268.23 | K65: 259.26 | L65: 266.91 | M65: 279.67 | N65: 278.75 | O65: 285.58 | P65: 293.63 | Q65: 275.08 | R65: 266.32 | S65: 266.55 | T65: 268.18 | U65: 263.09 | V65: 233.48 | W65: 231.36 | X65: 244.98 | Y65: 246.27 | Z65: 248.43 | AA65: 278.77 | AB65: 326.96 | AC65: 354.53 | AD65: 356.38
A66: Damman | B66: 34.05 | C66: 30.82 | D66: 36.73 | E66: 37.33 | F66: 32.83 | G66: 34.67 | H66: 34.17 | I66: 35.78 | J66: 35.06 | K66: 38.44 | L66: 36.23 | M66: 31.95 | N66: 34.61 | O66: 29.17 | P66: 36.72 | Q66: 39.08 | R66: 33.56 | S66: 41.4 | T66: 43 | U66: 37.3 | V66: 33.82 | W66: 33.8 | X66: 32.9 | Y66: 35.2 | Z66: 35.6 | AA66: 42 | AB66: 41 | AC66: 42 | AD66: 44
A67: Darrington | B67: 597.58 | C67: 602.48 | D67: 619.47 | E67: 612.93 | F67: 608.24 | G67: 581.53 | H67: 588.88 | I67: 574.01 | J67: 550.12 | K67: 537.05 | L67: 558.15 | M67: 537.76 | N67: 503.2 | O67: 452.82 | P67: 451.48 | Q67: 454.04 | R67: 430.97 | S67: 416.23 | T67: 432.46 | U67: 413.54 | V67: 412 | W67: 403.48 | X67: 394.42 | Y67: 404.62 | Z67: 415.33 | AA67: 385.71 | AB67: 411.48 | AC67: 424.1 | AD67: 431.01
A68: Davenport | B68: 458.59 | C68: 446.96 | D68: 449.45 | E68: 435.3 | F68: 432.22 | G68: 434.67 | H68: 436.26 | I68: 440.74 | J68: 495.32 | K68: 505.54 | L68: 552.06 | M68: 551.89 | N68: 566.19 | O68: 548.43 | P68: 567.85 | Q68: 545.65 | R68: 539.75 | S68: 518.68 | T68: 550.75 | U68: 585.97 | V68: 597.36 | W68: 594.9 | X68: 580.09 | Y68: 549.67 | Z68: 556.5 | AA68: 532.69 | AB68: 568.68 | AC68: 608.67 | AD68: 627.2
A69: Dayton | B69: 747.5 | C69: 727.89 | D69: 677.64 | E69: 654.28 | F69: 607.62 | G69: 588.61 | H69: 572.12 | I69: 552.85 | J69: 578.08 | K69: 529.84 | L69: 516.92 | M69: 501.74 | N69: 473.14 | O69: 476.82 | P69: 482.53 | Q69: 465.12 | R69: 446.54 | S69: 436.11 | T69: 427.3 | U69: 420.57 | V69: 392.54 | W69: 410.65 | X69: 399.74 | Y69: 384.92 | Z69: 394.7 | AA69: 386.21 | AB69: 350.42 | AC69: 356.97 | AD69: 339.77
A70: Deer Park | B70: 1603.08 | C70: 1698.55 | D70: 1783.05 | E70: 1812.69 | F70: 1837.41 | G70: 1874.54 | H70: 1896.17 | I70: 1971.34 | J70: 2028.08 | K70: 2123.15 | L70: 2219.23 | M70: 2321.07 | N70: 2342.61 | O70: 2400.64 | P70: 2499.43 | Q70: 2469.25 | R70: 2333.62 | S70: 2436.16 | T70: 2491.89 | U70: 2447.18 | V70: 2424.91 | W70: 2434.13 | X70: 2431.77 | Y70: 2513.21 | Z70: 2529.19 | AA70: 2488.77 | AB70: 2491.86 | AC70: 2642.08 | AD70: 2656.33
A71: Dieringer | B71: 941.62 | C71: 971.6 | D71: 1013.07 | E71: 1014.69 | F71: 1014.09 | G71: 1054.79 | H71: 1078.4 | I71: 1089.28 | J71: 1088.8 | K71: 1134.6 | L71: 1144.29 | M71: 1157.74 | N71: 1186.61 | O71: 1199.39 | P71: 1303.42 | Q71: 1344.53 | R71: 1386.34 | S71: 1411.68 | T71: 1419.23 | U71: 1459.96 | V71: 1476.7 | W71: 1428.19 | X71: 1462.64 | Y71: 1475.9 | Z71: 1523.71 | AA71: 1346.65 | AB71: 1370.25 | AC71: 1414.44 | AD71: 1396.14
A72: Dixie | B72: 37.27 | C72: 40.33 | D72: 36.62 | E72: 30.78 | F72: 32.44 | G72: 34.89 | H72: 36.6 | I72: 39.49 | J72: 38.95 | K72: 33 | L72: 29.39 | M72: 21.33 | N72: 21 | O72: 21.07 | P72: 25.61 | Q72: 25.88 | R72: 23.45 | S72: 32 | T72: 27.6 | U72: 22.9 | V72: 28 | W72: 18.7 | X72: 17.4 | Y72: 14.3 | Z72: 13.75 | AA72: 28.4 | AB72: 17.3 | AC72: 16.9 | AD72: 19
A73: East Valley (Spokane) | B73: 4491.31 | C73: 4513.51 | D73: 4574.24 | E73: 4653.61 | F73: 4685.89 | G73: 4568.28 | H73: 4489.94 | I73: 4410.24 | J73: 4261.4 | K73: 4168.43 | L73: 4095.62 | M73: 4051.12 | N73: 4024.62 | O73: 4134.57 | P73: 4233.29 | Q73: 4465.56 | R73: 4480.89 | S73: 4438.88 | T73: 4354.42 | U73: 4095.97 | V73: 4166.48 | W73: 4147.23 | X73: 4135.62 | Y73: 4015.96 | Z73: 3951.74 | AA73: 3581.52 | AB73: 3487.48 | AC73: 3451.45 | AD73: 3440.04
A74: East Valley (Yakima) | B74: 2097.78 | C74: 2177.77 | D74: 2188.37 | E74: 2233.68 | F74: 2277.1 | G74: 2317.86 | H74: 2292.23 | I74: 2248.63 | J74: 2270.05 | K74: 2392.09 | L74: 2465.02 | M74: 2587.62 | N74: 2624.83 | O74: 2645.43 | P74: 2685.68 | Q74: 2736.91 | R74: 2759.06 | S74: 2840.62 | T74: 2974.76 | U74: 3018.67 | V74: 3079.65 | W74: 3146.52 | X74: 3176.38 | Y74: 3193.66 | Z74: 3208.83 | AA74: 3132.57 | AB74: 3273.86 | AC74: 3358.46 | AD74: 3308.86
A75: Eastmont | B75: 4299.44 | C75: 4488.12 | D75: 4677.33 | E75: 4805.74 | F75: 4867.76 | G75: 4990.04 | H75: 5012.78 | I75: 5102.84 | J75: 5134.06 | K75: 5182.83 | L75: 5263.93 | M75: 5370.53 | N75: 5348.35 | O75: 5371.72 | P75: 5217.56 | Q75: 5271.37 | R75: 5358.23 | S75: 5373.5 | T75: 5520.01 | U75: 5658.64 | V75: 5802 | W75: 5968.67 | X75: 6089.1 | Y75: 6080.05 | Z75: 6079.92 | AA75: 5899.49 | AB75: 5790.39 | AC75: 5878.84 | AD75: 5859.46
A76: Easton | B76: 94.88 | C76: 102.83 | D76: 98.34 | E76: 95.95 | F76: 115.55 | G76: 119.88 | H76: 120.22 | I76: 121.21 | J76: 123.46 | K76: 118.71 | L76: 110.24 | M76: 101.58 | N76: 103.91 | O76: 85.35 | P76: 95.45 | Q76: 80.04 | R76: 80.11 | S76: 83.58 | T76: 105.13 | U76: 108.65 | V76: 106.99 | W76: 116.16 | X76: 107.94 | Y76: 104.89 | Z76: 93.74 | AA76: 85.94 | AB76: 86.38 | AC76: 84.29 | AD76: 84.64
A77: Eatonville | B77: 1934.73 | C77: 2003.21 | D77: 2000.37 | E77: 2013.39 | F77: 2028.51 | G77: 2026.54 | H77: 2015.59 | I77: 2013.7 | J77: 2008.49 | K77: 2070.39 | L77: 2091.1 | M77: 2078.05 | N77: 2008.34 | O77: 1959.56 | P77: 1985.36 | Q77: 1927.3 | R77: 1885.39 | S77: 1833.89 | T77: 1803.28 | U77: 1818.01 | V77: 1935.89 | W77: 1938.41 | X77: 1865.66 | Y77: 1912.49 | Z77: 1944.35 | AA77: 1801.06 | AB77: 1890.17 | AC77: 1955.56 | AD77: 1940.11
A78: Edmonds | B78: 19629.75 | C78: 20227.27 | D78: 20664 | E78: 20705.56 | F78: 20649.71 | G78: 20813.5 | H78: 20841.11 | I78: 20613.56 | J78: 20167.13 | K78: 20137.27 | L78: 20109.55 | M78: 19935.25 | N78: 19651.34 | O78: 19508.61 | P78: 19522.54 | Q78: 19570.46 | R78: 19405.76 | S78: 19477.07 | T78: 19558.89 | U78: 19690.14 | V78: 20252.33 | W78: 20631.83 | X78: 20556.04 | Y78: 20562.64 | Z78: 20828.17 | AA78: 20146.92 | AB78: 20039.39 | AC78: 19926.36 | AD78: 20033.96
A79: Ellensburg | B79: 2642.73 | C79: 2665.11 | D79: 2669.25 | E79: 2792.79 | F79: 2789.58 | G79: 2741.86 | H79: 2718.78 | I79: 2779.66 | J79: 2796.92 | K79: 2769.58 | L79: 2788.58 | M79: 2853.65 | N79: 2884.06 | O79: 2856.14 | P79: 2858.05 | Q79: 2888.63 | R79: 2856.11 | S79: 2836.09 | T79: 2935.96 | U79: 2973.02 | V79: 3203.14 | W79: 3272.64 | X79: 3280.47 | Y79: 3278.73 | Z79: 3316.73 | AA79: 3119.27 | AB79: 3229.55 | AC79: 3203.44 | AD79: 3246.28
A80: Elma | B80: 2033.98 | C80: 2024.64 | D80: 1987.72 | E80: 2009.49 | F80: 1983.17 | G80: 1928.6 | H80: 1939.56 | I80: 1901.99 | J80: 1839.25 | K80: 1852.88 | L80: 1802.57 | M80: 1788.59 | N80: 1711.66 | O80: 1673.62 | P80: 1645.1 | Q80: 1579.57 | R80: 1512.36 | S80: 1471.61 | T80: 1507.15 | U80: 1462.98 | V80: 1409.87 | W80: 1394.24 | X80: 1454.56 | Y80: 1500.74 | Z80: 1562.29 | AA80: 1499.29 | AB80: 1568.14 | AC80: 1691.06 | AD80: 1675.29
A81: Endicott | B81: 158.18 | C81: 154.01 | D81: 140.29 | E81: 140.21 | F81: 141.86 | G81: 119.8 | H81: 123.1 | I81: 108.94 | J81: 96.47 | K81: 92.69 | L81: 97.99 | M81: 91.9 | N81: 85.43 | O81: 69.71 | P81: 66.07 | Q81: 72.93 | R81: 74.56 | S81: 83.61 | T81: 72.39 | U81: 71.48 | V81: 81.09 | W81: 87.76 | X81: 89.23 | Y81: 84.5 | Z81: 80.51 | AA81: 79.82 | AB81: 74.39 | AC81: 69.64 | AD81: 79.51
A82: Entiat | B82: 364.09 | C82: 364.18 | D82: 376.35 | E82: 380.45 | F82: 385.5 | G82: 379.53 | H82: 374.25 | I82: 362.52 | J82: 355.29 | K82: 367.16 | L82: 363.41 | M82: 355.02 | N82: 352.95 | O82: 341.33 | P82: 338.36 | Q82: 330.53 | R82: 324.35 | S82: 329.55 | T82: 363.04 | U82: 345.91 | V82: 336.41 | W82: 340.77 | X82: 305.07 | Y82: 310.64 | Z82: 306.46 | AA82: 303.33 | AB82: 310 | AC82: 332.45 | AD82: 383.57
A83: Enumclaw | B83: 4765.39 | C83: 4869.94 | D83: 4990.68 | E83: 5020.76 | F83: 5005.86 | G83: 4930.42 | H83: 4903.01 | I83: 4856.99 | J83: 4720.63 | K83: 4718.28 | L83: 4635.04 | M83: 4540.05 | N83: 4395.86 | O83: 4299.81 | P83: 4441.84 | Q83: 4328.8 | R83: 4268.21 | S83: 4260.04 | T83: 4197.22 | U83: 3844.85 | V83: 3981.94 | W83: 3993.73 | X83: 4025.13 | Y83: 4036.61 | Z83: 4171.34 | AA83: 4001.02 | AB83: 4090.44 | AC83: 4252.81 | AD83: 4329.33
A84: Ephrata | B84: 2153.84 | C84: 2211.35 | D84: 2223.61 | E84: 2240.62 | F84: 2252.96 | G84: 2217.24 | H84: 2188.7 | I84: 2147.26 | J84: 2130.84 | K84: 2106.11 | L84: 2114.52 | M84: 2132.97 | N84: 2159.76 | O84: 2172.71 | P84: 2185.22 | Q84: 2191.82 | R84: 2177.99 | S84: 2192.93 | T84: 2314.47 | U84: 2361.76 | V84: 2340.32 | W84: 2453.32 | X84: 2530.57 | Y84: 2563.17 | Z84: 2616.41 | AA84: 2552.16 | AB84: 2575.53 | AC84: 2667.36 | AD84: 2709.28
A85: Evaline | B85: 41.78 | C85: 40.23 | D85: 42.72 | E85: 42 | F85: 40 | G85: 37.56 | H85: 34.56 | I85: 31.27 | J85: 32.22 | K85: 36.61 | L85: 40.99 | M85: 43.12 | N85: 46.72 | O85: 37.67 | P85: 36.55 | Q85: 31.22 | R85: 27.45 | S85: 45.4 | T85: 42.5 | U85: 35.25 | V85: 48.15 | W85: 51.7 | X85: 56.8 | Y85: 55 | Z85: 50.46 | AA85: 51.3 | AB85: 45.4 | AC85: 55.9 | AD85: 54.8
A86: Everett | B86: 16049.63 | C86: 16583.87 | D86: 16996.64 | E86: 17229.05 | F86: 17275.5 | G86: 17415.36 | H86: 17477.12 | I86: 17364.74 | J86: 17312.55 | K86: 17182.26 | L86: 17469.2 | M86: 17598.63 | N86: 17646.77 | O86: 17820.05 | P86: 17888.57 | Q86: 17862.84 | R86: 17767.62 | S86: 17760.19 | T86: 18249.95 | U86: 18685.31 | V86: 19297.75 | W86: 19781.43 | X86: 19927.48 | Y86: 20102.54 | Z86: 20340.93 | AA86: 19670.39 | AB86: 19749.07 | AC86: 19760.64 | AD86: 19722.41
A87: Evergreen (Clark) | B87: 16998.52 | C87: 17863.42 | D87: 18520.04 | E87: 19243.67 | F87: 20111.79 | G87: 20927.67 | H87: 21776.35 | I87: 22410.46 | J87: 23064.77 | K87: 23787.84 | L87: 24018.97 | M87: 24189.34 | N87: 24497.06 | O87: 25289.03 | P87: 25604.16 | Q87: 25600.21 | R87: 25592.09 | S87: 25912.37 | T87: 26437.34 | U87: 26365.29 | V87: 26303.56 | W87: 26478.93 | X87: 25929.83 | Y87: 25523.25 | Z87: 25159.24 | AA87: 23721.65 | AB87: 23022.6 | AC87: 22863.88 | AD87: 23830.83
A88: Evergreen (Stevens) | B88: 32.28 | C88: 34.72 | D88: 30.99 | E88: 29.22 | F88: 21.89 | G88: 19.6 | H88: 16.17 | I88: 15.17 | J88: 19.73 | K88: 20.78 | L88: 18.61 | M88: 15.11 | N88: 8.22 | O88: 7.06 | P88: 13.28 | Q88: 15.04 | R88: 15.65 | S88: 19.85 | T88: 27.7 | U88: 22.8 | V88: 25.5 | W88: 29 | X88: 35.5 | Y88: 34.6 | Z88: 35.23 | AA88: 31.3 | AB88: 27 | AC88: 32.6 | AD88: 31
A89: Federal Way | B89: 19386.4 | C89: 19808.22 | D89: 20241.22 | E89: 20721.94 | F89: 20987.74 | G89: 21300.7 | H89: 21318.21 | I89: 21114.63 | J89: 21246.07 | K89: 21430.51 | L89: 21434.64 | M89: 21249.04 | N89: 21128.07 | O89: 20992.01 | P89: 21010.98 | Q89: 20878.2 | R89: 21027.24 | S89: 20926.05 | T89: 21515.34 | U89: 21563.57 | V89: 22309.19 | W89: 22400.99 | X89: 22434.04 | Y89: 22266.05 | Z89: 22059.26 | AA89: 20905.02 | AB89: 20436.9 | AC89: 20713.33 | AD89: 20762.6
A90: Ferndale | B90: 4252.15 | C90: 4402.78 | D90: 4619.92 | E90: 4906.33 | F90: 4957.01 | G90: 4978.83 | H90: 5015.78 | I90: 5011.15 | J90: 5067.74 | K90: 5076.61 | L90: 5026.47 | M90: 5019.91 | N90: 4999.91 | O90: 5060.11 | P90: 5012.2 | Q90: 4973.71 | R90: 4926 | S90: 4934.76 | T90: 4848.47 | U90: 4621.54 | V90: 4679.66 | W90: 4686.52 | X90: 4680.32 | Y90: 4657.2 | Z90: 4695.95 | AA90: 4294.34 | AB90: 4367.41 | AC90: 4574.54 | AD90: 4539.78
A91: Fife | B91: 2404.33 | C91: 2480.77 | D91: 2536.04 | E91: 2666.4 | F91: 2687.22 | G91: 2817.75 | H91: 2919.2 | I91: 3004.67 | J91: 3104.63 | K91: 3107.23 | L91: 3134.46 | M91: 3233.68 | N91: 3313.84 | O91: 3356.71 | P91: 3340.2 | Q91: 3328 | R91: 3342.15 | S91: 3391.33 | T91: 3381.46 | U91: 3418.79 | V91: 3609.44 | W91: 3652.91 | X91: 3753.4 | Y91: 3760.49 | Z91: 3830.46 | AA91: 3709.37 | AB91: 3723.06 | AC91: 3854.07 | AD91: 3860.04
A92: Finley | B92: 1137.83 | C92: 1182.74 | D92: 1133.6 | E92: 1124.11 | F92: 1095.17 | G92: 1077.56 | H92: 1057.5 | I92: 999.79 | J92: 973.57 | K92: 970.6 | L92: 936.23 | M92: 939.76 | N92: 925.03 | O92: 923.66 | P92: 924.35 | Q92: 922 | R92: 933.03 | S92: 893.24 | T92: 904.1 | U92: 881.61 | V92: 887.42 | W92: 896.32 | X92: 866.66 | Y92: 865.89 | Z92: 857.87 | AA92: 868.69 | AB92: 840.66 | AC92: 872.63 | AD92: 850.46
A93: First Place Scholars Charter | U93: 82.9 | V93: 32.5
A94: Franklin Pierce | B94: 6418.89 | C94: 6518.35 | D94: 6636.15 | E94: 6810.06 | F94: 7033.19 | G94: 7209.06 | H94: 7493.59 | I94: 7377.35 | J94: 7370.77 | K94: 7317.08 | L94: 7263.7 | M94: 7245.4 | N94: 7236.79 | O94: 7185.78 | P94: 7205.13 | Q94: 7138.38 | R94: 7153.28 | S94: 7168.08 | T94: 7392.11 | U94: 7515.26 | V94: 7588.3 | W94: 7764.36 | X94: 7774.64 | Y94: 7814.7 | Z94: 7729.27 | AA94: 7411.75 | AB94: 7248.28 | AC94: 7215.96 | AD94: 7096.22
A95: Freeman | B95: 875.35 | C95: 878.88 | D95: 876.19 | E95: 876.95 | F95: 840.92 | G95: 852.51 | H95: 892.66 | I95: 895.03 | J95: 860.48 | K95: 859.63 | L95: 857.23 | M95: 894.72 | N95: 919.33 | O95: 921.04 | P95: 901.68 | Q95: 901.52 | R95: 908.91 | S95: 871.8 | T95: 865.37 | U95: 896.44 | V95: 865.2 | W95: 887.28 | X95: 895.63 | Y95: 895.26 | Z95: 908.19 | AA95: 849.03 | AB95: 858.68 | AC95: 881.66 | AD95: 844.39
A96: Garfield | B96: 170.53 | C96: 167.22 | D96: 165.24 | E96: 171.45 | F96: 168.21 | G96: 139.85 | H96: 121.44 | I96: 113.77 | J96: 115.75 | K96: 105.37 | L96: 110.16 | M96: 97.25 | N96: 99.64 | O96: 90.77 | P96: 81.86 | Q96: 88 | R96: 96.47 | S96: 103.5 | T96: 92.65 | U96: 101.74 | V96: 108.18 | W96: 106.64 | X96: 112.26 | Y96: 121.99 | Z96: 122.9 | AA96: 102.1 | AB96: 106 | AC96: 116.21 | AD96: 109.48
A97: Glenwood | B97: 121.17 | C97: 123.15 | D97: 124.22 | E97: 116.94 | F97: 104.81 | G97: 94.61 | H97: 93.29 | I97: 81.05 | J97: 80 | K97: 72.79 | L97: 66.16 | M97: 60.87 | N97: 57 | O97: 56.52 | P97: 68.66 | Q97: 64.94 | R97: 64.84 | S97: 60.77 | T97: 65.88 | U97: 64.42 | V97: 66.35 | W97: 71.5 | X97: 76.12 | Y97: 79.66 | Z97: 65.43 | AA97: 61.2 | AB97: 50.88 | AC97: 58.48 | AD97: 60.4
A98: Goldendale | B98: 1344.29 | C98: 1305.54 | D98: 1244.02 | E98: 1238.08 | F98: 1231.04 | G98: 1264.15 | H98: 1234.89 | I98: 1171.14 | J98: 1131.87 | K98: 1071.72 | L98: 1051.86 | M98: 1028.09 | N98: 1024.74 | O98: 1002.81 | P98: 977.66 | Q98: 970.81 | R98: 986.46 | S98: 948.33 | T98: 931.13 | U98: 906.73 | V98: 914.51 | W98: 933.63 | X98: 959.79 | Y98: 942.34 | Z98: 905.56 | AA98: 2189.13 | AB98: 2283.1 | AC98: 2914.75 | AD98: 2930.56
A99: Grand Coulee Dam | B99: 936.07 | C99: 922.15 | D99: 927.68 | E99: 893.76 | F99: 867.99 | G99: 837.81 | H99: 820.78 | I99: 816.09 | J99: 781.45 | K99: 780.89 | L99: 719.7 | M99: 706.22 | N99: 701.26 | O99: 651.88 | P99: 646.89 | Q99: 622.3 | R99: 628.31 | S99: 619.63 | T99: 674.88 | U99: 716.53 | V99: 689.16 | W99: 720.29 | X99: 711.67 | Y99: 727.06 | Z99: 723.75 | AA99: 713.48 | AB99: 717.77 | AC99: 729.08 | AD99: 701.17
A100: Grandview | B100: 2731.91 | C100: 2772.22 | D100: 2762.45 | E100: 2807.92 | F100: 2833.62 | G100: 2802.79 | H100: 2865.1 | I100: 2965.18 | J100: 2970.16 | K100: 3008.13 | L100: 3050.54 | M100: 3113.6 | N100: 3172.25 | O100: 3215.75 | P100: 3291.88 | Q100: 3331.18 | R100: 3441.19 | S100: 3449.43 | T100: 3532.45 | U100: 3590.82 | V100: 3623.2 | W100: 3679.16 | X100: 3675.02 | Y100: 3587.59 | Z100: 3567.94 | AA100: 3523.55 | AB100: 3484.26 | AC100: 3477.87 | AD100: 3496.33
A101: Granger | B101: 1151.44 | C101: 1152.79 | D101: 1200.5 | E101: 1222.77 | F101: 1229.6 | G101: 1232.51 | H101: 1242.33 | I101: 1250.58 | J101: 1229.63 | K101: 1285.05 | L101: 1280.76 | M101: 1354.95 | N101: 1400.94 | O101: 1387.01 | P101: 1409.88 | Q101: 1438.56 | R101: 1484.14 | S101: 1464.41 | T101: 1481.2 | U101: 1475.39 | V101: 1504.96 | W101: 1471.23 | X101: 1428.43 | Y101: 1443.61 | Z101: 1439.97 | AA101: 1431.28 | AB101: 1450.55 | AC101: 1396.09 | AD101: 1364.23
A102: Granite Falls | B102: 1579.38 | C102: 1708.83 | D102: 1761.44 | E102: 1930.95 | F102: 2048.33 | G102: 2110.75 | H102: 2172.57 | I102: 2260.34 | J102: 2275.42 | K102: 2289.22 | L102: 2265.98 | M102: 2235.81 | N102: 2219.87 | O102: 2183.14 | P102: 2162.9 | Q102: 2186.22 | R102: 2080.53 | S102: 1990.26 | T102: 1976.28 | U102: 1977.15 | V102: 2043.05 | W102: 2028.22 | X102: 1954.5 | Y102: 1956.28 | Z102: 2055.76 | AA102: 2061.54 | AB102: 2183.88 | AC102: 2220.27 | AD102: 2247.05
A103: Grapeview | B103: 208.89 | C103: 172.78 | D103: 176.12 | E103: 179.17 | F103: 169.33 | G103: 177.89 | H103: 154 | I103: 156.34 | J103: 154.06 | K103: 170.73 | L103: 179.63 | M103: 192.43 | N103: 196.44 | O103: 193.44 | P103: 202.54 | Q103: 202.43 | R103: 209.3 | S103: 203.45 | T103: 200.55 | U103: 205.92 | V103: 220.28 | W103: 217 | X103: 218 | Y103: 214.86 | Z103: 201.37 | AA103: 195.4 | AB103: 214.6 | AC103: 238.8 | AD103: 225.4
A104: Great Northern | B104: 31.12 | C104: 28.5 | D104: 38.28 | E104: 40.66 | F104: 40.5 | G104: 39.5 | H104: 41.56 | I104: 41.55 | J104: 39.39 | K104: 42.34 | L104: 34.27 | M104: 32.49 | N104: 35.73 | O104: 44.36 | P104: 44.4 | Q104: 40.42 | R104: 41.85 | S104: 41.44 | T104: 43.8 | U104: 45.45 | V104: 41.65 | W104: 48.25 | X104: 53.4 | Y104: 37.4 | Z104: 42.9 | AA104: 36.3 | AB104: 29.4 | AC104: 38.4 | AD104: 38.4
A105: Green Dot Destiny Charter | V105: 57.4 | W105: 252.6 | X105: 254.7 | Y105: 154.1
A106: Green Dot Excel Charter | V106: 41.8 | W106: 169.1 | X106: 164 | Y106: 172
A107: Green Dot Rainier Valley Charter | X107: 104.9 | Y107: 250 | Z107: 237.78 | AA107: 163.3 | AB107: 156.4 | AC107: 144.98 | AD107: 158.94
A108: Green Mountain | B108: 91.84 | C108: 98.33 | D108: 110.28 | E108: 115 | F108: 120.72 | G108: 107.32 | H108: 118.51 | I108: 114 | J108: 117.72 | K108: 113.34 | L108: 111.5 | M108: 111.56 | N108: 115.16 | O108: 113.27 | P108: 124.56 | Q108: 132.97 | R108: 145.2 | S108: 148.5 | T108: 137.5 | U108: 135.8 | V108: 158.8 | W108: 152.3 | X108: 157 | Y108: 160.9 | Z108: 160.78 | AA108: 154.79 | AB108: 155.31 | AC108: 171.55 | AD108: 168.2
A109: Griffin | B109: 620.67 | C109: 641.72 | D109: 612.32 | E109: 609.27 | F109: 575.2 | G109: 603.74 | H109: 597.96 | I109: 625.86 | J109: 657.58 | K109: 648.46 | L109: 634.16 | M109: 639.65 | N109: 621.79 | O109: 597.19 | P109: 615.45 | Q109: 617.02 | R109: 595 | S109: 612.28 | T109: 616.34 | U109: 613.34 | V109: 610.26 | W109: 626.36 | X109: 637.88 | Y109: 629.61 | Z109: 625.05 | AA109: 597.52 | AB109: 602.63 | AC109: 581.83 | AD109: 553.32
A110: Harrington | B110: 176.07 | C110: 178.84 | D110: 167.91 | E110: 163.43 | F110: 144.61 | G110: 142.03 | H110: 139.84 | I110: 143.22 | J110: 149.9 | K110: 138.77 | L110: 135.94 | M110: 118.09 | N110: 113.26 | O110: 122.75 | P110: 124.04 | Q110: 120.71 | R110: 108.46 | S110: 96.5 | T110: 97.4 | U110: 90.49 | V110: 90.42 | W110: 113.14 | X110: 128.1 | Y110: 122.91 | Z110: 126.09 | AA110: 119.69 | AB110: 112.74 | AC110: 130.6 | AD110: 108.63
A111: Highland | B111: 1089.24 | C111: 1094.53 | D111: 1099.76 | E111: 1146.71 | F111: 1124.02 | G111: 1119.28 | H111: 1098.09 | I111: 1122.33 | J111: 1098.08 | K111: 1139.81 | L111: 1132.34 | M111: 1095.12 | N111: 1087.29 | O111: 1087.46 | P111: 1109.47 | Q111: 1118.3 | R111: 1198.16 | S111: 1220.34 | T111: 1189.81 | U111: 1172.02 | V111: 1147.54 | W111: 1148.29 | X111: 1120.93 | Y111: 1123.95 | Z111: 1092.2 | AA111: 1050.95 | AB111: 1037.25 | AC111: 1063.34 | AD111: 1050.28
A112: Highline | B112: 17021.76 | C112: 17460.21 | D112: 17844.97 | E112: 17894.73 | F112: 17635.73 | G112: 17421.99 | H112: 17380.76 | I112: 17104.07 | J112: 16970.83 | K112: 16830.87 | L112: 16783.48 | M112: 16624.9 | N112: 16723.7 | O112: 17162.35 | P112: 17271.86 | Q112: 17260.98 | R112: 17628.71 | S112: 17924.85 | T112: 18687.35 | U112: 19038.16 | V112: 19399.35 | W112: 19402.95 | X112: 19196.26 | Y112: 18560.6 | Z112: 18498.95 | AA112: 18220.92 | AB112: 17786.31 | AC112: 17580.16 | AD112: 18181.63
A113: Hockinson | B113: 1195.88 | C113: 1205.58 | D113: 1235.7 | E113: 1214.75 | F113: 1270.21 | G113: 1319.87 | H113: 1373.23 | I113: 1459.83 | J113: 1672.09 | K113: 1878.92 | L113: 1955.29 | M113: 2004.11 | N113: 1984.6 | O113: 1967.83 | P113: 1926.88 | Q113: 1894.32 | R113: 1875.86 | S113: 1804.46 | T113: 1818.68 | U113: 1783.02 | V113: 1772.86 | W113: 1853.14 | X113: 1930.5 | Y113: 1951.4 | Z113: 2012.43 | AA113: 1808.96 | AB113: 1913.95 | AC113: 2001.42 | AD113: 1975.88
A114: Hood Canal | B114: 455.57 | C114: 451.54 | D114: 420.98 | E114: 371 | F114: 354.05 | G114: 342.67 | H114: 332.33 | I114: 309.56 | J114: 325.67 | K114: 289.83 | L114: 286.02 | M114: 293.84 | N114: 284.45 | O114: 274.16 | P114: 303.85 | Q114: 296.42 | R114: 309.96 | S114: 272.4 | T114: 281.6 | U114: 298.63 | V114: 299.35 | W114: 302.85 | X114: 301.6 | Y114: 295.43 | Z114: 313.46 | AA114: 293.2 | AB114: 308.64 | AC114: 326.67 | AD114: 307.94
A115: Hoquiam | B115: 2274.58 | C115: 2233.98 | D115: 2203.33 | E115: 2185.79 | F115: 2137 | G115: 2095.61 | H115: 2048.34 | I115: 2015.79 | J115: 1984.11 | K115: 1942.09 | L115: 1943.44 | M115: 1925.89 | N115: 1923.87 | O115: 1875.97 | P115: 1863.21 | Q115: 1725.09 | R115: 1630.07 | S115: 1577.05 | T115: 1669.34 | U115: 1663.16 | V115: 1660.81 | W115: 1642.12 | X115: 1657 | Y115: 1654.92 | Z115: 1599.55 | AA115: 1588.31 | AB115: 1566.63 | AC115: 1619.1 | AD115: 1575.32
A116: Impact Charter | Y116: 177.5 | Z116: 271.81 | AA116: 407.6 | AB116: 582.1 | AC116: 594 | AD116: 485.4
A117: Impact Salish Sea Charter | AA117: 124.2 | AB117: 277.1 | AC117: 332.6 | AD117: 317
A118: Impact-Black River Elementary Charter | AD118: 127.2
A119: Impact-Commencement Bay Elementary Charter | AB119: 259.37 | AC119: 325.5 | AD119: 259.6
A120: Inchelium | B120: 246.99 | C120: 244.39 | D120: 254.34 | E120: 252.04 | F120: 248.84 | G120: 255.46 | H120: 233.87 | I120: 221.61 | J120: 223.25 | K120: 221.75 | L120: 218.27 | M120: 195.75 | N120: 194.03 | O120: 199.18 | P120: 187.3 | Q120: 187.19 | R120: 202.01 | S120: 212.15 | T120: 208.45 | U120: 213.78 | V120: 212.1 | W120: 220.05 | X120: 218.07 | Y120: 209.23 | Z120: 213.75 | AA120: 219.15 | AB120: 219.49 | AC120: 198.85 | AD120: 185.76
A121: Index | B121: 29.56 | C121: 29.33 | D121: 37.05 | E121: 39.98 | F121: 26.03 | G121: 34.87 | H121: 46.09 | I121: 35.46 | J121: 25.76 | K121: 26.72 | L121: 22.83 | M121: 24.28 | N121: 20.39 | O121: 20.4 | P121: 27.27 | Q121: 29.44 | R121: 31.55 | S121: 20.9 | T121: 31.45 | U121: 38.05 | V121: 39.7 | W121: 33.35 | X121: 33.3 | Y121: 28.39 | Z121: 27.94 | AA121: 24.28 | AB121: 24.68 | AC121: 18.98 | AD121: 23.88
A122: Issaquah | B122: 10692.98 | C122: 11278.25 | D122: 12084.47 | E122: 12788.88 | F122: 12990.04 | G122: 13412.14 | H122: 13653.37 | I122: 13884.34 | J122: 14266.84 | K122: 14635.56 | L122: 15059.16 | M122: 15391.74 | N122: 15555.31 | O122: 15729.82 | P122: 16020.45 | Q122: 16359.5 | R122: 16778.02 | S122: 17360.84 | T122: 17770.25 | U122: 18330.11 | V122: 18919.04 | W122: 20102.88 | X122: 20522.12 | Y122: 20524.15 | Z122: 20871.99 | AA122: 19817.81 | AB122: 19209.82 | AC122: 19224.51 | AD122: 19057.04
A123: Kahlotus | B123: 91.84 | C123: 90.94 | D123: 96.06 | E123: 86.95 | F123: 86.94 | G123: 88.79 | H123: 91.23 | I123: 78.66 | J123: 76.5 | K123: 78.32 | L123: 72.88 | M123: 66 | N123: 60.69 | O123: 59.69 | P123: 58.31 | Q123: 53.08 | R123: 53.95 | S123: 53 | T123: 50.5 | U123: 46.6 | V123: 47 | W123: 48.4 | X123: 44.6 | Y123: 44.22 | Z123: 41.45 | AA123: 38.5 | AB123: 41 | AC123: 48.7 | AD123: 46.58
A124: Kalama | B124: 784.5 | C124: 825.54 | D124: 868.9 | E124: 909.36 | F124: 934.8 | G124: 955.55 | H124: 941.19 | I124: 959.3 | J124: 984.91 | K124: 987.98 | L124: 979.38 | M124: 983.18 | N124: 970.61 | O124: 984.81 | P124: 996.26 | Q124: 998.54 | R124: 949.93 | S124: 927.79 | T124: 894.02 | U124: 892.09 | V124: 919.38 | W124: 944.21 | X124: 1019.33 | Y124: 1020.73 | Z124: 1041.51 | AA124: 1020.29 | AB124: 1045.22 | AC124: 1148.23 | AD124: 1104.81
A125: Keller | B125: 58.89 | C125: 59.45 | D125: 48.4 | E125: 39.33 | F125: 43.33 | G125: 45.51 | H125: 52.11 | I125: 54 | J125: 53.11 | K125: 46.49 | L125: 41.28 | M125: 36 | N125: 33.83 | O125: 32.84 | P125: 22.66 | Q125: 23.88 | R125: 33.55 | S125: 25.35 | T125: 38.3 | U125: 30.45 | V125: 27.15 | W125: 29.4 | X125: 28.3 | Y125: 33.7 | Z125: 39.9 | AA125: 36.1 | AB125: 34.1 | AC125: 33.8 | AD125: 43.6
A126: Kelso | B126: 4949.16 | C126: 4991.5 | D126: 4966.32 | E126: 4961.67 | F126: 4940.53 | G126: 4984.27 | H126: 4980.24 | I126: 5037.65 | J126: 4993.68 | K126: 5028.03 | L126: 5002.74 | M126: 5022.69 | N126: 4887.57 | O126: 4811.9 | P126: 4764.35 | Q126: 4724.79 | R126: 4679.62 | S126: 4691.33 | T126: 4701.59 | U126: 4742.83 | V126: 4934.43 | W126: 4946.42 | X126: 5088.16 | Y126: 4990.13 | Z126: 4966.44 | AA126: 4731.26 | AB126: 4821.43 | AC126: 4980.84 | AD126: 4907.78
A127: Kennewick | B127: 12635.08 | C127: 12896.53 | D127: 12983.47 | E127: 13032.91 | F127: 13053.69 | G127: 13210.43 | H127: 13446.72 | I127: 13673.66 | J127: 13778.21 | K127: 13778.9 | L127: 13994.19 | M127: 14142.68 | N127: 14490.55 | O127: 14728.62 | P127: 15087.53 | Q127: 15471.16 | R127: 15810.74 | S127: 16188.06 | T127: 16753.08 | U127: 17108.88 | V127: 17746.63 | W127: 18343.2 | X127: 18628.23 | Y127: 18623.29 | Z127: 18809.92 | AA127: 18211.55 | AB127: 18324.58 | AC127: 18579.15 | AD127: 19823.41
A128: Kent | B128: 23215.03 | C128: 23692.75 | D128: 24488.83 | E128: 24811.41 | F128: 25099.54 | G128: 25274.51 | H128: 25436.62 | I128: 25457.44 | J128: 25594.18 | K128: 26026.92 | L128: 26102.74 | M128: 26107.65 | N128: 26066.98 | O128: 26004.07 | P128: 25989.93 | Q128: 25882.32 | R128: 25931.3 | S128: 26313.6 | T128: 26661.77 | U128: 26810.57 | V128: 27088.75 | W128: 27312.04 | X128: 27271.1 | Y128: 26669.45 | Z128: 26724.15 | AA128: 25323.18 | AB128: 24696.99 | AC128: 25206.72 | AD128: 25347.27
A129: Kettle Falls | B129: 858.2 | C129: 888.54 | D129: 872.74 | E129: 877.45 | F129: 856.79 | G129: 842.07 | H129: 816.35 | I129: 825.87 | J129: 829.21 | K129: 823.35 | L129: 820.54 | M129: 817.33 | N129: 785.14 | O129: 765.1 | P129: 974.56 | Q129: 912.74 | R129: 911.81 | S129: 891.64 | T129: 861.92 | U129: 879.8 | V129: 882.72 | W129: 935.46 | X129: 961.81 | Y129: 1017.81 | Z129: 1039.95 | AA129: 1053.39 | AB129: 1039.69 | AC129: 1072.75 | AD129: 1082.7
A130: Kiona-Benton City | B130: 1544.48 | C130: 1591.47 | D130: 1607.85 | E130: 1592.08 | F130: 1625.42 | G130: 1582.56 | H130: 1584.62 | I130: 1559.9 | J130: 1556.15 | K130: 1532.27 | L130: 1501.48 | M130: 1477.95 | N130: 1463.86 | O130: 1456.06 | P130: 1462.2 | Q130: 1413.05 | R130: 1392.9 | S130: 1381.26 | T130: 1424.92 | U130: 1437.93 | V130: 1447.91 | W130: 1427.31 | X130: 1413.56 | Y130: 1384.49 | Z130: 1362.91 | AA130: 1351.11 | AB130: 1398.69 | AC130: 1384.38 | AD130: 1348.17
A131: Kittitas | B131: 561.36 | C131: 546.3 | D131: 541.52 | E131: 533.57 | F131: 494.55 | G131: 502.74 | H131: 510.97 | I131: 512.9 | J131: 525.15 | K131: 560.03 | L131: 564.72 | M131: 608.37 | N131: 751.23 | O131: 821.86 | P131: 705.85 | Q131: 633.99 | R131: 598.69 | S131: 628.05 | T131: 646.87 | U131: 647.44 | V131: 633.83 | W131: 626.98 | X131: 669.21 | Y131: 662.69 | Z131: 648.71 | AA131: 596.54 | AB131: 575.37 | AC131: 593.27 | AD131: 551.27
A132: Klickitat | B132: 150.77 | C132: 172.61 | D132: 164.66 | E132: 167.19 | F132: 170.39 | G132: 175.15 | H132: 169.69 | I132: 162.64 | J132: 145.48 | K132: 137.11 | L132: 143.15 | M132: 133.09 | N132: 123.25 | O132: 110.21 | P132: 119.5 | Q132: 107.31 | R132: 97.27 | S132: 95.58 | T132: 90.42 | U132: 78.26 | V132: 69.01 | W132: 70.85 | X132: 71.17 | Y132: 86.49 | Z132: 80.1 | AA132: 74.05 | AB132: 94.67 | AC132: 92.27 | AD132: 84.95
A133: La Center | B133: 1186.53 | C133: 1237.19 | D133: 1249.19 | E133: 1316.2 | F133: 1352.78 | G133: 1313.64 | H133: 1327.63 | I133: 1272.75 | J133: 1262.97 | K133: 1319.61 | L133: 1411.2 | M133: 1415.13 | N133: 1482.31 | O133: 1500.4 | P133: 1481.42 | Q133: 1489.66 | R133: 1497.28 | S133: 1506.1 | T133: 1542.33 | U133: 1530.17 | V133: 1616.13 | W133: 1646.34 | X133: 1666.52 | Y133: 1655.86 | Z133: 1672.46 | AA133: 1560.37 | AB133: 1669.41 | AC133: 1707.53 | AD133: 1780.03
A134: La Conner | B134: 649.11 | C134: 633.6 | D134: 675.18 | E134: 657.78 | F134: 620.2 | G134: 622.61 | H134: 621.27 | I134: 619.2 | J134: 608.89 | K134: 613.39 | L134: 607.23 | M134: 627.75 | N134: 628.4 | O134: 608.92 | P134: 622.05 | Q134: 600.91 | R134: 595.31 | S134: 602.64 | T134: 607.18 | U134: 597.92 | V134: 612.32 | W134: 568.49 | X134: 591.16 | Y134: 596.94 | Z134: 613.59 | AA134: 603.57 | AB134: 564.69 | AC134: 531.6 | AD134: 508.51
A135: Lacrosse | B135: 153.23 | C135: 163.37 | D135: 153.27 | E135: 151.62 | F135: 149.55 | G135: 148.11 | H135: 150.22 | I135: 157.36 | J135: 148.11 | K135: 141.76 | L135: 139 | M135: 140.39 | N135: 144.16 | O135: 115.59 | P135: 106.96 | Q135: 89.62 | R135: 85.57 | S135: 80.12 | T135: 69.42 | U135: 64.74 | V135: 68.63 | W135: 59.17 | X135: 62.63 | Y135: 65.9 | Z135: 79.88 | AA135: 83.77 | AB135: 80.4 | AC135: 88.79 | AD135: 72.45
A136: Lake Chelan | B136: 1270.23 | C136: 1300.87 | D136: 1326.76 | E136: 1326.15 | F136: 1271.89 | G136: 1286.59 | H136: 1257.09 | I136: 1233.73 | J136: 1244.91 | K136: 1237.44 | L136: 1238.21 | M136: 1238.73 | N136: 1280.39 | O136: 1290.15 | P136: 1316.76 | Q136: 1295.63 | R136: 1333.06 | S136: 1343.33 | T136: 1379.3 | U136: 1420.94 | V136: 1439.02 | W136: 1433.39 | X136: 1408.31 | Y136: 1403.01 | Z136: 1372.07 | AA136: 1277.43 | AB136: 1256.07 | AC136: 1269.86 | AD136: 1267.62
A137: Lake Quinault | B137: 275.21 | C137: 287.41 | D137: 259.26 | E137: 260.11 | F137: 279.39 | G137: 252.7 | H137: 263.21 | I137: 264.85 | J137: 251.57 | K137: 245.88 | L137: 225.04 | M137: 239.6 | N137: 233.42 | O137: 220.9 | P137: 205.66 | Q137: 192.28 | R137: 170.08 | S137: 157.48 | T137: 163.58 | U137: 164.7 | V137: 168.04 | W137: 161.33 | X137: 171.4 | Y137: 178.21 | Z137: 199 | AA137: 180.68 | AB137: 177.6 | AC137: 200.36 | AD137: 205.48
A138: Lake Stevens | B138: 4946.29 | C138: 5381.21 | D138: 5723.2 | E138: 5888.21 | F138: 6223.2 | G138: 6389.29 | H138: 6643.01 | I138: 6808.83 | J138: 7045 | K138: 7116.79 | L138: 7331.02 | M138: 7267.58 | N138: 7299.81 | O138: 7361.3 | P138: 7495.59 | Q138: 7598.22 | R138: 7676.03 | S138: 7717.05 | T138: 7805.01 | U138: 7904.67 | V138: 8201.69 | W138: 8588.36 | X138: 8646.73 | Y138: 8857.3 | Z138: 9196.35 | AA138: 8801.62 | AB138: 9262.81 | AC138: 9353.36 | AD138: 9444.98
A139: Lake Washington | B139: 23099.61 | C139: 23430.04 | D139: 23564.13 | E139: 23337.75 | F139: 23113.79 | G139: 22743.37 | H139: 22718.36 | I139: 22665.26 | J139: 22735.01 | K139: 22748.07 | L139: 22718.8 | M139: 22682.31 | N139: 22628.96 | O139: 22782.12 | P139: 23115.28 | Q139: 23543.5 | R139: 23886.49 | S139: 24373.82 | T139: 25076.68 | U139: 25732.15 | V139: 27005.19 | W139: 29147.36 | X139: 29754.41 | Y139: 30241.39 | Z139: 31392.03 | AA139: 30657.42 | AB139: 30606.91 | AC139: 30590.55 | AD139: 31411.47
A140: Lakewood | B140: 1862.77 | C140: 1909.94 | D140: 2178.29 | E140: 2288.43 | F140: 2294.69 | G140: 2302.94 | H140: 2286.94 | I140: 2421.44 | J140: 2461.27 | K140: 2391.56 | L140: 2356.55 | M140: 2393.81 | N140: 2395.81 | O140: 2385.77 | P140: 2390.51 | Q140: 2262.63 | R140: 2266.12 | S140: 2201.76 | T140: 2215.74 | U140: 2207.42 | V140: 2262.9 | W140: 2324.02 | X140: 2394.75 | Y140: 2415.65 | Z140: 2500.9 | AA140: 2438.27 | AB140: 2519.16 | AC140: 2534.67 | AD140: 2579.96
A141: Lamont | B141: 38 | C141: 38.33 | D141: 40.7 | E141: 37.34 | F141: 45.88 | G141: 39.12 | H141: 35.29 | I141: 33.78 | J141: 25.34 | K141: 36.89 | L141: 37.34 | M141: 33.66 | N141: 32.66 | O141: 31.99 | P141: 26.11 | Q141: 19.77 | R141: 19.9 | S141: 29.1 | T141: 31.1 | U141: 32 | V141: 31.1 | W141: 29.9 | X141: 38.6 | Y141: 35 | Z141: 39.02 | AA141: 41.41 | AB141: 35.6 | AC141: 27.65 | AD141: 25.6
A142: Liberty | B142: 648.63 | C142: 640.71 | D142: 648.25 | E142: 647.27 | F142: 636.65 | G142: 585.02 | H142: 532.49 | I142: 507.85 | J142: 512.05 | K142: 502.41 | L142: 501.28 | M142: 488.35 | N142: 476.95 | O142: 454 | P142: 444.61 | Q142: 428.45 | R142: 408.14 | S142: 401.68 | T142: 398.84 | U142: 396.95 | V142: 441.64 | W142: 461.02 | X142: 501.27 | Y142: 511.66 | Z142: 545.3 | AA142: 536.68 | AB142: 564.58 | AC142: 577.62 | AD142: 592.26
A143: Lind | B143: 231.83 | C143: 242.4 | D143: 238.04 | E143: 236.55 | F143: 216.2 | G143: 216.86 | H143: 212.42 | I143: 208.9 | J143: 210.5 | K143: 213.16 | L143: 230.89 | M143: 224.91 | N143: 218.01 | O143: 200.99 | P143: 202.98 | Q143: 207.89 | R143: 189.69 | S143: 179.47 | T143: 180.95 | U143: 174.5 | V143: 193.24 | W143: 187.7 | X143: 193.53 | Y143: 197.93 | Z143: 189.99 | AA143: 196.44 | AB143: 192.69 | AC143: 202.34 | AD143: 181.37
A144: Longview | B144: 7134.73 | C144: 7116.44 | D144: 7159.97 | E144: 7228.94 | F144: 7102 | G144: 7059.25 | H144: 7140.59 | I144: 6995.25 | J144: 6977.84 | K144: 6887.42 | L144: 6908.22 | M144: 6905.73 | N144: 6844.31 | O144: 6723.03 | P144: 6603.7 | Q144: 6485.05 | R144: 6334.91 | S144: 6298.17 | T144: 6480.84 | U144: 6447.05 | V144: 6607.14 | W144: 6561.17 | X144: 6474.69 | Y144: 6482.81 | Z144: 6488.47 | AA144: 6155.17 | AB144: 6135.77 | AC144: 6175.53 | AD144: 6148.2
A145: Loon Lake | B145: 178.39 | C145: 166.39 | D145: 155.89 | E145: 144.39 | F145: 145.95 | G145: 135.73 | H145: 153.45 | I145: 145.17 | J145: 131.16 | K145: 161.77 | L145: 184.8 | M145: 197.4 | N145: 248.98 | O145: 258.5 | P145: 290.38 | Q145: 286.91 | R145: 210.43 | S145: 204.09 | T145: 211.97 | U145: 195.05 | V145: 197.57 | W145: 190.37 | X145: 213.97 | Y145: 219.4 | Z145: 224.89 | AA145: 259.24 | AB145: 233.7 | AC145: 230.7 | AD145: 246.28
A146: Lopez Island | B146: 277.88 | C146: 280.71 | D146: 268.57 | E146: 262.34 | F146: 254.46 | G146: 248.88 | H146: 254.22 | I146: 247.24 | J146: 259.79 | K146: 255.31 | L146: 239.59 | M146: 234.35 | N146: 229.61 | O146: 212.69 | P146: 213 | Q146: 211.55 | R146: 201.72 | S146: 214.09 | T146: 218.82 | U146: 230 | V146: 227.64 | W146: 230.26 | X146: 243.17 | Y146: 228.52 | Z146: 239.7 | AA146: 233.36 | AB146: 242.11 | AC146: 225.91 | AD146: 225.25
A147: Lumen Charter | AA147: 36.74 | AB147: 36.6 | AC147: 34.48 | AD147: 28.57
A148: Lummi Tribal | U148: 284.9 | V148: 268.66 | W148: 285.67 | X148: 315.21 | Y148: 334.03 | Z148: 380.83 | AA148: 396.97 | AB148: 393.4 | AC148: 386.65 | AD148: 397.2
A149: Lyle | B149: 418.26 | C149: 417.96 | D149: 405.33 | E149: 432.36 | F149: 415.07 | G149: 397.3 | H149: 385.64 | I149: 371.1 | J149: 379.82 | K149: 365.91 | L149: 365.51 | M149: 333.93 | N149: 320.48 | O149: 316.1 | P149: 297.04 | Q149: 297.79 | R149: 295.59 | S149: 264.01 | T149: 218.71 | U149: 233.6 | V149: 240.54 | W149: 228.6 | X149: 243.89 | Y149: 245.25 | Z149: 242.8 | AA149: 208.71 | AB149: 205.16 | AC149: 203.71 | AD149: 198.07
A150: Lynden | B150: 2366.32 | C150: 2437.11 | D150: 2440.96 | E150: 2484.23 | F150: 2475.74 | G150: 2433.72 | H150: 2416.6 | I150: 2470.36 | J150: 2533.29 | K150: 2629.29 | L150: 2645.71 | M150: 2660.83 | N150: 2684.34 | O150: 2642.63 | P150: 2700.69 | Q150: 2696.74 | R150: 2646.34 | S150: 2667.3 | T150: 2706.05 | U150: 2744.71 | V150: 2989.46 | W150: 3155.78 | X150: 3190.13 | Y150: 3358.82 | Z150: 3464.95 | AA150: 3297.55 | AB150: 3307.02 | AC150: 3440.29 | AD150: 3455.39
A151: Mabton | B151: 876.01 | C151: 854.6 | D151: 888.85 | E151: 903.3 | F151: 857.77 | G151: 820.81 | H151: 776.27 | I151: 802.54 | J151: 866.07 | K151: 865.94 | L151: 867.26 | M151: 895.68 | N151: 860.94 | O151: 901.4 | P151: 903.93 | Q151: 889.28 | R151: 925.01 | S151: 889.62 | T151: 911.14 | U151: 935.75 | V151: 939 | W151: 893.06 | X151: 869.82 | Y151: 827.09 | Z151: 855.25 | AA151: 841.8 | AB151: 804.39 | AC151: 769.32 | AD151: 721.14
A152: Mansfield | B152: 117.78 | C152: 141.66 | D152: 116.34 | E152: 119.16 | F152: 108.28 | G152: 103.08 | H152: 103.88 | I152: 115.23 | J152: 102.66 | K152: 83.84 | L152: 79.55 | M152: 82.5 | N152: 79.67 | O152: 75.6 | P152: 79.84 | Q152: 74.92 | R152: 84.25 | S152: 92.25 | T152: 79 | U152: 97.73 | V152: 92.1 | W152: 99.6 | X152: 90.6 | Y152: 88.67 | Z152: 93.19 | AA152: 87.3 | AB152: 89.5 | AC152: 98.03 | AD152: 100.59
A153: Manson | B153: 627.06 | C153: 609.11 | D153: 610.34 | E153: 609.98 | F153: 653.35 | G153: 636.92 | H153: 628.83 | I153: 601.45 | J153: 599.04 | K153: 583.19 | L153: 595.39 | M153: 601.61 | N153: 570.38 | O153: 567.64 | P153: 574.08 | Q153: 556.6 | R153: 640.36 | S153: 628.38 | T153: 656.87 | U153: 666.52 | V153: 660.27 | W153: 655.37 | X153: 622.45 | Y153: 605.17 | Z153: 626.65 | AA153: 612.79 | AB153: 598.94 | AC153: 616.18 | AD153: 649.3
A154: Mary M. Knight | B154: 210.3 | C154: 214.22 | D154: 207.95 | E154: 203.1 | F154: 204.37 | G154: 206.83 | H154: 198.19 | I154: 206.73 | J154: 195.73 | K154: 198.57 | L154: 170 | M154: 176.59 | N154: 172.79 | O154: 170.79 | P154: 180.6 | Q154: 181.9 | R154: 172.36 | S154: 188.52 | T154: 189.96 | U154: 175.67 | V154: 152.75 | W154: 575.98 | X154: 1129.77 | Y154: 1720.72 | Z154: 1736.91 | AA154: 2068.39 | AB154: 1408.03 | AC154: 1005.35 | AD154: 863.81
A155: Mary Walker | B155: 531.83 | C155: 556.69 | D155: 544.15 | E155: 536.15 | F155: 552.19 | G155: 544.26 | H155: 564.92 | I155: 578.24 | J155: 556.21 | K155: 563.24 | L155: 566.73 | M155: 575.16 | N155: 559.06 | O155: 554.43 | P155: 558.94 | Q155: 522.01 | R155: 527.44 | S155: 546.35 | T155: 492.54 | U155: 489.7 | V155: 934.71 | W155: 532.45 | X155: 497.58 | Y155: 459.25 | Z155: 468.57 | AA155: 420.64 | AB155: 461.11 | AC155: 492.13 | AD155: 488
A156: Marysville | B156: 9397.27 | C156: 9843.8 | D156: 10236.71 | E156: 10669.45 | F156: 10978.19 | G156: 11191.47 | H156: 11309.01 | I156: 11161.28 | J156: 10728.59 | K156: 10859.54 | L156: 11094.84 | M156: 11261.79 | N156: 11205.57 | O156: 11114.45 | P156: 10967.07 | Q156: 10873.66 | R156: 10789.59 | S156: 10711.77 | T156: 10895.15 | U156: 10764.24 | V156: 10835.04 | W156: 10831.38 | X156: 10721.73 | Y156: 10546.15 | Z156: 10344.67 | AA156: 9863.43 | AB156: 9840.05 | AC156: 9832.18 | AD156: 9453.57
A157: McCleary | B157: 304.4 | C157: 302.39 | D157: 281.83 | E157: 264.61 | F157: 274.45 | G157: 265.17 | H157: 262.83 | I157: 261.39 | J157: 265 | K157: 266.01 | L157: 268.88 | M157: 261.89 | N157: 247.41 | O157: 258.69 | P157: 280.7 | Q157: 305.47 | R157: 300.77 | S157: 284.64 | T157: 264.64 | U157: 265.7 | V157: 307.73 | W157: 333.18 | X157: 311.77 | Y157: 298.86 | Z157: 318.65 | AA157: 286.92 | AB157: 287.28 | AC157: 304.46 | AD157: 319.2
A158: Mead | B158: 7381.89 | C158: 7519.8 | D158: 7593.06 | E158: 7679.42 | F158: 7701.85 | G158: 7873.73 | H158: 8054.87 | I158: 8223.73 | J158: 8378.93 | K158: 8548.73 | L158: 8720.69 | M158: 8782.22 | N158: 8915.16 | O158: 9002.4 | P158: 9052.08 | Q158: 9234.18 | R158: 9173.91 | S158: 9142.67 | T158: 9287.24 | U158: 9480.31 | V158: 9545.26 | W158: 9745.65 | X158: 10224.89 | Y158: 10499.85 | Z158: 10517.09 | AA158: 10128.23 | AB158: 10197.5 | AC158: 10218.2 | AD158: 10111.08
A159: Medical Lake | B159: 2270.74 | C159: 2341.3 | D159: 2347.81 | E159: 2304.75 | F159: 2188.08 | G159: 2155.08 | H159: 2177.67 | I159: 2174.75 | J159: 2174.09 | K159: 2139.92 | L159: 2085.57 | M159: 2065.44 | N159: 2043.56 | O159: 2028.46 | P159: 1962.9 | Q159: 1904.69 | R159: 1805.59 | S159: 1772.05 | T159: 1773.44 | U159: 1759.44 | V159: 1807.34 | W159: 1843.41 | X159: 1849.18 | Y159: 1823.91 | Z159: 1828.39 | AA159: 1722.98 | AB159: 1752.27 | AC159: 1759.46 | AD159: 1717.02
A160: Mercer Island | B160: 3622.8 | C160: 3798.88 | D160: 3888.26 | E160: 4013.85 | F160: 4098.53 | G160: 4163.9 | H160: 4054.74 | I160: 4017.57 | J160: 4025.92 | K160: 4025.39 | L160: 3970.81 | M160: 3884.11 | N160: 3844.89 | O160: 3880.72 | P160: 3951.1 | Q160: 4040.67 | R160: 4123.61 | S160: 4118.71 | T160: 4136.22 | U160: 4227.53 | V160: 4243.68 | W160: 4398.67 | X160: 4451.95 | Y160: 4419.94 | Z160: 4358.16 | AA160: 4074.56 | AB160: 3996.87 | AC160: 3982.46 | AD160: 3920.39
A161: Meridian | B161: 1412.63 | C161: 1389.38 | D161: 1431.66 | E161: 1487.67 | F161: 1503.3 | G161: 1531.71 | H161: 1484.72 | I161: 1503.77 | J161: 1493.16 | K161: 1467.08 | L161: 1493.07 | M161: 1581.33 | N161: 1572.04 | O161: 1867.66 | P161: 2070.18 | Q161: 2259.59 | R161: 2057.26 | S161: 2223.27 | T161: 1683.96 | U161: 1636.59 | V161: 1714.13 | W161: 1704.92 | X161: 1751.49 | Y161: 1728 | Z161: 1785.13 | AA161: 1795.34 | AB161: 1730.42 | AC161: 1773.85 | AD161: 1816.57
A162: Methow Valley | B162: 783.4 | C162: 750.55 | D162: 758.91 | E162: 750.04 | F162: 704.31 | G162: 689.15 | H162: 651.18 | I162: 620.41 | J162: 623.87 | K162: 605.26 | L162: 562.26 | M162: 539.87 | N162: 541.56 | O162: 524.01 | P162: 509.05 | Q162: 532.99 | R162: 542.11 | S162: 556.25 | T162: 584.75 | U162: 591.94 | V162: 595.85 | W162: 612.3 | X162: 643.04 | Y162: 690.76 | Z162: 695.56 | AA162: 680 | AB162: 717.46 | AC162: 736.7 | AD162: 753.54
A163: Mill A | B163: 86.33 | C163: 64.88 | D163: 84.28 | E163: 77.72 | F163: 78.06 | G163: 74.06 | H163: 82.39 | I163: 80.78 | J163: 74.89 | K163: 74.71 | L163: 76.28 | M163: 65.77 | N163: 61.49 | O163: 54.01 | P163: 56.51 | Q163: 57.65 | R163: 56.05 | S163: 26.6 | T163: 22.85 | U163: 19.65 | V163: 19.94 | W163: 18.8 | X163: 29.78 | Y163: 43.22 | Z163: 50.51 | AA163: 41.31 | AB163: 52.75 | AC163: 68.05 | AD163: 68.71
A164: Monroe | B164: 4521.26 | C164: 4617.03 | D164: 4760 | E164: 5130.72 | F164: 5382 | G164: 5597.65 | H164: 5823.63 | I164: 5913.38 | J164: 6086.14 | K164: 6162.25 | L164: 6423.2 | M164: 6600.12 | N164: 6867.43 | O164: 7489.94 | P164: 7675.18 | Q164: 7558.81 | R164: 7313.79 | S164: 6986.43 | T164: 6818.54 | U164: 6788.97 | V164: 6585.04 | W164: 6734.25 | X164: 6712.65 | Y164: 6593.8 | Z164: 6515.07 | AA164: 5968.65 | AB164: 5795.59 | AC164: 5494.29 | AD164: 5458.05
A165: Montesano | B165: 1551.99 | C165: 1543.66 | D165: 1469.26 | E165: 1437 | F165: 1349.85 | G165: 1319.76 | H165: 1310.7 | I165: 1246.12 | J165: 1237.03 | K165: 1223.27 | L165: 1252.25 | M165: 1200.86 | N165: 1253.9 | O165: 1250.23 | P165: 1207.18 | Q165: 1209.88 | R165: 1192.27 | S165: 1209.5 | T165: 1235.35 | U165: 1252.29 | V165: 1342.34 | W165: 1384.87 | X165: 1371.65 | Y165: 1390.38 | Z165: 1423.3 | AA165: 1367.8 | AB165: 1349.6 | AC165: 1410.52 | AD165: 1400.38
A166: Morton | B166: 535.19 | C166: 513.86 | D166: 512.19 | E166: 490.82 | F166: 494.39 | G166: 468.73 | H166: 450.29 | I166: 461.48 | J166: 453.63 | K166: 421.41 | L166: 422.81 | M166: 379.17 | N166: 383.06 | O166: 342.09 | P166: 311.59 | Q166: 285.44 | R166: 285.83 | S166: 289.37 | T166: 293.55 | U166: 306.73 | V166: 315.44 | W166: 321.75 | X166: 302.74 | Y166: 314.15 | Z166: 342.65 | AA166: 316.18 | AB166: 392.36 | AC166: 413.16 | AD166: 401.81
A167: Moses Lake | B167: 5746.54 | C167: 5864.99 | D167: 5993.97 | E167: 6093 | F167: 6215.7 | G167: 6112.64 | H167: 6230.58 | I167: 6301.21 | J167: 6390.36 | K167: 6417.65 | L167: 6553.15 | M167: 6738.06 | N167: 6899 | O167: 7047.07 | P167: 7220.57 | Q167: 7324.81 | R167: 7447.85 | S167: 7578.96 | T167: 7928.56 | U167: 8082.28 | V167: 8309.11 | W167: 8517.88 | X167: 8616.61 | Y167: 8643.82 | Z167: 8755.63 | AA167: 8082.99 | AB167: 8327.82 | AC167: 8518.15 | AD167: 9154.29
A168: Mossyrock | B168: 646.75 | C168: 627.74 | D168: 604.12 | E168: 634.52 | F168: 616.29 | G168: 600.22 | H168: 599.59 | I168: 605.39 | J168: 596.82 | K168: 622.64 | L168: 635.08 | M168: 643.59 | N168: 621.5 | O168: 611.6 | P168: 579.32 | Q168: 558.15 | R168: 542.89 | S168: 513.1 | T168: 526.7 | U168: 515.95 | V168: 517.9 | W168: 508.56 | X168: 522.55 | Y168: 523.24 | Z168: 561.32 | AA168: 553.66 | AB168: 575.51 | AC168: 597.19 | AD168: 613.03
A169: Mount Adams | B169: 1154.89 | C169: 1183.5 | D169: 1177.35 | E169: 1142.12 | F169: 1128.23 | G169: 1059.31 | H169: 1019.43 | I169: 1004.78 | J169: 1006.08 | K169: 1015.55 | L169: 967.36 | M169: 952.6 | N169: 904.46 | O169: 904.91 | P169: 940.03 | Q169: 959.07 | R169: 996.42 | S169: 956.25 | T169: 974.13 | U169: 937.23 | V169: 918.31 | W169: 926.1 | X169: 902.41 | Y169: 888.52 | Z169: 864.4 | AA169: 855.96 | AB169: 842.66 | AC169: 884.81 | AD169: 864.62
A170: Mount Baker | B170: 1941.57 | C170: 1999.44 | D170: 2064.79 | E170: 2128.91 | F170: 2253.56 | G170: 2250.97 | H170: 2301.18 | I170: 2318.85 | J170: 2317.89 | K170: 2280.97 | L170: 2229.52 | M170: 2165.9 | N170: 2092.62 | O170: 2057.75 | P170: 2036.89 | Q170: 1990.16 | R170: 1896.45 | S170: 1798.24 | T170: 1782.73 | U170: 1791.75 | V170: 1859.45 | W170: 1852.21 | X170: 1811.34 | Y170: 1830.26 | Z170: 1787.06 | AA170: 1684.11 | AB170: 1631.64 | AC170: 1618.62 | AD170: 1567.79
A171: Mount Pleasant | B171: 52.27 | C171: 50.89 | D171: 53.56 | E171: 45.83 | F171: 53.77 | G171: 62.34 | H171: 59 | I171: 58.83 | J171: 59.55 | K171: 58.22 | L171: 56.84 | M171: 55.83 | N171: 51.34 | O171: 37.39 | P171: 44.61 | Q171: 52.04 | R171: 50.75 | S171: 41.35 | T171: 58.9 | U171: 57.6 | V171: 52.65 | W171: 61.8 | X171: 63.5 | Y171: 63.5 | Z171: 64.8 | AA171: 65.5 | AB171: 58.9 | AC171: 68.5 | AD171: 66.2
A172: Mount Vernon | B172: 4804.26 | C172: 4899.9 | D172: 5068.36 | E172: 5163.56 | F172: 5272.04 | G172: 5319.16 | H172: 5424.79 | I172: 5419.21 | J172: 5469.39 | K172: 5483.6 | L172: 5546.9 | M172: 5539.52 | N172: 5591.96 | O172: 5743.51 | P172: 5818.59 | Q172: 6037.89 | R172: 6227.22 | S172: 6203.26 | T172: 6458.77 | U172: 6613.41 | V172: 6695.86 | W172: 6749.36 | X172: 6830.44 | Y172: 6825.87 | Z172: 6845.54 | AA172: 6544.99 | AB172: 6586.07 | AC172: 6663.19 | AD172: 7182.45
A173: Muckleshoot Tribal | U173: 384.88 | V173: 416.69 | W173: 465.06 | X173: 490.18 | Y173: 523.42 | Z173: 531.62 | AA173: 557.59 | AB173: 534.53 | AC173: 550.98 | AD173: 542.97
A174: Mukilteo | B174: 11879.7 | C174: 12573.74 | D174: 12987.55 | E174: 13151.36 | F174: 13187.97 | G174: 13361.21 | H174: 13548.51 | I174: 13667.47 | J174: 13714.71 | K174: 13988.63 | L174: 13975.49 | M174: 14139.06 | N174: 14057.67 | O174: 14073.57 | P174: 14063.73 | Q174: 14301.36 | R174: 14529.74 | S174: 14569.88 | T174: 14692.82 | U174: 14770.08 | V174: 15119.84 | W174: 15339 | X174: 15663.78 | Y174: 15715.06 | Z174: 15749.52 | AA174: 15219.36 | AB174: 15063.77 | AC174: 15189.68 | AD174: 16326.31
A175: Naches Valley | B175: 1441.64 | C175: 1466.74 | D175: 1457.15 | E175: 1491.52 | F175: 1510.5 | G175: 1506.69 | H175: 1517.94 | I175: 1541.64 | J175: 1508.32 | K175: 1491.49 | L175: 1477.17 | M175: 1449.09 | N175: 1427.98 | O175: 1427.86 | P175: 1393.65 | Q175: 1381.33 | R175: 1363.95 | S175: 1327.19 | T175: 1306.29 | U175: 1299.22 | V175: 1302.66 | W175: 1306.49 | X175: 1276.42 | Y175: 1242.03 | Z175: 1259.58 | AA175: 1211 | AB175: 1230.63 | AC175: 1287.32 | AD175: 1277.54
A176: Napavine | B176: 636.35 | C176: 649.49 | D176: 649.48 | E176: 668.24 | F176: 668.09 | G176: 645.19 | H176: 645.47 | I176: 621.71 | J176: 663.83 | K176: 679.12 | L176: 688.76 | M176: 720.92 | N176: 728.99 | O176: 733.66 | P176: 746.96 | Q176: 728.94 | R176: 724.34 | S176: 750.09 | T176: 735.98 | U176: 749.4 | V176: 788.62 | W176: 798.63 | X176: 823.45 | Y176: 814.62 | Z176: 824.98 | AA176: 768.34 | AB176: 772.43 | AC176: 805.07 | AD176: 803.78
A177: Naselle-Grays River Valley | B177: 341.4 | C177: 329.07 | D177: 329.77 | E177: 315.18 | F177: 309.08 | G177: 325 | H177: 317.32 | I177: 314.49 | J177: 321.28 | K177: 331.2 | L177: 345.54 | M177: 339.99 | N177: 325.16 | O177: 317.22 | P177: 310.9 | Q177: 312.82 | R177: 538.42 | S177: 538.3 | T177: 503.72 | U177: 324.88 | V177: 346.9 | W177: 359.78 | X177: 357.47 | Y177: 332.25 | Z177: 326.64 | AA177: 310.38 | AB177: 308.62 | AC177: 309.67 | AD177: 313.04
A178: Nespelem | B178: 201.39 | C178: 205.89 | D178: 189.66 | E178: 195.84 | F178: 193.73 | G178: 199.5 | H178: 174.33 | I178: 161.05 | J178: 152.88 | K178: 156.73 | L178: 153.77 | M178: 141.88 | N178: 133.99 | O178: 133.55 | P178: 134.83 | Q178: 132.54 | R178: 139 | S178: 139.1 | T178: 132.9 | U178: 113.4 | V178: 117.1 | W178: 128.2 | X178: 132.7 | Y178: 141 | Z178: 133.19 | AA178: 131.93 | AB178: 129 | AC178: 122.6 | AD178: 118.6
A179: Newport | B179: 1447.99 | C179: 1463.52 | D179: 1400.32 | E179: 1337.53 | F179: 1253.86 | G179: 1218.84 | H179: 1172.8 | I179: 1153.15 | J179: 1152.38 | K179: 1131.94 | L179: 1094.45 | M179: 1097.95 | N179: 1082.12 | O179: 1088.64 | P179: 1056.3 | Q179: 1104.06 | R179: 1128.55 | S179: 1088.51 | T179: 1021.85 | U179: 1069.56 | V179: 1090.55 | W179: 1090.41 | X179: 1127.75 | Y179: 1115.41 | Z179: 1109.74 | AA179: 956.96 | AB179: 1014.94 | AC179: 1087.2 | AD179: 1145.39
A180: Nine Mile Falls | B180: 1340.36 | C180: 1423.12 | D180: 1435.39 | E180: 1501.37 | F180: 1538.3 | G180: 1554.64 | H180: 1563.25 | I180: 1567.9 | J180: 1553.62 | K180: 1586.03 | L180: 1650.79 | M180: 1669.88 | N180: 1676.22 | O180: 1638.45 | P180: 1617.67 | Q180: 1567.21 | R180: 1503.02 | S180: 1474.4 | T180: 1458.81 | U180: 1423.47 | V180: 1412.44 | W180: 1411.68 | X180: 1405.87 | Y180: 1395.42 | Z180: 1423.85 | AA180: 1326.17 | AB180: 1378.6 | AC180: 1404.78 | AD180: 1410.2
A181: Nooksack Valley | B181: 1675.65 | C181: 1701.79 | D181: 1740.25 | E181: 1734.36 | F181: 1736.56 | G181: 1759.67 | H181: 1768.87 | I181: 1715.67 | J181: 1717.1 | K181: 1680.41 | L181: 1646.21 | M181: 1607.99 | N181: 1573.9 | O181: 1560.97 | P181: 1537.95 | Q181: 1483.67 | R181: 1489.95 | S181: 1480.31 | T181: 1517.62 | U181: 1552.51 | V181: 1579.73 | W181: 1672.05 | X181: 1744.47 | Y181: 1798.55 | Z181: 1890.51 | AA181: 1841.31 | AB181: 1798.51 | AC181: 1867.51 | AD181: 1887.05
A182: North Beach | B182: 632.71 | C182: 643.14 | D182: 673.48 | E182: 674.82 | F182: 627.76 | G182: 641.99 | H182: 634.43 | I182: 640.85 | J182: 688.29 | K182: 697.39 | L182: 690.49 | M182: 665.33 | N182: 647.71 | O182: 634.93 | P182: 641.89 | Q182: 609.73 | R182: 625.7 | S182: 634.16 | T182: 628.31 | U182: 664.16 | V182: 669.84 | W182: 659.89 | X182: 682.2 | Y182: 702.59 | Z182: 706.86 | AA182: 735.36 | AB182: 712.37 | AC182: 649 | AD182: 643.4
A183: North Franklin | B183: 1742.1 | C183: 1785.37 | D183: 1805.06 | E183: 1819.8 | F183: 1795.47 | G183: 1830.4 | H183: 1815.38 | I183: 1795.11 | J183: 1784.22 | K183: 1759.02 | L183: 1722.17 | M183: 1687.64 | N183: 1715.66 | O183: 1781 | P183: 1850.64 | Q183: 1888.28 | R183: 2011.37 | S183: 2025.45 | T183: 2037.27 | U183: 2060.83 | V183: 2029.94 | W183: 2094.39 | X183: 2115.87 | Y183: 2095.4 | Z183: 2063.19 | AA183: 2034.38 | AB183: 2034.15 | AC183: 2012.56 | AD183: 1987
A184: North Kitsap | B184: 6475.03 | C184: 6524.37 | D184: 6618.99 | E184: 6654.71 | F184: 6645.77 | G184: 6616.76 | H184: 6669.35 | I184: 6743.05 | J184: 6635.77 | K184: 6665.75 | L184: 6578.88 | M184: 6394.63 | N184: 6421.43 | O184: 6410.55 | P184: 6421.21 | Q184: 6305.72 | R184: 6177.7 | S184: 6025.98 | T184: 5879.37 | U184: 5729.61 | V184: 5898.43 | W184: 5797.1 | X184: 5854.94 | Y184: 5825.01 | Z184: 5847.63 | AA184: 5315.19 | AB184: 5393.86 | AC184: 5294.66 | AD184: 5295.61
A185: North Mason | B185: 2238.69 | C185: 2313 | D185: 2268.44 | E185: 2253.82 | F185: 2237.61 | G185: 2255.04 | H185: 2294.61 | I185: 2281.71 | J185: 2278.09 | K185: 2237.75 | L185: 2215.3 | M185: 2206.37 | N185: 2174.13 | O185: 2131.12 | P185: 2078.6 | Q185: 2079.63 | R185: 2049.66 | S185: 2017.2 | T185: 2026.54 | U185: 2019.67 | V185: 2103.69 | W185: 2136.07 | X185: 2190.63 | Y185: 2256.32 | Z185: 2327.52 | AA185: 2200.79 | AB185: 2239.37 | AC185: 2256.42 | AD185: 2270.61
A186: North River | B186: 55.85 | C186: 50.34 | D186: 51.49 | E186: 51.99 | F186: 70.25 | G186: 55.93 | H186: 58.29 | I186: 51.49 | J186: 57.27 | K186: 59.59 | L186: 55.77 | M186: 62.13 | N186: 52.65 | O186: 52.81 | P186: 46.89 | Q186: 49.57 | R186: 48.94 | S186: 54.38 | T186: 50.39 | U186: 50.49 | V186: 65.55 | W186: 61.9 | X186: 70.4 | Y186: 66.34 | Z186: 66.71 | AA186: 69.06 | AB186: 83.63 | AC186: 72.07 | AD186: 59.22
A187: North Thurston | B187: 12441.56 | C187: 12432.39 | D187: 12370.56 | E187: 12433.32 | F187: 12238.65 | G187: 12267.33 | H187: 12258.11 | I187: 12383.36 | J187: 12381.87 | K187: 12411.41 | L187: 12505.17 | M187: 12722.24 | N187: 12946.29 | O187: 13119.41 | P187: 13225.11 | Q187: 13524.94 | R187: 13489.11 | S187: 13721.91 | T187: 14091.24 | U187: 14133.97 | V187: 14603.88 | W187: 14793.76 | X187: 14803.95 | Y187: 14910.55 | Z187: 15250.17 | AA187: 14446.63 | AB187: 14771.24 | AC187: 14808.76 | AD187: 14754.47
A188: Northport | B188: 229.54 | C188: 239.5 | D188: 236 | E188: 229.6 | F188: 207.72 | G188: 215.2 | H188: 195.1 | I188: 189.18 | J188: 201.17 | K188: 182.48 | L188: 179.75 | M188: 180.07 | N188: 201.18 | O188: 270.33 | P188: 354.62 | Q188: 280.85 | R188: 242.98 | S188: 286.76 | T188: 227.9 | U188: 240.38 | V188: 214.09 | W188: 225.84 | X188: 231.82 | Y188: 226.08 | Z188: 213.38 | AA188: 264.94 | AB188: 249.69 | AC188: 268.68 | AD188: 262.83
A189: Northshore | B189: 18287.45 | C189: 18789.46 | D189: 19143.61 | E189: 19389.48 | F189: 19284.55 | G189: 19326.69 | H189: 19295.99 | I189: 19248.29 | J189: 19184.38 | K189: 19254.81 | L189: 19387.58 | M189: 19183.63 | N189: 19003.8 | O189: 18708.61 | P189: 18618.63 | Q189: 18567.44 | R189: 18783.72 | S189: 19226.09 | T189: 19471.55 | U189: 19908.75 | V189: 20287.27 | W189: 21231.8 | X189: 22108.83 | Y189: 22738.84 | Z189: 23131.85 | AA189: 22680.87 | AB189: 22402.2 | AC189: 22378.21 | AD189: 22437.97
A190: Oak Harbor | B190: 5941.99 | C190: 6006.8 | D190: 5966.38 | E190: 6064 | F190: 6070.72 | G190: 5912.42 | H190: 5873.3 | I190: 5763.82 | J190: 5859.2 | K190: 5660.29 | L190: 5503.26 | M190: 5372.18 | N190: 5297.83 | O190: 5301.74 | P190: 5346.57 | Q190: 5381.69 | R190: 5337.48 | S190: 5155.69 | T190: 5260.43 | U190: 5310.13 | V190: 5625.91 | W190: 5736.68 | X190: 5797.42 | Y190: 5817.03 | Z190: 5852.8 | AA190: 5494.17 | AB190: 5472.52 | AC190: 5512.68 | AD190: 5606.23
A191: Oakesdale | B191: 156.8 | C191: 170.13 | D191: 176.8 | E191: 165.55 | F191: 150.41 | G191: 137.35 | H191: 136.47 | I191: 130.98 | J191: 125.14 | K191: 121.64 | L191: 104.77 | M191: 102.05 | N191: 112.92 | O191: 109.58 | P191: 110.53 | Q191: 107.25 | R191: 103.14 | S191: 101.91 | T191: 109.45 | U191: 105.05 | V191: 98.38 | W191: 109.46 | X191: 113.8 | Y191: 120.83 | Z191: 122.73 | AA191: 145.52 | AB191: 145.47 | AC191: 144.02 | AD191: 153.39
A192: Oakville | B192: 362.8 | C192: 342.47 | D192: 342.16 | E192: 319.36 | F192: 309.04 | G192: 282.03 | H192: 278.58 | I192: 279.27 | J192: 269.86 | K192: 257.84 | L192: 272.44 | M192: 258.03 | N192: 254.01 | O192: 260.33 | P192: 272.65 | Q192: 251.46 | R192: 275.71 | S192: 250.98 | T192: 248.14 | U192: 232.55 | V192: 214.39 | W192: 211.78 | X192: 233.17 | Y192: 228.6 | Z192: 282.11 | AA192: 287.22 | AB192: 323.9 | AC192: 331.84 | AD192: 305.35
A193: Ocean Beach | B193: 1339.2 | C193: 1352.44 | D193: 1362.96 | E193: 1303.47 | F193: 1243.76 | G193: 1160.85 | H193: 1156.06 | I193: 1147.13 | J193: 1100.11 | K193: 1080.05 | L193: 1011.34 | M193: 970.05 | N193: 928.01 | O193: 881.68 | P193: 877.36 | Q193: 862.16 | R193: 900.45 | S193: 903.66 | T193: 941.29 | U193: 974.81 | V193: 996.2 | W193: 1027.77 | X193: 1025.15 | Y193: 1025.88 | Z193: 1043.39 | AA193: 1001.23 | AB193: 1017.16 | AC193: 1014.3 | AD193: 985.81
A194: Ocosta | B194: 952.06 | C194: 929.9 | D194: 869.75 | E194: 784.35 | F194: 745.57 | G194: 704.34 | H194: 695.05 | I194: 694.69 | J194: 696.67 | K194: 696.4 | L194: 653.06 | M194: 636.3 | N194: 623.1 | O194: 632.36 | P194: 651.16 | Q194: 649.35 | R194: 631.53 | S194: 616.99 | T194: 647.6 | U194: 630.63 | V194: 611.66 | W194: 598.96 | X194: 580.33 | Y194: 617.37 | Z194: 612.74 | AA194: 598.15 | AB194: 560.64 | AC194: 565.08 | AD194: 581.66
A195: Odessa | B195: 313.27 | C195: 331.23 | D195: 344.51 | E195: 342.15 | F195: 317.4 | G195: 308.65 | H195: 282.04 | I195: 280.77 | J195: 270.22 | K195: 238.13 | L195: 230.23 | M195: 219.31 | N195: 217.23 | O195: 207.24 | P195: 206.33 | Q195: 198.41 | R195: 198.8 | S195: 190.63 | T195: 204.82 | U195: 212.24 | V195: 225.86 | W195: 237.37 | X195: 245.78 | Y195: 250.44 | Z195: 229.11 | AA195: 206.22 | AB195: 217.61 | AC195: 215.4 | AD195: 211.37
A196: Okanogan | B196: 1054.52 | C196: 1062.03 | D196: 1059.6 | E196: 1011.22 | F196: 1080.24 | G196: 1067.43 | H196: 962.2 | I196: 922.37 | J196: 944.4 | K196: 964.4 | L196: 980.95 | M196: 958.85 | N196: 936.43 | O196: 995.12 | P196: 1006.92 | Q196: 1038.54 | R196: 1013.79 | S196: 1009.97 | T196: 1100.72 | U196: 1066.75 | V196: 1126.71 | W196: 1099.55 | X196: 1110.48 | Y196: 1108.88 | Z196: 1141.64 | AA196: 1082.2 | AB196: 1042.54 | AC196: 1059.38 | AD196: 1058.09
A197: Olympia | B197: 8257.83 | C197: 8507.37 | D197: 8631.91 | E197: 8698.23 | F197: 8741.99 | G197: 8738.56 | H197: 8772.26 | I197: 8636.2 | J197: 8569.28 | K197: 8547.25 | L197: 8618.9 | M197: 8650.61 | N197: 8845.84 | O197: 8888.58 | P197: 8860.91 | Q197: 8766.44 | R197: 8733.33 | S197: 8841.16 | T197: 8980.94 | U197: 9204.51 | V197: 9603.79 | W197: 9852.94 | X197: 9901.19 | Y197: 9928.19 | Z197: 10066.41 | AA197: 9643.54 | AB197: 9579.35 | AC197: 9472.92 | AD197: 9454.27
A198: Omak | B198: 2169.04 | C198: 2165.22 | D198: 2108.89 | E198: 2057.81 | F198: 2057.91 | G198: 1998.25 | H198: 1913.2 | I198: 1883.25 | J198: 1801.7 | K198: 1708.68 | L198: 1669.28 | M198: 1668.06 | N198: 1640.22 | O198: 1597.5 | P198: 1618.13 | Q198: 2497.21 | R198: 2828.88 | S198: 4472.25 | T198: 4941.35 | U198: 4792.65 | V198: 5264.33 | W198: 5107.34 | X198: 5040.97 | Y198: 5364.99 | Z198: 5360.81 | AA198: 7746.55 | AB198: 6443.79 | AC198: 5870.09 | AD198: 5726.07
A199: Onalaska | B199: 909.04 | C199: 946.09 | D199: 962.91 | E199: 944.39 | F199: 922.1 | G199: 892.47 | H199: 863.38 | I199: 869.9 | J199: 885.52 | K199: 866.37 | L199: 868.02 | M199: 854.85 | N199: 854.19 | O199: 853.91 | P199: 868.76 | Q199: 764.41 | R199: 814.91 | S199: 723.98 | T199: 731.65 | U199: 733.21 | V199: 740.05 | W199: 780.4 | X199: 828.83 | Y199: 805 | Z199: 823.39 | AA199: 818.55 | AB199: 792.22 | AC199: 835.5 | AD199: 829.97
A200: Onion Creek | B200: 54.04 | C200: 57.06 | D200: 58.23 | E200: 60.84 | F200: 44.44 | G200: 45.66 | H200: 53.44 | I200: 42.99 | J200: 37.62 | K200: 47.49 | L200: 35.44 | M200: 36.95 | N200: 34.67 | O200: 28.12 | P200: 42.44 | Q200: 43.58 | R200: 37.3 | S200: 34.4 | T200: 37.7 | U200: 34.6 | V200: 40.9 | W200: 38.3 | X200: 30.1 | Y200: 39.02 | Z200: 37.69 | AA200: 42.6 | AB200: 47.4 | AC200: 38.5 | AD200: 40
A201: Orcas Island | B201: 529.26 | C201: 541.37 | D201: 562.98 | E201: 595.48 | F201: 523.64 | G201: 491.94 | H201: 530.05 | I201: 508.49 | J201: 495.23 | K201: 486.16 | L201: 510.88 | M201: 491.49 | N201: 464.52 | O201: 461.93 | P201: 524.87 | Q201: 667.8 | R201: 634.44 | S201: 781.78 | T201: 806.67 | U201: 805.11 | V201: 789.78 | W201: 785.56 | X201: 761.67 | Y201: 806.39 | Z201: 790.29 | AA201: 759.31 | AB201: 722.05 | AC201: 692.84 | AD201: 757.77
A202: Orchard Prairie | B202: 55 | C202: 55.94 | D202: 44.11 | E202: 52.17 | F202: 62.66 | G202: 63.33 | H202: 58.22 | I202: 57.17 | J202: 60.94 | K202: 59.39 | L202: 65.22 | M202: 63.39 | N202: 59.99 | O202: 65.28 | P202: 72.05 | Q202: 72.32 | R202: 68.3 | S202: 76.75 | T202: 73.1 | U202: 73.75 | V202: 75.4 | W202: 76.1 | X202: 68.7 | Y202: 76.8 | Z202: 75.58 | AA202: 77.76 | AB202: 68.7 | AC202: 71.6 | AD202: 73.4
A203: Orient | B203: 112.01 | C203: 102.5 | D203: 98.61 | E203: 101.11 | F203: 85.4 | G203: 80.61 | H203: 82.6 | I203: 86.95 | J203: 86.12 | K203: 86.94 | L203: 79.67 | M203: 85.98 | N203: 90.8 | O203: 161.36 | P203: 210.79 | Q203: 330 | R203: 336.67 | S203: 177.86 | T203: 102.74 | U203: 73.6 | V203: 71.94 | W203: 60.95 | X203: 70.28 | Y203: 46.5 | Z203: 48.91 | AA203: 43.98 | AB203: 32.5 | AC203: 39.52 | AD203: 33
... 135 more rows

Sheet FRPL (hidden)
A1: From CEDARS extract for SY2014-15 to present; formerly from http://www.k12.wa.us/ChildNutrition/Reports/FreeReducedMeals.aspx
B2: =COLUMN() -> 2 | C2: =COLUMN() -> 3 | D2: =COLUMN() -> 4 | E2: =COLUMN() -> 5 | F2: =COLUMN() -> 6 | G2: =COLUMN() -> 7 | H2: =COLUMN() -> 8 | I2: =COLUMN() -> 9 | J2: =COLUMN() -> 10 | K2: =COLUMN() -> 11 | L2: =COLUMN() -> 12 | M2: =COLUMN() -> 13 | N2: =COLUMN() -> 14 | O2: =COLUMN() -> 15 | P2: =COLUMN() -> 16 | Q2: =COLUMN() -> 17 | R2: =COLUMN() -> 18 | S2: =COLUMN() -> 19 | T2: =COLUMN() -> 20 | U2: =COLUMN() -> 21 | V2: =COLUMN() -> 22 | W2: =COLUMN() -> 23 | X2: =COLUMN() -> 24 | Y2: =COLUMN() -> 25 | Z2: =COLUMN() -> 26 | AA2: =COLUMN() -> 27 | AB2: =COLUMN() -> 28 | AC2: =COLUMN() -> 29 | AD2: =COLUMN() -> 30
A3: Sum of Amount | B3: SchoolYear | C3: DataTypeTtl
B4: 1995-96 | C4: 1996-97 | D4: 1997-98 | E4: 1998-99 | F4: 1999-00 | G4: 2000-01 | H4: 2001-02 | I4: 2002-03 | J4: 2003-04 | K4: 2004-05 | L4: 2005-06 | M4: 2006-07 | N4: 2007-08 | O4: 2008-09 | P4: 2009-10 | Q4: 2010-11 | R4: 2011-12 | S4: 2012-13 | T4: 2013-14 | U4: 2014-15 | V4: 2015-16 | W4: 2016-17 | X4: 2017-18 | Y4: 2018-19 | Z4: 2019-20 | AA4: 2020-21 | AB4: 2021-22 | AC4: 2022-23 | AD4: 2023-24
B5: Final | C5: Final | D5: Final | E5: Final | F5: Final | G5: Final | H5: Final | I5: Final | J5: Final | K5: Final | L5: Final | M5: Final | N5: Final | O5: Final | P5: Final | Q5: Final | R5: Final | S5: Final | T5: Final | U5: Final | V5: Final | W5: Final | X5: Final | Y5: Final | Z5: Final | AA5: Final | AB5: Final | AC5: Final | AD5: Final
A6: Total | B6: 0.306 | C6: 0.3116 | D6: 0.3089 | E6: 0.3138 | F6: 0.311 | G6: 0.3127 | H6: 0.3268 | I6: 0.3557 | J6: 0.3702 | K6: 0.375 | L6: 0.3794 | M6: 0.3749 | N6: 0.3823 | O6: 0.39567 | P6: 0.422148 | Q6: 0.440046 | R6: 0.455455 | S6: 0.456715 | T6: 0.451883 | U6: 0.4648 | V6: 0.457 | W6: 0.4499 | X6: 0.4351 | Y6: 0.4339 | Z6: 0.4405 | AA6: 0.4371 | AB6: 0.4229 | AC6: 0.4373 | AD6: 0.4594
A10: Sum of Amount | B10: SchoolYear | C10: DataTypeTtl
B11: 1995-96 | C11: 1996-97 | D11: 1997-98 | E11: 1998-99 | F11: 1999-00 | G11: 2000-01 | H11: 2001-02 | I11: 2002-03 | J11: 2003-04 | K11: 2004-05 | L11: 2005-06 | M11: 2006-07 | N11: 2007-08 | O11: 2008-09 | P11: 2009-10 | Q11: 2010-11 | R11: 2011-12 | S11: 2012-13 | T11: 2013-14 | U11: 2014-15 | V11: 2015-16 | W11: 2016-17 | X11: 2017-18 | Y11: 2018-19 | Z11: 2019-20 | AA11: 2020-21 | AB11: 2021-22 | AC11: 2022-23 | AD11: 2023-24
A12: DistTitle | B12: Final | C12: Final | D12: Final | E12: Final | F12: Final | G12: Final | H12: Final | I12: Final | J12: Final | K12: Final | L12: Final | M12: Final | N12: Final | O12: Final | P12: Final | Q12: Final | R12: Final | S12: Final | T12: Final | U12: Final | V12: Final | W12: Final | X12: Final | Y12: Final | Z12: Final | AA12: Final | AB12: Final | AC12: Final | AD12: Final
A13: Aberdeen | B13: 0.4582 | C13: 0.4633 | D13: 0.4893 | E13: 0.4649 | F13: 0.4881 | G13: 0.5168 | H13: 0.5309 | I13: 0.5611 | J13: 0.5624 | K13: 0.539222 | L13: 0.542585 | M13: 0.554025 | N13: 0.557479 | O13: 0.587711 | P13: 0.612129 | Q13: 0.629916 | R13: 0.73971 | S13: 0.632452 | T13: 0.727777 | U13: 0.7016 | V13: 0.6734 | W13: 0.671 | X13: 0.660479 | Y13: 0.677685 | Z13: 0.6793 | AA13: 0.7192 | AB13: 0.7194 | AC13: 0.7253 | AD13: 0.6727
A14: Adna | B14: 0.2188 | C14: 0.2059 | D14: 0.2117 | E14: 0.2259 | F14: 0.2064 | G14: 0.1996 | H14: 0.1911 | I14: 0.2543 | J14: 0.2721 | K14: 0.259965 | L14: 0.260105 | M14: 0.287648 | N14: 0.24232 | O14: 0.272425 | P14: 0.323777 | Q14: 0.314381 | R14: 0.351081 | S14: 0.333922 | T14: 0.299392 | U14: 0.2484 | V14: 0.3006 | W14: 0.303 | X14: 0.283255 | Y14: 0.289062 | Z14: 0.2676 | AA14: 0.2844 | AB14: 0.278 | AC14: 0.2572 | AD14: 0.2202
A15: Almira | B15: 0.2897 | C15: 0.3434 | D15: 0.3789 | E15: 0.3939 | F15: 0.3137 | G15: 0.4362 | H15: 0.3878 | I15: 0.3171 | J15: 0.3797 | K15: 0.354838 | L15: 0.372881 | M15: 0.368421 | N15: 0.403669 | O15: 0.413793 | P15: 0.447916 | Q15: 0.480769 | R15: 0.40594 | S15: 0.377358 | T15: 0.417475 | U15: 0.3913 | V15: 0.3578 | W15: 0.3458 | X15: 0.379629 | Y15: 0.375 | Z15: 0.3796 | AA15: 0.3277 | AB15: 0.3644 | AC15: 0.3083 | AD15: 0.4236
A16: Anacortes | B16: 0.2035 | C16: 0.23 | D16: 0.2248 | E16: 0.2173 | F16: 0.2102 | G16: 0.2028 | H16: 0.2161 | I16: 0.2426 | J16: 0.2609 | K16: 0.256192 | L16: 0.263391 | M16: 0.243142 | N16: 0.317851 | O16: 0.300149 | P16: 0.295026 | Q16: 0.298976 | R16: 0.317371 | S16: 0.311771 | T16: 0.30675 | U16: 0.3164 | V16: 0.3096 | W16: 0.3138 | X16: 0.277939 | Y16: 0.276062 | Z16: 0.265 | AA16: 0.2518 | AB16: 0.2631 | AC16: 0.2899 | AD16: 0.3188
A17: Arlington | B17: 0.1873 | C17: 0.189 | D17: 0.1475 | E17: 0.1331 | F17: 0.1337 | G17: 0.138 | H17: 0.1747 | I17: 0.2028 | J17: 0.224 | K17: 0.238869 | L17: 0.18995 | M17: 0.21833 | N17: 0.197716 | O17: 0.236801 | P17: 0.245569 | Q17: 0.25593 | R17: 0.339304 | S17: 0.349339 | T17: 0.301601 | U17: 0.3487 | V17: 0.3492 | W17: 0.3496 | X17: 0.329798 | Y17: 0.319524 | Z17: 0.3292 | AA17: 0.3415 | AB17: 0.3478 | AC17: 0.324 | AD17: 0.3799
A18: Asotin-Anatone | B18: 0.2925 | C18: 0.2761 | D18: 0.3222 | E18: 0.269 | F18: 0.2669 | G18: 0.2568 | H18: 0.2766 | I18: 0.2685 | J18: 0.2706 | K18: 0.287128 | L18: 0.353765 | M18: 0.31129 | N18: 0.335413 | O18: 0.304012 | P18: 0.329941 | Q18: 0.343657 | R18: 0.354984 | S18: 0.331306 | T18: 0.308755 | U18: 0.3323 | V18: 0.3231 | W18: 0.3209 | X18: 0.312594 | Y18: 0.288961 | Z18: 0.3124 | AA18: 0.3685 | AB18: 0.317 | AC18: 0.2616 | AD18: 0.3514
A19: Auburn | B19: 0.3066 | C19: 0.2997 | D19: 0.3436 | E19: 0.3194 | F19: 0.317 | G19: 0.3006 | H19: 0.3354 | I19: 0.3783 | J19: 0.4206 | K19: 0.398257 | L19: 0.384951 | M19: 0.365739 | N19: 0.371642 | O19: 0.413881 | P19: 0.463159 | Q19: 0.479591 | R19: 0.515554 | S19: 0.530477 | T19: 0.562193 | U19: 0.5618 | V19: 0.5559 | W19: 0.5576 | X19: 0.543392 | Y19: 0.524118 | Z19: 0.5498 | AA19: 0.5611 | AB19: 0.55 | AC19: 0.5684 | AD19: 0.5651
A20: Bainbridge Island | B20: 0.0516 | C20: 0.055 | D20: 0.0608 | E20: 0.0464 | F20: 0.0489 | G20: 0.043 | H20: 0.0458 | I20: 0.0581 | J20: 0.0568 | K20: 0.062651 | L20: 0.055963 | M20: 0.058908 | N20: 0.061725 | O20: 0.051702 | P20: 0.064779 | Q20: 0.072489 | R20: 0.07326 | S20: 0.065182 | T20: 0.072847 | U20: 0.0834 | V20: 0.0778 | W20: 0.0788 | X20: 0.077462 | Y20: 0.070803 | Z20: 0.063 | AA20: 0.0742 | AB20: 0.0718 | AC20: 0.0698 | AD20: 0.0883
A21: Battle Ground | B21: 0.1637 | C21: 0.1609 | D21: 0.1565 | E21: 0.1574 | F21: 0.1594 | G21: 0.1581 | H21: 0.2 | I21: 0.2216 | J21: 0.2792 | K21: 0.316263 | L21: 0.321582 | M21: 0.287579 | N21: 0.306683 | O21: 0.366304 | P21: 0.403607 | Q21: 0.428033 | R21: 0.400791 | S21: 0.36753 | T21: 0.364711 | U21: 0.3859 | V21: 0.3646 | W21: 0.3653 | X21: 0.346808 | Y21: 0.320888 | Z21: 0.3196 | AA21: 0.3205 | AB21: 0.3194 | AC21: 0.3435 | AD21: 0.373
A22: Bellevue | B22: 0.1522 | C22: 0.1546 | D22: 0.1639 | E22: 0.1531 | F22: 0.1495 | G22: 0.1424 | H22: 0.1325 | I22: 0.1762 | J22: 0.1803 | K22: 0.18242 | L22: 0.185904 | M22: 0.175371 | N22: 0.177222 | O22: 0.175608 | P22: 0.206046 | Q22: 0.217512 | R22: 0.212135 | S22: 0.206155 | T22: 0.195084 | U22: 0.1966 | V22: 0.193 | W22: 0.1931 | X22: 0.185438 | Y22: 0.172924 | Z22: 0.1741 | AA22: 0.1654 | AB22: 0.1591 | AC22: 0.1701 | AD22: 0.209
A23: Bellingham | B23: 0.2811 | C23: 0.2606 | D23: 0.2683 | E23: 0.262 | F23: 0.257 | G23: 0.2707 | H23: 0.2852 | I23: 0.2974 | J23: 0.3209 | K23: 0.300326 | L23: 0.30785 | M23: 0.30624 | N23: 0.318 | O23: 0.343701 | P23: 0.364895 | Q23: 0.375363 | R23: 0.373898 | S23: 0.370908 | T23: 0.350896 | U23: 0.382 | V23: 0.3833 | W23: 0.3819 | X23: 0.372384 | Y23: 0.348442 | Z23: 0.34 | AA23: 0.3378 | AB23: 0.3183 | AC23: 0.3071 | AD23: 0.3319
A24: Benge | Y24: 0.071428 | Z24: 0.2143 | AA24: 0.1053 | AB24: 0.0556 | AC24: 0.1667 | AD24: 0
A25: Bethel | B25: 0.3268 | C25: 0.3248 | D25: 0.3133 | E25: 0.3315 | F25: 0.3065 | G25: 0.2982 | H25: 0.3018 | I25: 0.306 | J25: 0.3447 | K25: 0.324438 | L25: 0.340334 | M25: 0.364498 | N25: 0.373233 | O25: 0.368142 | P25: 0.398972 | Q25: 0.433072 | R25: 0.45699 | S25: 0.452161 | T25: 0.448181 | U25: 0.5003 | V25: 0.4693 | W25: 0.4687 | X25: 0.528964 | Y25: 0.480439 | Z25: 0.4957 | AA25: 0.5096 | AB25: 0.4871 | AC25: 0.4578 | AD25: 0.4975
A26: Bickleton | U26: 0.0714 | V26: 0.0814 | W26: 0.0814 | X26: 0.115789 | Y26: 0.235772 | Z26: 0.4425 | AA26: 0.3952 | AB26: 0.1795 | AC26: 0.4737 | AD26: 0.3077
A27: Blaine | B27: 0.3928 | C27: 0.6121 | D27: 0.3756 | E27: 0.351 | F27: 0.3128 | G27: 0.3552 | H27: 0.3746 | I27: 0.3887 | J27: 0.4207 | K27: 0.487974 | L27: 0.455656 | M27: 0.46136 | N27: 0.474035 | O27: 0.427232 | P27: 0.431506 | Q27: 0.460941 | R27: 0.471046 | S27: 0.540927 | T27: 0.474692 | U27: 0.4564 | V27: 0.4671 | W27: 0.4665 | X27: 0.456315 | Y27: 0.467386 | Z27: 0.4664 | AA27: 0.4742 | AB27: 0.4418 | AC27: 0.4567 | AD27: 0.4617
A28: Boistfort | B28: 0.4444 | C28: 0.5036 | D28: 0.5714 | E28: 0.5439 | F28: 0.4831 | G28: 0.5579 | H28: 0.6596 | I28: 0.6042 | J28: 0.625 | K28: 0.544554 | L28: 0.564102 | M28: 0.552083 | N28: 0.425287 | O28: 0.516483 | P28: 0.548076 | Q28: 0.553191 | R28: 0.58 | S28: 0.633027 | T28: 0.567567 | U28: 0.4886 | V28: 0.6316 | W28: 0.6154 | X28: 0.621052 | Y28: 0.483146 | Z28: 0.5258 | AA28: 0.5263 | AB28: 0.4944 | AC28: 0.4886 | AD28: 0.4026
A29: Bremerton | B29: 0.4463 | C29: 0.4722 | D29: 0.4105 | E29: 0.4625 | F29: 0.4744 | G29: 0.473 | H29: 0.4725 | I29: 0.4972 | J29: 0.502 | K29: 0.478377 | L29: 0.515485 | M29: 0.556135 | N29: 0.59244 | O29: 0.559148 | P29: 0.588536 | Q29: 0.604708 | R29: 0.610734 | S29: 0.627344 | T29: 0.626266 | U29: 0.6508 | V29: 0.6352 | W29: 0.6416 | X29: 0.611969 | Y29: 0.612207 | Z29: 0.6296 | AA29: 0.6446 | AB29: 0.6032 | AC29: 0.6463 | AD29: 0.6083
A30: Brewster | B30: 0.6104 | C30: 0.6368 | D30: 0.6178 | E30: 0.6796 | F30: 0.7052 | G30: 0.7164 | H30: 0.72 | I30: 0.7243 | J30: 0.7807 | K30: 0.78071 | L30: 0.781725 | M30: 0.78071 | N30: 0.78071 | O30: 0.532538 | P30: 0.829698 | Q30: 0.830208 | R30: 0.862068 | S30: 0.83067 | T30: 0.85917 | U30: 0.9351 | V30: 0.8779 | W30: 0.8813 | X30: 0.949946 | Y30: 0.941727 | Z30: 0.9073 | AA30: 0.9034 | AB30: 0.9017 | AC30: 0.9251 | AD30: 0.9158
A31: Bridgeport | B31: 0.7593 | C31: 0.7685 | D31: 0.7715 | E31: 0.8148 | F31: 0.8729 | G31: 0.8095 | H31: 0.808 | I31: 0.8767 | J31: 0.8587 | K31: 0.854862 | L31: 0.839017 | M31: 0.816551 | N31: 0.788652 | O31: 0.819134 | P31: 0.820915 | Q31: 0.821656 | R31: 0.823529 | S31: 0.818867 | T31: 0.818849 | U31: 0.9026 | V31: 0.9226 | W31: 0.9325 | X31: 0.906432 | Y31: 0.914053 | Z31: 0.9487 | AA31: 0.9566 | AB31: 0.9459 | AC31: 0.9547 | AD31: 0.937
A32: Brinnon | B32: 0.6538 | C32: 0.5521 | D32: 0.6222 | E32: 0.7424 | F32: 0.7846 | G32: 0.4853 | H32: 0.7568 | I32: 0.7746 | J32: 0.6308 | K32: 0.604166 | L32: 0.628571 | M32: 0.603773 | N32: 0.76 | O32: 0.681818 | P32: 0.704545 | Q32: 0.787234 | R32: 0.791666 | S32: 0.822222 | T32: 0.792452 | U32: 0.9535 | V32: 0.8704 | W32: 0.8704 | X32: 0.824561 | Y32: 0.80597 | Z32: 0.7821 | AA32: 0.7612 | AB32: 0.7703 | AC32: 0.75 | AD32: 0.8333
A33: Burlington-Edison | B33: 0.2996 | C33: 0.2968 | D33: 0.2954 | E33: 0.3039 | F33: 0.2931 | G33: 0.2801 | H33: 0.2949 | I33: 0.3229 | J33: 0.3415 | K33: 0.343592 | L33: 0.37036 | M33: 0.369775 | N33: 0.398053 | O33: 0.410373 | P33: 0.448357 | Q33: 0.481881 | R33: 0.531354 | S33: 0.50059 | T33: 0.497259 | U33: 0.5273 | V33: 0.5212 | W33: 0.5188 | X33: 0.512241 | Y33: 0.502661 | Z33: 0.5206 | AA33: 0.498 | AB33: 0.5085 | AC33: 0.5456 | AD33: 0.5879
A34: Camas | B34: 0.1816 | C34: 0.2061 | D34: 0.2911 | E34: 0.2219 | F34: 0.2102 | G34: 0.1535 | H34: 0.1694 | I34: 0.1863 | J34: 0.2095 | K34: 0.147047 | L34: 0.161302 | M34: 0.149231 | N34: 0.141346 | O34: 0.138245 | P34: 0.174092 | Q34: 0.170473 | R34: 0.192208 | S34: 0.185096 | T34: 0.172456 | U34: 0.1771 | V34: 0.1674 | W34: 0.1672 | X34: 0.154829 | Y34: 0.144289 | Z34: 0.1384 | AA34: 0.1377 | AB34: 0.1374 | AC34: 0.1521 | AD34: 0.1625
A35: Cape Flattery | B35: 0.5528 | C35: 0.5806 | D35: 0.6117 | E35: 0.6336 | F35: 0.6435 | G35: 0.6225 | H35: 0.5332 | I35: 0.6245 | J35: 0.6933 | K35: 0.653846 | L35: 0.638576 | M35: 0.654901 | N35: 0.644032 | O35: 0.674468 | P35: 0.635974 | Q35: 0.596371 | R35: 0.578088 | S35: 0.602247 | T35: 0.669509 | U35: 0.6776 | V35: 0.7263 | W35: 0.7382 | X35: 0.747454 | Y35: 0.701612 | Z35: 0.7209 | AA35: 0.7525 | AB35: 0.6647 | AC35: 0.5988 | AD35: 0.813
A36: Carbonado | D36: 0.2394 | E36: 0.2789 | F36: 0.2448 | G36: 0.2896 | H36: 0.2609 | I36: 0.2486 | J36: 0.2751 | K36: 0.259459 | L36: 0.203208 | M36: 0.176136 | N36: 0.208791 | O36: 0.153409 | P36: 0.245901 | Q36: 0.224598 | R36: 0.245901 | S36: 0.297872 | T36: 0.292079 | U36: 0.2951 | V36: 0.2961 | W36: 0.2881 | X36: 0.279069 | Y36: 0.308571 | Z36: 0.3034 | AA36: 0.2541 | AB36: 0.2108 | AC36: 0.2402 | AD36: 0.2889
A37: Cascade | B37: 0.3854 | C37: 0.4079 | D37: 0.4081 | E37: 0.4731 | F37: 0.4722 | G37: 0.401 | H37: 0.4531 | I37: 0.4882 | J37: 0.5338 | K37: 0.36958 | L37: 0.413391 | M37: 0.415697 | N37: 0.432757 | O37: 0.414012 | P37: 0.447452 | Q37: 0.467933 | R37: 0.477671 | S37: 0.467238 | T37: 0.442241 | U37: 0.4935 | V37: 0.4518 | W37: 0.4523 | X37: 0.447772 | Y37: 0.428464 | Z37: 0.4034 | AA37: 0.4376 | AB37: 0.437 | AC37: 0.3824 | AD37: 0.4197
A38: Cashmere | B38: 0.3796 | C38: 0.328 | D38: 0.343 | E38: 0.3333 | F38: 0.3467 | G38: 0.3261 | H38: 0.3406 | I38: 0.3901 | J38: 0.4398 | K38: 0.399587 | L38: 0.479013 | M38: 0.488783 | N38: 0.476255 | O38: 0.46978 | P38: 0.480889 | Q38: 0.522111 | R38: 0.525808 | S38: 0.536301 | T38: 0.542625 | U38: 0.5051 | V38: 0.4799 | W38: 0.4811 | X38: 0.459036 | Y38: 0.448492 | Z38: 0.4365 | AA38: 0.4221 | AB38: 0.4154 | AC38: 0.4211 | AD38: 0.4456
A39: Castle Rock | B39: 0.2184 | C39: 0.2323 | D39: 0.2466 | E39: 0.2461 | F39: 0.2085 | G39: 0.2258 | H39: 0.2582 | I39: 0.2897 | J39: 0.3049 | K39: 0.288529 | L39: 0.310439 | M39: 0.364466 | N39: 0.379461 | O39: 0.408011 | P39: 0.480614 | Q39: 0.507396 | R39: 0.527114 | S39: 0.557902 | T39: 0.540752 | U39: 0.4784 | V39: 0.5 | W39: 0.5025 | X39: 0.513043 | Y39: 0.493526 | Z39: 0.5259 | AA39: 0.5 | AB39: 0.4963 | AC39: 0.5183 | AD39: 0.5362
A40: Catalyst Bremerton Charter | AB40: 0.3571 | AC40: 0.5134 | AD40: 0.4829
A41: Centerville | B41: 0.4375 | C41: 0.3971 | D41: 0.4762 | E41: 0.3667 | F41: 0.3804 | G41: 0.4239 | H41: 0.3218 | I41: 0.3625 | J41: 0.3333 | K41: 0.397435 | L41: 0.340659 | M41: 0.280898 | N41: 0.358695 | O41: 0.407894 | P41: 0.475609 | Q41: 0.337349 | R41: 0.393258 | S41: 0.443037 | T41: 0.43421 | U41: 0.358 | V41: 0.4524 | W41: 0.4524 | X41: 0.341463 | Y41: 0.410526 | Z41: 0.3333 | AA41: 0.2791 | AB41: 0.2442 | AC41: 0.3103 | AD41: 0.3814
A42: Central Kitsap | B42: 0.2235 | C42: 0.2132 | D42: 0.2123 | E42: 0.2225 | F42: 0.2195 | G42: 0.2095 | H42: 0.2181 | I42: 0.2242 | J42: 0.2363 | K42: 0.23804 | L42: 0.22985 | M42: 0.229457 | N42: 0.230807 | O42: 0.256522 | P42: 0.281402 | Q42: 0.336086 | R42: 0.331651 | S42: 0.332625 | T42: 0.338754 | U42: 0.3731 | V42: 0.3691 | W42: 0.3691 | X42: 0.315182 | Y42: 0.311903 | Z42: 0.3804 | AA42: 0.3579 | AB42: 0.3315 | AC42: 0.3654 | AD42: 0.3916
A43: Central Valley | B43: 0.2288 | C43: 0.2448 | D43: 0.2612 | E43: 0.2532 | F43: 0.2425 | G43: 0.2544 | H43: 0.2578 | I43: 0.304 | J43: 0.2869 | K43: 0.297315 | L43: 0.294976 | M43: 0.261252 | N43: 0.323723 | O43: 0.338165 | P43: 0.341408 | Q43: 0.359185 | R43: 0.384714 | S43: 0.38075 | T43: 0.367218 | U43: 0.414 | V43: 0.3652 | W43: 0.3662 | X43: 0.38269 | Y43: 0.377317 | Z43: 0.382 | AA43: 0.3567 | AB43: 0.3158 | AC43: 0.3598 | AD43: 0.4167
A44: Centralia | B44: 0.3716 | C44: 0.4174 | D44: 0.4445 | E44: 0.4463 | F44: 0.4566 | G44: 0.4229 | H44: 0.4616 | I44: 0.507 | J44: 0.5008 | K44: 0.513979 | L44: 0.525887 | M44: 0.534978 | N44: 0.60369 | O44: 0.634711 | P44: 0.655892 | Q44: 0.670548 | R44: 0.64932 | S44: 0.704213 | T44: 0.647724 | U44: 0.7019 | V44: 0.7178 | W44: 0.7178 | X44: 0.71973 | Y44: 0.705865 | Z44: 0.7214 | AA44: 0.7441 | AB44: 0.7711 | AC44: 0.8073 | AD44: 0.7636
A45: Chehalis | B45: 0.2691 | C45: 0.291 | D45: 0.2906 | E45: 0.2927 | F45: 0.2964 | G45: 0.3055 | H45: 0.3056 | I45: 0.3282 | J45: 0.3287 | K45: 0.376125 | L45: 0.365073 | M45: 0.343546 | N45: 0.361258 | O45: 0.38494 | P45: 0.418776 | Q45: 0.424099 | R45: 0.447312 | S45: 0.464478 | T45: 0.473821 | U45: 0.5055 | V45: 0.4932 | W45: 0.4932 | X45: 0.481687 | Y45: 0.471182 | Z45: 0.4679 | AA45: 0.4541 | AB45: 0.4469 | AC45: 0.4581 | AD45: 0.4935
A46: Cheney | B46: 0.4334 | C46: 0.4424 | D46: 0.4027 | E46: 0.4239 | F46: 0.3838 | G46: 0.3742 | H46: 0.3803 | I46: 0.3809 | J46: 0.3838 | K46: 0.38643 | L46: 0.377477 | M46: 0.360091 | N46: 0.402784 | O46: 0.42521 | P46: 0.451898 | Q46: 0.464533 | R46: 0.514705 | S46: 0.499561 | T46: 0.488437 | U46: 0.5073 | V46: 0.4923 | W46: 0.4938 | X46: 0.483217 | Y46: 0.478398 | Z46: 0.4963 | AA46: 0.4979 | AB46: 0.4646 | AC46: 0.4552 | AD46: 0.5219
A47: Chewelah | B47: 0.3488 | C47: 0.3512 | D47: 0.3627 | E47: 0.3649 | F47: 0.4422 | G47: 0.4929 | H47: 0.4817 | I47: 0.5783 | J47: 0.5483 | K47: 0.586086 | L47: 0.539215 | M47: 0.565486 | N47: 0.529795 | O47: 0.545365 | P47: 0.604912 | Q47: 0.636971 | R47: 0.657864 | S47: 0.681764 | T47: 0.64423 | U47: 0.6028 | V47: 0.6087 | W47: 0.6068 | X47: 0.609355 | Y47: 0.552356 | Z47: 0.5581 | AA47: 0.555 | AB47: 0.5337 | AC47: 0.5836 | AD47: 0.6048
A48: Chief Leschi Tribal | AA48: 0.533 | AB48: 0.5651 | AC48: 0.5286 | AD48: 0.5278
A49: Chimacum | B49: 0.2558 | C49: 0.2925 | D49: 0.3036 | E49: 0.2764 | F49: 0.2856 | G49: 0.2627 | H49: 0.2559 | I49: 0.301 | J49: 0.3054 | K49: 0.357414 | L49: 0.374898 | M49: 0.355727 | N49: 0.397224 | O49: 0.367949 | P49: 0.459841 | Q49: 0.483005 | R49: 0.536231 | S49: 0.53422 | T49: 0.473684 | U49: 0.5235 | V49: 0.5156 | W49: 0.5149 | X49: 0.482857 | Y49: 0.473899 | Z49: 0.4907 | AA49: 0.5049 | AB49: 0.4867 | AC49: 0.5158 | AD49: 0.5768
A50: Clarkston | B50: 0.3378 | C50: 0.3324 | D50: 0.3472 | E50: 0.389 | F50: 0.3358 | G50: 0.3374 | H50: 0.3494 | I50: 0.4228 | J50: 0.445 | K50: 0.439708 | L50: 0.432291 | M50: 0.49201 | N50: 0.515117 | O50: 0.528594 | P50: 0.566022 | Q50: 0.590816 | R50: 0.549757 | S50: 0.581274 | T50: 0.569716 | U50: 0.593 | V50: 0.5896 | W50: 0.5915 | X50: 0.598204 | Y50: 0.587504 | Z50: 0.5735 | AA50: 0.5765 | AB50: 0.5688 | AC50: 0.5544 | AD50: 0.5433
A51: Cle Elum-Roslyn | B51: 0.2823 | C51: 0.1961 | D51: 0.2535 | E51: 0.2579 | F51: 0.2802 | G51: 0.2477 | H51: 0.2841 | I51: 0.2736 | J51: 0.3432 | K51: 0.312883 | L51: 0.354965 | M51: 0.288732 | N51: 0.23578 | O51: 0.332982 | P51: 0.33514 | Q51: 0.387826 | R51: 0.391443 | S51: 0.409677 | T51: 0.404809 | U51: 0.4319 | V51: 0.4336 | W51: 0.4332 | X51: 0.395904 | Y51: 0.379157 | Z51: 0.4067 | AA51: 0.4213 | AB51: 0.3843 | AC51: 0.3548 | AD51: 0.3479
A52: Clover Park | B52: 0.4434 | C52: 0.486 | D52: 0.4966 | E52: 0.5435 | F52: 0.5161 | G52: 0.5541 | H52: 0.5306 | I52: 0.5293 | J52: 0.5364 | K52: 0.557741 | L52: 0.589974 | M52: 0.618559 | N52: 0.638015 | O52: 0.655613 | P52: 0.697568 | Q52: 0.698643 | R52: 0.718416 | S52: 0.713417 | T52: 0.68789 | U52: 0.6787 | V52: 0.7037 | W52: 0.7144 | X52: 0.674935 | Y52: 0.65101 | Z52: 0.6351 | AA52: 0.6839 | AB52: 0.6216 | AC52: 0.6282 | AD52: 0.631
A53: Colfax | B53: 0.2395 | C53: 0.2578 | D53: 0.2401 | E53: 0.2689 | F53: 0.2215 | G53: 0.2228 | H53: 0.2659 | I53: 0.2659 | J53: 0.28 | K53: 0.307799 | L53: 0.267123 | M53: 0.269387 | N53: 0.327754 | O53: 0.29453 | P53: 0.292609 | Q53: 0.278518 | R53: 0.348554 | S53: 0.347957 | T53: 0.322378 | U53: 0.3305 | V53: 0.3133 | W53: 0.3114 | X53: 0.333333 | Y53: 0.306368 | Z53: 0.3077 | AA53: 0.2966 | AB53: 0.2835 | AC53: 0.3232 | AD53: 0.3446
A54: College Place | B54: 0.5546 | C54: 0.584 | D54: 0.5915 | E54: 0.6223 | F54: 0.622 | G54: 0.663 | H54: 0.8039 | I54: 0.6046 | J54: 0.6086 | K54: 0.604624 | L54: 0.611316 | M54: 0.528235 | N54: 0.54275 | O54: 0.597333 | P54: 0.640686 | Q54: 0.657179 | R54: 0.646039 | S54: 0.646039 | T54: 0.61275 | U54: 0.5358 | V54: 0.6135 | W54: 0.6153 | X54: 0.602238 | Y54: 0.536534 | Z54: 0.5668 | AA54: 0.5537 | AB54: 0.5184 | AC54: 0.5449 | AD54: 0.5026
A55: Colton | B55: 0.2063 | C55: 0.2282 | D55: 0.2174 | E55: 0.2238 | F55: 0.1925 | G55: 0.2319 | H55: 0.177 | I55: 0.1444 | J55: 0.1695 | K55: 0.122905 | L55: 0.124293 | M55: 0.138121 | N55: 0.081395 | O55: 0.102857 | P55: 0.171428 | Q55: 0.179775 | R55: 0.171428 | S55: 0.150289 | T55: 0.161111 | U55: 0.2 | V55: 0.2138 | W55: 0.2166 | X55: 0.213333 | Y55: 0.23841 | Z55: 0.2376 | AA55: 0.2948 | AB55: 0.3141 | AC55: 0.3101 | AD55: 0.3404
A56: Columbia (Stevens) | B56: 0.5975 | C56: 0.625 | D56: 0.653 | E56: 0.5855 | F56: 0.733 | G56: 0.7661 | H56: 0.7188 | I56: 0.7027 | J56: 0.6852 | K56: 0.669603 | L56: 0.769911 | M56: 0.80909 | N56: 0.813084 | O56: 0.784313 | P56: 0.840375 | Q56: 0.809954 | R56: 0.831521 | S56: 0.82967 | T56: 0.767857 | U56: 0.7086 | V56: 0.7453 | W56: 0.7438 | X56: 0.76282 | Y56: 0.740458 | Z56: 0.8 | AA56: 0.7944 | AB56: 0.6422 | AC56: 0.7255 | AD56: 0.7554
A57: Columbia (Walla Walla) | B57: 0.2367 | C57: 0.2565 | D57: 0.2997 | E57: 0.3135 | F57: 0.2846 | G57: 0.333 | H57: 0.3091 | I57: 0.3095 | J57: 0.3099 | K57: 0.360638 | L57: 0.295149 | M57: 0.394067 | N57: 0.373443 | O57: 0.43042 | P57: 0.411827 | Q57: 0.453828 | R57: 0.489571 | S57: 0.522883 | T57: 0.471896 | U57: 0.5153 | V57: 0.5059 | W57: 0.5067 | X57: 0.519132 | Y57: 0.527152 | Z57: 0.5434 | AA57: 0.5507 | AB57: 0.5451 | AC57: 0.5602 | AD57: 0.5553
A58: Colville | B58: 0.3656 | C58: 0.3529 | D58: 0.4027 | E58: 0.4427 | F58: 0.456 | G58: 0.442 | H58: 0.4949 | I58: 0.5261 | J58: 0.4667 | K58: 0.526417 | L58: 0.468689 | M58: 0.445952 | N58: 0.446819 | O58: 0.462616 | P58: 0.530832 | Q58: 0.534253 | R58: 0.523402 | S58: 0.534796 | T58: 0.519978 | U58: 0.552 | V58: 0.5295 | W58: 0.5278 | X58: 0.512276 | Y58: 0.510662 | Z58: 0.519 | AA58: 0.526 | AB58: 0.4584 | AC58: 0.5372 | AD58: 0.6014
A59: Concrete | B59: 0.4962 | C59: 0.4923 | D59: 0.4989 | E59: 0.4428 | F59: 0.4798 | G59: 0.5965 | H59: 0.5607 | I59: 0.5993 | J59: 0.5368 | K59: 0.507402 | L59: 0.531365 | M59: 0.531677 | N59: 0.5 | O59: 0.503937 | P59: 0.563718 | Q59: 0.582137 | R59: 0.591973 | S59: 0.615506 | T59: 0.561068 | U59: 0.676 | V59: 0.6648 | W59: 0.6648 | X59: 0.692727 | Y59: 0.664814 | Z59: 0.6044 | AA59: 0.8395 | AB59: 0.7495 | AC59: 0.7044 | AD59: 0.3717
A60: Conway | B60: 0.2171 | C60: 0.2244 | D60: 0.2213 | E60: 0.2129 | F60: 0.2112 | G60: 0.1927 | H60: 0.1949 | I60: 0.191 | J60: 0.2297 | K60: 0.302729 | L60: 0.216279 | M60: 0.221218 | N60: 0.268907 | O60: 0.245202 | P60: 0.309168 | Q60: 0.31681 | R60: 0.330453 | S60: 0.270916 | T60: 0.252545 | U60: 0.2677 | V60: 0.228 | W60: 0.226 | X60: 0.232613 | Y60: 0.211111 | Z60: 0.1893 | AA60: 0.1623 | AB60: 0.1814 | AC60: 0.1921 | AD60: 0.2719
A61: Cosmopolis | B61: 0.3775 | C61: 0.4198 | D61: 0.3667 | E61: 0.436 | F61: 0.3744 | G61: 0.4272 | H61: 0.4378 | I61: 0.3526 | J61: 0.3351 | K61: 0.341968 | L61: 0.383561 | M61: 0.361904 | N61: 0.343434 | O61: 0.321951 | P61: 0.38071 | Q61: 0.355555 | R61: 0.435028 | S61: 0.463414 | T61: 0.511904 | U61: 0.5139 | V61: 0.5608 | W61: 0.5556 | X61: 0.545454 | Y61: 0.486666 | Z61: 0.5033 | AA61: 0.4424 | AB61: 0.4085 | AC61: 0.4192 | AD61: 0.4096
A62: Coulee-Hartline | B62: 0.3419 | C62: 0.3227 | D62: 0.3156 | E62: 0.332 | F62: 0.3701 | G62: 0.3059 | H62: 0.3485 | I62: 0.2978 | J62: 0.3196 | K62: 0.416666 | L62: 0.341968 | M62: 0.367231 | N62: 0.329032 | O62: 0.368421 | P62: 0.47826 | Q62: 0.48 | R62: 0.5 | S62: 0.356807 | T62: 0.37864 | U62: 0.4509 | V62: 0.4497 | W62: 0.4497 | X62: 0.377952 | Y62: 0.378881 | Z62: 0.3837 | AA62: 0.4356 | AB62: 0.4573 | AC62: 0.4098 | AD62: 0.4573
A63: Coupeville | E63: 0.1355 | F63: 0.1831 | G63: 0.3071 | H63: 0.2112 | I63: 0.2441 | J63: 0.3093 | K63: 0.240823 | L63: 0.250919 | M63: 0.273704 | N63: 0.280148 | O63: 0.295168 | P63: 0.367387 | Q63: 0.348314 | R63: 0.420604 | S63: 0.371854 | T63: 0.355513 | U63: 0.3792 | V63: 0.3271 | W63: 0.3273 | X63: 0.345491 | Y63: 0.309788 | Z63: 0.3422 | AA63: 0.3317 | AB63: 0.3261 | AC63: 0.3319 | AD63: 0.4098
A64: Crescent | B64: 0.3289 | C64: 0.2843 | D64: 0.3547 | E64: 0.3516 | F64: 0.3333 | G64: 0.4856 | H64: 0.4491 | I64: 0.478 | J64: 0.456 | K64: 0.344444 | L64: 0.441988 | M64: 0.49162 | N64: 0.502538 | O64: 0.440594 | P64: 0.541484 | Q64: 0.495798 | R64: 0.6 | S64: 0.504237 | T64: 0.522727 | U64: 0.4702 | V64: 0.4926 | W64: 0.4926 | X64: 0.461538 | Y64: 0.503205 | Z64: 0.5015 | AA64: 0.4578 | AB64: 0.5106 | AC64: 0.5955 | AD64: 0.5398
A65: Creston | B65: 0.453 | C65: 0.439 | D65: 0.3932 | E65: 0.4711 | F65: 0.4783 | G65: 0.4956 | H65: 0.3661 | I65: 0.4068 | J65: 0.3186 | K65: 0.355371 | L65: 0.319327 | M65: 0.401785 | N65: 0.49074 | O65: 0.51282 | P65: 0.432432 | Q65: 0.421052 | R65: 0.38938 | S65: 0.416666 | T65: 0.373831 | U65: 0.3824 | V65: 0.3596 | W65: 0.3596 | X65: 0.384615 | Y65: 0.280898 | Z65: 0.3152 | AA65: 0.3012 | AB65: 0.4125 | AC65: 0.4884 | AD65: 0.4949
A66: Curlew | B66: 0.5487 | C66: 0.5639 | D66: 0.5387 | E66: 0.5696 | F66: 0.5748 | G66: 0.4908 | H66: 0.5062 | I66: 0.4978 | J66: 0.5983 | K66: 0.535564 | L66: 0.51282 | M66: 0.62605 | N66: 0.54661 | O66: 0.510548 | P66: 0.558232 | Q66: 0.521186 | R66: 0.580086 | S66: 0.53617 | T66: 0.643518 | U66: 0.5773 | V66: 0.5965 | W66: 0.5941 | X66: 0.605555 | Y66: 0.637931 | Z66: 0.5321 | AA66: 0.8293 | AB66: 0.5673 | AC66: 0.4836 | AD66: 0.5801
A67: Cusick | B67: 0.5763 | C67: 0.5874 | D67: 0.6299 | E67: 0.617 | F67: 0.6892 | G67: 0.6592 | H67: 0.6719 | I67: 0.6254 | J67: 0.6148 | K67: 0.557971 | L67: 0.57706 | M67: 0.553633 | N67: 0.498269 | O67: 0.545762 | P67: 0.549668 | Q67: 0.546428 | R67: 0.612318 | S67: 0.610526 | T67: 0.57947 | U67: 0.5963 | V67: 0.6736 | W67: 0.6723 | X67: 0.658333 | Y67: 0.498168 | Z67: 0.5257 | AA67: 0.6598 | AB67: 0.6879 | AC67: 0.6921 | AD67: 0.7139
A68: Damman | AB68: 0 | AC68: 0 | AD68: 0
A69: Darrington | B69: 0.4332 | C69: 0.4075 | D69: 0.4162 | E69: 0.4365 | F69: 0.4429 | G69: 0.4255 | H69: 0.443 | I69: 0.4684 | J69: 0.4498 | K69: 0.420315 | L69: 0.428321 | M69: 0.460456 | N69: 0.429252 | O69: 0.452975 | P69: 0.54743 | Q69: 0.56 | R69: 0.637894 | S69: 0.569523 | T69: 0.52813 | U69: 0.5955 | V69: 0.6075 | W69: 0.6118 | X69: 0.553398 | Y69: 0.466019 | Z69: 0.4752 | AA69: 0.4496 | AB69: 0.5578 | AC69: 0.4501 | AD69: 0.528
A70: Davenport | B70: 0.2983 | C70: 0.2768 | D70: 0.2581 | E70: 0.2428 | F70: 0.2539 | G70: 0.2309 | H70: 0.3407 | I70: 0.3348 | J70: 0.3858 | K70: 0.373865 | L70: 0.424496 | M70: 0.430577 | N70: 0.455858 | O70: 0.441025 | P70: 0.513643 | Q70: 0.507364 | R70: 0.556537 | S70: 0.502742 | T70: 0.533562 | U70: 0.5799 | V70: 0.5602 | W70: 0.5589 | X70: 0.578772 | Y70: 0.54485 | Z70: 0.5505 | AA70: 0.4804 | AB70: 0.4245 | AC70: 0.4895 | AD70: 0.5092
A71: Dayton | B71: 0.4524 | C71: 0.4556 | D71: 0.4486 | E71: 0.4497 | F71: 0.4303 | G71: 0.46 | H71: 0.4623 | I71: 0.4762 | J71: 0.4899 | K71: 0.497287 | L71: 0.548094 | M71: 0.535447 | N71: 0.512195 | O71: 0.459405 | P71: 0.506958 | Q71: 0.563409 | R71: 0.568085 | S71: 0.628008 | T71: 0.567928 | U71: 0.5905 | V71: 0.584 | W71: 0.5802 | X71: 0.544364 | Y71: 0.512019 | Z71: 0.5332 | AA71: 0.521 | AB71: 0.5192 | AC71: 0.5041 | AD71: 0.5027
A72: Deer Park | B72: 0.4721 | C72: 0.4487 | D72: 0.4583 | E72: 0.5457 | F72: 0.5245 | G72: 0.5194 | H72: 0.5112 | I72: 0.6114 | J72: 0.614 | K72: 0.564655 | L72: 0.584714 | M72: 0.558823 | N72: 0.554103 | O72: 0.557085 | P72: 0.557903 | Q72: 0.626373 | R72: 0.572911 | S72: 0.548928 | T72: 0.543652 | U72: 0.5018 | V72: 0.516 | W72: 0.5135 | X72: 0.4768 | Y72: 0.461754 | Z72: 0.4693 | AA72: 0.4753 | AB72: 0.4534 | AC72: 0.4847 | AD72: 0.5154
A73: Dieringer | B73: 0.0624 | C73: 0.0574 | D73: 0.0468 | E73: 0.0571 | F73: 0.0509 | G73: 0.0511 | H73: 0.039 | I73: 0.0382 | J73: 0.0541 | K73: 0.058474 | L73: 0.080698 | M73: 0.072607 | N73: 0.072405 | O73: 0.065985 | P73: 0.101731 | Q73: 0.115357 | R73: 0.154255 | S73: 0.14514 | T73: 0.119047 | U73: 0.1158 | V73: 0.1369 | W73: 0.1358 | X73: 0.113764 | Y73: 0.128275 | Z73: 0.1336 | AA73: 0.149 | AB73: 0.1421 | AC73: 0.1739 | AD73: 0.2036
A74: Dixie | B74: 0.25 | C74: 0.4348 | D74: 0.325 | E74: 0.3548 | F74: 0.2353 | G74: 0.2432 | H74: 0.25 | I74: 0.25 | J74: 0.3 | K74: 0.323529 | L74: 0.545454 | M74: 0.689655 | N74: 0.652173 | O74: 0.75862 | P74: 0.666666 | Q74: 0.657894 | R74: 0.636363 | S74: 0.617647 | T74: 0.74074 | U74: 1 | V74: 1 | W74: 0.95 | X74: 0.954545 | Y74: 0.916666 | Z74: 1 | AA74: 1 | AB74: 1 | AC74: 1 | AD74: 0.7778
A75: East Valley (Spokane) | B75: 0.3463 | C75: 0.3465 | D75: 0.3404 | E75: 0.3865 | F75: 0.3941 | G75: 0.3853 | H75: 0.4162 | I75: 0.4414 | J75: 0.4295 | K75: 0.437995 | L75: 0.457607 | M75: 0.496831 | N75: 0.482665 | O75: 0.480556 | P75: 0.508155 | Q75: 0.521597 | R75: 0.518032 | S75: 0.515503 | T75: 0.499682 | U75: 0.5254 | V75: 0.5353 | W75: 0.5335 | X75: 0.52537 | Y75: 0.516389 | Z75: 0.544 | AA75: 0.5503 | AB75: 0.5335 | AC75: 0.5475 | AD75: 0.6194
A76: East Valley (Yakima) | B76: 0.2956 | C76: 0.3084 | D76: 0.3253 | E76: 0.3333 | F76: 0.3742 | G76: 0.3899 | H76: 0.3876 | I76: 0.4228 | J76: 0.4293 | K76: 0.49594 | L76: 0.48961 | M76: 0.469135 | N76: 0.4803 | O76: 0.488888 | P76: 0.489615 | Q76: 0.505445 | R76: 0.538958 | S76: 0.559615 | T76: 0.54424 | U76: 0.5948 | V76: 0.5943 | W76: 0.5937 | X76: 0.579063 | Y76: 0.567289 | Z76: 0.5683 | AA76: 0.5777 | AB76: 0.5553 | AC76: 0.5846 | AD76: 0.6078
A77: Eastmont | B77: 0.2195 | C77: 0.2366 | D77: 0.2427 | E77: 0.2947 | F77: 0.3497 | G77: 0.319 | H77: 0.3556 | I77: 0.3985 | J77: 0.4471 | K77: 0.416098 | L77: 0.474907 | M77: 0.480369 | N77: 0.486527 | O77: 0.53024 | P77: 0.558455 | Q77: 0.57282 | R77: 0.575934 | S77: 0.590235 | T77: 0.613562 | U77: 0.5732 | V77: 0.5572 | W77: 0.5653 | X77: 0.564871 | Y77: 0.558828 | Z77: 0.5852 | AA77: 0.5794 | AB77: 0.5699 | AC77: 0.5799 | AD77: 0.6548
A78: Easton | B78: 0.4 | C78: 0.4639 | D78: 0.2936 | E78: 0.3434 | F78: 0.408 | G78: 0.3516 | H78: 0.408 | I78: 0.3516 | J78: 0.3902 | K78: 0.429687 | L78: 0.350877 | M78: 0.30097 | N78: 0.385321 | O78: 0.462365 | P78: 0.582524 | Q78: 0.647058 | R78: 0.614457 | S78: 0.642105 | T78: 0.657407 | U78: 0.6396 | V78: 0.6814 | W78: 0.6786 | X78: 0.637168 | Y78: 0.645454 | Z78: 0.5673 | AA78: 0.7234 | AB78: 0.7674 | AC78: 0.7442 | AD78: 0.7229
A79: Eatonville | B79: 0.3112 | C79: 0.3271 | D79: 0.3634 | E79: 0.3053 | F79: 0.285 | G79: 0.2762 | H79: 0.2844 | I79: 0.3272 | J79: 0.3135 | K79: 0.287174 | L79: 0.247422 | M79: 0.2336 | N79: 0.274951 | O79: 0.285928 | P79: 0.326923 | Q79: 0.34375 | R79: 0.37616 | S79: 0.350477 | T79: 0.407407 | U79: 0.4122 | V79: 0.3983 | W79: 0.3999 | X79: 0.42276 | Y79: 0.425711 | Z79: 0.4188 | AA79: 0.4073 | AB79: 0.4083 | AC79: 0.3802 | AD79: 0.4228
A80: Edmonds | B80: 0.2417 | C80: 0.2311 | D80: 0.2214 | E80: 0.2128 | F80: 0.2064 | G80: 0.2021 | H80: 0.2133 | I80: 0.2376 | J80: 0.2598 | K80: 0.258692 | L80: 0.272157 | M80: 0.29549 | N80: 0.293789 | O80: 0.304041 | P80: 0.266348 | Q80: 0.335779 | R80: 0.365606 | S80: 0.365895 | T80: 0.362686 | U80: 0.4043 | V80: 0.3848 | W80: 0.3851 | X80: 0.376421 | Y80: 0.356399 | Z80: 0.3667 | AA80: 0.3643 | AB80: 0.3375 | AC80: 0.3438 | AD80: 0.3832
A81: Ellensburg | B81: 0.263 | C81: 0.2749 | D81: 0.2795 | E81: 0.2728 | F81: 0.2681 | G81: 0.2607 | H81: 0.2965 | I81: 0.3106 | J81: 0.317 | K81: 0.341119 | L81: 0.326355 | M81: 0.309395 | N81: 0.334595 | O81: 0.3299 | P81: 0.354137 | Q81: 0.362357 | R81: 0.393197 | S81: 0.415311 | T81: 0.384241 | U81: 0.421 | V81: 0.3982 | W81: 0.4037 | X81: 0.395846 | Y81: 0.380277 | Z81: 0.4055 | AA81: 0.3717 | AB81: 0.441 | AC81: 0.4074 | AD81: 0.4229
A82: Elma | B82: 0.3896 | C82: 0.4104 | D82: 0.4081 | E82: 0.3949 | F82: 0.3717 | G82: 0.3645 | H82: 0.3581 | I82: 0.3651 | J82: 0.4032 | K82: 0.399897 | L82: 0.399786 | M82: 0.434642 | N82: 0.411374 | O82: 0.450228 | P82: 0.504093 | Q82: 0.515315 | R82: 0.550625 | S82: 0.615686 | T82: 0.566069 | U82: 0.5453 | V82: 0.6177 | W82: 0.6176 | X82: 0.657913 | Y82: 0.765986 | Z82: 0.7455 | AA82: 0.7008 | AB82: 0.7146 | AC82: 0.7726 | AD82: 0.7491
A83: Endicott | B83: 0.3291 | C83: 0.3885 | D83: 0.3586 | E83: 0.4028 | F83: 0.331 | G83: 0.3154 | H83: 0.3828 | I83: 0.4694 | J83: 0.5657 | K83: 0.504587 | L83: 0.467289 | M83: 0.460674 | N83: 0.536585 | O83: 0.506493 | P83: 0.471264 | Q83: 0.45977 | R83: 0.511627 | S83: 0.635514 | T83: 0.633928 | U83: 0.6286 | V83: 0.6373 | W83: 0.63 | X83: 0.608247 | Y83: 0.646464 | Z83: 0.5938 | AA83: 0.5495 | AB83: 0.6047 | AC83: 0.5625 | AD83: 0.5844
A84: Entiat | B84: 0.5013 | C84: 0.5344 | D84: 0.5544 | E84: 0.5486 | F84: 0.5312 | G84: 0.5287 | H84: 0.5581 | I84: 0.5066 | J84: 0.4973 | K84: 0.51706 | L84: 0.572916 | M84: 0.580901 | N84: 0.502659 | O84: 0.557422 | P84: 0.564383 | Q84: 0.553719 | R84: 0.606469 | S84: 0.677506 | T84: 0.671679 | U84: 0.677 | V84: 0.656 | W84: 0.6598 | X84: 0.632835 | Y84: 0.648902 | Z84: 0.6082 | AA84: 0.5924 | AB84: 0.6476 | AC84: 0.6422 | AD84: 0.7197
A85: Enumclaw | B85: 0.164 | C85: 0.147 | D85: 0.1547 | E85: 0.1521 | F85: 0.1391 | G85: 0.1408 | H85: 0.1527 | I85: 0.1728 | J85: 0.202 | K85: 0.198181 | L85: 0.211415 | M85: 0.207384 | N85: 0.223937 | O85: 0.258909 | P85: 0.275652 | Q85: 0.29694 | R85: 0.313107 | S85: 0.314022 | T85: 0.317067 | U85: 0.3225 | V85: 0.3221 | W85: 0.3213 | X85: 0.314399 | Y85: 0.308089 | Z85: 0.2982 | AA85: 0.2878 | AB85: 0.2986 | AC85: 0.2933 | AD85: 0.2886
A86: Ephrata | B86: 0.2851 | C86: 0.3114 | D86: 0.3556 | E86: 0.3672 | F86: 0.3701 | G86: 0.391 | H86: 0.3972 | I86: 0.4007 | J86: 0.4146 | K86: 0.436907 | L86: 0.466605 | M86: 0.466219 | N86: 0.502859 | O86: 0.473498 | P86: 0.484196 | Q86: 0.507183 | R86: 0.530699 | S86: 0.537966 | T86: 0.553227 | U86: 0.565 | V86: 0.5537 | W86: 0.5535 | X86: 0.551877 | Y86: 0.547074 | Z86: 0.5599 | AA86: 0.5469 | AB86: 0.5582 | AC86: 0.5603 | AD86: 0.5801
A87: Evaline | U87: 0.5676 | V87: 0.56 | W87: 0.56 | X87: 0.549019 | Y87: 0.551724 | Z87: 0.6038 | AA87: 0.7 | AB87: 0.62 | AC87: 0.5957 | AD87: 0.5094
A88: Everett | B88: 0.2539 | C88: 0.256 | D88: 0.2436 | E88: 0.2355 | F88: 0.2075 | G88: 0.2329 | H88: 0.2457 | I88: 0.2664 | J88: 0.303 | K88: 0.312475 | L88: 0.338979 | M88: 0.346093 | N88: 0.337212 | O88: 0.336117 | P88: 0.384039 | Q88: 0.386476 | R88: 0.39592 | S88: 0.399284 | T88: 0.400093 | U88: 0.4153 | V88: 0.4063 | W88: 0.4066 | X88: 0.396459 | Y88: 0.378467 | Z88: 0.3814 | AA88: 0.3859 | AB88: 0.3862 | AC88: 0.3848 | AD88: 0.3901
A89: Evergreen (Clark) | B89: 0.2102 | C89: 0.2291 | D89: 0.2343 | E89: 0.2339 | F89: 0.2374 | G89: 0.2506 | H89: 0.2573 | I89: 0.3444 | J89: 0.3741 | K89: 0.421153 | L89: 0.414102 | M89: 0.400991 | N89: 0.37948 | O89: 0.3579 | P89: 0.407885 | Q89: 0.450334 | R89: 0.450154 | S89: 0.459346 | T89: 0.442632 | U89: 0.4901 | V89: 0.4919 | W89: 0.4922 | X89: 0.485209 | Y89: 0.467552 | Z89: 0.4945 | AA89: 0.497 | AB89: 0.4974 | AC89: 0.5394 | AD89: 0.5574
A90: Evergreen (Stevens) | B90: 0.6 | C90: 0.4857 | D90: 0.4857 | E90: 0.7097 | F90: 0.6154 | G90: 0.7 | H90: 0.6111 | I90: 0.5294 | J90: 0.5238 | K90: 0.380952 | L90: 0.571428 | M90: 0.444444 | N90: 0.666666 | O90: 0.777777 | P90: 0.68 | Q90: 0.5 | R90: 0.764705 | S90: 0.7 | T90: 0.851851 | U90: 0.6842 | V90: 0.68 | W90: 0.7083 | X90: 0.714285 | Y90: 0.636363 | Z90: 0.7941 | AA90: 0.75 | AB90: 0.7188 | AC90: 0.8333 | AD90: 0.8684
A91: Federal Way | B91: 0.2347 | C91: 0.2406 | D91: 0.241 | E91: 0.2615 | F91: 0.2757 | G91: 0.2884 | H91: 0.3124 | I91: 0.3497 | J91: 0.3799 | K91: 0.401085 | L91: 0.421366 | M91: 0.473168 | N91: 0.486606 | O91: 0.46484 | P91: 0.511808 | Q91: 0.540205 | R91: 0.534289 | S91: 0.555616 | T91: 0.559971 | U91: 0.6082 | V91: 0.6068 | W91: 0.6076 | X91: 0.617671 | Y91: 0.612666 | Z91: 0.6249 | AA91: 0.6339 | AB91: 0.6416 | AC91: 0.6565 | AD91: 0.7268
A92: Ferndale | B92: 0.3028 | C92: 0.3263 | D92: 0.3476 | E92: 0.3251 | F92: 0.3385 | G92: 0.3726 | H92: 0.4087 | I92: 0.4287 | J92: 0.4515 | K92: 0.485973 | L92: 0.472953 | M92: 0.425257 | N92: 0.445559 | O92: 0.435312 | P92: 0.479553 | Q92: 0.489846 | R92: 0.488348 | S92: 0.490792 | T92: 0.46344 | U92: 0.4997 | V92: 0.4616 | W92: 0.4662 | X92: 0.454353 | Y92: 0.463532 | Z92: 0.4801 | AA92: 0.455 | AB92: 0.4625 | AC92: 0.4871 | AD92: 0.5198
A93: Fife | B93: 0.2408 | C93: 0.2666 | D93: 0.2594 | E93: 0.2598 | F93: 0.2494 | G93: 0.2503 | H93: 0.2525 | I93: 0.2744 | J93: 0.3134 | K93: 0.309442 | L93: 0.308761 | M93: 0.328299 | N93: 0.319523 | O93: 0.356662 | P93: 0.393575 | Q93: 0.416502 | R93: 0.436454 | S93: 0.45376 | T93: 0.432641 | U93: 0.4896 | V93: 0.4621 | W93: 0.4622 | X93: 0.426233 | Y93: 0.420496 | Z93: 0.4573 | AA93: 0.4635 | AB93: 0.4341 | AC93: 0.4415 | AD93: 0.4767
A94: Finley | B94: 0.3306 | C94: 0.3621 | D94: 0.3462 | E94: 0.3613 | F94: 0.3728 | G94: 0.4152 | H94: 0.444 | I94: 0.4367 | J94: 0.5005 | K94: 0.517509 | L94: 0.531697 | M94: 0.533668 | N94: 0.583177 | O94: 0.596596 | P94: 0.664694 | Q94: 0.65 | R94: 0.691191 | S94: 0.677454 | T94: 0.712777 | U94: 0.7574 | V94: 0.7407 | W94: 0.7423 | X94: 0.73131 | Y94: 0.730769 | Z94: 0.7205 | AA94: 0.7075 | AB94: 0.7661 | AC94: 0.7931 | AD94: 0.7199
A95: Franklin Pierce | B95: 0.3861 | C95: 0.3859 | D95: 0.4066 | E95: 0.4208 | F95: 0.3731 | G95: 0.4118 | H95: 0.4158 | I95: 0.4656 | J95: 0.4872 | K95: 0.476834 | L95: 0.492713 | M95: 0.510167 | N95: 0.526416 | O95: 0.577331 | P95: 0.612113 | Q95: 0.644333 | R95: 0.662044 | S95: 0.672942 | T95: 0.690519 | U95: 0.7312 | V95: 0.7412 | W95: 0.7397 | X95: 0.771491 | Y95: 0.720829 | Z95: 0.7823 | AA95: 0.7702 | AB95: 0.6571 | AC95: 0.6201 | AD95: 0.5467
A96: Freeman | B96: 0.1897 | C96: 0.1685 | D96: 0.1881 | E96: 0.2035 | F96: 0.1998 | G96: 0.1794 | H96: 0.187 | I96: 0.2144 | J96: 0.2078 | K96: 0.208476 | L96: 0.198187 | M96: 0.188826 | N96: 0.161111 | O96: 0.195389 | P96: 0.199079 | Q96: 0.206496 | R96: 0.224099 | S96: 0.218784 | T96: 0.235042 | U96: 0.2568 | V96: 0.2514 | W96: 0.2506 | X96: 0.211235 | Y96: 0.21802 | Z96: 0.2266 | AA96: 0.234 | AB96: 0.2024 | AC96: 0.2238 | AD96: 0.2118
A97: Garfield | B97: 0.3468 | C97: 0.8202 | D97: 0.8 | E97: 0.8778 | F97: 0.9186 | G97: 0.8472 | H97: 0.8244 | I97: 0.3465 | J97: 0.3681 | K97: 0.312925 | L97: 0.408 | M97: 0.465517 | N97: 0.512605 | O97: 0.514563 | P97: 0.53125 | Q97: 0.542857 | R97: 0.548672 | S97: 0.475806 | T97: 0.482142 | U97: 0.5243 | V97: 0.5259 | W97: 0.5259 | X97: 0.438596 | Y97: 0.454545 | Z97: 0.48 | AA97: 0.4646 | AB97: 0.4608 | AC97: 0.5225 | AD97: 0.5776
A98: Glenwood | B98: 0.48 | C98: 0.3111 | D98: 0.3846 | E98: 0.3333 | F98: 0.2252 | G98: 0.1959 | H98: 0.2947 | I98: 0.3182 | J98: 0.3882 | K98: 0.363636 | L98: 0.428571 | M98: 0.3 | N98: 0.333333 | O98: 0.298507 | P98: 0.346153 | Q98: 0.373493 | R98: 0.390243 | S98: 0.368421 | T98: 0.368421 | U98: 0.4559 | V98: 0.4091 | W98: 0.4091 | X98: 0.426666 | Y98: 0.391304 | Z98: 0.5625 | AA98: 0.5625 | AB98: 0.5 | AC98: 0.566 | AD98: 0.4912
A99: Goldendale | B99: 0.411 | C99: 0.4148 | D99: 0.4216 | E99: 0.4136 | F99: 0.4443 | G99: 0.4151 | H99: 0.4542 | I99: 0.4794 | J99: 0.51 | K99: 0.522546 | L99: 0.549037 | M99: 0.549491 | N99: 0.524789 | O99: 0.521531 | P99: 0.554901 | Q99: 0.560194 | R99: 0.582364 | S99: 0.559798 | T99: 0.561786 | U99: 0.5923 | V99: 0.5853 | W99: 0.5946 | X99: 0.58387 | Y99: 0.568607 | Z99: 0.5916 | AA99: 0.6039 | AB99: 0.4147 | AC99: 0.4663 | AD99: 0.4614
A100: Grand Coulee Dam | B100: 0.3822 | C100: 0.3899 | D100: 0.462 | E100: 0.4386 | F100: 0.4053 | G100: 0.4346 | H100: 0.4404 | I100: 0.4583 | J100: 0.4849 | K100: 0.530343 | L100: 0.513944 | M100: 0.486595 | N100: 0.535519 | O100: 0.573938 | P100: 0.591111 | Q100: 0.5625 | R100: 0.609351 | S100: 0.608047 | T100: 0.647928 | U100: 0.6671 | V100: 0.6911 | W100: 0.6914 | X100: 0.701803 | Y100: 0.688981 | Z100: 0.7106 | AA100: 0.735 | AB100: 0.7187 | AC100: 0.6946 | AD100: 0.6176
A101: Grandview | B101: 0.6359 | C101: 0.6509 | D101: 0.721 | E101: 0.6963 | F101: 0.6906 | G101: 0.7179 | H101: 0.7901 | I101: 0.7415 | J101: 0.7919 | K101: 0.794871 | L101: 0.783727 | M101: 0.782877 | N101: 0.760314 | O101: 0.787444 | P101: 0.816271 | Q101: 0.818999 | R101: 0.796673 | S101: 0.832711 | T101: 0.793918 | U101: 0.772 | V101: 0.8354 | W101: 0.8364 | X101: 0.858613 | Y101: 0.852534 | Z101: 0.8525 | AA101: 0.8418 | AB101: 0.8349 | AC101: 0.8481 | AD101: 0.8789
A102: Granger | B102: 0.9351 | C102: 0.9329 | D102: 0.8622 | E102: 0.8834 | F102: 0.8633 | G102: 0.9097 | H102: 0.9477 | I102: 0.9064 | J102: 0.915 | K102: 0.925207 | L102: 0.93142 | M102: 0.926718 | N102: 0.925559 | O102: 0.92332 | P102: 0.935849 | Q102: 0.929468 | R102: 0.929039 | S102: 0.911407 | T102: 0.911764 | U102: 0.8539 | V102: 0.879 | W102: 0.8787 | X102: 0.851306 | Y102: 0.874231 | Z102: 0.8919 | AA102: 0.8985 | AB102: 0.8852 | AC102: 0.8699 | AD102: 0.8727
A103: Granite Falls | B103: 0.3753 | C103: 0.3566 | D103: 0.2887 | E103: 0.266 | F103: 0.2636 | G103: 0.2655 | H103: 0.2638 | I103: 0.2951 | J103: 0.3092 | K103: 0.288129 | L103: 0.330173 | M103: 0.289682 | N103: 0.271712 | O103: 0.336561 | P103: 0.367177 | Q103: 0.415716 | R103: 0.432882 | S103: 0.425603 | T103: 0.449872 | U103: 0.4475 | V103: 0.4443 | W103: 0.448 | X103: 0.4615 | Y103: 0.452226 | Z103: 0.4609 | AA103: 0.4183 | AB103: 0.4137 | AC103: 0.424 | AD103: 0.4273
A104: Grapeview | B104: 0.3668 | C104: 0.3978 | D104: 0.3784 | E104: 0.3915 | F104: 0.3801 | G104: 0.3386 | H104: 0.3374 | I104: 0.3252 | J104: 0.3818 | K104: 0.304347 | L104: 0.34054 | M104: 0.303921 | N104: 0.354066 | O104: 0.311557 | P104: 0.35 | Q104: 0.376681 | R104: 0.384615 | S104: 0.387559 | T104: 0.457943 | U104: 0.4711 | V104: 0.4629 | W104: 0.4629 | X104: 0.472727 | Y104: 0.484018 | Z104: 0.4554 | AA104: 0.4559 | AB104: 0.392 | AC104: 0.3944 | AD104: 0.473
A105: Great Northern | U105: 0.0435 | V105: 0.0208 | W105: 0.05 | X105: 0.209302 | Y105: 0.301886 | Z105: 0.2439 | AA105: 0.186 | AB105: 0.0976 | AC105: 0.4333 | AD105: 0.3947
A106: Green Dot Destiny Charter | W106: 0.816 | X106: 0.7852 | Y106: 0.701438 | Z106: 0.858
A107: Green Dot Excel Charter | W107: 0.514 | X107: 0.4194 | Y107: 0.546583 | Z107: 0.6508
A108: Green Dot Rainier Valley Charter | Y108: 0.71028 | Z108: 0.7431 | AA108: 0.7531 | AB108: 0.825 | AC108: 0.7688 | AD108: 0.7808
A109: Green Mountain | B109: 0.2816 | C109: 0.2778 | D109: 0.2459 | E109: 0.2295 | F109: 0.2302 | G109: 0.1638 | H109: 0.2791 | I109: 0.2984 | J109: 0.2541 | K109: 0.256 | L109: 0.26923 | M109: 0.2233 | N109: 0.236363 | O109: 0.264462 | P109: 0.289855 | Q109: 0.387323 | R109: 0.48387 | S109: 0.47486 | T109: 0.469512 | U109: 0.3846 | V109: 0.4151 | W109: 0.4151 | X109: 0.402597 | Y109: 0.475308 | Z109: 0.5092 | AA109: 0.4906 | AB109: 0.3464 | AC109: 0.3158 | AD109: 0.3636
A110: Griffin | B110: 0.1081 | C110: 0.0894 | D110: 0.0778 | E110: 0.0638 | F110: 0.0551 | G110: 0.0864 | H110: 0.11 | I110: 0.1223 | J110: 0.1153 | K110: 0.110787 | L110: 0.141384 | M110: 0.13411 | N110: 0.120845 | O110: 0.154311 | P110: 0.199409 | Q110: 0.180597 | R110: 0.172307 | S110: 0.186317 | T110: 0.171799 | U110: 0.1874 | V110: 0.1737 | W110: 0.1718 | X110: 0.171474 | Y110: 0.175824 | Z110: 0.1706 | AA110: 0.1701 | AB110: 0.1645 | AC110: 0.1713 | AD110: 0.2176
A111: Harrington | B111: 0.25 | C111: 0.2818 | D111: 0.3412 | E111: 0.3275 | F111: 0.2685 | G111: 0.3077 | H111: 0.3007 | I111: 0.2937 | J111: 0.3631 | K111: 0.363636 | L111: 0.404109 | M111: 0.358778 | N111: 0.347457 | O111: 0.362204 | P111: 0.439716 | Q111: 0.514084 | R111: 0.504 | S111: 0.513043 | T111: 0.491379 | U111: 0.5165 | V111: 0.4659 | W111: 0.4598 | X111: 0.229357 | Y111: 0.449152 | Z111: 0.2481 | AA111: 0.4286 | AB111: 0.3643 | AC111: 0.4248 | AD111: 0.4586
A112: Highland | B112: 0.5801 | C112: 0.586 | D112: 0.5851 | E112: 0.6259 | F112: 0.6521 | G112: 0.6541 | H112: 0.6918 | I112: 0.6809 | J112: 0.692 | K112: 0.74254 | L112: 0.711148 | M112: 0.705831 | N112: 0.712897 | O112: 0.707274 | P112: 0.740677 | Q112: 0.751712 | R112: 0.757178 | S112: 0.753026 | T112: 0.751459 | U112: 0.7895 | V112: 0.8065 | W112: 0.8128 | X112: 0.811581 | Y112: 0.821834 | Z112: 0.8235 | AA112: 0.817 | AB112: 0.8053 | AC112: 0.8026 | AD112: 0.8081
A113: Highline | B113: 0.3837 | C113: 0.3893 | D113: 0.4159 | E113: 0.4083 | F113: 0.4093 | G113: 0.4161 | H113: 0.4507 | I113: 0.5055 | J113: 0.5549 | K113: 0.550267 | L113: 0.581632 | M113: 0.558573 | N113: 0.549461 | O113: 0.598078 | P113: 0.624151 | Q113: 0.6616 | R113: 0.674331 | S113: 0.695315 | T113: 0.681254 | U113: 0.7062 | V113: 0.6881 | W113: 0.6913 | X113: 0.687119 | Y113: 0.662266 | Z113: 0.6658 | AA113: 0.6738 | AB113: 0.666 | AC113: 0.6796 | AD113: 0.6763
A114: Hockinson | B114: 0.135 | C114: 0.1166 | D114: 0.1271 | E114: 0.1126 | F114: 0.1205 | G114: 0.1327 | H114: 0.1266 | I114: 0.1383 | J114: 0.185 | K114: 0.148794 | L114: 0.139267 | M114: 0.15959 | N114: 0.14482 | O114: 0.166417 | P114: 0.192562 | Q114: 0.227204 | R114: 0.216928 | S114: 0.222455 | T114: 0.204439 | U114: 0.22 | V114: 0.2054 | W114: 0.2057 | X114: 0.195383 | Y114: 0.179763 | Z114: 0.1816 | AA114: 0.1909 | AB114: 0.1856 | AC114: 0.1814 | AD114: 0.2286
A115: Hood Canal | B115: 0.5974 | C115: 0.6336 | D115: 0.6275 | E115: 0.6736 | F115: 0.6549 | G115: 0.7242 | H115: 0.7104 | I115: 0.7021 | J115: 0.7176 | K115: 0.574923 | L115: 0.509433 | M115: 0.577981 | N115: 0.577981 | O115: 0.734177 | P115: 0.734177 | Q115: 0.734513 | R115: 0.736842 | S115: 0.733727 | T115: 0.731861 | U115: 0.8339 | V115: 0.6795 | W115: 0.6824 | X115: 0.847402 | Y115: 0.824503 | Z115: 0.8034 | AA115: 0.7919 | AB115: 0.6823 | AC115: 0.802 | AD115: 0.7835
A116: Hoquiam | B116: 0.4479 | C116: 0.5052 | D116: 0.5034 | E116: 0.4904 | F116: 0.49 | G116: 0.6715 | H116: 0.5388 | I116: 0.5595 | J116: 0.536 | K116: 0.558037 | L116: 0.613723 | M116: 0.589329 | N116: 0.60186 | O116: 0.557409 | P116: 0.602161 | Q116: 0.598834 | R116: 0.618545 | S116: 0.629586 | T116: 0.652467 | U116: 0.6876 | V116: 0.6354 | W116: 0.6345 | X116: 0.589884 | Y116: 0.660467 | Z116: 0.6262 | AA116: 0.7406 | AB116: 0.6836 | AC116: 0.7655 | AD116: 0.6692
A117: Impact Charter | Z117: 0.65 | AA117: 0.6456 | AB117: 0.6326 | AC117: 0.5997 | AD117: 0.6167
A118: Impact Salish Sea Charter | AB118: 0.4063 | AC118: 0.59 | AD118: 0.5755
A119: Impact-Commencement Bay Elementary Charter | AC119: 0.5468 | AD119: 0.6101
A120: Inchelium | B120: 0.5709 | C120: 0.6537 | D120: 0.6705 | E120: 0.6409 | F120: 0.6744 | G120: 0.6364 | H120: 0.679 | I120: 0.6824 | J120: 0.6856 | K120: 0.666666 | L120: 0.723404 | M120: 0.788732 | N120: 0.730158 | O120: 0.767676 | P120: 0.747474 | Q120: 0.792079 | R120: 0.801843 | S120: 0.754464 | T120: 0.747899 | U120: 0.8534 | V120: 0.8075 | W120: 0.8143 | X120: 0.793721 | Y120: 0.823788 | Z120: 0.7661 | AA120: 0.6087 | AB120: 0.7544 | AC120: 0.7835 | AD120: 0.8159
A121: Index | B121: 0.6 | C121: 0.6452 | D121: 0.9487 | E121: 0.5957 | F121: 0.6452 | G121: 0.6585 | H121: 0.7083 | I121: 0.5 | J121: 0.6047 | K121: 0.655172 | L121: 0.72 | M121: 0.724137 | N121: 0.68 | O121: 0.515151 | P121: 0.578947 | Q121: 0.564102 | R121: 0.65 | S121: 0.615384 | T121: 0.487179 | U121: 0.4783 | V121: 0.2791 | W121: 0.2857 | X121: 0.314285 | Y121: 0.0625 | Z121: 0.4333 | AA121: 0.3871 | AB121: 0.3571 | AC121: 0.5 | AD121: 0.5238
A122: Issaquah | B122: 0.058 | C122: 0.0505 | D122: 0.0464 | E122: 0.0463 | F122: 0.0461 | G122: 0.0422 | H122: 0.0491 | I122: 0.0704 | J122: 0.0691 | K122: 0.074165 | L122: 0.072365 | M122: 0.065912 | N122: 0.073042 | O122: 0.066244 | P122: 0.079295 | Q122: 0.092512 | R122: 0.090504 | S122: 0.090544 | T122: 0.098518 | U122: 0.0955 | V122: 0.0878 | W122: 0.0885 | X122: 0.083267 | Y122: 0.08377 | Z122: 0.0834 | AA122: 0.0861 | AB122: 0.086 | AC122: 0.1015 | AD122: 0.1201
A123: Kahlotus | B123: 0.4327 | C123: 0.4783 | D123: 0.4694 | E123: 0.4444 | F123: 0.427 | G123: 0.4105 | H123: 0.5393 | I123: 0.5227 | J123: 0.5802 | K123: 0.533333 | L123: 0.528735 | M123: 0.472222 | N123: 0.558823 | O123: 0.558823 | P123: 0.536231 | Q123: 0.469696 | R123: 0.645161 | S123: 0.671875 | T123: 0.688524 | U123: 0.7872 | V123: 0.8511 | W123: 0.8511 | X123: 0.571428 | Y123: 0.534883 | Z123: 0.6818 | AA123: 0.7273 | AB123: 0.027 | AC123: 0.5882 | AD123: 0.3333
A124: Kalama | B124: 0.1887 | C124: 0.2009 | D124: 0.2121 | E124: 0.1772 | F124: 0.1948 | G124: 0.2287 | H124: 0.1793 | I124: 0.2461 | J124: 0.2299 | K124: 0.249756 | L124: 0.250728 | M124: 0.24536 | N124: 0.240816 | O124: 0.256565 | P124: 0.328431 | Q124: 0.356932 | R124: 0.42418 | S124: 0.429171 | T124: 0.449291 | U124: 0.3961 | V124: 0.3514 | W124: 0.3536 | X124: 0.35544 | Y124: 0.323929 | Z124: 0.3233 | AA124: 0.323 | AB124: 0.3163 | AC124: 0.3045 | AD124: 0.3658
A125: Keller | B125: 0.8125 | C125: 0.8103 | D125: 0.7885 | E125: 0.7805 | F125: 0.6471 | G125: 0.8235 | H125: 0.9057 | I125: 0.8596 | J125: 0.7679 | K125: 0.807692 | L125: 0.777777 | M125: 0.878048 | N125: 0.914285 | O125: 0.942857 | P125: 0.925925 | Q125: 0.84 | R125: 0.947368 | S125: 0.9 | T125: 0.871794 | U125: 0.85 | V125: 0.8438 | W125: 0.8438 | X125: 0.642857 | Y125: 0.037037 | Z125: 0.5 | AA125: 0.6667 | AB125: 0.8857 | AC125: 0.9394 | AD125: 0.9
A126: Kelso | B126: 0.3552 | C126: 0.362 | D126: 0.3592 | E126: 0.3788 | F126: 0.3739 | G126: 0.3754 | H126: 0.3889 | I126: 0.433 | J126: 0.4493 | K126: 0.422301 | L126: 0.437917 | M126: 0.41979 | N126: 0.41749 | O126: 0.452464 | P126: 0.517289 | Q126: 0.512083 | R126: 0.533483 | S126: 0.557453 | T126: 0.535545 | U126: 0.5756 | V126: 0.5623 | W126: 0.5619 | X126: 0.581891 | Y126: 0.575342 | Z126: 0.5803 | AA126: 0.5875 | AB126: 0.6051 | AC126: 0.613 | AD126: 0.6307
A127: Kennewick | B127: 0.2422 | C127: 0.2724 | D127: 0.2965 | E127: 0.3017 | F127: 0.3029 | G127: 0.3549 | H127: 0.3619 | I127: 0.3831 | J127: 0.3821 | K127: 0.391731 | L127: 0.410635 | M127: 0.447159 | N127: 0.458088 | O127: 0.48902 | P127: 0.494028 | Q127: 0.518055 | R127: 0.507253 | S127: 0.533313 | T127: 0.547146 | U127: 0.5824 | V127: 0.5864 | W127: 0.588 | X127: 0.567771 | Y127: 0.590287 | Z127: 0.5845 | AA127: 0.5568 | AB127: 0.5671 | AC127: 0.5804 | AD127: 0.5916
A128: Kent | B128: 0.2455 | C128: 0.2315 | D128: 0.2151 | E128: 0.245 | F128: 0.2637 | G128: 0.2646 | H128: 0.2826 | I128: 0.3129 | J128: 0.3239 | K128: 0.339605 | L128: 0.355207 | M128: 0.355898 | N128: 0.410047 | O128: 0.397859 | P128: 0.437239 | Q128: 0.476096 | R128: 0.522698 | S128: 0.534263 | T128: 0.519321 | U128: 0.5322 | V128: 0.5206 | W128: 0.5245 | X128: 0.499453 | Y128: 0.49318 | Z128: 0.503 | AA128: 0.4936 | AB128: 0.5161 | AC128: 0.5229 | AD128: 0.5638
A129: Kettle Falls | B129: 0.4844 | C129: 0.4663 | D129: 0.4846 | E129: 0.489 | F129: 0.4875 | G129: 0.4766 | H129: 0.4804 | I129: 0.4592 | J129: 0.4644 | K129: 0.451612 | L129: 0.512486 | M129: 0.499464 | N129: 0.534883 | O129: 0.539203 | P129: 0.593984 | Q129: 0.58488 | R129: 0.592052 | S129: 0.587828 | T129: 0.612244 | U129: 0.5232 | V129: 0.5077 | W129: 0.5055 | X129: 0.496861 | Y129: 0.49144 | Z129: 0.4675 | AA129: 0.5032 | AB129: 0.4054 | AC129: 0.538 | AD129: 0.531
A130: Kiona-Benton City | B130: 0.4141 | C130: 0.3933 | D130: 0.5088 | E130: 0.4398 | F130: 0.4368 | G130: 0.4628 | H130: 0.4475 | I130: 0.4584 | J130: 0.4436 | K130: 0.481368 | L130: 0.481155 | M130: 0.547953 | N130: 0.505508 | O130: 0.574086 | P130: 0.625243 | Q130: 0.573648 | R130: 0.585415 | S130: 0.607883 | T130: 0.627187 | U130: 0.632 | V130: 0.6154 | W130: 0.6163 | X130: 0.685159 | Y130: 0.653715 | Z130: 0.7053 | AA130: 0.7197 | AB130: 0.6924 | AC130: 0.705 | AD130: 0.841
A131: Kittitas | B131: 0.3744 | C131: 0.3928 | D131: 0.3735 | E131: 0.4549 | F131: 0.4373 | G131: 0.4539 | H131: 0.462 | I131: 0.4486 | J131: 0.44 | K131: 0.400343 | L131: 0.422222 | M131: 0.440559 | N131: 0.346709 | O131: 0.409385 | P131: 0.457446 | Q131: 0.500705 | R131: 0.467511 | S131: 0.505747 | T131: 0.471988 | U131: 0.4651 | V131: 0.4803 | W131: 0.4793 | X131: 0.471036 | Y131: 0.409691 | Z131: 0.4391 | AA131: 0.4264 | AB131: 0.4708 | AC131: 0.4752 | AD131: 0.513
A132: Klickitat | G132: 0.2043 | H132: 0.3764 | I132: 0.5829 | J132: 0.6267 | K132: 0.680555 | L132: 0.664473 | M132: 0.609929 | N132: 0.515151 | O132: 0.526315 | P132: 0.609756 | Q132: 0.654545 | R132: 0.657142 | S132: 0.657142 | T132: 0.65625 | U132: 0.5 | V132: 0.5 | W132: 0.5 | X132: 0.657534 | Y132: 0.542857 | Z132: 0.5176 | AA132: 0.4865 | AB132: 0.6111 | AC132: 0.4286 | AD132: 0.0097
A133: La Center | B133: 0.2338 | C133: 0.2137 | D133: 0.2078 | E133: 0.1953 | F133: 0.1804 | G133: 0.1864 | H133: 0.2246 | I133: 0.2378 | J133: 0.1712 | K133: 0.240293 | L133: 0.204576 | M133: 0.18558 | N133: 0.196178 | O133: 0.249685 | P133: 0.285624 | Q133: 0.28662 | R133: 0.295123 | S133: 0.33606 | T133: 0.287545 | U133: 0.29 | V133: 0.2659 | W133: 0.2672 | X133: 0.238009 | Y133: 0.233254 | Z133: 0.2271 | AA133: 0.2278 | AB133: 0.21 | AC133: 0.2549 | AD133: 0.2765
A134: La Conner | B134: 0.4356 | C134: 0.3976 | D134: 0.395 | E134: 0.4154 | F134: 0.3702 | G134: 0.3683 | H134: 0.3564 | I134: 0.339 | J134: 0.3391 | K134: 0.387755 | L134: 0.358098 | M134: 0.374468 | N134: 0.381275 | O134: 0.408223 | P134: 0.420454 | Q134: 0.450074 | R134: 0.467592 | S134: 0.437403 | T134: 0.487769 | U134: 0.5376 | V134: 0.5335 | W134: 0.5346 | X134: 0.565217 | Y134: 0.576158 | Z134: 0.5809 | AA134: 0.5548 | AB134: 0.5561 | AC134: 0.5534 | AD134: 0.559
A135: Lacrosse | B135: 0.3476 | C135: 0.3314 | D135: 0.3875 | E135: 0.2956 | F135: 0.3057 | G135: 0.3677 | H135: 0.3636 | I135: 0.4136 | J135: 0.3563 | K135: 0.333333 | L135: 0.307189 | M135: 0.297297 | N135: 0.374233 | O135: 0.396946 | P135: 0.365217 | Q135: 0.356435 | R135: 0.287234 | S135: 0.244186 | U135: 0.2419 | V135: 0.2857 | W135: 0.2857 | X135: 0.305084 | Y135: 0.290322 | Z135: 0.3438 | AA135: 0.3797 | AB135: 0.3704 | AC135: 0.4247 | AD135: 0.5114
A136: Lake Chelan | B136: 0.4749 | C136: 0.5172 | D136: 0.5398 | E136: 0.5175 | F136: 0.4731 | G136: 0.5178 | H136: 0.5115 | I136: 0.5783 | J136: 0.5412 | K136: 0.547282 | L136: 0.569629 | M136: 0.56473 | N136: 0.568345 | O136: 0.577819 | P136: 0.611607 | Q136: 0.628374 | R136: 0.605409 | S136: 0.639061 | T136: 0.622097 | U136: 0.6605 | V136: 0.6438 | W136: 0.6447 | X136: 0.641364 | Y136: 0.639608 | Z136: 0.6115 | AA136: 0.6123 | AB136: 0.6079 | AC136: 0.5399 | AD136: 0.6044
A137: Lake Quinault | B137: 0.514 | C137: 0.5809 | D137: 0.4781 | E137: 0.5165 | F137: 0.5585 | G137: 0.537 | H137: 0.625 | I137: 0.6423 | J137: 0.8015 | K137: 0.756944 | L137: 0.764705 | M137: 0.753086 | N137: 0.66791 | O137: 0.770212 | P137: 0.850393 | Q137: 0.808943 | R137: 0.914893 | S137: 0.903846 | T137: 0.85 | U137: 0.9294 | V137: 0.9826 | W137: 0.95 | X137: 1 | Y137: 1 | Z137: 0.9944 | AA137: 0.9124 | AB137: 0.9948 | AC137: 1 | AD137: 0.9949
A138: Lake Stevens | B138: 0.2648 | C138: 0.2409 | D138: 0.2049 | E138: 0.1798 | F138: 0.1959 | G138: 0.1835 | H138: 0.1933 | I138: 0.2032 | J138: 0.2145 | K138: 0.214921 | L138: 0.224198 | M138: 0.224126 | N138: 0.21565 | O138: 0.25825 | P138: 0.301993 | Q138: 0.320722 | R138: 0.331951 | S138: 0.285818 | T138: 0.288654 | U138: 0.3079 | V138: 0.297 | W138: 0.2963 | X138: 0.27846 | Y138: 0.248948 | Z138: 0.25 | AA138: 0.25 | AB138: 0.2323 | AC138: 0.2374 | AD138: 0.2867
A139: Lake Washington | B139: 0.0933 | C139: 0.0901 | D139: 0.0848 | E139: 0.0883 | F139: 0.0829 | G139: 0.0829 | H139: 0.0903 | I139: 0.1193 | J139: 0.1484 | K139: 0.155685 | L139: 0.132385 | M139: 0.120088 | N139: 0.126093 | O139: 0.126513 | P139: 0.147735 | Q139: 0.15177 | R139: 0.153989 | S139: 0.152231 | T139: 0.141601 | U139: 0.1354 | V139: 0.1287 | W139: 0.1297 | X139: 0.122521 | Y139: 0.109965 | Z139: 0.1092 | AA139: 0.0945 | AB139: 0.0965 | AC139: 0.0978 | AD139: 0.1206
A140: Lakewood | B140: 0.1948 | C140: 0.1663 | D140: 0.1919 | E140: 0.1951 | F140: 0.1905 | G140: 0.1917 | H140: 0.2099 | I140: 0.2568 | J140: 0.2706 | K140: 0.280232 | L140: 0.312524 | M140: 0.282863 | N140: 0.277126 | O140: 0.282248 | P140: 0.321073 | Q140: 0.344557 | R140: 0.351982 | S140: 0.35926 | T140: 0.340796 | U140: 0.3429 | V140: 0.3546 | W140: 0.3547 | X140: 0.365925 | Y140: 0.351729 | Z140: 0.3659 | AA140: 0.3779 | AB140: 0.3917 | AC140: 0.4307 | AD140: 0.4401
A141: Lamont | B141: 0.4474 | C141: 0.4 | D141: 0.4474 | E141: 0.425 | F141: 0.5957 | G141: 0.5263 | H141: 0.3056 | I141: 0.4706 | J141: 0.4444 | K141: 0.552631 | L141: 0.615384 | M141: 0.527777 | N141: 0.71875 | O141: 0.575757 | P141: 0.730769 | Q141: 0.526315 | R141: 0.545454 | S141: 0.586206 | T141: 0.625 | U141: 0.4839 | V141: 0.5938 | W141: 0.5938 | X141: 0.620689 | Y141: 0.725 | Z141: 0.7353 | AA141: 0.625 | AB141: 0.5122 | AC141: 0.5946 | AD141: 0.6429
A142: Liberty | B142: 0.2819 | C142: 0.3178 | D142: 0.3178 | E142: 0.2737 | F142: 0.2738 | G142: 0.2509 | H142: 0.2842 | I142: 0.2996 | J142: 0.3695 | K142: 0.344894 | L142: 0.391732 | M142: 0.429447 | N142: 0.447761 | O142: 0.464852 | P142: 0.504484 | Q142: 0.466507 | R142: 0.44226 | S142: 0.440389 | T142: 0.48062 | U142: 0.3885 | V142: 0.3614 | W142: 0.3655 | X142: 0.356371 | Y142: 0.365805 | Z142: 0.3242 | AA142: 0.3187 | AB142: 0.3036 | AC142: 0.3007 | AD142: 0.4058
A143: Lind | B143: 0.5359 | C143: 0.4521 | D143: 0.5296 | E143: 0.5958 | F143: 0.5478 | G143: 0.619 | H143: 0.7045 | I143: 0.6357 | J143: 0.6402 | K143: 0.662393 | L143: 0.692592 | M143: 0.640625 | N143: 0.605932 | O143: 0.630901 | P143: 0.656108 | Q143: 0.659663 | R143: 0.62882 | S143: 0.538461 | T143: 0.61572 | U143: 0.6222 | V143: 0.5969 | W143: 0.5882 | X143: 0.70297 | Y143: 0.668449 | Z143: 0.7059 | AA143: 0.6979 | AB143: 0.6895 | AC143: 0.6595 | AD143: 0.7391
A144: Longview | B144: 0.3991 | C144: 0.3799 | D144: 0.3855 | E144: 0.3905 | F144: 0.3854 | G144: 0.3743 | H144: 0.3928 | I144: 0.4155 | J144: 0.439 | K144: 0.45457 | L144: 0.466613 | M144: 0.449765 | N144: 0.439483 | O144: 0.483738 | P144: 0.525822 | Q144: 0.532946 | R144: 0.545211 | S144: 0.561571 | T144: 0.562546 | U144: 0.6235 | V144: 0.6258 | W144: 0.6234 | X144: 0.614866 | Y144: 0.611035 | Z144: 0.6162 | AA144: 0.6128 | AB144: 0.6126 | AC144: 0.6315 | AD144: 0.6626
A145: Loon Lake | B145: 0.6614 | C145: 0.6136 | D145: 0.5879 | E145: 0.6519 | F145: 0.6558 | G145: 0.6824 | H145: 0.697 | I145: 0.6711 | J145: 0.7533 | K145: 0.69375 | L145: 0.679245 | M145: 0.6763 | N145: 0.753926 | O145: 0.747967 | P145: 0.821917 | Q145: 0.855072 | R145: 0.834645 | S145: 0.870967 | T145: 0.841666 | U145: 0.4808 | V145: 0.5903 | W145: 0.5867 | X145: 0.570731 | Y145: 0.463302 | Z145: 0.3991 | AA145: 0.4632 | AB145: 0.5356 | AC145: 0.562 | AD145: 0.547
A146: Lopez Island | B146: 0.3746 | C146: 0.3716 | D146: 0.3964 | E146: 0.4103 | F146: 0.3582 | G146: 0.3954 | H146: 0.337 | I146: 0.316 | J146: 0.4275 | K146: 0.465703 | L146: 0.382113 | M146: 0.46473 | N146: 0.396078 | O146: 0.451162 | P146: 0.475555 | Q146: 0.513274 | R146: 0.51923 | S146: 0.552631 | T146: 0.521739 | U146: 0.4421 | V146: 0.3347 | W146: 0.3418 | X146: 0.421487 | Y146: 0.378048 | Z146: 0.4053 | AA146: 0.5083 | AB146: 0.4339 | AC146: 0.44 | AD146: 0.5974
A147: Lumen Charter | AB147: 0.9063 | AC147: 0.8718 | AD147: 0.9167
A148: Lummi Tribal | W148: 0.7159 | X148: 0.928571 | Y148: 0.916398 | Z148: 0.9375 | AA148: 0.866 | AB148: 0.7212 | AC148: 0.6593 | AD148: 0.6572
A149: Lyle | B149: 0.5379 | C149: 0.4821 | D149: 0.5428 | E149: 0.4967 | F149: 0.4976 | G149: 0.5072 | H149: 0.5186 | I149: 0.5064 | J149: 0.8237 | K149: 0.669211 | L149: 0.664082 | M149: 0.664835 | N149: 0.67341 | O149: 0.672619 | P149: 0.668769 | Q149: 0.61875 | R149: 0.615635 | S149: 0.612546 | T149: 0.608108 | U149: 0.5633 | V149: 0.6908 | W149: 0.6904 | X149: 0.708154 | Y149: 0.609442 | Z149: 0.6667 | AA149: 0.6208 | AB149: 0.5805 | AC149: 0.8874 | AD149: 0.7934
A150: Lynden | B150: 0.2483 | C150: 0.2756 | D150: 0.253 | E150: 0.2787 | F150: 0.2942 | G150: 0.2667 | H150: 0.3103 | I150: 0.3725 | J150: 0.3098 | K150: 0.345535 | L150: 0.336016 | M150: 0.33032 | N150: 0.323114 | O150: 0.341802 | P150: 0.369278 | Q150: 0.367744 | R150: 0.390117 | S150: 0.381033 | T150: 0.37363 | U150: 0.3755 | V150: 0.3647 | W150: 0.3723 | X150: 0.362523 | Y150: 0.33281 | Z150: 0.3233 | AA150: 0.3385 | AB150: 0.2877 | AC150: 0.2417 | AD150: 0.4089
A151: Mabton | B151: 0.7948 | C151: 0.7671 | D151: 0.771 | E151: 0.8178 | F151: 0.9073 | G151: 0.8521 | H151: 0.8951 | I151: 0.9017 | J151: 0.9097 | K151: 0.902851 | L151: 0.882604 | M151: 0.882113 | N151: 0.884375 | O151: 0.84787 | P151: 0.913604 | Q151: 0.92244 | R151: 0.923309 | S151: 0.923737 | T151: 0.921719 | U151: 0.8734 | V151: 0.8667 | W151: 0.867 | X151: 0.904185 | Y151: 0.904977 | Z151: 0.9205 | AA151: 0.9016 | AB151: 0.919 | AC151: 0.9313 | AD151: 0.9339
A152: Mansfield | B152: 0.5508 | C152: 0.4898 | D152: 0.4545 | E152: 0.4508 | F152: 0.4685 | G152: 0.5048 | H152: 0.5882 | I152: 0.6341 | J152: 0.6762 | K152: 0.666666 | L152: 0.717647 | M152: 0.755813 | N152: 0.704545 | O152: 0.701149 | P152: 0.72826 | Q152: 0.625 | R152: 0.693069 | S152: 0.772727 | T152: 0.670731 | U152: 0.6818 | V152: 0.6598 | W152: 0.6598 | X152: 0.693069 | Y152: 0.694117 | Z152: 0.7363 | AA152: 0.7113 | AB152: 0.6067 | AC152: 0.6559 | AD152: 0.6907
A153: Manson | B153: 0.7336 | C153: 0.7198 | D153: 0.7154 | E153: 0.6784 | F153: 0.7587 | G153: 0.7731 | H153: 0.7955 | I153: 0.7489 | J153: 0.7461 | K153: 0.766423 | L153: 0.747023 | M153: 0.751515 | N153: 0.743431 | O153: 0.765069 | P153: 0.786482 | Q153: 0.797235 | R153: 0.767142 | S153: 0.792022 | T153: 0.79772 | U153: 0.7916 | V153: 0.7874 | W153: 0.7855 | X153: 0.749249 | Y153: 0.730586 | Z153: 0.7052 | AA153: 0.7147 | AB153: 0.6694 | AC153: 0.6584 | AD153: 0.6558
A154: Mary M. Knight | B154: 0.5093 | C154: 0.4155 | D154: 0.4215 | E154: 0.4486 | F154: 0.3915 | G154: 0.4218 | H154: 0.4623 | I154: 0.4112 | J154: 0.4444 | K154: 0.49756 | L154: 0.508196 | M154: 0.40404 | N154: 0.432291 | O154: 0.410526 | P154: 0.557788 | Q154: 0.577464 | R154: 0.519553 | S154: 0.581497 | T154: 0.567839 | U154: 0.6761 | V154: 0.6624 | W154: 0.6688 | X154: 0.403441 | Y154: 0.177372 | Z154: 0.1886 | AA154: 0.2473 | AB154: 0.1578 | AC154: 0.2068 | AD154: 0.2741
A155: Mary Walker | B155: 0.6412 | C155: 0.6826 | D155: 0.7105 | E155: 0.7469 | F155: 0.6901 | G155: 0.7566 | H155: 0.6401 | I155: 0.7188 | J155: 0.6945 | K155: 0.712765 | L155: 0.568845 | M155: 0.795532 | N155: 0.696763 | O155: 0.725177 | P155: 0.770661 | Q155: 0.750943 | R155: 0.793713 | S155: 0.8 | T155: 0.741304 | U155: 0.899 | V155: 0.6033 | W155: 0.6025 | X155: 0.783486 | Y155: 0.809716 | Z155: 0.7447 | AA155: 0.7766 | AB155: 0.7632 | AC155: 0.6578 | AD155: 0.5957
A156: Marysville | B156: 0.2411 | C156: 0.2287 | D156: 0.2265 | E156: 0.2111 | F156: 0.2091 | G156: 0.2249 | H156: 0.235 | I156: 0.2661 | J156: 0.3062 | K156: 0.319556 | L156: 0.366712 | M156: 0.310729 | N156: 0.327572 | O156: 0.3527 | P156: 0.417232 | Q156: 0.419513 | R156: 0.504756 | S156: 0.482199 | T156: 0.474677 | U156: 0.4998 | V156: 0.4862 | W156: 0.4877 | X156: 0.489529 | Y156: 0.469007 | Z156: 0.4835 | AA156: 0.4915 | AB156: 0.4848 | AC156: 0.5061 | AD156: 0.5462
A157: McCleary | B157: 0.4206 | C157: 0.3799 | D157: 0.3844 | E157: 0.4203 | F157: 0.4252 | G157: 0.3551 | H157: 0.3511 | I157: 0.3183 | J157: 0.3343 | K157: 0.31596 | L157: 0.397394 | M157: 0.477941 | N157: 0.434504 | O157: 0.369565 | P157: 0.527859 | Q157: 0.555555 | R157: 0.579514 | S157: 0.540983 | T157: 0.498599 | U157: 0.5263 | V157: 0.5244 | W157: 0.5263 | X157: 0.63063 | Y157: 0.63141 | Z157: 0.6086 | AA157: 0.4762 | AB157: 0.4679 | AC157: 0.5258 | AD157: 0.6271
A158: Mead | B158: 0.1748 | C158: 0.1881 | D158: 0.1719 | E158: 0.1903 | F158: 0.1897 | G158: 0.184 | H158: 0.2118 | I158: 0.2262 | J158: 0.2386 | K158: 0.225033 | L158: 0.232484 | M158: 0.266136 | N158: 0.25837 | O158: 0.257403 | P158: 0.249304 | Q158: 0.269355 | R158: 0.294711 | S158: 0.311339 | T158: 0.283531 | U158: 0.2875 | V158: 0.3064 | W158: 0.308 | X158: 0.306488 | Y158: 0.289068 | Z158: 0.2931 | AA158: 0.2977 | AB158: 0.2232 | AC158: 0.267 | AD158: 0.3149
A159: Medical Lake | B159: 0.3142 | C159: 0.303 | D159: 0.2982 | E159: 0.3053 | F159: 0.323 | G159: 0.3317 | H159: 0.3576 | I159: 0.2827 | J159: 0.3524 | K159: 0.373327 | L159: 0.290023 | M159: 0.256003 | N159: 0.272886 | O159: 0.303611 | P159: 0.304128 | Q159: 0.291627 | R159: 0.302579 | S159: 0.347979 | T159: 0.391094 | U159: 0.3572 | V159: 0.3831 | W159: 0.3874 | X159: 0.378421 | Y159: 0.356722 | Z159: 0.3828 | AA159: 0.3761 | AB159: 0.3492 | AC159: 0.3533 | AD159: 0.3877
A160: Mercer Island | B160: 0.0239 | C160: 0.0216 | D160: 0.0179 | E160: 0.0207 | F160: 0.0128 | G160: 0.0112 | H160: 0.0086 | I160: 0.0215 | J160: 0.0247 | K160: 0.028358 | L160: 0.022306 | M160: 0.016761 | N160: 0.016405 | O160: 0.013103 | P160: 0.028376 | Q160: 0.035815 | R160: 0.037695 | S160: 0.044375 | T160: 0.046366 | U160: 0.0412 | V160: 0.0373 | W160: 0.05 | X160: 0.032301 | Y160: 0.029365 | Z160: 0.0345 | AA160: 0.0353 | AB160: 0.0327 | AC160: 0.0317 | AD160: 0.0511
A161: Meridian | B161: 0.3645 | C161: 0.2258 | D161: 0.2451 | E161: 0.2619 | F161: 0.3282 | G161: 0.3233 | H161: 0.3227 | I161: 0.373 | J161: 0.36 | K161: 0.338327 | L161: 0.348009 | M161: 0.371724 | N161: 0.359159 | O161: 0.375606 | P161: 0.306857 | Q161: 0.27655 | R161: 0.435119 | S161: 0.415231 | T161: 0.382053 | U161: 0.3875 | V161: 0.3813 | W161: 0.3856 | X161: 0.373766 | Y161: 0.374578 | Z161: 0.3779 | AA161: 0.3972 | AB161: 0.3188 | AC161: 0.2457 | AD161: 0.3816
A162: Methow Valley | B162: 0.3717 | C162: 0.2945 | D162: 0.2899 | E162: 0.2897 | F162: 0.2569 | G162: 0.2989 | H162: 0.3068 | I162: 0.3355 | J162: 0.3196 | K162: 0.408403 | L162: 0.353873 | M162: 0.363309 | N162: 0.373001 | O162: 0.385689 | P162: 0.450651 | Q162: 0.478723 | R162: 0.472759 | S162: 0.477419 | T162: 0.448818 | U162: 0.4929 | V162: 0.4454 | W162: 0.4408 | X162: 0.418985 | Y162: 0.398773 | Z162: 0.3937 | AA162: 0.3899 | AB162: 0.3207 | AC162: 0.3091 | AD162: 0.354
A163: Mill A | B163: 0.3804 | C163: 0.4118 | D163: 0.5217 | E163: 0.4815 | F163: 0.5647 | G163: 0.6125 | H163: 0.5581 | I163: 0.5618 | J163: 0.5949 | K163: 0.55 | L163: 0.54878 | M163: 0.542857 | N163: 0.611111 | O163: 0.5 | P163: 0.587301 | Q163: 0.746478 | R163: 0.733333 | S163: 0.48387 | T163: 0.541666 | U163: 0.5517 | V163: 0.7647 | W163: 0.7647 | X163: 0.9 | Y163: 0.653846 | Z163: 0.5116 | AA163: 0.4118 | AB163: 0.3443 | AC163: 0.2037 | AD163: 0.2958
A164: Monroe | B164: 0.1454 | C164: 0.1657 | D164: 0.1586 | E164: 0.1343 | F164: 0.1314 | G164: 0.1278 | H164: 0.1575 | I164: 0.2117 | J164: 0.2241 | K164: 0.209593 | L164: 0.203997 | M164: 0.180453 | N164: 0.188643 | O164: 0.22226 | P164: 0.234892 | Q164: 0.267767 | R164: 0.347417 | S164: 0.343253 | T164: 0.337019 | U164: 0.283 | V164: 0.2714 | W164: 0.273 | X164: 0.258294 | Y164: 0.263044 | Z164: 0.2821 | AA164: 0.2765 | AB164: 0.2723 | AC164: 0.3122 | AD164: 0.3344
A165: Montesano | B165: 0.2311 | C165: 0.2285 | D165: 0.2179 | E165: 0.2301 | F165: 0.2109 | G165: 0.2084 | H165: 0.2335 | I165: 0.2336 | J165: 0.251 | K165: 0.251188 | L165: 0.275075 | M165: 0.271922 | N165: 0.25 | O165: 0.286718 | P165: 0.322916 | Q165: 0.342433 | R165: 0.370129 | S165: 0.355345 | T165: 0.374012 | U165: 0.3968 | V165: 0.3803 | W165: 0.3807 | X165: 0.382438 | Y165: 0.355377 | Z165: 0.3649 | AA165: 0.3578 | AB165: 0.3362 | AC165: 0.345 | AD165: 0.3692
A166: Morton | B166: 0.2984 | C166: 0.3616 | D166: 0.397 | E166: 0.433 | F166: 0.3903 | G166: 0.5365 | H166: 0.4109 | I166: 0.4614 | J166: 0.5187 | K166: 0.514806 | L166: 0.512304 | M166: 0.498812 | N166: 0.504854 | O166: 0.529411 | P166: 0.591666 | Q166: 0.596969 | R166: 0.56962 | S166: 0.584905 | T166: 0.61875 | U166: 0.6612 | V166: 0.6417 | W166: 0.6404 | X166: 0.662538 | Y166: 0.658862 | Z166: 0.5905 | AA166: 0.5669 | AB166: 0.5498 | AC166: 0.5438 | AD166: 0.5855
A167: Moses Lake | B167: 0.4456 | C167: 0.4508 | D167: 0.4447 | E167: 0.448 | F167: 0.461 | G167: 0.4814 | H167: 0.4774 | I167: 0.5216 | J167: 0.5318 | K167: 0.536371 | L167: 0.573798 | M167: 0.542781 | N167: 0.5517 | O167: 0.546401 | P167: 0.580129 | Q167: 0.59706 | R167: 0.613982 | S167: 0.634424 | T167: 0.611568 | U167: 0.6342 | V167: 0.6321 | W167: 0.6345 | X167: 0.645474 | Y167: 0.633422 | Z167: 0.6388 | AA167: 0.6428 | AB167: 0.6423 | AC167: 0.6339 | AD167: 0.6488
A168: Mossyrock | B168: 0.452 | C168: 0.4882 | D168: 0.4621 | E168: 0.4901 | F168: 0.4464 | G168: 0.4484 | H168: 0.4494 | I168: 0.4895 | J168: 0.4815 | K168: 0.521943 | L168: 0.466666 | M168: 0.485207 | N168: 0.490654 | O168: 0.521669 | P168: 0.531986 | Q168: 0.551433 | R168: 0.565587 | S168: 0.557239 | T168: 0.602811 | U168: 0.6154 | V168: 0.6455 | W168: 0.6459 | X168: 0.65175 | Y168: 0.636538 | Z168: 0.6501 | AA168: 0.637 | AB168: 0.5531 | AC168: 0.5575 | AD168: 0.5983
A169: Mount Adams | B169: 0.8591 | C169: 0.8234 | D169: 0.7952 | E169: 0.5265 | F169: 0.7347 | G169: 0.7352 | H169: 0.7048 | I169: 0.7956 | J169: 0.8069 | K169: 0.804587 | L169: 0.835032 | M169: 0.833643 | N169: 0.778806 | O169: 0.830426 | P169: 0.805429 | Q169: 0.827722 | R169: 0.861083 | S169: 0.856844 | T169: 0.852585 | U169: 0.9346 | V169: 0.7182 | W169: 0.7161 | X169: 0.919268 | Y169: 0.963401 | Z169: 0.9633 | AA169: 0.955 | AB169: 0.9894 | AC169: 0.9645 | AD169: 0.8459
A170: Mount Baker | B170: 0.3502 | C170: 0.3502 | D170: 0.3742 | E170: 0.4073 | F170: 0.3998 | G170: 0.4138 | H170: 0.4328 | I170: 0.4694 | J170: 0.4809 | K170: 0.516115 | L170: 0.524602 | M170: 0.531046 | N170: 0.479487 | O170: 0.50607 | P170: 0.532323 | Q170: 0.542607 | R170: 0.555738 | S170: 0.548752 | T170: 0.516129 | U170: 0.562 | V170: 0.5724 | W170: 0.5735 | X170: 0.54182 | Y170: 0.547567 | Z170: 0.5318 | AA170: 0.5538 | AB170: 0.5359 | AC170: 0.5531 | AD170: 0.4577
A171: Mount Pleasant | B171: 0.2373 | C171: 0.2909 | D171: 0.3333 | E171: 0.26 | F171: 0.1404 | G171: 0.2899 | H171: 0.2131 | I171: 0.3043 | J171: 0.2576 | K171: 0.246153 | M171: 0.1 | N171: 0.087719 | O171: 0.2 | P171: 0.208333 | Q171: 0.180327 | R171: 0.172413 | S171: 0.041666 | U171: 0.1404 | V171: 0.1702 | W171: 0.1702 | X171: 0.177419 | Y171: 0.184615 | Z171: 0.0781 | AA171: 0.1642 | AB171: 0.1791 | AC171: 0.2241 | AD171: 0.3239
A172: Mount Vernon | B172: 0.3683 | C172: 0.4116 | D172: 0.406 | E172: 0.4262 | F172: 0.467 | G172: 0.5029 | H172: 0.4917 | I172: 0.5363 | J172: 0.5804 | K172: 0.622834 | L172: 0.647543 | M172: 0.607015 | N172: 0.533964 | O172: 0.68272 | P172: 0.648805 | Q172: 0.6681 | R172: 0.67194 | S172: 0.675414 | T172: 0.644385 | U172: 0.6726 | V172: 0.6493 | W172: 0.6496 | X172: 0.628195 | Y172: 0.610042 | Z172: 0.6218 | AA172: 0.6323 | AB172: 0.6209 | AC172: 0.6031 | AD172: 0.6506
A173: Muckleshoot Tribal | W173: 0.8413 | X173: 0.806034 | Y173: 0.689516 | Z173: 0.6278 | AA173: 0.7348 | AB173: 0.7421 | AC173: 0.8231 | AD173: 0.6821
A174: Mukilteo | B174: 0.2941 | C174: 0.2899 | D174: 0.2712 | E174: 0.2344 | F174: 0.2324 | G174: 0.2752 | H174: 0.2861 | I174: 0.3126 | J174: 0.3627 | K174: 0.378711 | L174: 0.377382 | M174: 0.364422 | N174: 0.384067 | O174: 0.432289 | P174: 0.460824 | Q174: 0.477805 | R174: 0.498263 | S174: 0.504679 | T174: 0.486639 | U174: 0.5078 | V174: 0.5051 | W174: 0.5056 | X174: 0.498506 | Y174: 0.494332 | Z174: 0.4881 | AA174: 0.4921 | AB174: 0.4812 | AC174: 0.4973 | AD174: 0.4844
A175: Naches Valley | B175: 0.301 | C175: 0.3269 | D175: 0.2864 | E175: 0.2902 | F175: 0.2728 | G175: 0.2839 | H175: 0.294 | I175: 0.3202 | J175: 0.2877 | K175: 0.293851 | L175: 0.325255 | M175: 0.323337 | N175: 0.321309 | O175: 0.334222 | P175: 0.381245 | Q175: 0.399727 | R175: 0.446749 | S175: 0.44583 | T175: 0.440156 | U175: 0.4417 | V175: 0.4643 | W175: 0.464 | X175: 0.478715 | Y175: 0.494261 | Z175: 0.4968 | AA175: 0.5051 | AB175: 0.5099 | AC175: 0.5255 | AD175: 0.5449
A176: Napavine | B176: 0.3399 | C176: 0.3682 | D176: 0.3544 | E176: 0.3857 | F176: 0.3152 | G176: 0.3304 | H176: 0.3675 | I176: 0.337 | J176: 0.3735 | K176: 0.360632 | L176: 0.348547 | M176: 0.352074 | N176: 0.406374 | O176: 0.40026 | P176: 0.437984 | Q176: 0.478835 | R176: 0.457293 | S176: 0.47486 | T176: 0.446261 | U176: 0.4874 | V176: 0.4899 | W176: 0.4912 | X176: 0.470588 | Y176: 0.466426 | Z176: 0.4641 | AA176: 0.4538 | AB176: 0.4189 | AC176: 0.4196 | AD176: 0.4553
A177: Naselle-Grays River Valley | B177: 0.2797 | C177: 0.3206 | D177: 0.3725 | E177: 0.3127 | F177: 0.3354 | G177: 0.2802 | H177: 0.3591 | I177: 0.3222 | J177: 0.3735 | K177: 0.447761 | L177: 0.452449 | M177: 0.452513 | N177: 0.49855 | O177: 0.510769 | P177: 0.507788 | Q177: 0.520504 | R177: 0.517799 | S177: 0.514598 | T177: 0.584415 | U177: 0.4608 | V177: 0.5126 | W177: 0.5115 | X177: 0.465934 | Y177: 0.488687 | Z177: 0.4589 | AA177: 0.5121 | AB177: 0.5068 | AC177: 0.5297 | AD177: 0.5
A178: Nespelem | B178: 0.9378 | C178: 0.9013 | D178: 0.755 | E178: 0.9009 | F178: 0.8654 | G178: 0.8558 | H178: 0.9227 | I178: 0.8168 | J178: 0.7784 | K178: 0.793296 | L178: 0.71875 | M178: 0.713483 | N178: 0.835616 | O178: 0.805882 | P178: 0.778443 | Q178: 0.524096 | R178: 0.797468 | S178: 0.796178 | T178: 0.796178 | U178: 0.8983 | V178: 1 | W178: 0.95 | X178: 0.992592 | Y178: 0.954545 | Z178: 1 | AA178: 0.9926 | AB178: 0.9624 | AC178: 0.9846 | AD178: 0.9919
A179: Newport | B179: 0.6009 | C179: 0.6214 | D179: 0.5907 | E179: 0.5703 | F179: 0.5459 | G179: 0.5425 | H179: 0.5696 | I179: 0.5802 | J179: 0.5632 | K179: 0.538745 | L179: 0.588801 | M179: 0.613835 | N179: 0.625772 | O179: 0.568062 | P179: 0.59137 | Q179: 0.575259 | R179: 0.589877 | S179: 0.578378 | T179: 0.579466 | U179: 0.6213 | V179: 0.6026 | W179: 0.6022 | X179: 0.62523 | Y179: 0.617621 | Z179: 0.6026 | AA179: 0.6382 | AB179: 0.6095 | AC179: 0.5978 | AD179: 0.574
A180: Nine Mile Falls | B180: 0.1886 | C180: 0.2028 | D180: 0.2099 | E180: 0.2028 | F180: 0.2069 | G180: 0.1903 | H180: 0.196 | I180: 0.237 | J180: 0.2732 | K180: 0.273989 | L180: 0.253362 | M180: 0.257381 | N180: 0.242076 | O180: 0.228604 | P180: 0.234808 | Q180: 0.261831 | R180: 0.272668 | S180: 0.286713 | T180: 0.253027 | U180: 0.2912 | V180: 0.2983 | W180: 0.2994 | X180: 0.288811 | Y180: 0.274011 | Z180: 0.2505 | AA180: 0.2655 | AB180: 0.2648 | AC180: 0.2263 | AD180: 0.3095
